Workbook

Sheet Anleitung
B2: Monitoring des Wachstums
B3: Das exakte und regelmässige Monitoring des Wachstums spielt im Nachwuchsleistungssport eine sehr wichtige Rolle
C4: - das Monitoring des Wachstums liefert wichtige Hinweise zur Wachstumsphase des Athleten und sollte bei der Trainingssteuerung berücksichtigt werden
C5: - mögliche Wachstumsstörungen können früh erkannt werden
C6: Der Wachstumsverlauf sollte bei der Trainingsplanung beachtet werden. Je nach Wachstumsphase (Pubertät: bei Mädchen zwischen 8 und 15 Jahren,
C7: bei Jungen zwischen 10 und 17 Jahren) sollte das Training an das Wachstum angepast werden, um zu hohe Tainingsintensitäten zu vermeiden
C8: und Verletzungen vorzubeugen.
C10: In der Rubrik "Interprétation",werden 3 Beispiele zu unterschiedlichen Wachstumsverläufen beschrieben.
B13: Messung der Körpergrösse stehend
B15: Stichwortartige Zusammenfassung des Testprotokolls
B16: (in „gestreckter“ Haltung – maximale Distanz zwischen Boden und Scheitel des Kopfes.
B17: Der Scheitel gilt dabei als höchster Punkt des Schädels, wenn der Kopf exakt horizontal gehalten wird).
B19: 1. | C19: Athlet/in steht mit Rücken, Gesäss und Fersen gegen die Wand. Füsse sind zusammen und flach auf dem Boden.
B20: 2. | C20: Kopf / Blick horizontal ausrichten.
B21: 3. | C21: Athlet/in atmet möglichst tief ein und hält den Atem an.
B22: 4. | C22: In der maximal gestreckten Haltung (Füsse immer noch flach auf dem Boden) und am Ende der tiefen Atmung, wird auf 0.1 cm genau gemessen.
B23: 5. | C23: Athlet/in verlässt den Messplatz.
B24: 6. | C24: Erneute Durchführung der Schritte 1 bis 5.
B25: 7. | C25: Falls Unterschied zw. 1. und 2. Messung maximal 0.4 cm, dann Durchschnitt als Ergebnis verwenden.
C26: Falls Unterschied grösser ist als 0.4 cm, dann wieder bei Schritt 1 beginnen.
B30: Verwendung des Tools "Monitoring des Wachstums"
B32: Eingabe in der Eingabemaske
C33: Wählen Sie das Geschlecht in der Auswahlliste
C34: Füllen Sie die weissen Zellen in der Eingabemaske aus. (1-55 Messungen können eingetragen werden.)
C35: Die Daten der gemessenen Körpergrösse erscheinen in der Graphik "Körpergrösse / taille corporelle"
C37: Bemerkungen:
C38: Für jeden Athlet eine eigene Tabelle anfertigen
C39: Wir empfehlen, die Grössenmessung in einem Zeitintervall von 3 Monaten durchzuführen (Achtung: bei 2 Messungen in einem Monat wird nur die erste Messung angezeigt)
B42: Wie liest man die Perzentilkurven?
B44: Wenn sich ein Athlet / eine Athletin auf der 50. Perzentile befindet, heisst es, dass 50% der Kinder gleichen Alters und gleichen Geschlechts kleiner oder grösser
B45: als das betreffende Kind sind.
B46: Die Perzentile gehen von 1 bis 100. Auf der Grafik sind die Perzentilekurven des 3., 10., 25., 50., 75., 90., 97. Perzentile dargestellt.
B48: Inhalt: Marie Javet & Michael Romann
B49: Kontakt: Marie Javet, Mail: marie.javet@baspo.admin.ch

Sheet Instructions
B2: Monitoring de la croissance
B3: Suivre le processus de la croissance de près et de manière régulière d'un jeune athlète joue un rôle essentiel dans:
C4: -l'observation de changement de vitesse de croissance. Ceci permet d'identifier dans quelle phase de croissance se trouve l'athlète.
C5: -l'identification d'éventuels problèmes de croissance.
C7: Lors de la planification de l'entrainement, la phase de croissance de l'athlète doit être prise en compte. Suivant la phase de croissance de l'athlète
C8: (puberté: chez les filles entre 8 et 15 ans, chez les garçons entre 10 et 17 ans), l'entrainement devrait être adapté au développement afin de prévenir
C9: des charges trop élevées/inadaptées et de provoquer des blessures en lien avec la croissance
C11: Sous la rubrique "Interprétation", les 3 différents exemples de croissance type sont représentés.
B13: Mesure de la taille debout
B15: Protocole de test
B16: (à mesurer en position «étendue», c’est-à-dire avec une distance maximale entre le sol et le sommet de la tête.
B17: Sommet de la tête = point du crâne le plus haut lorsque la tête est tenue exactement à l’horizontale).
B19: 1. | C19: L’athlète est debout, adossé au mur. Son dos, ses fesses et ses talons doivent toucher le mur. Ses pieds sont joints et posés à plat sur le sol.
B20: 2. | C20: Tête / regard à l’horizontale.
B21: 3. | C21: L’athlète inspire aussi profondément que possible et bloque sa respiration.
B22: 4. | C22: Dans la position étendue maximale (les pieds restent sur le sol) et à la fin de la respiration profonde, mesurer la taille du joueur à 0,1 cm près.
B23: 5. | C23: L’athlète se retire de l’endroit de la mesure.
B24: 6. | C24: Répéter les étapes 1 à 5.
B25: 7. | C25: Si les deux résultats divergent de moins de 0,4 cm, le résultat pris en compte sera la moyenne des deux valeurs.
C26: Si l’écart entre les deux résultats est supérieur à 0,4 cm, recommencer à l’étape 1.
B30: Utilisation de l'outil "Monitoring de la croissance"
B32: Entrée des données dans la feuille de données (Entrée des données_Eingabemaske)
C33: Choisissez le sexe dans la liste déroulante
C34: Compléter les cellules colorées en blanc (de 1 à 55 mesures possibles)
C35: Les valeurs de la taille mesurées apparaissent dans le graphique "Körpergrösse / taille corporelle"
C37: Remarques:
C38: Les données d'un seul athlète à la fois peuvent être entrées dans l'outil.
C39: Nous recommandons un laps de temps de 3 mois entre 2 mesures de la taille
C40: (Attention: Lors de 2 mesures dans le même mois, seule la première mesure s'affiche dans le graphique)
B44: Comment lire/comprendre les percentiles
B46: Si un athlète se trouve sur le 50ème percentile, cela veut dire qu'il est plus grand que 50% de la population (générale) du même âge que lui.
B47: Les percentiles vont de 1 à 100. Sur le graphique suivant, les courbes du 3ème, 10ème 25ème, 50ème, 75ème, 90ème et 97ème percentiles sont représentées.
B51: Contenu: Marie Javet & Michael Romann
B52: Contact: Marie Javet, Mail: marie.javet@baspo.admin.ch

Sheet Entrée des données_Eingabemaske
D3: männlich / masculin | E3: weiblich / féminin | V3: Eidgenössisches Departement für Verteidigung, Bevölkerungsschutz und Sport VBS Bundesamt für Sport BASPO Eidgenössische Hochschule für Sport Magglingen EHSM
L4: Monitoring des Wachstums Monitoring de la croissance
L5: Persönliche Angaben / Données personnelles
L8: Name / Nom: | Q8: * Fakultativ / facultatif
L10: Vorname / Prénom | Q10: * Fakultativ / facultatif
L12: Geschecht / sexe: | N12: weiblich / féminin | P12: * in der Auswahlliste auswählen / choisir dans la liste déroulante
L14: Geburtsdatum Date de Naissance: (xx.yy.zzzz)
C17: Grössemessung / mesure de la taille:
E19: Datum der Messung Date de la mesure: (Bsp. / ex: 03.01.2018) | F19: Gemessene Grösse Taille mesurée: Bsp. / ex: 173.4 cm | G19: Alter am Messdatum Âge lors de la mesure | H19: Perzentil Percentile
D20: Messung / mesure 1 | G20: =IF(E20-$N$14<0,"",(E20-$N$14)/365) -> 0 | H20: =IF(F20=0,"",VLOOKUP(F20,Perzentile!$W$3:$Y$267,3,FALSE)*100) -> 
D21: Messung / mesure 2 | G21: =IF(E21-$N$14<0,"",(E21-$N$14)/365) -> 0 | H21: =IF(F21=0,"",VLOOKUP(F21,Perzentile!$W$3:$Y$267,3,FALSE)*100) -> 
D22: Messung / mesure 3 | G22: 0 | H22: =IF(F22=0,"",VLOOKUP(F22,Perzentile!$W$3:$Y$267,3,FALSE)*100) -> 
D23: Messung / mesure 4 | G23: 0 | H23: =IF(F23=0,"",VLOOKUP(F23,Perzentile!$W$3:$Y$267,3,FALSE)*100) -> 
D24: Messung / mesure 5 | G24: 0 | H24: =IF(F24=0,"",VLOOKUP(F24,Perzentile!$W$3:$Y$267,3,FALSE)*100) -> 
D25: Messung / mesure 6 | G25: 0 | H25: =IF(F25=0,"",VLOOKUP(F25,Perzentile!$W$3:$Y$267,3,FALSE)*100) -> 
D26: Messung / mesure 7 | G26: 0 | H26: =IF(F26=0,"",VLOOKUP(F26,Perzentile!$W$3:$Y$267,3,FALSE)*100) -> 
D27: Messung / mesure 8 | G27: 0 | H27: =IF(F27=0,"",VLOOKUP(F27,Perzentile!$W$3:$Y$267,3,FALSE)*100) -> 
D28: Messung / mesure 9 | G28: 0 | H28: =IF(F28=0,"",VLOOKUP(F28,Perzentile!$W$3:$Y$267,3,FALSE)*100) -> 
D29: Messung / mesure 10 | G29: 0 | H29: =IF(F29=0,"",VLOOKUP(F29,Perzentile!$W$3:$Y$267,3,FALSE)*100) -> 
D30: Messung / mesure 11 | G30: 0 | H30: =IF(F30=0,"",VLOOKUP(F30,Perzentile!$W$3:$Y$267,3,FALSE)*100) -> 
D31: Messung / mesure 12 | G31: 0 | H31: =IF(F31=0,"",VLOOKUP(F31,Perzentile!$W$3:$Y$267,3,FALSE)*100) -> 
D32: Messung / mesure 13 | G32: 0 | H32: =IF(F32=0,"",VLOOKUP(F32,Perzentile!$W$3:$Y$267,3,FALSE)*100) -> 
D33: Messung / mesure 14 | G33: 0 | H33: =IF(F33=0,"",VLOOKUP(F33,Perzentile!$W$3:$Y$267,3,FALSE)*100) -> 
D34: Messung / mesure 15 | G34: 0 | H34: =IF(F34=0,"",VLOOKUP(F34,Perzentile!$W$3:$Y$267,3,FALSE)*100) -> 
D35: Messung / mesure 16 | G35: 0 | H35: =IF(F35=0,"",VLOOKUP(F35,Perzentile!$W$3:$Y$267,3,FALSE)*100) -> 
D36: Messung / mesure 17 | G36: 0 | H36: =IF(F36=0,"",VLOOKUP(F36,Perzentile!$W$3:$Y$267,3,FALSE)*100) -> 
D37: Messung / mesure 18 | G37: 0 | H37: =IF(F37=0,"",VLOOKUP(F37,Perzentile!$W$3:$Y$267,3,FALSE)*100) -> 
D38: Messung / mesure 19 | G38: 0 | H38: =IF(F38=0,"",VLOOKUP(F38,Perzentile!$W$3:$Y$267,3,FALSE)*100) -> 
D39: Messung / mesure 20 | G39: 0 | H39: =IF(F39=0,"",VLOOKUP(F39,Perzentile!$W$3:$Y$267,3,FALSE)*100) -> 
D40: Messung / mesure 21 | G40: 0 | H40: =IF(F40=0,"",VLOOKUP(F40,Perzentile!$W$3:$Y$267,3,FALSE)*100) -> 
D41: Messung / mesure 22 | G41: 0 | H41: =IF(F41=0,"",VLOOKUP(F41,Perzentile!$W$3:$Y$267,3,FALSE)*100) -> 
D42: Messung / mesure 23 | G42: 0 | H42: =IF(F42=0,"",VLOOKUP(F42,Perzentile!$W$3:$Y$267,3,FALSE)*100) -> 
D43: Messung / mesure 24 | G43: 0 | H43: =IF(F43=0,"",VLOOKUP(F43,Perzentile!$W$3:$Y$267,3,FALSE)*100) -> 
D44: Messung / mesure 25 | G44: 0 | H44: =IF(F44=0,"",VLOOKUP(F44,Perzentile!$W$3:$Y$267,3,FALSE)*100) -> 
D45: Messung / mesure 26 | G45: 0 | H45: =IF(F45=0,"",VLOOKUP(F45,Perzentile!$W$3:$Y$267,3,FALSE)*100) -> 
D46: Messung / mesure 27 | G46: 0 | H46: =IF(F46=0,"",VLOOKUP(F46,Perzentile!$W$3:$Y$267,3,FALSE)*100) -> 
D47: Messung / mesure 28 | G47: 0 | H47: =IF(F47=0,"",VLOOKUP(F47,Perzentile!$W$3:$Y$267,3,FALSE)*100) -> 
D48: Messung / mesure 29 | G48: 0 | H48: =IF(F48=0,"",VLOOKUP(F48,Perzentile!$W$3:$Y$267,3,FALSE)*100) -> 
D49: Messung / mesure 30 | G49: 0 | H49: =IF(F49=0,"",VLOOKUP(F49,Perzentile!$W$3:$Y$267,3,FALSE)*100) -> 
D50: Messung / mesure 31 | G50: 0 | H50: =IF(F50=0,"",VLOOKUP(F50,Perzentile!$W$3:$Y$267,3,FALSE)*100) -> 
D51: Messung / mesure 32 | G51: 0 | H51: =IF(F51=0,"",VLOOKUP(F51,Perzentile!$W$3:$Y$267,3,FALSE)*100) -> 
D52: Messung / mesure 33 | G52: 0 | H52: =IF(F52=0,"",VLOOKUP(F52,Perzentile!$W$3:$Y$267,3,FALSE)*100) -> 
D53: Messung / mesure 34 | G53: 0 | H53: =IF(F53=0,"",VLOOKUP(F53,Perzentile!$W$3:$Y$267,3,FALSE)*100) -> 
D54: Messung / mesure 35 | G54: 0 | H54: =IF(F54=0,"",VLOOKUP(F54,Perzentile!$W$3:$Y$267,3,FALSE)*100) -> 
D55: Messung / mesure 36 | G55: 0 | H55: =IF(F55=0,"",VLOOKUP(F55,Perzentile!$W$3:$Y$267,3,FALSE)*100) -> 
D56: Messung / mesure 37 | G56: 0 | H56: =IF(F56=0,"",VLOOKUP(F56,Perzentile!$W$3:$Y$267,3,FALSE)*100) -> 
D57: Messung / mesure 38 | G57: 0 | H57: =IF(F57=0,"",VLOOKUP(F57,Perzentile!$W$3:$Y$267,3,FALSE)*100) -> 
D58: Messung / mesure 39 | G58: 0 | H58: =IF(F58=0,"",VLOOKUP(F58,Perzentile!$W$3:$Y$267,3,FALSE)*100) -> 
D59: Messung / mesure 40 | G59: 0 | H59: =IF(F59=0,"",VLOOKUP(F59,Perzentile!$W$3:$Y$267,3,FALSE)*100) -> 
D60: Messung / mesure 41 | G60: 0 | H60: =IF(F60=0,"",VLOOKUP(F60,Perzentile!$W$3:$Y$267,3,FALSE)*100) -> 
D61: Messung / mesure 42 | G61: 0 | H61: =IF(F61=0,"",VLOOKUP(F61,Perzentile!$W$3:$Y$267,3,FALSE)*100) -> 
D62: Messung / mesure 43 | G62: 0 | H62: =IF(F62=0,"",VLOOKUP(F62,Perzentile!$W$3:$Y$267,3,FALSE)*100) -> 
D63: Messung / mesure 44 | G63: 0 | H63: =IF(F63=0,"",VLOOKUP(F63,Perzentile!$W$3:$Y$267,3,FALSE)*100) -> 
D64: Messung / mesure 45 | G64: 0 | H64: =IF(F64=0,"",VLOOKUP(F64,Perzentile!$W$3:$Y$267,3,FALSE)*100) -> 
D65: Messung / mesure 46 | G65: 0 | H65: =IF(F65=0,"",VLOOKUP(F65,Perzentile!$W$3:$Y$267,3,FALSE)*100) -> 
D66: Messung / mesure 47 | G66: 0 | H66: =IF(F66=0,"",VLOOKUP(F66,Perzentile!$W$3:$Y$267,3,FALSE)*100) -> 
D67: Messung / mesure 48 | G67: 0 | H67: =IF(F67=0,"",VLOOKUP(F67,Perzentile!$W$3:$Y$267,3,FALSE)*100) -> 
D68: Messung / mesure 49 | G68: 0 | H68: =IF(F68=0,"",VLOOKUP(F68,Perzentile!$W$3:$Y$267,3,FALSE)*100) -> 
D69: Messung / mesure 50 | G69: 0 | H69: =IF(F69=0,"",VLOOKUP(F69,Perzentile!$W$3:$Y$267,3,FALSE)*100) -> 
D70: Messung / mesure 51 | G70: 0 | H70: =IF(F70=0,"",VLOOKUP(F70,Perzentile!$W$3:$Y$267,3,FALSE)*100) -> 
D71: Messung / mesure 52 | G71: 0 | H71: =IF(F71=0,"",VLOOKUP(F71,Perzentile!$W$3:$Y$267,3,FALSE)*100) -> 
D72: Messung / mesure 53 | G72: 0 | H72: =IF(F72=0,"",VLOOKUP(F72,Perzentile!$W$3:$Y$267,3,FALSE)*100) ->  | M72: Erarbeitet von der Arbeitsgruppe Wachstumskurven des Kinderspitals Zürich (Paediatrica 2011, Vol. 22, Nr. 1)
D73: Messung / mesure 54 | G73: 0 | H73: =IF(F73=0,"",VLOOKUP(F73,Perzentile!$W$3:$Y$267,3,FALSE)*100) ->  | M73: Quelle: WHO Growth Charts (www.who.int/childgrowth/standards)
D74: Messung / mesure 55 | G74: 0 | H74: =IF(F74=0,"",VLOOKUP(F74,Perzentile!$W$3:$Y$267,3,FALSE)*100) ->  | M74: Elaboré par le groupe de travail "courbes de croissance" de la Clinique pédiatrique universitaire de Zurich (Paediatrica 2011, Vol. 22, No 1)
M75: Source: WHO Growth Charts (www.who.int/childgrowth/standards)

Sheet Interpretation

Sheet Berechnungen (hidden)
A1: Datum der Messung | B1: Geburtsdatum | C1: Alter am Tag der Messung in Jahr | D1: Alter am Tag der Messung in Monaten | E1: Aufgerundet | F1: Grösse
A2: ='Entrée des données_Eingabemaske'!$E20 -> 00:00:00 | B2: ='Entrée des données_Eingabemaske'!$N$14 -> 00:00:00 | C2: =(A2-B2)/365 -> 0 | D2: =$C2*12 -> 0 | E2: =ROUND($D2,0) -> 0 | F2: ='Entrée des données_Eingabemaske'!$F20 -> 0
A3: ='Entrée des données_Eingabemaske'!$E21 -> 00:00:00 | B3: ='Entrée des données_Eingabemaske'!$N$14 -> 00:00:00 | C3: =(A3-B3)/365 -> 0 | D3: =$C3*12 -> 0 | E3: =ROUND($D3,0) -> 0 | F3: ='Entrée des données_Eingabemaske'!$F21 -> 0
A4: ='Entrée des données_Eingabemaske'!$E22 -> 00:00:00 | B4: ='Entrée des données_Eingabemaske'!$N$14 -> 00:00:00 | C4: 0 | D4: 0 | E4: 0 | F4: ='Entrée des données_Eingabemaske'!$F22 -> 0
A5: ='Entrée des données_Eingabemaske'!$E23 -> 00:00:00 | B5: ='Entrée des données_Eingabemaske'!$N$14 -> 00:00:00 | C5: 0 | D5: 0 | E5: 0 | F5: ='Entrée des données_Eingabemaske'!$F23 -> 0
A6: ='Entrée des données_Eingabemaske'!$E24 -> 00:00:00 | B6: ='Entrée des données_Eingabemaske'!$N$14 -> 00:00:00 | C6: 0 | D6: 0 | E6: 0 | F6: ='Entrée des données_Eingabemaske'!$F24 -> 0
A7: ='Entrée des données_Eingabemaske'!$E25 -> 00:00:00 | B7: ='Entrée des données_Eingabemaske'!$N$14 -> 00:00:00 | C7: 0 | D7: 0 | E7: 0 | F7: ='Entrée des données_Eingabemaske'!$F25 -> 0
A8: ='Entrée des données_Eingabemaske'!$E26 -> 00:00:00 | B8: ='Entrée des données_Eingabemaske'!$N$14 -> 00:00:00 | C8: 0 | D8: 0 | E8: 0 | F8: ='Entrée des données_Eingabemaske'!$F26 -> 0
A9: ='Entrée des données_Eingabemaske'!$E27 -> 00:00:00 | B9: ='Entrée des données_Eingabemaske'!$N$14 -> 00:00:00 | C9: 0 | D9: 0 | E9: 0 | F9: ='Entrée des données_Eingabemaske'!$F27 -> 0
A10: ='Entrée des données_Eingabemaske'!$E28 -> 00:00:00 | B10: ='Entrée des données_Eingabemaske'!$N$14 -> 00:00:00 | C10: 0 | D10: 0 | E10: 0 | F10: ='Entrée des données_Eingabemaske'!$F28 -> 0
A11: ='Entrée des données_Eingabemaske'!$E29 -> 00:00:00 | B11: ='Entrée des données_Eingabemaske'!$N$14 -> 00:00:00 | C11: 0 | D11: 0 | E11: 0 | F11: ='Entrée des données_Eingabemaske'!$F29 -> 0
A12: ='Entrée des données_Eingabemaske'!$E30 -> 00:00:00 | B12: ='Entrée des données_Eingabemaske'!$N$14 -> 00:00:00 | C12: 0 | D12: 0 | E12: 0 | F12: ='Entrée des données_Eingabemaske'!$F30 -> 0
A13: ='Entrée des données_Eingabemaske'!$E31 -> 00:00:00 | B13: ='Entrée des données_Eingabemaske'!$N$14 -> 00:00:00 | C13: 0 | D13: 0 | E13: 0 | F13: ='Entrée des données_Eingabemaske'!$F31 -> 0
A14: ='Entrée des données_Eingabemaske'!$E32 -> 00:00:00 | B14: ='Entrée des données_Eingabemaske'!$N$14 -> 00:00:00 | C14: 0 | D14: 0 | E14: 0 | F14: ='Entrée des données_Eingabemaske'!$F32 -> 0
A15: ='Entrée des données_Eingabemaske'!$E33 -> 00:00:00 | B15: ='Entrée des données_Eingabemaske'!$N$14 -> 00:00:00 | C15: 0 | D15: 0 | E15: 0 | F15: ='Entrée des données_Eingabemaske'!$F33 -> 0
A16: ='Entrée des données_Eingabemaske'!$E34 -> 00:00:00 | B16: ='Entrée des données_Eingabemaske'!$N$14 -> 00:00:00 | C16: 0 | D16: 0 | E16: 0 | F16: ='Entrée des données_Eingabemaske'!$F34 -> 0
A17: ='Entrée des données_Eingabemaske'!$E35 -> 00:00:00 | B17: ='Entrée des données_Eingabemaske'!$N$14 -> 00:00:00 | C17: 0 | D17: 0 | E17: 0 | F17: ='Entrée des données_Eingabemaske'!$F35 -> 0
A18: ='Entrée des données_Eingabemaske'!$E36 -> 00:00:00 | B18: ='Entrée des données_Eingabemaske'!$N$14 -> 00:00:00 | C18: 0 | D18: 0 | E18: 0 | F18: ='Entrée des données_Eingabemaske'!$F36 -> 0
A19: ='Entrée des données_Eingabemaske'!$E37 -> 00:00:00 | B19: ='Entrée des données_Eingabemaske'!$N$14 -> 00:00:00 | C19: 0 | D19: 0 | E19: 0 | F19: ='Entrée des données_Eingabemaske'!$F37 -> 0
A20: ='Entrée des données_Eingabemaske'!$E38 -> 00:00:00 | B20: ='Entrée des données_Eingabemaske'!$N$14 -> 00:00:00 | C20: 0 | D20: 0 | E20: 0 | F20: ='Entrée des données_Eingabemaske'!$F38 -> 0
A21: ='Entrée des données_Eingabemaske'!$E39 -> 00:00:00 | B21: ='Entrée des données_Eingabemaske'!$N$14 -> 00:00:00 | C21: 0 | D21: 0 | E21: 0 | F21: ='Entrée des données_Eingabemaske'!$F39 -> 0
A22: ='Entrée des données_Eingabemaske'!$E40 -> 00:00:00 | B22: ='Entrée des données_Eingabemaske'!$N$14 -> 00:00:00 | C22: 0 | D22: 0 | E22: 0 | F22: ='Entrée des données_Eingabemaske'!$F40 -> 0
A23: ='Entrée des données_Eingabemaske'!$E41 -> 00:00:00 | B23: ='Entrée des données_Eingabemaske'!$N$14 -> 00:00:00 | C23: 0 | D23: 0 | E23: 0 | F23: ='Entrée des données_Eingabemaske'!$F41 -> 0
A24: ='Entrée des données_Eingabemaske'!$E42 -> 00:00:00 | B24: ='Entrée des données_Eingabemaske'!$N$14 -> 00:00:00 | C24: 0 | D24: 0 | E24: 0 | F24: ='Entrée des données_Eingabemaske'!$F42 -> 0
A25: ='Entrée des données_Eingabemaske'!$E43 -> 00:00:00 | B25: ='Entrée des données_Eingabemaske'!$N$14 -> 00:00:00 | C25: 0 | D25: 0 | E25: 0 | F25: ='Entrée des données_Eingabemaske'!$F43 -> 0
A26: ='Entrée des données_Eingabemaske'!$E44 -> 00:00:00 | B26: ='Entrée des données_Eingabemaske'!$N$14 -> 00:00:00 | C26: 0 | D26: 0 | E26: 0 | F26: ='Entrée des données_Eingabemaske'!$F44 -> 0
A27: ='Entrée des données_Eingabemaske'!$E45 -> 00:00:00 | B27: ='Entrée des données_Eingabemaske'!$N$14 -> 00:00:00 | C27: 0 | D27: 0 | E27: 0 | F27: ='Entrée des données_Eingabemaske'!$F45 -> 0
A28: ='Entrée des données_Eingabemaske'!$E46 -> 00:00:00 | B28: ='Entrée des données_Eingabemaske'!$N$14 -> 00:00:00 | C28: 0 | D28: 0 | E28: 0 | F28: ='Entrée des données_Eingabemaske'!$F46 -> 0
A29: ='Entrée des données_Eingabemaske'!$E47 -> 00:00:00 | B29: ='Entrée des données_Eingabemaske'!$N$14 -> 00:00:00 | C29: 0 | D29: 0 | E29: 0 | F29: ='Entrée des données_Eingabemaske'!$F47 -> 0
A30: ='Entrée des données_Eingabemaske'!$E48 -> 00:00:00 | B30: ='Entrée des données_Eingabemaske'!$N$14 -> 00:00:00 | C30: 0 | D30: 0 | E30: 0 | F30: ='Entrée des données_Eingabemaske'!$F48 -> 0
A31: ='Entrée des données_Eingabemaske'!$E49 -> 00:00:00 | B31: ='Entrée des données_Eingabemaske'!$N$14 -> 00:00:00 | C31: 0 | D31: 0 | E31: 0 | F31: ='Entrée des données_Eingabemaske'!$F49 -> 0
A32: ='Entrée des données_Eingabemaske'!$E50 -> 00:00:00 | B32: ='Entrée des données_Eingabemaske'!$N$14 -> 00:00:00 | C32: 0 | D32: 0 | E32: 0 | F32: ='Entrée des données_Eingabemaske'!$F50 -> 0
A33: ='Entrée des données_Eingabemaske'!$E51 -> 00:00:00 | B33: ='Entrée des données_Eingabemaske'!$N$14 -> 00:00:00 | C33: 0 | D33: 0 | E33: 0 | F33: ='Entrée des données_Eingabemaske'!$F51 -> 0
A34: ='Entrée des données_Eingabemaske'!$E52 -> 00:00:00 | B34: ='Entrée des données_Eingabemaske'!$N$14 -> 00:00:00 | C34: 0 | D34: 0 | E34: 0 | F34: ='Entrée des données_Eingabemaske'!$F52 -> 0
A35: ='Entrée des données_Eingabemaske'!$E53 -> 00:00:00 | B35: ='Entrée des données_Eingabemaske'!$N$14 -> 00:00:00 | C35: 0 | D35: 0 | E35: 0 | F35: ='Entrée des données_Eingabemaske'!$F53 -> 0
A36: ='Entrée des données_Eingabemaske'!$E54 -> 00:00:00 | B36: ='Entrée des données_Eingabemaske'!$N$14 -> 00:00:00 | C36: 0 | D36: 0 | E36: 0 | F36: ='Entrée des données_Eingabemaske'!$F54 -> 0
A37: ='Entrée des données_Eingabemaske'!$E55 -> 00:00:00 | B37: ='Entrée des données_Eingabemaske'!$N$14 -> 00:00:00 | C37: 0 | D37: 0 | E37: 0 | F37: ='Entrée des données_Eingabemaske'!$F55 -> 0
A38: ='Entrée des données_Eingabemaske'!$E56 -> 00:00:00 | B38: ='Entrée des données_Eingabemaske'!$N$14 -> 00:00:00 | C38: 0 | D38: 0 | E38: 0 | F38: ='Entrée des données_Eingabemaske'!$F56 -> 0
A39: ='Entrée des données_Eingabemaske'!$E57 -> 00:00:00 | B39: ='Entrée des données_Eingabemaske'!$N$14 -> 00:00:00 | C39: 0 | D39: 0 | E39: 0 | F39: ='Entrée des données_Eingabemaske'!$F57 -> 0
A40: ='Entrée des données_Eingabemaske'!$E58 -> 00:00:00 | B40: ='Entrée des données_Eingabemaske'!$N$14 -> 00:00:00 | C40: 0 | D40: 0 | E40: 0 | F40: ='Entrée des données_Eingabemaske'!$F58 -> 0
A41: ='Entrée des données_Eingabemaske'!$E59 -> 00:00:00 | B41: ='Entrée des données_Eingabemaske'!$N$14 -> 00:00:00 | C41: 0 | D41: 0 | E41: 0 | F41: ='Entrée des données_Eingabemaske'!$F59 -> 0
A42: ='Entrée des données_Eingabemaske'!$E60 -> 00:00:00 | B42: ='Entrée des données_Eingabemaske'!$N$14 -> 00:00:00 | C42: 0 | D42: 0 | E42: 0 | F42: ='Entrée des données_Eingabemaske'!$F60 -> 0
A43: ='Entrée des données_Eingabemaske'!$E61 -> 00:00:00 | B43: ='Entrée des données_Eingabemaske'!$N$14 -> 00:00:00 | C43: 0 | D43: 0 | E43: 0 | F43: ='Entrée des données_Eingabemaske'!$F61 -> 0
A44: ='Entrée des données_Eingabemaske'!$E62 -> 00:00:00 | B44: ='Entrée des données_Eingabemaske'!$N$14 -> 00:00:00 | C44: 0 | D44: 0 | E44: 0 | F44: ='Entrée des données_Eingabemaske'!$F62 -> 0
A45: ='Entrée des données_Eingabemaske'!$E63 -> 00:00:00 | B45: ='Entrée des données_Eingabemaske'!$N$14 -> 00:00:00 | C45: 0 | D45: 0 | E45: 0 | F45: ='Entrée des données_Eingabemaske'!$F63 -> 0
A46: ='Entrée des données_Eingabemaske'!$E64 -> 00:00:00 | B46: ='Entrée des données_Eingabemaske'!$N$14 -> 00:00:00 | C46: 0 | D46: 0 | E46: 0 | F46: ='Entrée des données_Eingabemaske'!$F64 -> 0
A47: ='Entrée des données_Eingabemaske'!$E65 -> 00:00:00 | B47: ='Entrée des données_Eingabemaske'!$N$14 -> 00:00:00 | C47: 0 | D47: 0 | E47: 0 | F47: ='Entrée des données_Eingabemaske'!$F65 -> 0
A48: ='Entrée des données_Eingabemaske'!$E66 -> 00:00:00 | B48: ='Entrée des données_Eingabemaske'!$N$14 -> 00:00:00 | C48: 0 | D48: 0 | E48: 0 | F48: ='Entrée des données_Eingabemaske'!$F66 -> 0
A49: ='Entrée des données_Eingabemaske'!$E67 -> 00:00:00 | B49: ='Entrée des données_Eingabemaske'!$N$14 -> 00:00:00 | C49: 0 | D49: 0 | E49: 0 | F49: ='Entrée des données_Eingabemaske'!$F67 -> 0
A50: ='Entrée des données_Eingabemaske'!$E68 -> 00:00:00 | B50: ='Entrée des données_Eingabemaske'!$N$14 -> 00:00:00 | C50: 0 | D50: 0 | E50: 0 | F50: ='Entrée des données_Eingabemaske'!$F68 -> 0
A51: ='Entrée des données_Eingabemaske'!$E69 -> 00:00:00 | B51: ='Entrée des données_Eingabemaske'!$N$14 -> 00:00:00 | C51: 0 | D51: 0 | E51: 0 | F51: ='Entrée des données_Eingabemaske'!$F69 -> 0
A52: ='Entrée des données_Eingabemaske'!$E70 -> 00:00:00 | B52: ='Entrée des données_Eingabemaske'!$N$14 -> 00:00:00 | C52: 0 | D52: 0 | E52: 0 | F52: ='Entrée des données_Eingabemaske'!$F70 -> 0
A53: ='Entrée des données_Eingabemaske'!$E71 -> 00:00:00 | B53: ='Entrée des données_Eingabemaske'!$N$14 -> 00:00:00 | C53: 0 | D53: 0 | E53: 0 | F53: ='Entrée des données_Eingabemaske'!$F71 -> 0
A54: ='Entrée des données_Eingabemaske'!$E72 -> 00:00:00 | B54: ='Entrée des données_Eingabemaske'!$N$14 -> 00:00:00 | C54: 0 | D54: 0 | E54: 0 | F54: ='Entrée des données_Eingabemaske'!$F72 -> 0
A55: ='Entrée des données_Eingabemaske'!$E73 -> 00:00:00 | B55: ='Entrée des données_Eingabemaske'!$N$14 -> 00:00:00 | C55: 0 | D55: 0 | E55: 0 | F55: ='Entrée des données_Eingabemaske'!$F73 -> 0
A56: ='Entrée des données_Eingabemaske'!$E74 -> 00:00:00 | B56: ='Entrée des données_Eingabemaske'!$N$14 -> 00:00:00 | C56: 0 | D56: 0 | E56: 0 | F56: ='Entrée des données_Eingabemaske'!$F74 -> 0
A57: ='Entrée des données_Eingabemaske'!$E75 -> 00:00:00 | B57: ='Entrée des données_Eingabemaske'!$N$14 -> 00:00:00 | C57: 0 | D57: 0 | E57: 0 | F57: ='Entrée des données_Eingabemaske'!$F75 -> 0
A58: ='Entrée des données_Eingabemaske'!$E76 -> 00:00:00 | B58: ='Entrée des données_Eingabemaske'!$N$14 -> 00:00:00 | C58: 0 | D58: 0 | E58: 0 | F58: ='Entrée des données_Eingabemaske'!$F76 -> 0
A59: ='Entrée des données_Eingabemaske'!$E77 -> 00:00:00 | B59: ='Entrée des données_Eingabemaske'!$N$14 -> 00:00:00 | C59: 0 | D59: 0 | E59: 0 | F59: ='Entrée des données_Eingabemaske'!$F77 -> 0
A60: ='Entrée des données_Eingabemaske'!$E78 -> 00:00:00 | B60: ='Entrée des données_Eingabemaske'!$N$14 -> 00:00:00 | C60: 0 | D60: 0 | E60: 0 | F60: ='Entrée des données_Eingabemaske'!$F78 -> 0
A61: ='Entrée des données_Eingabemaske'!$E79 -> 00:00:00 | B61: ='Entrée des données_Eingabemaske'!$N$14 -> 00:00:00 | C61: 0 | D61: 0 | E61: 0 | F61: ='Entrée des données_Eingabemaske'!$F79 -> 0
A62: ='Entrée des données_Eingabemaske'!$E80 -> 00:00:00 | B62: ='Entrée des données_Eingabemaske'!$N$14 -> 00:00:00 | C62: 0 | D62: 0 | E62: 0 | F62: ='Entrée des données_Eingabemaske'!$F80 -> 0
A63: ='Entrée des données_Eingabemaske'!$E81 -> 00:00:00 | B63: ='Entrée des données_Eingabemaske'!$N$14 -> 00:00:00 | C63: 0 | D63: 0 | E63: 0 | F63: ='Entrée des données_Eingabemaske'!$F81 -> 0
A64: ='Entrée des données_Eingabemaske'!$E82 -> 00:00:00 | B64: ='Entrée des données_Eingabemaske'!$N$14 -> 00:00:00 | C64: 0 | D64: 0 | E64: 0 | F64: ='Entrée des données_Eingabemaske'!$F82 -> 0
A65: ='Entrée des données_Eingabemaske'!$E83 -> 00:00:00 | B65: ='Entrée des données_Eingabemaske'!$N$14 -> 00:00:00 | C65: 0 | D65: 0 | E65: 0 | F65: ='Entrée des données_Eingabemaske'!$F83 -> 0
A66: ='Entrée des données_Eingabemaske'!$E84 -> 00:00:00 | B66: ='Entrée des données_Eingabemaske'!$N$14 -> 00:00:00 | C66: 0 | D66: 0 | E66: 0 | F66: ='Entrée des données_Eingabemaske'!$F84 -> 0
A67: ='Entrée des données_Eingabemaske'!$E85 -> 00:00:00 | B67: ='Entrée des données_Eingabemaske'!$N$14 -> 00:00:00 | C67: =(A67-B67)/365 -> 0 | D67: =$C67*12 -> 0 | E67: =ROUND($D67,0) -> 0 | F67: ='Entrée des données_Eingabemaske'!$F85 -> 0
A68: ='Entrée des données_Eingabemaske'!$E86 -> 00:00:00 | B68: ='Entrée des données_Eingabemaske'!$N$14 -> 00:00:00 | C68: 0 | D68: 0 | E68: 0 | F68: ='Entrée des données_Eingabemaske'!$F86 -> 0
A69: ='Entrée des données_Eingabemaske'!$E87 -> 00:00:00 | B69: ='Entrée des données_Eingabemaske'!$N$14 -> 00:00:00 | C69: 0 | D69: 0 | E69: 0 | F69: ='Entrée des données_Eingabemaske'!$F87 -> 0
A70: ='Entrée des données_Eingabemaske'!$E88 -> 00:00:00 | B70: ='Entrée des données_Eingabemaske'!$N$14 -> 00:00:00 | C70: 0 | D70: 0 | E70: 0 | F70: ='Entrée des données_Eingabemaske'!$F88 -> 0
A71: ='Entrée des données_Eingabemaske'!$E89 -> 00:00:00 | B71: ='Entrée des données_Eingabemaske'!$N$14 -> 00:00:00 | C71: 0 | D71: 0 | E71: 0 | F71: ='Entrée des données_Eingabemaske'!$F89 -> 0
A72: ='Entrée des données_Eingabemaske'!$E90 -> 00:00:00 | B72: ='Entrée des données_Eingabemaske'!$N$14 -> 00:00:00 | C72: 0 | D72: 0 | E72: 0 | F72: ='Entrée des données_Eingabemaske'!$F90 -> 0
A73: ='Entrée des données_Eingabemaske'!$E91 -> 00:00:00 | B73: ='Entrée des données_Eingabemaske'!$N$14 -> 00:00:00 | C73: 0 | D73: 0 | E73: 0 | F73: ='Entrée des données_Eingabemaske'!$F91 -> 0
A74: ='Entrée des données_Eingabemaske'!$E92 -> 00:00:00 | B74: ='Entrée des données_Eingabemaske'!$N$14 -> 00:00:00 | C74: 0 | D74: 0 | E74: 0 | F74: ='Entrée des données_Eingabemaske'!$F92 -> 0
A75: ='Entrée des données_Eingabemaske'!$E93 -> 00:00:00 | B75: ='Entrée des données_Eingabemaske'!$N$14 -> 00:00:00 | C75: 0 | D75: 0 | E75: 0 | F75: ='Entrée des données_Eingabemaske'!$F93 -> 0
A76: ='Entrée des données_Eingabemaske'!$E94 -> 00:00:00 | B76: ='Entrée des données_Eingabemaske'!$N$14 -> 00:00:00 | C76: 0 | D76: 0 | E76: 0 | F76: ='Entrée des données_Eingabemaske'!$F94 -> 0
A77: ='Entrée des données_Eingabemaske'!$E95 -> 00:00:00 | B77: ='Entrée des données_Eingabemaske'!$N$14 -> 00:00:00 | C77: 0 | D77: 0 | E77: 0 | F77: ='Entrée des données_Eingabemaske'!$F95 -> 0
A78: ='Entrée des données_Eingabemaske'!$E96 -> 00:00:00 | B78: ='Entrée des données_Eingabemaske'!$N$14 -> 00:00:00 | C78: 0 | D78: 0 | E78: 0 | F78: ='Entrée des données_Eingabemaske'!$F96 -> 0
A79: ='Entrée des données_Eingabemaske'!$E97 -> 00:00:00 | B79: ='Entrée des données_Eingabemaske'!$N$14 -> 00:00:00 | C79: 0 | D79: 0 | E79: 0 | F79: ='Entrée des données_Eingabemaske'!$F97 -> 0
A80: ='Entrée des données_Eingabemaske'!$E98 -> 00:00:00 | B80: ='Entrée des données_Eingabemaske'!$N$14 -> 00:00:00 | C80: 0 | D80: 0 | E80: 0 | F80: ='Entrée des données_Eingabemaske'!$F98 -> 0
A81: ='Entrée des données_Eingabemaske'!$E99 -> 00:00:00 | B81: ='Entrée des données_Eingabemaske'!$N$14 -> 00:00:00 | C81: 0 | D81: 0 | E81: 0 | F81: ='Entrée des données_Eingabemaske'!$F99 -> 0
A82: ='Entrée des données_Eingabemaske'!$E100 -> 00:00:00 | B82: ='Entrée des données_Eingabemaske'!$N$14 -> 00:00:00 | C82: 0 | D82: 0 | E82: 0 | F82: ='Entrée des données_Eingabemaske'!$F100 -> 0
A83: ='Entrée des données_Eingabemaske'!$E101 -> 00:00:00 | B83: ='Entrée des données_Eingabemaske'!$N$14 -> 00:00:00 | C83: 0 | D83: 0 | E83: 0 | F83: ='Entrée des données_Eingabemaske'!$F101 -> 0
A84: ='Entrée des données_Eingabemaske'!$E102 -> 00:00:00 | B84: ='Entrée des données_Eingabemaske'!$N$14 -> 00:00:00 | C84: 0 | D84: 0 | E84: 0 | F84: ='Entrée des données_Eingabemaske'!$F102 -> 0
A85: ='Entrée des données_Eingabemaske'!$E103 -> 00:00:00 | B85: ='Entrée des données_Eingabemaske'!$N$14 -> 00:00:00 | C85: 0 | D85: 0 | E85: 0 | F85: ='Entrée des données_Eingabemaske'!$F103 -> 0
A86: ='Entrée des données_Eingabemaske'!$E104 -> 00:00:00 | B86: ='Entrée des données_Eingabemaske'!$N$14 -> 00:00:00 | C86: 0 | D86: 0 | E86: 0 | F86: ='Entrée des données_Eingabemaske'!$F104 -> 0
A87: ='Entrée des données_Eingabemaske'!$E105 -> 00:00:00 | B87: ='Entrée des données_Eingabemaske'!$N$14 -> 00:00:00 | C87: 0 | D87: 0 | E87: 0 | F87: ='Entrée des données_Eingabemaske'!$F105 -> 0
A88: ='Entrée des données_Eingabemaske'!$E106 -> 00:00:00 | B88: ='Entrée des données_Eingabemaske'!$N$14 -> 00:00:00 | C88: 0 | D88: 0 | E88: 0 | F88: ='Entrée des données_Eingabemaske'!$F106 -> 0
A89: ='Entrée des données_Eingabemaske'!$E107 -> 00:00:00 | B89: ='Entrée des données_Eingabemaske'!$N$14 -> 00:00:00 | C89: 0 | D89: 0 | E89: 0 | F89: ='Entrée des données_Eingabemaske'!$F107 -> 0
A90: ='Entrée des données_Eingabemaske'!$E108 -> 00:00:00 | B90: ='Entrée des données_Eingabemaske'!$N$14 -> 00:00:00 | C90: 0 | D90: 0 | E90: 0 | F90: ='Entrée des données_Eingabemaske'!$F108 -> 0
A91: ='Entrée des données_Eingabemaske'!$E109 -> 00:00:00 | B91: ='Entrée des données_Eingabemaske'!$N$14 -> 00:00:00 | C91: 0 | D91: 0 | E91: 0 | F91: ='Entrée des données_Eingabemaske'!$F109 -> 0
A92: ='Entrée des données_Eingabemaske'!$E110 -> 00:00:00 | B92: ='Entrée des données_Eingabemaske'!$N$14 -> 00:00:00 | C92: 0 | D92: 0 | E92: 0 | F92: ='Entrée des données_Eingabemaske'!$F110 -> 0
A93: ='Entrée des données_Eingabemaske'!$E111 -> 00:00:00 | B93: ='Entrée des données_Eingabemaske'!$N$14 -> 00:00:00 | C93: 0 | D93: 0 | E93: 0 | F93: ='Entrée des données_Eingabemaske'!$F111 -> 0
A94: ='Entrée des données_Eingabemaske'!$E112 -> 00:00:00 | B94: ='Entrée des données_Eingabemaske'!$N$14 -> 00:00:00 | C94: 0 | D94: 0 | E94: 0 | F94: ='Entrée des données_Eingabemaske'!$F112 -> 0
A95: ='Entrée des données_Eingabemaske'!$E113 -> 00:00:00 | B95: ='Entrée des données_Eingabemaske'!$N$14 -> 00:00:00 | C95: 0 | D95: 0 | E95: 0 | F95: ='Entrée des données_Eingabemaske'!$F113 -> 0
A96: ='Entrée des données_Eingabemaske'!$E114 -> 00:00:00 | B96: ='Entrée des données_Eingabemaske'!$N$14 -> 00:00:00 | C96: 0 | D96: 0 | E96: 0 | F96: ='Entrée des données_Eingabemaske'!$F114 -> 0
A97: ='Entrée des données_Eingabemaske'!$E115 -> 00:00:00 | B97: ='Entrée des données_Eingabemaske'!$N$14 -> 00:00:00 | C97: 0 | D97: 0 | E97: 0 | F97: ='Entrée des données_Eingabemaske'!$F115 -> 0
A98: ='Entrée des données_Eingabemaske'!$E116 -> 00:00:00 | B98: ='Entrée des données_Eingabemaske'!$N$14 -> 00:00:00 | C98: 0 | D98: 0 | E98: 0 | F98: ='Entrée des données_Eingabemaske'!$F116 -> 0
A99: ='Entrée des données_Eingabemaske'!$E117 -> 00:00:00 | B99: ='Entrée des données_Eingabemaske'!$N$14 -> 00:00:00 | C99: 0 | D99: 0 | E99: 0 | F99: ='Entrée des données_Eingabemaske'!$F117 -> 0
A100: ='Entrée des données_Eingabemaske'!$E118 -> 00:00:00 | B100: ='Entrée des données_Eingabemaske'!$N$14 -> 00:00:00 | C100: 0 | D100: 0 | E100: 0 | F100: ='Entrée des données_Eingabemaske'!$F118 -> 0
A101: ='Entrée des données_Eingabemaske'!$E119 -> 00:00:00 | B101: ='Entrée des données_Eingabemaske'!$N$14 -> 00:00:00 | C101: =(A101-B101)/365 -> 0 | D101: 0 | E101: 0 | F101: ='Entrée des données_Eingabemaske'!$F119 -> 0
A102: ='Entrée des données_Eingabemaske'!$E120 -> 00:00:00 | B102: ='Entrée des données_Eingabemaske'!$N$14 -> 00:00:00 | C102: 0 | D102: 0 | E102: 0 | F102: ='Entrée des données_Eingabemaske'!$F120 -> 0
A103: ='Entrée des données_Eingabemaske'!$E121 -> 00:00:00 | B103: ='Entrée des données_Eingabemaske'!$N$14 -> 00:00:00 | C103: 0 | D103: 0 | E103: 0 | F103: ='Entrée des données_Eingabemaske'!$F121 -> 0
A104: ='Entrée des données_Eingabemaske'!$E122 -> 00:00:00 | B104: ='Entrée des données_Eingabemaske'!$N$14 -> 00:00:00 | C104: 0 | D104: 0 | E104: 0 | F104: ='Entrée des données_Eingabemaske'!$F122 -> 0
A105: ='Entrée des données_Eingabemaske'!$E123 -> 00:00:00 | B105: ='Entrée des données_Eingabemaske'!$N$14 -> 00:00:00 | C105: 0 | D105: 0 | E105: 0 | F105: ='Entrée des données_Eingabemaske'!$F123 -> 0
A106: ='Entrée des données_Eingabemaske'!$E124 -> 00:00:00 | B106: ='Entrée des données_Eingabemaske'!$N$14 -> 00:00:00 | C106: 0 | D106: 0 | E106: 0 | F106: ='Entrée des données_Eingabemaske'!$F124 -> 0
A107: ='Entrée des données_Eingabemaske'!$E125 -> 00:00:00 | B107: ='Entrée des données_Eingabemaske'!$N$14 -> 00:00:00 | C107: 0 | D107: 0 | E107: 0 | F107: ='Entrée des données_Eingabemaske'!$F125 -> 0
A108: ='Entrée des données_Eingabemaske'!$E126 -> 00:00:00 | B108: ='Entrée des données_Eingabemaske'!$N$14 -> 00:00:00 | C108: 0 | D108: 0 | E108: 0 | F108: ='Entrée des données_Eingabemaske'!$F126 -> 0
A109: ='Entrée des données_Eingabemaske'!$E127 -> 00:00:00 | B109: ='Entrée des données_Eingabemaske'!$N$14 -> 00:00:00 | C109: 0 | D109: 0 | E109: 0 | F109: ='Entrée des données_Eingabemaske'!$F127 -> 0
A110: ='Entrée des données_Eingabemaske'!$E128 -> 00:00:00 | B110: ='Entrée des données_Eingabemaske'!$N$14 -> 00:00:00 | C110: 0 | D110: 0 | E110: 0 | F110: ='Entrée des données_Eingabemaske'!$F128 -> 0
A111: ='Entrée des données_Eingabemaske'!$E129 -> 00:00:00 | B111: ='Entrée des données_Eingabemaske'!$N$14 -> 00:00:00 | C111: 0 | D111: 0 | E111: 0 | F111: ='Entrée des données_Eingabemaske'!$F129 -> 0
A112: ='Entrée des données_Eingabemaske'!$E130 -> 00:00:00 | B112: ='Entrée des données_Eingabemaske'!$N$14 -> 00:00:00 | C112: 0 | D112: 0 | E112: 0 | F112: ='Entrée des données_Eingabemaske'!$F130 -> 0
A113: ='Entrée des données_Eingabemaske'!$E131 -> 00:00:00 | B113: ='Entrée des données_Eingabemaske'!$N$14 -> 00:00:00 | C113: 0 | D113: 0 | E113: 0 | F113: ='Entrée des données_Eingabemaske'!$F131 -> 0
A114: ='Entrée des données_Eingabemaske'!$E132 -> 00:00:00 | B114: ='Entrée des données_Eingabemaske'!$N$14 -> 00:00:00 | C114: 0 | D114: 0 | E114: 0 | F114: ='Entrée des données_Eingabemaske'!$F132 -> 0
A115: ='Entrée des données_Eingabemaske'!$E133 -> 00:00:00 | B115: ='Entrée des données_Eingabemaske'!$N$14 -> 00:00:00 | C115: 0 | D115: 0 | E115: 0 | F115: ='Entrée des données_Eingabemaske'!$F133 -> 0
A116: ='Entrée des données_Eingabemaske'!$E134 -> 00:00:00 | B116: ='Entrée des données_Eingabemaske'!$N$14 -> 00:00:00 | C116: 0 | D116: 0 | E116: 0 | F116: ='Entrée des données_Eingabemaske'!$F134 -> 0
A117: ='Entrée des données_Eingabemaske'!$E135 -> 00:00:00 | B117: ='Entrée des données_Eingabemaske'!$N$14 -> 00:00:00 | C117: 0 | D117: 0 | E117: 0 | F117: ='Entrée des données_Eingabemaske'!$F135 -> 0
A118: ='Entrée des données_Eingabemaske'!$E136 -> 00:00:00 | B118: ='Entrée des données_Eingabemaske'!$N$14 -> 00:00:00 | C118: 0 | D118: 0 | E118: 0 | F118: ='Entrée des données_Eingabemaske'!$F136 -> 0
A119: ='Entrée des données_Eingabemaske'!$E137 -> 00:00:00 | B119: ='Entrée des données_Eingabemaske'!$N$14 -> 00:00:00 | C119: 0 | D119: 0 | E119: 0 | F119: ='Entrée des données_Eingabemaske'!$F137 -> 0
A120: ='Entrée des données_Eingabemaske'!$E138 -> 00:00:00 | B120: ='Entrée des données_Eingabemaske'!$N$14 -> 00:00:00 | C120: 0 | D120: 0 | E120: 0 | F120: ='Entrée des données_Eingabemaske'!$F138 -> 0

Sheet Perzentile (hidden)
C1: Knaben | M1: Mädchen
A2: Age | B2: Month | C2: L | D2: M | E2: SD | F2: P3 | G2: P10 | H2: P25 | I2: P50 | J2: P75 | K2: P90 | L2: P97 | M2: L | N2: M | O2: SD | P2: P3 | Q2: P10 | R2: P25 | S2: P50 | T2: P75 | U2: P90 | V2: P97 | W2: Taille actuelle | X2: Z-score | Y2: Percentile
A3: =B3/12 -> 0.08333333333 | B3: 1 | C3: 1 | D3: 54.7244 | E3: 0.03557 | F3: 51.06334702 | G3: 52.22979976 | H3: 53.41147406 | I3: 54.7244 | J3: 56.03732594 | K3: 57.21900024 | L3: 58.38545298 | M3: 1 | N3: 53.6872 | O3: 0.0364 | P3: 50.01172665 | Q3: 51.18277389 | R3: 52.36910263 | S3: 53.6872 | T3: 55.00529737 | U3: 56.19162611 | V3: 57.36267335 | W3: =VLOOKUP(Perzentile!B3,Berechnungen!$E$2:$F$40,2,FALSE) ->  | X3: =IF('Entrée des données_Eingabemaske'!$N$12="männlich / masculin",((W3/D3)^C3-1)/C3/E3,((W3/N3)^M3-1)/M3/O3) ->  | Y3: =_xlfn.NORM.S.DIST(X3,TRUE) -> 
A4: 0.1666666667 | B4: 2 | C4: 1 | D4: 58.4249 | E4: 0.03424 | F4: 54.66243149 | G4: 55.86119636 | H4: 57.07560445 | I4: 58.4249 | J4: 59.77419555 | K4: 60.98860364 | L4: 62.18736851 | M4: 1 | N4: 57.0673 | O4: 0.03568 | P4: 53.23770091 | Q4: 54.45785434 | R4: 55.6939301 | S4: 57.0673 | T4: 58.4406699 | U4: 59.67674566 | V4: 60.89689909 | W4: =VLOOKUP(Perzentile!B4,Berechnungen!$E$2:$F$40,2,FALSE) ->  | X4: =IF('Entrée des données_Eingabemaske'!$N$12="männlich / masculin",((W4/D4)^C4-1)/C4/E4,((W4/N4)^M4-1)/M4/O4) -> 
A5: 0.25 | B5: 3 | C5: 1 | D5: 61.4292 | E5: 0.03328 | F5: 57.58417368 | G5: 58.8092424 | H5: 60.05029759 | I5: 61.4292 | J5: 62.80810241 | K5: 64.0491576 | L5: 65.27422632 | M5: 1 | N5: 59.8029 | O5: 0.0352 | P5: 55.8437127 | Q5: 57.1051544 | R5: 58.3830572 | S5: 59.8029 | T5: 61.2227428 | U5: 62.5006456 | V5: 63.7620873 | W5: =VLOOKUP(Perzentile!B5,Berechnungen!$E$2:$F$40,2,FALSE) ->  | X5: =IF('Entrée des données_Eingabemaske'!$N$12="männlich / masculin",((W5/D5)^C5-1)/C5/E5,((W5/N5)^M5-1)/M5/O5) -> 
A6: 0.3333333333 | B6: 4 | C6: 1 | D6: 63.886 | E6: 0.03257 | F6: 59.97250669 | G6: 61.21938977 | H6: 62.48254397 | I6: 63.886 | J6: 65.28945603 | K6: 66.55261023 | L6: 67.79949331 | M6: 1 | N6: 62.0899 | O6: 0.03486 | P6: 58.01900891 | Q6: 59.3160407 | R6: 60.62999802 | S6: 62.0899 | T6: 63.54980198 | U6: 64.8637593 | V6: 66.16079109 | W6: =VLOOKUP(Perzentile!B6,Berechnungen!$E$2:$F$40,2,FALSE) ->  | X6: =IF('Entrée des données_Eingabemaske'!$N$12="männlich / masculin",((W6/D6)^C6-1)/C6/E6,((W6/N6)^M6-1)/M6/O6) -> 
A7: 0.4166666667 | B7: 5 | C7: 1 | D7: 65.9026 | E7: 0.03204 | F7: 61.93126799 | G7: 63.19657913 | H7: 64.47840187 | I7: 65.9026 | J7: 67.32679813 | K7: 68.60862087 | L7: 69.87393201 | M7: 1 | N7: 64.0301 | O7: 0.03463 | P7: 59.85969904 | Q7: 61.18843579 | R7: 62.53451181 | S7: 64.0301 | T7: 65.52568819 | U7: 66.87176421 | V7: 68.20050096 | W7: =VLOOKUP(Perzentile!B7,Berechnungen!$E$2:$F$40,2,FALSE) ->  | X7: =IF('Entrée des données_Eingabemaske'!$N$12="männlich / masculin",((W7/D7)^C7-1)/C7/E7,((W7/N7)^M7-1)/M7/O7) -> 
A8: 0.5 | B8: 6 | C8: 1 | D8: 67.6236 | E8: 0.03165 | F8: 63.598162 | G8: 64.88071192 | H8: 66.1799984 | I8: 67.6236 | J8: 69.0672016 | K8: 70.36648808 | L8: 71.649038 | M8: 1 | N8: 65.7311 | O8: 0.03448 | P8: 61.4684537 | Q8: 62.82658086 | R8: 64.20243081 | S8: 65.7311 | T8: 67.25976919 | U8: 68.63561914 | V8: 69.9937463 | W8: =VLOOKUP(Perzentile!B8,Berechnungen!$E$2:$F$40,2,FALSE) ->  | X8: =IF('Entrée des données_Eingabemaske'!$N$12="männlich / masculin",((W8/D8)^C8-1)/C8/E8,((W8/N8)^M8-1)/M8/O8) -> 
A9: 0.5833333333 | B9: 7 | C9: 1 | D9: 69.1645 | E9: 0.03139 | F9: 65.08115855 | G9: 66.38215716 | H9: 67.70013307 | I9: 69.1645 | J9: 70.62886693 | K9: 71.94684284 | L9: 73.24784145 | M9: 1 | N9: 67.2873 | O9: 0.03441 | P9: 62.93259325 | Q9: 64.3200519 | R9: 65.72561611 | S9: 67.2873 | T9: 68.84898389 | U9: 70.2545481 | V9: 71.64200675 | W9: =VLOOKUP(Perzentile!B9,Berechnungen!$E$2:$F$40,2,FALSE) ->  | X9: =IF('Entrée des données_Eingabemaske'!$N$12="männlich / masculin",((W9/D9)^C9-1)/C9/E9,((W9/N9)^M9-1)/M9/O9) -> 
A10: 0.6666666667 | B10: 8 | C10: 1 | D10: 70.5994 | E10: 0.03124 | F10: 66.4512622 | G10: 67.77290566 | H10: 69.11179582 | I10: 70.5994 | J10: 72.08700418 | K10: 73.42589434 | L10: 74.7475378 | M10: 1 | N10: 68.7498 | O10: 0.0344 | P10: 64.30173606 | Q10: 65.71893936 | R10: 67.15463638 | S10: 68.7498 | T10: 70.34496362 | U10: 71.78066064 | V10: 73.19786394 | W10: =VLOOKUP(Perzentile!B10,Berechnungen!$E$2:$F$40,2,FALSE) ->  | X10: =IF('Entrée des données_Eingabemaske'!$N$12="männlich / masculin",((W10/D10)^C10-1)/C10/E10,((W10/N10)^M10-1)/M10/O10) -> 
A11: 0.75 | B11: 9 | C11: 1 | D11: 71.9687 | E11: 0.03117 | F11: 67.74958269 | G11: 69.09384102 | H11: 70.45564117 | I11: 71.9687 | J11: 73.48175883 | K11: 74.84355898 | L11: 76.18781731 | M11: 1 | N11: 70.1435 | O11: 0.03444 | P11: 65.59998762 | Q11: 67.04760188 | R11: 68.51410669 | S11: 70.1435 | T11: 71.77289331 | U11: 73.23939812 | V11: 74.68701238 | W11: =VLOOKUP(Perzentile!B11,Berechnungen!$E$2:$F$40,2,FALSE) ->  | X11: =IF('Entrée des données_Eingabemaske'!$N$12="männlich / masculin",((W11/D11)^C11-1)/C11/E11,((W11/N11)^M11-1)/M11/O11) -> 
A12: 0.8333333333 | B12: 10 | C12: 1 | D12: 73.2812 | E12: 0.03118 | F12: 68.98375998 | G12: 70.35297281 | H12: 71.7400531 | I12: 73.2812 | J12: 74.8223469 | K12: 76.20942719 | L12: 77.57864002 | M12: 1 | N12: 71.4818 | O12: 0.03452 | P12: 66.84084447 | Q12: 68.31950521 | R12: 69.81746165 | S12: 71.4818 | T12: 73.14613835 | U12: 74.64409479 | V12: 76.12275553 | W12: =VLOOKUP(Perzentile!B12,Berechnungen!$E$2:$F$40,2,FALSE) ->  | X12: =IF('Entrée des données_Eingabemaske'!$N$12="männlich / masculin",((W12/D12)^C12-1)/C12/E12,((W12/N12)^M12-1)/M12/O12) -> 
A13: 0.9166666667 | B13: 11 | C13: 1 | D13: 74.5388 | E13: 0.03125 | F13: 70.15779692 | G13: 71.55363388 | H13: 72.96768573 | I13: 74.5388 | J13: 76.10991427 | K13: 77.52396612 | L13: 78.91980308 | M13: 1 | N13: 72.771 | O13: 0.03464 | P13: 68.0299191 | Q13: 69.54048091 | R13: 71.07075471 | S13: 72.771 | T13: 74.47124529 | U13: 76.00151909 | V13: 77.5120809 | W13: =VLOOKUP(Perzentile!B13,Berechnungen!$E$2:$F$40,2,FALSE) ->  | X13: =IF('Entrée des données_Eingabemaske'!$N$12="männlich / masculin",((W13/D13)^C13-1)/C13/E13,((W13/N13)^M13-1)/M13/O13) -> 
A14: 1 | B14: 12 | C14: 1 | D14: 75.7488 | E14: 0.03137 | F14: 71.27958327 | G14: 72.70352609 | H14: 74.14605057 | I14: 75.7488 | J14: 77.35154943 | K14: 78.79407391 | L14: 80.21801673 | M14: 1 | N14: 74.015 | O14: 0.03479 | P14: 69.1719906 | Q14: 70.71502798 | R14: 72.27820114 | S14: 74.015 | T14: 75.75179886 | U14: 77.31497202 | V14: 78.8580094 | W14: =VLOOKUP(Perzentile!B14,Berechnungen!$E$2:$F$40,2,FALSE) ->  | X14: =IF('Entrée des données_Eingabemaske'!$N$12="männlich / masculin",((W14/D14)^C14-1)/C14/E14,((W14/N14)^M14-1)/M14/O14) -> 
A15: 1.083333333 | B15: 13 | C15: 1 | D15: 76.9186 | E15: 0.03154 | F15: 72.35577093 | G15: 73.8095397 | H15: 75.28227934 | I15: 76.9186 | J15: 78.55492066 | K15: 80.0276603 | L15: 81.48142907 | M15: 1 | N15: 75.2176 | O15: 0.03496 | P15: 70.27185141 | Q15: 71.84762265 | R15: 73.44395683 | S15: 75.2176 | T15: 76.99124317 | U15: 78.58757735 | V15: 80.16334859 | W15: =VLOOKUP(Perzentile!B15,Berechnungen!$E$2:$F$40,2,FALSE) ->  | X15: =IF('Entrée des données_Eingabemaske'!$N$12="männlich / masculin",((W15/D15)^C15-1)/C15/E15,((W15/N15)^M15-1)/M15/O15) -> 
A16: 1.166666667 | B16: 14 | C16: 1 | D16: 78.0497 | E16: 0.03174 | F16: 73.39041474 | G16: 74.87491554 | H16: 76.37878824 | I16: 78.0497 | J16: 79.72061176 | K16: 81.22448446 | L16: 82.70898526 | M16: 1 | N16: 76.3817 | O16: 0.03514 | P16: 71.33355039 | Q16: 72.94194776 | R16: 74.5713338 | S16: 76.3817 | T16: 78.1920662 | U16: 79.82145224 | V16: 81.42984961 | W16: =VLOOKUP(Perzentile!B16,Berechnungen!$E$2:$F$40,2,FALSE) ->  | X16: =IF('Entrée des données_Eingabemaske'!$N$12="männlich / masculin",((W16/D16)^C16-1)/C16/E16,((W16/N16)^M16-1)/M16/O16) -> 
A17: 1.25 | B17: 15 | C17: 1 | D17: 79.1458 | E17: 0.03197 | F17: 74.38684444 | G17: 75.90310132 | H17: 77.4391445 | I17: 79.1458 | J17: 80.8524555 | K17: 82.38849868 | L17: 83.90475556 | M17: 1 | N17: 77.5099 | O17: 0.03534 | P17: 72.3580304 | Q17: 73.99947412 | R17: 75.66233777 | S17: 77.5099 | T17: 79.35746223 | U17: 81.02032588 | V17: 82.6617696 | W17: =VLOOKUP(Perzentile!B17,Berechnungen!$E$2:$F$40,2,FALSE) ->  | X17: =IF('Entrée des données_Eingabemaske'!$N$12="männlich / masculin",((W17/D17)^C17-1)/C17/E17,((W17/N17)^M17-1)/M17/O17) -> 
A18: 1.333333333 | B18: 16 | C18: 1 | D18: 80.2113 | E18: 0.03222 | F18: 75.35056179 | G18: 76.89924777 | H18: 78.46814324 | I18: 80.2113 | J18: 81.95445676 | K18: 83.52335223 | L18: 85.07203821 | M18: 1 | N18: 78.6055 | O18: 0.03555 | P18: 73.34976233 | Q18: 75.02429959 | R18: 76.72068863 | S18: 78.6055 | T18: 80.49031137 | U18: 82.18670041 | V18: 83.86123767 | W18: =VLOOKUP(Perzentile!B18,Berechnungen!$E$2:$F$40,2,FALSE) ->  | X18: =IF('Entrée des données_Eingabemaske'!$N$12="männlich / masculin",((W18/D18)^C18-1)/C18/E18,((W18/N18)^M18-1)/M18/O18) -> 
A19: 1.416666667 | B19: 17 | C19: 1 | D19: 81.2487 | E19: 0.0325 | F19: 76.28230884 | G19: 77.86465704 | H19: 79.467654 | I19: 81.2487 | J19: 83.029746 | K19: 84.63274296 | L19: 86.21509116 | M19: 1 | N19: 79.671 | O19: 0.03576 | P19: 74.31255326 | Q19: 76.01981479 | R19: 77.74935512 | S19: 79.671 | T19: 81.59264488 | U19: 83.32218521 | V19: 85.02944674 | W19: =VLOOKUP(Perzentile!B19,Berechnungen!$E$2:$F$40,2,FALSE) ->  | X19: =IF('Entrée des données_Eingabemaske'!$N$12="männlich / masculin",((W19/D19)^C19-1)/C19/E19,((W19/N19)^M19-1)/M19/O19) -> 
A20: 1.5 | B20: 18 | C20: 1 | D20: 82.2587 | E20: 0.03279 | F20: 77.18570542 | G20: 78.80201867 | H20: 80.43942391 | I20: 82.2587 | J20: 84.07797609 | K20: 85.71538133 | L20: 87.33169458 | M20: 1 | N20: 80.7079 | O20: 0.03598 | P20: 75.24631941 | Q20: 76.98644055 | R20: 78.74926929 | S20: 80.7079 | T20: 82.66653071 | U20: 84.42935945 | V20: 86.16948059 | W20: =VLOOKUP(Perzentile!B20,Berechnungen!$E$2:$F$40,2,FALSE) ->  | X20: =IF('Entrée des données_Eingabemaske'!$N$12="männlich / masculin",((W20/D20)^C20-1)/C20/E20,((W20/N20)^M20-1)/M20/O20) -> 
A21: 1.583333333 | B21: 19 | C21: 1 | D21: 83.2418 | E21: 0.0331 | F21: 78.05964264 | G21: 79.71073638 | H21: 81.38337598 | I21: 83.2418 | J21: 85.10022402 | K21: 86.77286362 | L21: 88.42395736 | M21: 1 | N21: 81.7182 | O21: 0.0362 | P21: 76.15443853 | Q21: 77.92711565 | R21: 79.7229252 | S21: 81.7182 | T21: 83.7134748 | U21: 85.50928435 | V21: 87.28196147 | W21: =VLOOKUP(Perzentile!B21,Berechnungen!$E$2:$F$40,2,FALSE) ->  | X21: =IF('Entrée des données_Eingabemaske'!$N$12="männlich / masculin",((W21/D21)^C21-1)/C21/E21,((W21/N21)^M21-1)/M21/O21) -> 
A22: 1.666666667 | B22: 20 | C22: 1 | D22: 84.1996 | E22: 0.03342 | F22: 78.90713964 | G22: 80.59337716 | H22: 82.30161914 | I22: 84.1996 | J22: 86.09758086 | K22: 87.80582284 | L22: 89.49206036 | M22: 1 | N22: 82.7036 | O22: 0.03643 | P22: 77.03697171 | Q22: 78.84242335 | R22: 80.67143513 | S22: 82.7036 | T22: 84.73576487 | U22: 86.56477665 | V22: 88.37022829 | W22: =VLOOKUP(Perzentile!B22,Berechnungen!$E$2:$F$40,2,FALSE) ->  | X22: =IF('Entrée des données_Eingabemaske'!$N$12="männlich / masculin",((W22/D22)^C22-1)/C22/E22,((W22/N22)^M22-1)/M22/O22) -> 
A23: 1.75 | B23: 21 | C23: 1 | D23: 85.1348 | E23: 0.03376 | F23: 79.72911546 | G23: 81.45142748 | H23: 83.19621471 | I23: 85.1348 | J23: 87.07338529 | K23: 88.81817252 | L23: 90.54048454 | M23: 1 | N23: 83.6654 | O23: 0.03666 | P23: 77.89667957 | Q23: 79.73465892 | R23: 81.59662287 | S23: 83.6654 | T23: 85.73417713 | U23: 87.59614108 | V23: 89.43412043 | W23: =VLOOKUP(Perzentile!B23,Berechnungen!$E$2:$F$40,2,FALSE) ->  | X23: =IF('Entrée des données_Eingabemaske'!$N$12="männlich / masculin",((W23/D23)^C23-1)/C23/E23,((W23/N23)^M23-1)/M23/O23) -> 
A24: 1.833333333 | B24: 22 | C24: 1 | D24: 86.0477 | E24: 0.0341 | F24: 80.52902542 | G24: 82.28733735 | H24: 84.06859425 | I24: 86.0477 | J24: 88.02680575 | K24: 89.80806265 | L24: 91.56637458 | M24: 1 | N24: 84.604 | O24: 0.03688 | P24: 78.73555621 | Q24: 80.60530855 | R24: 82.4994601 | S24: 84.604 | T24: 86.7085399 | U24: 88.60269145 | V24: 90.47244379 | W24: =VLOOKUP(Perzentile!B24,Berechnungen!$E$2:$F$40,2,FALSE) ->  | X24: =IF('Entrée des données_Eingabemaske'!$N$12="männlich / masculin",((W24/D24)^C24-1)/C24/E24,((W24/N24)^M24-1)/M24/O24) -> 
A25: 1.916666667 | B25: 23 | C25: 1 | D25: 86.941 | E25: 0.03445 | F25: 81.30780224 | G25: 83.10260254 | H25: 84.92082398 | I25: 86.941 | J25: 88.96117602 | K25: 90.77939746 | L25: 92.57419776 | M25: 1 | N25: 85.5202 | O25: 0.03711 | P25: 79.55121067 | Q25: 81.45299795 | R25: 83.37960249 | S25: 85.5202 | T25: 87.66079751 | U25: 89.58740205 | V25: 91.48918933 | W25: =VLOOKUP(Perzentile!B25,Berechnungen!$E$2:$F$40,2,FALSE) ->  | X25: =IF('Entrée des données_Eingabemaske'!$N$12="männlich / masculin",((W25/D25)^C25-1)/C25/E25,((W25/N25)^M25-1)/M25/O25) -> 
A26: 2 | B26: 24 | C26: 1 | D26: 87.8161 | E26: 0.03479 | F26: 82.07004585 | G26: 83.90080347 | H26: 85.75545145 | I26: 87.8161 | J26: 89.87674855 | K26: 91.73139653 | L26: 93.56215415 | M26: 1 | N26: 86.4153 | O26: 0.03734 | P26: 80.3464543 | Q26: 82.28005694 | R26: 84.23889202 | S26: 86.4153 | T26: 88.59170798 | U26: 90.55054306 | V26: 92.4841457 | W26: =VLOOKUP(Perzentile!B26,Berechnungen!$E$2:$F$40,2,FALSE) ->  | X26: =IF('Entrée des données_Eingabemaske'!$N$12="männlich / masculin",((W26/D26)^C26-1)/C26/E26,((W26/N26)^M26-1)/M26/O26) -> 
A27: 2 | B27: 24 | C27: 1 | D27: 87.1161 | E27: 0.03507 | F27: 81.36997154 | G27: 83.20075283 | H27: 85.0554248 | I27: 87.1161 | J27: 89.1767752 | K27: 91.03144717 | L27: 92.86222846 | M27: 1 | N27: 85.7153 | O27: 0.037644 | P27: 79.64660579 | Q27: 81.58016017 | R27: 83.53894635 | S27: 85.7153 | T27: 87.89165365 | U27: 89.85043983 | V27: 91.78399421 | W27: =VLOOKUP(Perzentile!B27,Berechnungen!$E$2:$F$40,2,FALSE) ->  | X27: =IF('Entrée des données_Eingabemaske'!$N$12="männlich / masculin",((W27/D27)^C27-1)/C27/E27,((W27/N27)^M27-1)/M27/O27) -> 
A28: 2.083333333 | B28: 25 | C28: 1 | D28: 87.972 | E28: 0.03542 | F28: 82.11150685 | G28: 83.97872602 | H28: 85.87031136 | I28: 87.972 | J28: 90.07368864 | K28: 91.96527398 | L28: 93.83249315 | M28: 1 | N28: 86.5904 | O28: 0.03786 | P28: 80.42457072 | Q28: 82.38907343 | R28: 84.37921179 | S28: 86.5904 | T28: 88.80158821 | U28: 90.79172657 | V28: 92.75622928 | W28: =VLOOKUP(Perzentile!B28,Berechnungen!$E$2:$F$40,2,FALSE) ->  | X28: =IF('Entrée des données_Eingabemaske'!$N$12="männlich / masculin",((W28/D28)^C28-1)/C28/E28,((W28/N28)^M28-1)/M28/O28) -> 
A29: 2.166666667 | B29: 26 | C29: 1 | D29: 88.8065 | E29: 0.03576 | F29: 82.8336253 | G29: 84.7366505 | H29: 86.66450911 | I29: 88.8065 | J29: 90.94849089 | K29: 92.8763495 | L29: 94.7793747 | M29: 1 | N29: 87.4462 | O29: 0.03808 | P29: 81.18324889 | Q29: 83.1786957 | R29: 85.20018198 | S29: 87.4462 | T29: 89.69221802 | U29: 91.7137043 | V29: 93.70915111 | W29: =VLOOKUP(Perzentile!B29,Berechnungen!$E$2:$F$40,2,FALSE) ->  | X29: =IF('Entrée des données_Eingabemaske'!$N$12="männlich / masculin",((W29/D29)^C29-1)/C29/E29,((W29/N29)^M29-1)/M29/O29) -> 
A30: 2.25 | B30: 27 | C30: 1 | D30: 89.6197 | E30: 0.0361 | F30: 83.53482266 | G30: 85.47353317 | H30: 87.43754276 | I30: 89.6197 | J30: 91.80185724 | K30: 93.76586683 | L30: 95.70457734 | M30: 1 | N30: 88.283 | O30: 0.0383 | P30: 81.92358749 | Q30: 83.94976799 | R30: 86.00238902 | S30: 88.283 | T30: 90.56361098 | U30: 92.61623201 | V30: 94.64241251 | W30: =VLOOKUP(Perzentile!B30,Berechnungen!$E$2:$F$40,2,FALSE) ->  | X30: =IF('Entrée des données_Eingabemaske'!$N$12="männlich / masculin",((W30/D30)^C30-1)/C30/E30,((W30/N30)^M30-1)/M30/O30) -> 
A31: 2.333333333 | B31: 28 | C31: 1 | D31: 90.412 | E31: 0.03642 | F31: 84.21891333 | G31: 86.19210055 | H31: 88.19103675 | I31: 90.412 | J31: 92.63296325 | K31: 94.63189945 | L31: 96.60508667 | M31: 1 | N31: 89.1004 | O31: 0.03851 | P31: 82.64691489 | Q31: 84.70306798 | R31: 86.78605273 | S31: 89.1004 | T31: 91.41474727 | U31: 93.49773202 | V31: 95.55388511 | W31: =VLOOKUP(Perzentile!B31,Berechnungen!$E$2:$F$40,2,FALSE) ->  | X31: =IF('Entrée des données_Eingabemaske'!$N$12="männlich / masculin",((W31/D31)^C31-1)/C31/E31,((W31/N31)^M31-1)/M31/O31) -> 
A32: 2.416666667 | B32: 29 | C32: 1 | D32: 91.1828 | E32: 0.03674 | F32: 84.88203595 | G32: 86.8895304 | H32: 88.92322152 | I32: 91.1828 | J32: 93.44237848 | K32: 95.4760696 | L32: 97.48356405 | M32: 1 | N32: 89.8991 | O32: 0.03872 | P32: 83.35225841 | Q32: 85.43815593 | R32: 87.55127325 | S32: 89.8991 | T32: 92.24692675 | U32: 94.36004407 | V32: 96.44594159 | W32: =VLOOKUP(Perzentile!B32,Berechnungen!$E$2:$F$40,2,FALSE) ->  | X32: =IF('Entrée des données_Eingabemaske'!$N$12="männlich / masculin",((W32/D32)^C32-1)/C32/E32,((W32/N32)^M32-1)/M32/O32) -> 
A33: 2.5 | B33: 30 | C33: 1 | D33: 91.9327 | E33: 0.03704 | F33: 85.52824566 | G33: 87.568777 | H33: 89.63593613 | I33: 91.9327 | J33: 94.22946387 | K33: 96.296623 | L33: 98.33715434 | M33: 1 | N33: 90.6797 | O33: 0.03893 | P33: 84.04019628 | Q33: 86.155617 | R33: 88.29864278 | S33: 90.6797 | T33: 93.06075722 | U33: 95.203783 | V33: 97.31920372 | W33: =VLOOKUP(Perzentile!B33,Berechnungen!$E$2:$F$40,2,FALSE) ->  | X33: =IF('Entrée des données_Eingabemaske'!$N$12="männlich / masculin",((W33/D33)^C33-1)/C33/E33,((W33/N33)^M33-1)/M33/O33) -> 
A34: 2.583333333 | B34: 31 | C34: 1 | D34: 92.6631 | E34: 0.03733 | F34: 86.1572214 | G34: 88.23006765 | H34: 90.32996338 | I34: 92.6631 | J34: 94.99623662 | K34: 97.09613235 | L34: 99.1689786 | M34: 1 | N34: 91.443 | O34: 0.03913 | P34: 84.71321091 | Q34: 86.85739757 | R34: 89.02956466 | S34: 91.443 | T34: 93.85643534 | U34: 96.02860243 | V34: 98.17278909 | W34: =VLOOKUP(Perzentile!B34,Berechnungen!$E$2:$F$40,2,FALSE) ->  | X34: =IF('Entrée des données_Eingabemaske'!$N$12="männlich / masculin",((W34/D34)^C34-1)/C34/E34,((W34/N34)^M34-1)/M34/O34) -> 
A35: 2.666666667 | B35: 32 | C35: 1 | D35: 93.3753 | E35: 0.03761 | F35: 86.77024431 | G35: 88.8746895 | H35: 91.00659652 | I35: 93.3753 | J35: 95.74400348 | K35: 97.8759105 | L35: 99.98035569 | M35: 1 | N35: 92.1906 | O35: 0.03933 | P35: 85.37111265 | Q35: 87.54387818 | R35: 89.74499709 | S35: 92.1906 | T35: 94.63620291 | U35: 96.83732182 | V35: 99.01008735 | W35: =VLOOKUP(Perzentile!B35,Berechnungen!$E$2:$F$40,2,FALSE) ->  | X35: =IF('Entrée des données_Eingabemaske'!$N$12="männlich / masculin",((W35/D35)^C35-1)/C35/E35,((W35/N35)^M35-1)/M35/O35) -> 
A36: 2.75 | B36: 33 | C36: 1 | D36: 94.0711 | E36: 0.03787 | F36: 87.37082439 | G36: 89.50560772 | H36: 91.66824877 | I36: 94.0711 | J36: 96.47395123 | K36: 98.63659228 | L36: 100.7713756 | M36: 1 | N36: 92.9239 | O36: 0.03952 | P36: 86.01696284 | Q36: 88.21759087 | R36: 90.44693586 | S36: 92.9239 | T36: 95.40086414 | U36: 97.63020913 | V36: 99.83083716 | W36: =VLOOKUP(Perzentile!B36,Berechnungen!$E$2:$F$40,2,FALSE) ->  | X36: =IF('Entrée des données_Eingabemaske'!$N$12="männlich / masculin",((W36/D36)^C36-1)/C36/E36,((W36/N36)^M36-1)/M36/O36) -> 
A37: 2.833333333 | B37: 34 | C37: 1 | D37: 94.7532 | E37: 0.03812 | F37: 87.95978856 | G37: 90.12424602 | H37: 92.31694843 | I37: 94.7532 | J37: 97.18945157 | K37: 99.38215398 | L37: 101.5466114 | M37: 1 | N37: 93.6444 | O37: 0.03971 | P37: 86.65044492 | Q37: 88.87879784 | R37: 91.13622952 | S37: 93.6444 | T37: 96.15257048 | U37: 98.41000216 | V37: 100.6383551 | W37: =VLOOKUP(Perzentile!B37,Berechnungen!$E$2:$F$40,2,FALSE) ->  | X37: =IF('Entrée des données_Eingabemaske'!$N$12="männlich / masculin",((W37/D37)^C37-1)/C37/E37,((W37/N37)^M37-1)/M37/O37) -> 
A38: 2.916666667 | B38: 35 | C38: 1 | D38: 95.4236 | E38: 0.03836 | F38: 88.53905036 | G38: 90.73254547 | H38: 92.95466447 | I38: 95.4236 | J38: 97.89253553 | K38: 100.1146545 | L38: 102.3081496 | M38: 1 | N38: 94.3533 | O38: 0.03989 | P38: 87.27445716 | Q38: 89.52985627 | R38: 91.81468709 | S38: 94.3533 | T38: 96.89191291 | U38: 99.17674373 | V38: 101.4321428 | W38: =VLOOKUP(Perzentile!B38,Berechnungen!$E$2:$F$40,2,FALSE) ->  | X38: =IF('Entrée des données_Eingabemaske'!$N$12="männlich / masculin",((W38/D38)^C38-1)/C38/E38,((W38/N38)^M38-1)/M38/O38) -> 
A39: 3 | B39: 36 | C39: 1 | D39: 96.0835 | E39: 0.03858 | F39: 89.11158348 | G39: 91.33291467 | H39: 93.58323298 | I39: 96.0835 | J39: 98.58376702 | K39: 100.8340853 | L39: 103.0554165 | M39: 1 | N39: 95.0515 | O39: 0.04006 | P39: 87.88988352 | Q39: 90.17165525 | R39: 92.48320282 | S39: 95.0515 | T39: 97.61979718 | U39: 99.93134475 | V39: 102.2131165 | W39: =VLOOKUP(Perzentile!B39,Berechnungen!$E$2:$F$40,2,FALSE) ->  | X39: =IF('Entrée des données_Eingabemaske'!$N$12="männlich / masculin",((W39/D39)^C39-1)/C39/E39,((W39/N39)^M39-1)/M39/O39) -> 
A40: 3.083333333 | B40: 37 | C40: 1 | D40: 96.7337 | E40: 0.03879 | F40: 89.67639772 | G40: 91.92493377 | H40: 94.20281196 | I40: 96.7337 | J40: 99.26458804 | K40: 101.5424662 | L40: 103.7910023 | M40: 1 | N40: 95.7399 | O40: 0.04024 | P40: 88.49400424 | Q40: 90.8026283 | R40: 93.14137861 | S40: 95.7399 | T40: 98.33842139 | U40: 100.6771717 | V40: 102.9857958 | W40: =VLOOKUP(Perzentile!B40,Berechnungen!$E$2:$F$40,2,FALSE) ->  | X40: =IF('Entrée des données_Eingabemaske'!$N$12="männlich / masculin",((W40/D40)^C40-1)/C40/E40,((W40/N40)^M40-1)/M40/O40) -> 
A41: 3.166666667 | B41: 38 | C41: 1 | D41: 97.3749 | E41: 0.039 | F41: 90.23235851 | G41: 92.50805273 | H41: 94.81344349 | I41: 97.3749 | J41: 99.93635651 | K41: 102.2417473 | L41: 104.5174415 | M41: 1 | N41: 96.4187 | O41: 0.04041 | P41: 89.09060211 | Q41: 91.42541669 | R41: 93.7906993 | S41: 96.4187 | T41: 99.0467007 | U41: 101.4119833 | V41: 103.7467979 | W41: =VLOOKUP(Perzentile!B41,Berechnungen!$E$2:$F$40,2,FALSE) ->  | X41: =IF('Entrée des données_Eingabemaske'!$N$12="männlich / masculin",((W41/D41)^C41-1)/C41/E41,((W41/N41)^M41-1)/M41/O41) -> 
A42: 3.25 | B42: 39 | C42: 1 | D42: 98.0073 | E42: 0.03919 | F42: 90.78334838 | G42: 93.08498079 | H42: 95.41664821 | I42: 98.0073 | J42: 100.5979518 | K42: 102.9296192 | L42: 105.2312516 | M42: 1 | N42: 97.0885 | O42: 0.04057 | P42: 89.68027884 | Q42: 92.0406216 | R42: 94.43176551 | S42: 97.0885 | T42: 99.74523449 | U42: 102.1363784 | V42: 104.4967212 | W42: =VLOOKUP(Perzentile!B42,Berechnungen!$E$2:$F$40,2,FALSE) ->  | X42: =IF('Entrée des données_Eingabemaske'!$N$12="männlich / masculin",((W42/D42)^C42-1)/C42/E42,((W42/N42)^M42-1)/M42/O42) -> 
A43: 3.333333333 | B43: 40 | C43: 1 | D43: 98.631 | E43: 0.03937 | F43: 91.32768569 | G43: 93.65460395 | H43: 96.01188719 | I43: 98.631 | J43: 101.2501128 | K43: 103.607396 | L43: 105.9343143 | M43: 1 | N43: 97.7493 | O43: 0.04073 | P43: 90.26124189 | Q43: 92.6470216 | R43: 95.0639344 | S43: 97.7493 | T43: 100.4346656 | U43: 102.8515784 | V43: 105.2373581 | W43: =VLOOKUP(Perzentile!B43,Berechnungen!$E$2:$F$40,2,FALSE) ->  | X43: =IF('Entrée des données_Eingabemaske'!$N$12="männlich / masculin",((W43/D43)^C43-1)/C43/E43,((W43/N43)^M43-1)/M43/O43) -> 
A44: 3.416666667 | B44: 41 | C44: 1 | D44: 99.2459 | E44: 0.03954 | F44: 91.86532191 | G44: 94.21685728 | H44: 96.59907887 | I44: 99.2459 | J44: 101.8927211 | K44: 104.2749427 | L44: 106.6264781 | M44: 1 | N44: 98.4015 | O44: 0.04089 | P44: 90.83386862 | Q44: 93.24500127 | R44: 95.68759786 | S44: 98.4015 | T44: 101.1154021 | U44: 103.5579987 | V44: 105.9691314 | W44: =VLOOKUP(Perzentile!B44,Berechnungen!$E$2:$F$40,2,FALSE) ->  | X44: =IF('Entrée des données_Eingabemaske'!$N$12="männlich / masculin",((W44/D44)^C44-1)/C44/E44,((W44/N44)^M44-1)/M44/O44) -> 
A45: 3.5 | B45: 42 | C45: 1 | D45: 99.8515 | E45: 0.03971 | F45: 92.3939595 | G45: 94.77001596 | H45: 97.17707862 | I45: 99.8515 | J45: 102.5259214 | K45: 104.932984 | L45: 107.3090405 | M45: 1 | N45: 99.0448 | O45: 0.04105 | P45: 91.39788996 | Q45: 93.83428169 | R45: 96.30246697 | S45: 99.0448 | T45: 101.787133 | U45: 104.2553183 | V45: 106.69171 | W45: =VLOOKUP(Perzentile!B45,Berechnungen!$E$2:$F$40,2,FALSE) ->  | X45: =IF('Entrée des données_Eingabemaske'!$N$12="männlich / masculin",((W45/D45)^C45-1)/C45/E45,((W45/N45)^M45-1)/M45/O45) -> 
A46: 3.583333333 | B46: 43 | C46: 1 | D46: 100.4485 | E46: 0.03986 | F46: 92.91803334 | G46: 95.31732489 | H46: 97.74792586 | I46: 100.4485 | J46: 103.1490741 | K46: 105.5796751 | L46: 107.9789667 | M46: 1 | N46: 99.6795 | O46: 0.0412 | P46: 91.95546546 | Q46: 94.41642993 | R46: 96.9095086 | S46: 99.6795 | T46: 102.4494914 | U46: 104.9425701 | V46: 107.4035345 | W46: =VLOOKUP(Perzentile!B46,Berechnungen!$E$2:$F$40,2,FALSE) ->  | X46: =IF('Entrée des données_Eingabemaske'!$N$12="männlich / masculin",((W46/D46)^C46-1)/C46/E46,((W46/N46)^M46-1)/M46/O46) -> 
A47: 3.666666667 | B47: 44 | C47: 1 | D47: 101.0374 | E47: 0.04002 | F47: 93.43237955 | G47: 95.85542478 | H47: 98.3100894 | I47: 101.0374 | J47: 103.7647106 | K47: 106.2193752 | L47: 108.6424205 | M47: 1 | N47: 100.3058 | O47: 0.04135 | P47: 92.50493611 | Q47: 94.99037927 | R47: 97.50825607 | S47: 100.3058 | T47: 103.1033439 | U47: 105.6212207 | V47: 108.1066639 | W47: =VLOOKUP(Perzentile!B47,Berechnungen!$E$2:$F$40,2,FALSE) ->  | X47: =IF('Entrée des données_Eingabemaske'!$N$12="männlich / masculin",((W47/D47)^C47-1)/C47/E47,((W47/N47)^M47-1)/M47/O47) -> 
A48: 3.75 | B48: 45 | C48: 1 | D48: 101.6186 | E48: 0.04016 | F48: 93.94307569 | G48: 96.38858425 | H48: 98.86600532 | I48: 101.6186 | J48: 104.3711947 | K48: 106.8486158 | L48: 109.2941243 | M48: 1 | N48: 100.9238 | O48: 0.0415 | P48: 93.04640123 | Q48: 95.55622926 | R48: 98.09880915 | S48: 100.9238 | T48: 103.7487908 | U48: 106.2913707 | V48: 108.8011988 | W48: =VLOOKUP(Perzentile!B48,Berechnungen!$E$2:$F$40,2,FALSE) ->  | X48: =IF('Entrée des données_Eingabemaske'!$N$12="männlich / masculin",((W48/D48)^C48-1)/C48/E48,((W48/N48)^M48-1)/M48/O48) -> 
A49: 3.833333333 | B49: 46 | C49: 1 | D49: 102.1933 | E49: 0.04031 | F49: 94.44553639 | G49: 96.9140612 | H49: 99.41479888 | I49: 102.1933 | J49: 104.9718011 | K49: 107.4725388 | L49: 109.9410636 | M49: 1 | N49: 101.5337 | O49: 0.04164 | P49: 93.58196179 | Q49: 96.11547521 | R49: 98.68204956 | S49: 101.5337 | T49: 104.3853504 | U49: 106.9519248 | V49: 109.4854382 | W49: =VLOOKUP(Perzentile!B49,Berechnungen!$E$2:$F$40,2,FALSE) ->  | X49: =IF('Entrée des données_Eingabemaske'!$N$12="männlich / masculin",((W49/D49)^C49-1)/C49/E49,((W49/N49)^M49-1)/M49/O49) -> 
A50: 3.916666667 | B50: 47 | C50: 1 | D50: 102.7625 | E50: 0.04045 | F50: 94.9445241 | G50: 97.43541934 | H50: 99.95881937 | I50: 102.7625 | J50: 105.5661806 | K50: 108.0895807 | L50: 110.5804759 | M50: 1 | N50: 102.136 | O50: 0.04179 | P50: 94.1082774 | Q50: 96.66600031 | R50: 99.25710006 | S50: 102.136 | T50: 105.0148999 | U50: 107.6059997 | V50: 110.1637226 | W50: =VLOOKUP(Perzentile!B50,Berechnungen!$E$2:$F$40,2,FALSE) ->  | X50: =IF('Entrée des données_Eingabemaske'!$N$12="männlich / masculin",((W50/D50)^C50-1)/C50/E50,((W50/N50)^M50-1)/M50/O50) -> 
A51: 4 | B51: 48 | C51: 1 | D51: 103.3273 | E51: 0.04059 | F51: 95.43914796 | G51: 97.95240211 | H51: 100.4984528 | I51: 103.3273 | J51: 106.1561472 | K51: 108.7021979 | L51: 111.215452 | M51: 1 | N51: 102.7312 | O51: 0.04193 | P51: 94.62964539 | Q51: 97.21089201 | R51: 99.82582244 | S51: 102.7312 | T51: 105.6365776 | U51: 108.251508 | V51: 110.8327546 | W51: =VLOOKUP(Perzentile!B51,Berechnungen!$E$2:$F$40,2,FALSE) ->  | X51: =IF('Entrée des données_Eingabemaske'!$N$12="männlich / masculin",((W51/D51)^C51-1)/C51/E51,((W51/N51)^M51-1)/M51/O51) -> 
A52: 4.083333333 | B52: 49 | C52: 1 | D52: 103.8886 | E52: 0.04073 | F52: 95.93024251 | G52: 98.4658649 | H52: 101.0345758 | I52: 103.8886 | J52: 106.7426242 | K52: 109.3113351 | L52: 111.8469575 | M52: 1 | N52: 103.3197 | O52: 0.04206 | P52: 95.1464733 | Q52: 97.75055545 | R52: 100.3886194 | S52: 103.3197 | T52: 106.2507806 | U52: 108.8888445 | V52: 111.4929267 | W52: =VLOOKUP(Perzentile!B52,Berechnungen!$E$2:$F$40,2,FALSE) ->  | X52: =IF('Entrée des données_Eingabemaske'!$N$12="männlich / masculin",((W52/D52)^C52-1)/C52/E52,((W52/N52)^M52-1)/M52/O52) -> 
A53: 4.166666667 | B53: 50 | C53: 1 | D53: 104.4473 | E53: 0.04086 | F53: 96.42060575 | G53: 98.97800101 | H53: 101.5687688 | I53: 104.4473 | J53: 107.3258312 | K53: 109.916599 | L53: 112.4739942 | M53: 1 | N53: 103.9021 | O53: 0.0422 | P53: 95.65544329 | Q53: 98.28292107 | R53: 100.944686 | S53: 103.9021 | T53: 106.859514 | U53: 109.5212789 | V53: 112.1487567 | W53: =VLOOKUP(Perzentile!B53,Berechnungen!$E$2:$F$40,2,FALSE) ->  | X53: =IF('Entrée des données_Eingabemaske'!$N$12="männlich / masculin",((W53/D53)^C53-1)/C53/E53,((W53/N53)^M53-1)/M53/O53) -> 
A54: 4.25 | B54: 51 | C54: 1 | D54: 105.0041 | E54: 0.041 | F54: 96.90696736 | G54: 99.48680508 | H54: 102.1003082 | I54: 105.0041 | J54: 107.9078918 | K54: 110.5213949 | L54: 113.1012326 | M54: 1 | N54: 104.4786 | O54: 0.04233 | P54: 96.16064143 | Q54: 98.81083678 | R54: 101.4956157 | S54: 104.4786 | T54: 107.4615843 | U54: 110.1463632 | V54: 112.7965586 | W54: =VLOOKUP(Perzentile!B54,Berechnungen!$E$2:$F$40,2,FALSE) ->  | X54: =IF('Entrée des données_Eingabemaske'!$N$12="männlich / masculin",((W54/D54)^C54-1)/C54/E54,((W54/N54)^M54-1)/M54/O54) -> 
A55: 4.333333333 | B55: 52 | C55: 1 | D55: 105.5596 | E55: 0.04113 | F55: 97.39382168 | G55: 99.99553069 | H55: 102.6311905 | I55: 105.5596 | J55: 108.4880095 | K55: 111.1236693 | L55: 113.7253783 | M55: 1 | N55: 105.0494 | O55: 0.04246 | P55: 96.66031285 | Q55: 99.33317057 | R55: 102.0409076 | S55: 105.0494 | T55: 108.0578924 | U55: 110.7656294 | V55: 113.4384872 | W55: =VLOOKUP(Perzentile!B55,Berechnungen!$E$2:$F$40,2,FALSE) ->  | X55: =IF('Entrée des données_Eingabemaske'!$N$12="männlich / masculin",((W55/D55)^C55-1)/C55/E55,((W55/N55)^M55-1)/M55/O55) -> 
A56: 4.416666667 | B56: 53 | C56: 1 | D56: 106.1138 | E56: 0.04126 | F56: 97.87920525 | G56: 100.50284 | H56: 103.1607116 | I56: 106.1138 | J56: 109.0668884 | K56: 111.72476 | L56: 114.3483947 | M56: 1 | N56: 105.6148 | O56: 0.04259 | P56: 97.1547377 | Q56: 99.8502089 | R56: 102.5808545 | S56: 105.6148 | T56: 108.6487455 | U56: 111.3793911 | V56: 114.0748623 | W56: =VLOOKUP(Perzentile!B56,Berechnungen!$E$2:$F$40,2,FALSE) ->  | X56: =IF('Entrée des données_Eingabemaske'!$N$12="männlich / masculin",((W56/D56)^C56-1)/C56/E56,((W56/N56)^M56-1)/M56/O56) -> 
A57: 4.5 | B57: 54 | C57: 1 | D57: 106.6668 | E57: 0.04139 | F57: 98.36321123 | G57: 101.0088282 | H57: 103.688969 | I57: 106.6668 | J57: 109.644631 | K57: 112.3247718 | L57: 114.9703888 | M57: 1 | N57: 106.1748 | O57: 0.04272 | P57: 97.64391994 | Q57: 100.3619545 | R57: 103.1154579 | S57: 106.1748 | T57: 109.2341421 | U57: 111.9876455 | V57: 114.7056801 | W57: =VLOOKUP(Perzentile!B57,Berechnungen!$E$2:$F$40,2,FALSE) ->  | X57: =IF('Entrée des données_Eingabemaske'!$N$12="männlich / masculin",((W57/D57)^C57-1)/C57/E57,((W57/N57)^M57-1)/M57/O57) -> 
A58: 4.583333333 | B58: 55 | C58: 1 | D58: 107.2188 | E58: 0.04152 | F58: 98.84602487 | G58: 101.5136854 | H58: 104.2161574 | I58: 107.2188 | J58: 110.2214426 | K58: 112.9239146 | L58: 115.5915751 | M58: 1 | N58: 106.7295 | O58: 0.04285 | P58: 98.12795548 | Q58: 100.8685045 | R58: 103.6448162 | S58: 106.7295 | T58: 109.8141838 | U58: 112.5904955 | V58: 115.3310445 | W58: =VLOOKUP(Perzentile!B58,Berechnungen!$E$2:$F$40,2,FALSE) ->  | X58: =IF('Entrée des données_Eingabemaske'!$N$12="männlich / masculin",((W58/D58)^C58-1)/C58/E58,((W58/N58)^M58-1)/M58/O58) -> 
A59: 4.666666667 | B59: 56 | C59: 1 | D59: 107.7697 | E59: 0.04165 | F59: 99.32755475 | G59: 102.0173174 | H59: 104.7421799 | I59: 107.7697 | J59: 110.7972201 | K59: 113.5220826 | L59: 116.2118452 | M59: 1 | N59: 107.2788 | O59: 0.04298 | P59: 98.60675629 | Q59: 101.3697672 | R59: 104.1688338 | S59: 107.2788 | T59: 110.3887662 | U59: 113.1878328 | V59: 115.9508437 | W59: =VLOOKUP(Perzentile!B59,Berechnungen!$E$2:$F$40,2,FALSE) ->  | X59: =IF('Entrée des données_Eingabemaske'!$N$12="männlich / masculin",((W59/D59)^C59-1)/C59/E59,((W59/N59)^M59-1)/M59/O59) -> 
A60: 4.75 | B60: 57 | C60: 1 | D60: 108.3198 | E60: 0.04177 | F60: 99.81011538 | G60: 102.5213968 | H60: 105.268059 | I60: 108.3198 | J60: 111.371541 | K60: 114.1182032 | L60: 116.8294846 | M60: 1 | N60: 107.8227 | O60: 0.0431 | P60: 99.08235424 | Q60: 101.8671269 | R60: 104.6882393 | S60: 107.8227 | T60: 110.9571607 | U60: 113.7782731 | V60: 116.5630458 | W60: =VLOOKUP(Perzentile!B60,Berechnungen!$E$2:$F$40,2,FALSE) ->  | X60: =IF('Entrée des données_Eingabemaske'!$N$12="männlich / masculin",((W60/D60)^C60-1)/C60/E60,((W60/N60)^M60-1)/M60/O60) -> 
A61: 4.833333333 | B61: 58 | C61: 1 | D61: 108.8689 | E61: 0.0419 | F61: 100.2894589 | G61: 103.0229655 | H61: 105.7921429 | I61: 108.8689 | J61: 111.9456571 | K61: 114.7148345 | L61: 117.4483411 | M61: 1 | N61: 108.3613 | O61: 0.04322 | P61: 99.55283751 | Q61: 102.3593129 | R61: 105.2024113 | S61: 108.3613 | T61: 111.5201887 | U61: 114.3632871 | V61: 117.1697625 | W61: =VLOOKUP(Perzentile!B61,Berechnungen!$E$2:$F$40,2,FALSE) ->  | X61: =IF('Entrée des données_Eingabemaske'!$N$12="männlich / masculin",((W61/D61)^C61-1)/C61/E61,((W61/N61)^M61-1)/M61/O61) -> 
A62: 4.916666667 | B62: 59 | C62: 1 | D62: 109.417 | E62: 0.04202 | F62: 100.7696708 | G62: 103.5248074 | H62: 106.3158969 | I62: 109.417 | J62: 112.5181031 | K62: 115.3091926 | L62: 118.0643292 | M62: 1 | N62: 108.8948 | O62: 0.04334 | P62: 100.0183934 | Q62: 102.8465166 | R62: 105.7115452 | S62: 108.8948 | T62: 112.0780548 | U62: 114.9430834 | V62: 117.7712066 | W62: =VLOOKUP(Perzentile!B62,Berechnungen!$E$2:$F$40,2,FALSE) ->  | X62: =IF('Entrée des données_Eingabemaske'!$N$12="männlich / masculin",((W62/D62)^C62-1)/C62/E62,((W62/N62)^M62-1)/M62/O62) -> 
A63: 5 | B63: 60 | C63: 1 | D63: 109.9638 | E63: 0.04214 | F63: 101.2484384 | G63: 104.0252508 | H63: 106.8382991 | I63: 109.9638 | J63: 113.0893009 | K63: 115.9023492 | L63: 118.6791616 | M63: 1 | N63: 109.4233 | O63: 0.04347 | P63: 100.4770591 | Q63: 103.3274323 | R63: 106.2150012 | S63: 109.4233 | T63: 112.6315988 | U63: 115.5191677 | V63: 118.3695409 | W63: =VLOOKUP(Perzentile!B63,Berechnungen!$E$2:$F$40,2,FALSE) ->  | X63: =IF('Entrée des données_Eingabemaske'!$N$12="männlich / masculin",((W63/D63)^C63-1)/C63/E63,((W63/N63)^M63-1)/M63/O63) -> 
A64: 5.083333333 | B64: 61 | C64: 1 | D64: 110.2647 | E64: 0.04164 | F64: 101.629 | G64: 104.3805558 | H64: 107.168 | I64: 110.265 | J64: 113.362 | K64: 116.1488442 | L64: 118.9 | M64: 1 | N64: 109.6016 | O64: 0.04355 | P64: 100.624 | Q64: 103.4845626 | R64: 106.382 | S64: 109.602 | T64: 112.821 | U64: 115.7186374 | V64: 118.579 | W64: =VLOOKUP(Perzentile!B64,Berechnungen!$E$2:$F$40,2,FALSE) ->  | X64: =IF('Entrée des données_Eingabemaske'!$N$12="männlich / masculin",((W64/D64)^C64-1)/C64/E64,((W64/N64)^M64-1)/M64/O64) -> 
A65: 5.166666667 | B65: 62 | C65: 1 | D65: 110.8006 | E65: 0.04172 | F65: 102.106 | G65: 104.8764984 | H65: 107.683 | I65: 110.801 | J65: 113.918 | K65: 116.7247016 | L65: 119.495 | M65: 1 | N65: 110.1258 | O65: 0.04364 | P65: 101.087 | Q65: 103.9668043 | R65: 106.884 | S65: 110.126 | T65: 113.367 | U65: 116.2847957 | V65: 119.165 | W65: =VLOOKUP(Perzentile!B65,Berechnungen!$E$2:$F$40,2,FALSE) ->  | X65: =IF('Entrée des données_Eingabemaske'!$N$12="männlich / masculin",((W65/D65)^C65-1)/C65/E65,((W65/N65)^M65-1)/M65/O65) -> 
A66: 5.25 | B66: 63 | C66: 1 | D66: 111.3338 | E66: 0.0418 | F66: 102.581 | G66: 105.3697758 | H66: 108.195 | I66: 111.334 | J66: 114.473 | K66: 117.2978242 | L66: 120.087 | M66: 1 | N66: 110.6451 | O66: 0.04373 | P66: 101.545 | Q66: 104.4442996 | R66: 107.382 | S66: 110.645 | T66: 113.909 | U66: 116.8459004 | V66: 119.745 | W66: =VLOOKUP(Perzentile!B66,Berechnungen!$E$2:$F$40,2,FALSE) ->  | X66: =IF('Entrée des données_Eingabemaske'!$N$12="männlich / masculin",((W66/D66)^C66-1)/C66/E66,((W66/N66)^M66-1)/M66/O66) -> 
A67: =B67/12 -> 5.333333333 | B67: 64 | C67: 1 | D67: 111.8636 | E67: 0.04187 | F67: 103.054 | G67: 105.8611599 | H67: 108.704 | I67: 111.864 | J67: 115.023 | K67: 117.8660401 | L67: 120.673 | M67: 1 | N67: 111.1596 | O67: 0.04382 | P67: 101.998 | Q67: 104.9171448 | R67: 107.874 | S67: 111.16 | T67: 114.445 | U67: 117.4020552 | V67: 120.321 | W67: =VLOOKUP(Perzentile!B67,Berechnungen!$E$2:$F$40,2,FALSE) ->  | X67: =IF('Entrée des données_Eingabemaske'!$N$12="männlich / masculin",((W67/D67)^C67-1)/C67/E67,((W67/N67)^M67-1)/M67/O67) ->  | Y67: =_xlfn.NORM.S.DIST(X67,TRUE) -> 
A68: 5.416666667 | B68: 65 | C68: 1 | D68: 112.3895 | E68: 0.04195 | F68: 103.522 | G68: 106.3473182 | H68: 109.209 | I68: 112.39 | J68: 115.57 | K68: 118.4316818 | L68: 121.257 | M68: 1 | N68: 111.6696 | O68: 0.0439 | P68: 102.449 | Q68: 105.3870556 | R68: 108.363 | S68: 111.67 | T68: 114.976 | U68: 117.9521444 | V68: 120.89 | W68: =VLOOKUP(Perzentile!B68,Berechnungen!$E$2:$F$40,2,FALSE) ->  | X68: =IF('Entrée des données_Eingabemaske'!$N$12="männlich / masculin",((W68/D68)^C68-1)/C68/E68,((W68/N68)^M68-1)/M68/O68) -> 
A69: 5.5 | B69: 66 | C69: 1 | D69: 112.911 | E69: 0.04203 | F69: 103.985 | G69: 106.8292057 | H69: 109.71 | I69: 112.911 | J69: 116.112 | K69: 118.9927943 | L69: 121.837 | M69: 1 | N69: 112.1753 | O69: 0.04399 | P69: 102.894 | Q69: 105.8513666 | R69: 108.847 | S69: 112.175 | T69: 115.504 | U69: 118.4992334 | V69: 121.456 | W69: =VLOOKUP(Perzentile!B69,Berechnungen!$E$2:$F$40,2,FALSE) ->  | X69: =IF('Entrée des données_Eingabemaske'!$N$12="männlich / masculin",((W69/D69)^C69-1)/C69/E69,((W69/N69)^M69-1)/M69/O69) -> 
A70: 5.583333333 | B70: 67 | C70: 1 | D70: 113.428 | E70: 0.04211 | F70: 104.444 | G70: 107.3067291 | H70: 110.206 | I70: 113.428 | J70: 116.65 | K70: 119.5492709 | L70: 122.412 | M70: 1 | N70: 112.6767 | O70: 0.04407 | P70: 103.337 | Q70: 106.3129479 | R70: 109.327 | S70: 112.677 | T70: 116.026 | U70: 119.0404521 | V70: 122.016 | W70: =VLOOKUP(Perzentile!B70,Berechnungen!$E$2:$F$40,2,FALSE) ->  | X70: =IF('Entrée des données_Eingabemaske'!$N$12="männlich / masculin",((W70/D70)^C70-1)/C70/E70,((W70/N70)^M70-1)/M70/O70) -> 
A71: 5.666666667 | B71: 68 | C71: 1 | D71: 113.941 | E71: 0.04218 | F71: 104.902 | G71: 107.781823 | H71: 110.699 | I71: 113.941 | J71: 117.183 | K71: 120.100177 | L71: 122.98 | M71: 1 | N71: 113.174 | O71: 0.04415 | P71: 103.776 | Q71: 106.7705583 | R71: 109.804 | S71: 113.174 | T71: 116.544 | U71: 119.5774417 | V71: 122.572 | W71: =VLOOKUP(Perzentile!B71,Berechnungen!$E$2:$F$40,2,FALSE) ->  | X71: =IF('Entrée des données_Eingabemaske'!$N$12="männlich / masculin",((W71/D71)^C71-1)/C71/E71,((W71/N71)^M71-1)/M71/O71) -> 
A72: 5.75 | B72: 69 | C72: 1 | D72: 114.45 | E72: 0.04226 | F72: 105.353 | G72: 108.2515746 | H72: 111.188 | I72: 114.45 | J72: 117.712 | K72: 120.6484254 | L72: 123.547 | M72: 1 | N72: 113.6672 | O72: 0.04423 | P72: 104.212 | Q72: 107.2241992 | R72: 110.276 | S72: 113.667 | T72: 117.058 | U72: 120.1102008 | V72: 123.123 | W72: =VLOOKUP(Perzentile!B72,Berechnungen!$E$2:$F$40,2,FALSE) ->  | X72: =IF('Entrée des données_Eingabemaske'!$N$12="männlich / masculin",((W72/D72)^C72-1)/C72/E72,((W72/N72)^M72-1)/M72/O72) -> 
A73: 5.833333333 | B73: 70 | C73: 1 | D73: 114.9547 | E73: 0.04234 | F73: 105.801 | G73: 108.7171553 | H73: 111.672 | I73: 114.955 | J73: 118.238 | K73: 121.1922447 | L73: 124.109 | M73: 1 | N73: 114.1565 | O73: 0.04431 | P73: 104.643 | Q73: 107.6740604 | R73: 110.745 | S73: 114.156 | T73: 117.568 | U73: 120.6389396 | V73: 123.67 | W73: =VLOOKUP(Perzentile!B73,Berechnungen!$E$2:$F$40,2,FALSE) ->  | X73: =IF('Entrée des données_Eingabemaske'!$N$12="männlich / masculin",((W73/D73)^C73-1)/C73/E73,((W73/N73)^M73-1)/M73/O73) -> 
A74: 5.916666667 | B74: 71 | C74: 1 | D74: 115.4549 | E74: 0.04241 | F74: 106.246 | G74: 109.1798567 | H74: 112.152 | I74: 115.455 | J74: 118.758 | K74: 121.7299433 | L74: 124.664 | M74: 1 | N74: 114.6421 | O74: 0.04439 | P74: 105.071 | Q74: 108.1203317 | R74: 111.21 | S74: 114.642 | T74: 118.075 | U74: 121.1638683 | V74: 124.213 | W74: =VLOOKUP(Perzentile!B74,Berechnungen!$E$2:$F$40,2,FALSE) ->  | X74: =IF('Entrée des données_Eingabemaske'!$N$12="männlich / masculin",((W74/D74)^C74-1)/C74/E74,((W74/N74)^M74-1)/M74/O74) -> 
A75: 6 | B75: 72 | C75: 1 | D75: 115.9509 | E75: 0.04249 | F75: 106.685 | G75: 109.637011 | H75: 112.628 | I75: 115.951 | J75: 119.274 | K75: 122.264789 | L75: 125.217 | M75: 1 | N75: 115.1244 | O75: 0.04447 | P75: 105.496 | Q75: 108.5633916 | R75: 111.671 | S75: 115.124 | T75: 118.578 | U75: 121.6854084 | V75: 124.753 | W75: =VLOOKUP(Perzentile!B75,Berechnungen!$E$2:$F$40,2,FALSE) ->  | X75: =IF('Entrée des données_Eingabemaske'!$N$12="männlich / masculin",((W75/D75)^C75-1)/C75/E75,((W75/N75)^M75-1)/M75/O75) -> 
A76: 6.083333333 | B76: 73 | C76: 1 | D76: 116.4432 | E76: 0.04257 | F76: 107.12 | G76: 110.0905655 | H76: 113.1 | I76: 116.443 | J76: 119.787 | K76: 122.7958345 | L76: 125.766 | M76: 1 | N76: 115.6039 | O76: 0.04454 | P76: 105.92 | Q76: 109.0051939 | R76: 112.131 | S76: 115.604 | T76: 119.077 | U76: 122.2026061 | V76: 125.288 | W76: =VLOOKUP(Perzentile!B76,Berechnungen!$E$2:$F$40,2,FALSE) ->  | X76: =IF('Entrée des données_Eingabemaske'!$N$12="männlich / masculin",((W76/D76)^C76-1)/C76/E76,((W76/N76)^M76-1)/M76/O76) -> 
A77: 6.166666667 | B77: 74 | C77: 1 | D77: 116.9325 | E77: 0.04264 | F77: 107.555 | G77: 110.5426816 | H77: 113.569 | I77: 116.932 | J77: 120.296 | K77: 123.3223184 | L77: 126.31 | M77: 1 | N77: 116.0812 | O77: 0.04461 | P77: 106.342 | Q77: 109.444836 | R77: 112.588 | S77: 116.081 | T77: 119.574 | U77: 122.717564 | V77: 125.821 | W77: =VLOOKUP(Perzentile!B77,Berechnungen!$E$2:$F$40,2,FALSE) ->  | X77: =IF('Entrée des données_Eingabemaske'!$N$12="männlich / masculin",((W77/D77)^C77-1)/C77/E77,((W77/N77)^M77-1)/M77/O77) -> 
A78: 6.25 | B78: 75 | C78: 1 | D78: 117.4196 | E78: 0.04272 | F78: 107.985 | G78: 110.9911255 | H78: 114.036 | I78: 117.42 | J78: 120.803 | K78: 123.8480745 | L78: 126.854 | M78: 1 | N78: 116.5568 | O78: 0.04469 | P78: 106.76 | Q78: 109.8812961 | R78: 113.043 | S78: 116.557 | T78: 120.07 | U78: 123.2323039 | V78: 126.354 | W78: =VLOOKUP(Perzentile!B78,Berechnungen!$E$2:$F$40,2,FALSE) ->  | X78: =IF('Entrée des données_Eingabemaske'!$N$12="männlich / masculin",((W78/D78)^C78-1)/C78/E78,((W78/N78)^M78-1)/M78/O78) -> 
A79: 6.333333333 | B79: 76 | C79: 1 | D79: 117.9046 | E79: 0.0428 | F79: 108.414 | G79: 111.4374847 | H79: 114.501 | I79: 117.905 | J79: 121.308 | K79: 124.3717153 | L79: 127.396 | M79: 1 | N79: 117.0311 | O79: 0.04475 | P79: 107.181 | Q79: 110.3194328 | R79: 113.499 | S79: 117.031 | T79: 120.563 | U79: 123.7427672 | V79: 126.881 | W79: =VLOOKUP(Perzentile!B79,Berechnungen!$E$2:$F$40,2,FALSE) ->  | X79: =IF('Entrée des données_Eingabemaske'!$N$12="männlich / masculin",((W79/D79)^C79-1)/C79/E79,((W79/N79)^M79-1)/M79/O79) -> 
A80: 6.416666667 | B80: 77 | C80: 1 | D80: 118.388 | E80: 0.04287 | F80: 108.842 | G80: 111.8837496 | H80: 114.965 | I80: 118.388 | J80: 121.811 | K80: 124.8922504 | L80: 127.934 | M80: 1 | N80: 117.5044 | O80: 0.04482 | P80: 107.599 | Q80: 110.7550482 | R80: 113.952 | S80: 117.504 | T80: 121.057 | U80: 124.2537518 | V80: 127.41 | W80: =VLOOKUP(Perzentile!B80,Berechnungen!$E$2:$F$40,2,FALSE) ->  | X80: =IF('Entrée des données_Eingabemaske'!$N$12="männlich / masculin",((W80/D80)^C80-1)/C80/E80,((W80/N80)^M80-1)/M80/O80) -> 
A81: 6.5 | B81: 78 | C81: 1 | D81: 118.87 | E81: 0.04295 | F81: 109.268 | G81: 112.3270814 | H81: 115.426 | I81: 118.87 | J81: 122.314 | K81: 125.4129186 | L81: 128.472 | M81: 1 | N81: 117.9769 | O81: 0.04489 | P81: 108.016 | Q81: 111.1898246 | R81: 114.405 | S81: 117.977 | T81: 121.549 | U81: 124.7639754 | V81: 127.938 | W81: =VLOOKUP(Perzentile!B81,Berechnungen!$E$2:$F$40,2,FALSE) ->  | X81: =IF('Entrée des données_Eingabemaske'!$N$12="männlich / masculin",((W81/D81)^C81-1)/C81/E81,((W81/N81)^M81-1)/M81/O81) -> 
A82: 6.583333333 | B82: 79 | C82: 1 | D82: 119.3508 | E82: 0.04303 | F82: 109.692 | G82: 112.7691806 | H82: 115.887 | I82: 119.351 | J82: 122.815 | K82: 125.9324194 | L82: 129.01 | M82: 1 | N82: 118.4489 | O82: 0.04495 | P82: 108.435 | Q82: 111.6255631 | R82: 114.858 | S82: 118.449 | T82: 122.04 | U82: 125.2722369 | V82: 128.463 | W82: =VLOOKUP(Perzentile!B82,Berechnungen!$E$2:$F$40,2,FALSE) ->  | X82: =IF('Entrée des données_Eingabemaske'!$N$12="männlich / masculin",((W82/D82)^C82-1)/C82/E82,((W82/N82)^M82-1)/M82/O82) -> 
A83: 6.666666667 | B83: 80 | C83: 1 | D83: 119.8303 | E83: 0.04311 | F83: 110.114 | G83: 113.209953 | H83: 116.346 | I83: 119.83 | J83: 123.315 | K83: 126.450647 | L83: 129.546 | M83: 1 | N83: 118.9208 | O83: 0.04502 | P83: 108.851 | Q83: 112.0596108 | R83: 115.31 | S83: 118.921 | T83: 122.532 | U83: 125.7819892 | V83: 128.99 | W83: =VLOOKUP(Perzentile!B83,Berechnungen!$E$2:$F$40,2,FALSE) ->  | X83: =IF('Entrée des données_Eingabemaske'!$N$12="männlich / masculin",((W83/D83)^C83-1)/C83/E83,((W83/N83)^M83-1)/M83/O83) -> 
A84: 6.75 | B84: 81 | C84: 1 | D84: 120.3085 | E84: 0.04318 | F84: 110.538 | G84: 113.6509408 | H84: 116.805 | I84: 120.308 | J84: 123.812 | K84: 126.9660592 | L84: 130.079 | M84: 1 | N84: 119.3926 | O84: 0.04508 | P84: 109.27 | Q84: 112.4950096 | R84: 115.762 | S84: 119.393 | T84: 123.023 | U84: 126.2901904 | V84: 129.515 | W84: =VLOOKUP(Perzentile!B84,Berechnungen!$E$2:$F$40,2,FALSE) ->  | X84: =IF('Entrée des données_Eingabemaske'!$N$12="männlich / masculin",((W84/D84)^C84-1)/C84/E84,((W84/N84)^M84-1)/M84/O84) -> 
A85: 6.833333333 | B85: 82 | C85: 1 | D85: 120.7853 | E85: 0.04326 | F85: 110.958 | G85: 114.0889725 | H85: 117.261 | I85: 120.785 | J85: 124.31 | K85: 127.4816275 | L85: 130.613 | M85: 1 | N85: 119.8648 | O85: 0.04514 | P85: 109.688 | Q85: 112.9307127 | R85: 116.215 | S85: 119.865 | T85: 123.514 | U85: 126.7988873 | V85: 130.041 | W85: =VLOOKUP(Perzentile!B85,Berechnungen!$E$2:$F$40,2,FALSE) ->  | X85: =IF('Entrée des données_Eingabemaske'!$N$12="männlich / masculin",((W85/D85)^C85-1)/C85/E85,((W85/N85)^M85-1)/M85/O85) -> 
A86: 6.916666667 | B86: 83 | C86: 1 | D86: 121.2604 | E86: 0.04334 | F86: 111.376 | G86: 114.5253009 | H86: 117.716 | I86: 121.26 | J86: 124.805 | K86: 127.9954991 | L86: 131.145 | M86: 1 | N86: 120.3374 | O86: 0.0452 | P86: 110.107 | Q86: 113.36672 | R86: 116.669 | S86: 120.337 | T86: 124.006 | U86: 127.30808 | V86: 130.568 | W86: =VLOOKUP(Perzentile!B86,Berechnungen!$E$2:$F$40,2,FALSE) ->  | X86: =IF('Entrée des données_Eingabemaske'!$N$12="männlich / masculin",((W86/D86)^C86-1)/C86/E86,((W86/N86)^M86-1)/M86/O86) -> 
A87: 7 | B87: 84 | C87: 1 | D87: 121.7338 | E87: 0.04342 | F87: 111.793 | G87: 114.9599265 | H87: 118.169 | I87: 121.734 | J87: 125.299 | K87: 128.5076735 | L87: 131.675 | M87: 1 | N87: 120.8105 | O87: 0.04525 | P87: 110.529 | Q87: 113.8046739 | R87: 117.123 | S87: 120.81 | T87: 124.498 | U87: 127.8163261 | V87: 131.092 | W87: =VLOOKUP(Perzentile!B87,Berechnungen!$E$2:$F$40,2,FALSE) ->  | X87: =IF('Entrée des données_Eingabemaske'!$N$12="männlich / masculin",((W87/D87)^C87-1)/C87/E87,((W87/N87)^M87-1)/M87/O87) -> 
A88: 7.083333333 | B88: 85 | C88: 1 | D88: 122.2053 | E88: 0.0435 | F88: 112.207 | G88: 115.3926609 | H88: 118.62 | I88: 122.205 | J88: 125.791 | K88: 129.0179391 | L88: 132.203 | M88: 1 | N88: 121.2843 | O88: 0.04531 | P88: 110.949 | Q88: 114.2416722 | R88: 117.578 | S88: 121.284 | T88: 124.991 | U88: 128.3269278 | V88: 131.62 | W88: =VLOOKUP(Perzentile!B88,Berechnungen!$E$2:$F$40,2,FALSE) ->  | X88: =IF('Entrée des données_Eingabemaske'!$N$12="männlich / masculin",((W88/D88)^C88-1)/C88/E88,((W88/N88)^M88-1)/M88/O88) -> 
A89: 7.166666667 | B89: 86 | C89: 1 | D89: 122.675 | E89: 0.04358 | F89: 112.62 | G89: 115.8235991 | H89: 119.069 | I89: 122.675 | J89: 126.281 | K89: 129.5264009 | L89: 132.73 | M89: 1 | N89: 121.7587 | O89: 0.04536 | P89: 111.371 | Q89: 114.6807232 | R89: 118.034 | S89: 121.759 | T89: 125.484 | U89: 128.8366768 | V89: 132.146 | W89: =VLOOKUP(Perzentile!B89,Berechnungen!$E$2:$F$40,2,FALSE) ->  | X89: =IF('Entrée des données_Eingabemaske'!$N$12="männlich / masculin",((W89/D89)^C89-1)/C89/E89,((W89/N89)^M89-1)/M89/O89) -> 
A90: 7.25 | B90: 87 | C90: 1 | D90: 123.1429 | E90: 0.04366 | F90: 113.031 | G90: 116.2527418 | H90: 119.517 | I90: 123.143 | J90: 126.769 | K90: 130.0330582 | L90: 133.255 | M90: 1 | N90: 122.2338 | O90: 0.04542 | P90: 111.792 | Q90: 115.1188062 | R90: 118.489 | S90: 122.234 | T90: 125.978 | U90: 129.3487938 | V90: 132.676 | W90: =VLOOKUP(Perzentile!B90,Berechnungen!$E$2:$F$40,2,FALSE) ->  | X90: =IF('Entrée des données_Eingabemaske'!$N$12="männlich / masculin",((W90/D90)^C90-1)/C90/E90,((W90/N90)^M90-1)/M90/O90) -> 
A91: 7.333333333 | B91: 88 | C91: 1 | D91: 123.6092 | E91: 0.04374 | F91: 113.44 | G91: 116.6802782 | H91: 119.962 | I91: 123.609 | J91: 127.256 | K91: 130.5381218 | L91: 133.778 | M91: 1 | N91: 122.7098 | O91: 0.04547 | P91: 112.216 | Q91: 115.5592362 | R91: 118.946 | S91: 122.71 | T91: 126.473 | U91: 129.8603638 | V91: 133.204 | W91: =VLOOKUP(Perzentile!B91,Berechnungen!$E$2:$F$40,2,FALSE) ->  | X91: =IF('Entrée des données_Eingabemaske'!$N$12="männlich / masculin",((W91/D91)^C91-1)/C91/E91,((W91/N91)^M91-1)/M91/O91) -> 
A92: 7.416666667 | B92: 89 | C92: 1 | D92: 124.0736 | E92: 0.04382 | F92: 113.848 | G92: 117.1059257 | H92: 120.406 | I92: 124.074 | J92: 127.741 | K92: 131.0412743 | L92: 134.299 | M92: 1 | N92: 123.1868 | O92: 0.04551 | P92: 112.643 | Q92: 116.0021255 | R92: 119.405 | S92: 123.187 | T92: 126.968 | U92: 130.3714745 | V92: 133.731 | W92: =VLOOKUP(Perzentile!B92,Berechnungen!$E$2:$F$40,2,FALSE) ->  | X92: =IF('Entrée des données_Eingabemaske'!$N$12="männlich / masculin",((W92/D92)^C92-1)/C92/E92,((W92/N92)^M92-1)/M92/O92) -> 
A93: 7.5 | B93: 90 | C93: 1 | D93: 124.5361 | E93: 0.0439 | F93: 114.254 | G93: 117.5296849 | H93: 120.849 | I93: 124.536 | J93: 128.224 | K93: 131.5425151 | L93: 134.819 | M93: 1 | N93: 123.6646 | O93: 0.04556 | P93: 113.068 | Q93: 116.4441345 | R93: 119.864 | S93: 123.665 | T93: 127.465 | U93: 130.8850655 | V93: 134.261 | W93: =VLOOKUP(Perzentile!B93,Berechnungen!$E$2:$F$40,2,FALSE) ->  | X93: =IF('Entrée des données_Eingabemaske'!$N$12="männlich / masculin",((W93/D93)^C93-1)/C93/E93,((W93/N93)^M93-1)/M93/O93) -> 
A94: 7.583333333 | B94: 91 | C94: 1 | D94: 124.9964 | E94: 0.04398 | F94: 114.657 | G94: 117.9512732 | H94: 121.288 | I94: 124.996 | J94: 128.704 | K94: 132.0415268 | L94: 135.336 | M94: 1 | N94: 124.1435 | O94: 0.04561 | P94: 113.494 | Q94: 116.8871179 | R94: 120.324 | S94: 124.144 | T94: 127.963 | U94: 131.3998821 | V94: 134.793 | W94: =VLOOKUP(Perzentile!B94,Berechnungen!$E$2:$F$40,2,FALSE) ->  | X94: =IF('Entrée des données_Eingabemaske'!$N$12="männlich / masculin",((W94/D94)^C94-1)/C94/E94,((W94/N94)^M94-1)/M94/O94) -> 
A95: 7.666666667 | B95: 92 | C95: 1 | D95: 125.4545 | E95: 0.04406 | F95: 115.058 | G95: 118.3706913 | H95: 121.726 | I95: 125.454 | J95: 129.183 | K95: 132.5383087 | L95: 135.851 | M95: 1 | N95: 124.6234 | O95: 0.04565 | P95: 113.923 | Q95: 117.3325785 | R95: 120.786 | S95: 124.623 | T95: 128.461 | U95: 131.9142215 | V95: 135.323 | W95: =VLOOKUP(Perzentile!B95,Berechnungen!$E$2:$F$40,2,FALSE) ->  | X95: =IF('Entrée des données_Eingabemaske'!$N$12="männlich / masculin",((W95/D95)^C95-1)/C95/E95,((W95/N95)^M95-1)/M95/O95) -> 
A96: 7.75 | B96: 93 | C96: 1 | D96: 125.9104 | E96: 0.04414 | F96: 115.458 | G96: 118.78794 | H96: 122.162 | I96: 125.91 | J96: 129.659 | K96: 133.03286 | L96: 136.363 | M96: 1 | N96: 125.1045 | O96: 0.04569 | P96: 114.354 | Q96: 117.7791197 | R96: 121.249 | S96: 125.104 | T96: 128.96 | U96: 132.4298803 | V96: 135.855 | W96: =VLOOKUP(Perzentile!B96,Berechnungen!$E$2:$F$40,2,FALSE) ->  | X96: =IF('Entrée des données_Eingabemaske'!$N$12="männlich / masculin",((W96/D96)^C96-1)/C96/E96,((W96/N96)^M96-1)/M96/O96) -> 
A97: 7.833333333 | B97: 94 | C97: 1 | D97: 126.364 | E97: 0.04422 | F97: 115.854 | G97: 119.2029256 | H97: 122.595 | I97: 126.364 | J97: 130.133 | K97: 133.5250744 | L97: 136.874 | M97: 1 | N97: 125.5869 | O97: 0.04573 | P97: 114.785 | Q97: 118.2268354 | R97: 121.713 | S97: 125.587 | T97: 129.461 | U97: 132.9469646 | V97: 136.388 | W97: =VLOOKUP(Perzentile!B97,Berechnungen!$E$2:$F$40,2,FALSE) ->  | X97: =IF('Entrée des données_Eingabemaske'!$N$12="männlich / masculin",((W97/D97)^C97-1)/C97/E97,((W97/N97)^M97-1)/M97/O97) -> 
A98: 7.916666667 | B98: 95 | C98: 1 | D98: 126.8156 | E98: 0.0443 | F98: 116.249 | G98: 119.6159316 | H98: 123.026 | I98: 126.816 | J98: 130.605 | K98: 134.0152684 | L98: 137.382 | M98: 1 | N98: 126.0706 | O98: 0.04577 | P98: 115.218 | Q98: 118.6757253 | R98: 122.179 | S98: 126.071 | T98: 129.963 | U98: 133.4654747 | V98: 136.923 | W98: =VLOOKUP(Perzentile!B98,Berechnungen!$E$2:$F$40,2,FALSE) ->  | X98: =IF('Entrée des données_Eingabemaske'!$N$12="männlich / masculin",((W98/D98)^C98-1)/C98/E98,((W98/N98)^M98-1)/M98/O98) -> 
A99: 8 | B99: 96 | C99: 1 | D99: 127.2651 | E99: 0.04438 | F99: 116.642 | G99: 120.0268645 | H99: 123.456 | I99: 127.265 | J99: 131.075 | K99: 134.5033355 | L99: 137.888 | M99: 1 | N99: 126.5558 | O99: 0.04581 | P99: 115.652 | Q99: 119.1259776 | R99: 122.645 | S99: 126.556 | T99: 130.466 | U99: 133.9856224 | V99: 137.46 | W99: =VLOOKUP(Perzentile!B99,Berechnungen!$E$2:$F$40,2,FALSE) ->  | X99: =IF('Entrée des données_Eingabemaske'!$N$12="männlich / masculin",((W99/D99)^C99-1)/C99/E99,((W99/N99)^M99-1)/M99/O99) -> 
A100: 8.083333333 | B100: 97 | C100: 1 | D100: 127.7129 | E100: 0.04446 | F100: 117.034 | G100: 120.4361021 | H100: 123.883 | I100: 127.713 | J100: 131.543 | K100: 134.9896979 | L100: 138.392 | M100: 1 | N100: 127.0424 | O100: 0.04585 | P100: 116.087 | Q100: 119.5774979 | R100: 123.114 | S100: 127.042 | T100: 130.971 | U100: 134.5073021 | V100: 137.998 | W100: =VLOOKUP(Perzentile!B100,Berechnungen!$E$2:$F$40,2,FALSE) ->  | X100: =IF('Entrée des données_Eingabemaske'!$N$12="männlich / masculin",((W100/D100)^C100-1)/C100/E100,((W100/N100)^M100-1)/M100/O100) -> 
A101: 8.166666667 | B101: 98 | C101: 1 | D101: 128.159 | E101: 0.04454 | F101: 117.423 | G101: 120.843645 | H101: 124.309 | I101: 128.159 | J101: 132.009 | K101: 135.474355 | L101: 138.895 | M101: 1 | N101: 127.5304 | O101: 0.04588 | P101: 116.526 | Q101: 120.0319204 | R101: 123.584 | S101: 127.53 | T101: 131.477 | U101: 135.0288796 | V101: 138.535 | W101: =VLOOKUP(Perzentile!B101,Berechnungen!$E$2:$F$40,2,FALSE) ->  | X101: =IF('Entrée des données_Eingabemaske'!$N$12="männlich / masculin",((W101/D101)^C101-1)/C101/E101,((W101/N101)^M101-1)/M101/O101) -> 
A102: 8.25 | B102: 99 | C102: 1 | D102: 128.6034 | E102: 0.04462 | F102: 117.811 | G102: 121.2494935 | H102: 124.733 | I102: 128.603 | J102: 132.474 | K102: 135.9573065 | L102: 139.396 | M102: 1 | N102: 128.0199 | O102: 0.04591 | P102: 116.966 | Q102: 120.487717 | R102: 124.056 | S102: 128.02 | T102: 131.984 | U102: 135.552083 | V102: 139.074 | W102: =VLOOKUP(Perzentile!B102,Berechnungen!$E$2:$F$40,2,FALSE) ->  | X102: =IF('Entrée des données_Eingabemaske'!$N$12="männlich / masculin",((W102/D102)^C102-1)/C102/E102,((W102/N102)^M102-1)/M102/O102) -> 
A103: 8.333333333 | B103: 100 | C103: 1 | D103: 129.0466 | E103: 0.0447 | F103: 118.197 | G103: 121.6541197 | H103: 125.156 | I103: 129.047 | J103: 132.937 | K103: 136.4390803 | L103: 139.896 | M103: 1 | N103: 128.5109 | O103: 0.04594 | P103: 117.407 | Q103: 120.9448877 | R103: 124.529 | S103: 128.511 | T103: 132.493 | U103: 136.0769123 | V103: 139.615 | W103: =VLOOKUP(Perzentile!B103,Berechnungen!$E$2:$F$40,2,FALSE) ->  | X103: =IF('Entrée des données_Eingabemaske'!$N$12="männlich / masculin",((W103/D103)^C103-1)/C103/E103,((W103/N103)^M103-1)/M103/O103) -> 
A104: 8.416666667 | B104: 101 | C104: 1 | D104: 129.4887 | E104: 0.04478 | F104: 118.583 | G104: 122.0576181 | H104: 125.578 | I104: 129.489 | J104: 133.4 | K104: 136.9197819 | L104: 140.394 | M104: 1 | N104: 129.0035 | O104: 0.04597 | P104: 117.85 | Q104: 121.4035264 | R104: 125.004 | S104: 129.004 | T104: 133.003 | U104: 136.6034736 | V104: 140.157 | W104: =VLOOKUP(Perzentile!B104,Berechnungen!$E$2:$F$40,2,FALSE) ->  | X104: =IF('Entrée des données_Eingabemaske'!$N$12="männlich / masculin",((W104/D104)^C104-1)/C104/E104,((W104/N104)^M104-1)/M104/O104) -> 
A105: 8.5 | B105: 102 | C105: 1 | D105: 129.93 | E105: 0.04487 | F105: 118.965 | G105: 122.4586068 | H105: 125.998 | I105: 129.93 | J105: 133.862 | K105: 137.4013932 | L105: 140.895 | M105: 1 | N105: 129.4975 | O105: 0.046 | P105: 118.294 | Q105: 121.8634447 | R105: 125.48 | S105: 129.498 | T105: 133.515 | U105: 137.1315553 | V105: 140.701 | W105: =VLOOKUP(Perzentile!B105,Berechnungen!$E$2:$F$40,2,FALSE) ->  | X105: =IF('Entrée des données_Eingabemaske'!$N$12="männlich / masculin",((W105/D105)^C105-1)/C105/E105,((W105/N105)^M105-1)/M105/O105) -> 
A106: 8.583333333 | B106: 103 | C106: 1 | D106: 130.3705 | E106: 0.04495 | F106: 119.349 | G106: 122.8604105 | H106: 126.418 | I106: 130.37 | J106: 134.323 | K106: 137.8805895 | L106: 141.392 | M106: 1 | N106: 129.9932 | O106: 0.04602 | P106: 118.742 | Q106: 122.3265906 | R106: 125.958 | S106: 129.993 | T106: 134.028 | U106: 137.6598094 | V106: 141.245 | W106: =VLOOKUP(Perzentile!B106,Berechnungen!$E$2:$F$40,2,FALSE) ->  | X106: =IF('Entrée des données_Eingabemaske'!$N$12="männlich / masculin",((W106/D106)^C106-1)/C106/E106,((W106/N106)^M106-1)/M106/O106) -> 
A107: 8.666666667 | B107: 104 | C107: 1 | D107: 130.8103 | E107: 0.04503 | F107: 119.732 | G107: 123.2614643 | H107: 126.837 | I107: 130.81 | J107: 134.783 | K107: 138.3591357 | L107: 141.889 | M107: 1 | N107: 130.4904 | O107: 0.04604 | P107: 119.191 | Q107: 122.7911227 | R107: 126.438 | S107: 130.49 | T107: 134.543 | U107: 138.1896773 | V107: 141.79 | W107: =VLOOKUP(Perzentile!B107,Berechnungen!$E$2:$F$40,2,FALSE) ->  | X107: =IF('Entrée des données_Eingabemaske'!$N$12="männlich / masculin",((W107/D107)^C107-1)/C107/E107,((W107/N107)^M107-1)/M107/O107) -> 
A108: 8.75 | B108: 105 | C108: 1 | D108: 131.2495 | E108: 0.04511 | F108: 120.114 | G108: 123.6618626 | H108: 127.256 | I108: 131.25 | J108: 135.243 | K108: 138.8371374 | L108: 142.385 | M108: 1 | N108: 130.9891 | O108: 0.04607 | P108: 119.639 | Q108: 123.255362 | R108: 126.919 | S108: 130.989 | T108: 135.059 | U108: 138.722838 | V108: 142.339 | W108: =VLOOKUP(Perzentile!B108,Berechnungen!$E$2:$F$40,2,FALSE) ->  | X108: =IF('Entrée des données_Eingabemaske'!$N$12="männlich / masculin",((W108/D108)^C108-1)/C108/E108,((W108/N108)^M108-1)/M108/O108) -> 
A109: 8.833333333 | B109: 106 | C109: 1 | D109: 131.6884 | E109: 0.04519 | F109: 120.496 | G109: 124.0618882 | H109: 127.675 | I109: 131.688 | J109: 135.702 | K109: 139.3149118 | L109: 142.881 | M109: 1 | N109: 131.4895 | O109: 0.04608 | P109: 120.094 | Q109: 123.7245327 | R109: 127.403 | S109: 131.49 | T109: 135.576 | U109: 139.2544673 | V109: 142.885 | W109: =VLOOKUP(Perzentile!B109,Berechnungen!$E$2:$F$40,2,FALSE) ->  | X109: =IF('Entrée des données_Eingabemaske'!$N$12="männlich / masculin",((W109/D109)^C109-1)/C109/E109,((W109/N109)^M109-1)/M109/O109) -> 
A110: 8.916666667 | B110: 107 | C110: 1 | D110: 132.1269 | E110: 0.04527 | F110: 120.877 | G110: 124.461447 | H110: 128.093 | I110: 132.127 | J110: 136.161 | K110: 139.792353 | L110: 143.377 | M110: 1 | N110: 131.9912 | O110: 0.0461 | P110: 120.547 | Q110: 124.1932223 | R110: 127.887 | S110: 131.991 | T110: 136.095 | U110: 139.7891777 | V110: 143.435 | W110: =VLOOKUP(Perzentile!B110,Berechnungen!$E$2:$F$40,2,FALSE) ->  | X110: =IF('Entrée des données_Eingabemaske'!$N$12="männlich / masculin",((W110/D110)^C110-1)/C110/E110,((W110/N110)^M110-1)/M110/O110) -> 
A111: 9 | B111: 108 | C111: 1 | D111: 132.5652 | E111: 0.04535 | F111: 121.258 | G111: 124.8607275 | H111: 128.51 | I111: 132.565 | J111: 136.62 | K111: 140.2696725 | L111: 143.872 | M111: 1 | N111: 132.4944 | O111: 0.04612 | P111: 121.002 | Q111: 124.6632975 | R111: 128.373 | S111: 132.494 | T111: 136.616 | U111: 140.3255025 | V111: 143.987 | W111: =VLOOKUP(Perzentile!B111,Berechnungen!$E$2:$F$40,2,FALSE) ->  | X111: =IF('Entrée des données_Eingabemaske'!$N$12="männlich / masculin",((W111/D111)^C111-1)/C111/E111,((W111/N111)^M111-1)/M111/O111) -> 
A112: 9.083333333 | B112: 109 | C112: 1 | D112: 133.0031 | E112: 0.04543 | F112: 121.639 | G112: 125.2595415 | H112: 128.928 | I112: 133.003 | J112: 137.079 | K112: 140.7466585 | L112: 144.367 | M112: 1 | N112: 132.9989 | O112: 0.04613 | P112: 121.46 | Q112: 125.1362745 | R112: 128.861 | S112: 132.999 | T112: 137.137 | U112: 140.8615255 | V112: 144.538 | W112: =VLOOKUP(Perzentile!B112,Berechnungen!$E$2:$F$40,2,FALSE) ->  | X112: =IF('Entrée des données_Eingabemaske'!$N$12="männlich / masculin",((W112/D112)^C112-1)/C112/E112,((W112/N112)^M112-1)/M112/O112) -> 
A113: 9.166666667 | B113: 110 | C113: 1 | D113: 133.4404 | E113: 0.04551 | F113: 122.019 | G113: 125.6577006 | H113: 129.344 | I113: 133.44 | J113: 137.536 | K113: 141.2230994 | L113: 144.862 | M113: 1 | N113: 133.5046 | O113: 0.04614 | P113: 121.919 | Q113: 125.6103676 | R113: 129.35 | S113: 133.505 | T113: 137.659 | U113: 141.3988324 | V113: 145.09 | W113: =VLOOKUP(Perzentile!B113,Berechnungen!$E$2:$F$40,2,FALSE) ->  | X113: =IF('Entrée des données_Eingabemaske'!$N$12="männlich / masculin",((W113/D113)^C113-1)/C113/E113,((W113/N113)^M113-1)/M113/O113) -> 
A114: 9.25 | B114: 111 | C114: 1 | D114: 133.877 | E114: 0.04559 | F114: 122.398 | G114: 126.055111 | H114: 129.76 | I114: 133.877 | J114: 137.994 | K114: 141.698889 | L114: 145.356 | M114: 1 | N114: 134.0118 | O114: 0.04615 | P114: 122.38 | Q114: 126.0858591 | R114: 129.84 | S114: 134.012 | T114: 138.183 | U114: 141.9377409 | V114: 145.644 | W114: =VLOOKUP(Perzentile!B114,Berechnungen!$E$2:$F$40,2,FALSE) ->  | X114: =IF('Entrée des données_Eingabemaske'!$N$12="männlich / masculin",((W114/D114)^C114-1)/C114/E114,((W114/N114)^M114-1)/M114/O114) -> 
A115: 9.333333333 | B115: 112 | C115: 1 | D115: 134.313 | E115: 0.04566 | F115: 122.779 | G115: 126.4535882 | H115: 130.177 | I115: 134.313 | J115: 138.449 | K115: 142.1724118 | L115: 145.847 | M115: 1 | N115: 134.5202 | O115: 0.04616 | P115: 122.842 | Q115: 126.5624665 | R115: 130.332 | S115: 134.52 | T115: 138.708 | U115: 142.4779335 | V115: 146.199 | W115: =VLOOKUP(Perzentile!B115,Berechnungen!$E$2:$F$40,2,FALSE) ->  | X115: =IF('Entrée des données_Eingabemaske'!$N$12="männlich / masculin",((W115/D115)^C115-1)/C115/E115,((W115/N115)^M115-1)/M115/O115) -> 
A116: 9.416666667 | B116: 113 | C116: 1 | D116: 134.7483 | E116: 0.04574 | F116: 123.156 | G116: 126.8496014 | H116: 130.591 | I116: 134.748 | J116: 138.905 | K116: 142.6469986 | L116: 146.34 | M116: 1 | N116: 135.0299 | O116: 0.04616 | P116: 123.307 | Q116: 127.0420145 | R116: 130.826 | S116: 135.03 | T116: 139.234 | U116: 143.0177855 | V116: 146.753 | W116: =VLOOKUP(Perzentile!B116,Berechnungen!$E$2:$F$40,2,FALSE) ->  | X116: =IF('Entrée des données_Eingabemaske'!$N$12="männlich / masculin",((W116/D116)^C116-1)/C116/E116,((W116/N116)^M116-1)/M116/O116) -> 
A117: 9.5 | B117: 114 | C117: 1 | D117: 135.1829 | E117: 0.04582 | F117: 123.533 | G117: 127.2448665 | H117: 131.005 | I117: 135.183 | J117: 139.361 | K117: 143.1209335 | L117: 146.833 | M117: 1 | N117: 135.541 | O117: 0.04617 | P117: 123.771 | Q117: 127.5211426 | R117: 131.32 | S117: 135.541 | T117: 139.762 | U117: 143.5608574 | V117: 147.311 | W117: =VLOOKUP(Perzentile!B117,Berechnungen!$E$2:$F$40,2,FALSE) ->  | X117: =IF('Entrée des données_Eingabemaske'!$N$12="männlich / masculin",((W117/D117)^C117-1)/C117/E117,((W117/N117)^M117-1)/M117/O117) -> 
A118: 9.583333333 | B118: 115 | C118: 1 | D118: 135.6168 | E118: 0.04589 | F118: 123.912 | G118: 127.6411216 | H118: 131.419 | I118: 135.617 | J118: 139.814 | K118: 143.5924784 | L118: 147.322 | M118: 1 | N118: 136.0533 | O118: 0.04617 | P118: 124.239 | Q118: 128.0031302 | R118: 131.816 | S118: 136.053 | T118: 140.29 | U118: 144.1034698 | V118: 147.868 | W118: =VLOOKUP(Perzentile!B118,Berechnungen!$E$2:$F$40,2,FALSE) ->  | X118: =IF('Entrée des données_Eingabemaske'!$N$12="männlich / masculin",((W118/D118)^C118-1)/C118/E118,((W118/N118)^M118-1)/M118/O118) -> 
A119: 9.666666667 | B119: 116 | C119: 1 | D119: 136.0501 | E119: 0.04597 | F119: 124.287 | G119: 128.0349906 | H119: 131.832 | I119: 136.05 | J119: 140.269 | K119: 144.0652094 | L119: 147.813 | M119: 1 | N119: 136.567 | O119: 0.04616 | P119: 124.711 | Q119: 128.4881852 | R119: 132.315 | S119: 136.567 | T119: 140.819 | U119: 144.6458148 | V119: 148.423 | W119: =VLOOKUP(Perzentile!B119,Berechnungen!$E$2:$F$40,2,FALSE) ->  | X119: =IF('Entrée des données_Eingabemaske'!$N$12="männlich / masculin",((W119/D119)^C119-1)/C119/E119,((W119/N119)^M119-1)/M119/O119) -> 
A120: 9.75 | B120: 117 | C120: 1 | D120: 136.4829 | E120: 0.04604 | F120: 124.665 | G120: 128.4300494 | H120: 132.245 | I120: 136.483 | J120: 140.721 | K120: 144.5357506 | L120: 148.301 | M120: 1 | N120: 137.0821 | O120: 0.04616 | P120: 125.181 | Q120: 128.9728137 | R120: 132.814 | S120: 137.082 | T120: 141.35 | U120: 145.1913863 | V120: 148.983 | W120: =VLOOKUP(Perzentile!B120,Berechnungen!$E$2:$F$40,2,FALSE) ->  | X120: =IF('Entrée des données_Eingabemaske'!$N$12="männlich / masculin",((W120/D120)^C120-1)/C120/E120,((W120/N120)^M120-1)/M120/O120) -> 
A121: 9.833333333 | B121: 118 | C121: 1 | D121: 136.9153 | E121: 0.04612 | F121: 125.039 | G121: 128.8228995 | H121: 132.656 | I121: 136.915 | J121: 141.174 | K121: 145.0077005 | L121: 148.792 | M121: 1 | N121: 137.5987 | O121: 0.04616 | P121: 125.653 | Q121: 129.4588535 | R121: 133.315 | S121: 137.599 | T121: 141.883 | U121: 145.7385465 | V121: 149.545 | W121: =VLOOKUP(Perzentile!B121,Berechnungen!$E$2:$F$40,2,FALSE) ->  | X121: =IF('Entrée des données_Eingabemaske'!$N$12="männlich / masculin",((W121/D121)^C121-1)/C121/E121,((W121/N121)^M121-1)/M121/O121) -> 
A122: 9.916666667 | B122: 119 | C122: 1 | D122: 137.3474 | E122: 0.04619 | F122: 125.416 | G122: 129.2171389 | H122: 133.068 | I122: 137.347 | J122: 141.626 | K122: 145.4776611 | L122: 149.279 | M122: 1 | N122: 138.1167 | O122: 0.04615 | P122: 126.128 | Q122: 129.9479805 | R122: 133.817 | S122: 138.117 | T122: 142.416 | U122: 146.2854195 | V122: 150.105 | W122: =VLOOKUP(Perzentile!B122,Berechnungen!$E$2:$F$40,2,FALSE) ->  | X122: =IF('Entrée des données_Eingabemaske'!$N$12="männlich / masculin",((W122/D122)^C122-1)/C122/E122,((W122/N122)^M122-1)/M122/O122) -> 
A123: 10 | B123: 120 | C123: 1 | D123: 137.7795 | E123: 0.04626 | F123: 125.792 | G123: 129.6113008 | H123: 133.481 | I123: 137.78 | J123: 142.078 | K123: 145.9476992 | L123: 149.767 | M123: 1 | N123: 138.6363 | O123: 0.04614 | P123: 126.605 | Q123: 130.4386262 | R123: 134.322 | S123: 138.636 | T123: 142.951 | U123: 146.8339738 | V123: 150.667 | W123: =VLOOKUP(Perzentile!B123,Berechnungen!$E$2:$F$40,2,FALSE) ->  | X123: =IF('Entrée des données_Eingabemaske'!$N$12="männlich / masculin",((W123/D123)^C123-1)/C123/E123,((W123/N123)^M123-1)/M123/O123) -> 
A124: 10.08333333 | B124: 121 | C124: 1 | D124: 138.2119 | E124: 0.04633 | F124: 126.169 | G124: 130.0056674 | H124: 133.893 | I124: 138.212 | J124: 142.531 | K124: 146.4181326 | L124: 150.255 | M124: 1 | N124: 139.1575 | O124: 0.04612 | P124: 127.087 | Q124: 130.9325739 | R124: 134.829 | S124: 139.158 | T124: 143.486 | U124: 147.3824261 | V124: 151.228 | W124: =VLOOKUP(Perzentile!B124,Berechnungen!$E$2:$F$40,2,FALSE) ->  | X124: =IF('Entrée des données_Eingabemaske'!$N$12="männlich / masculin",((W124/D124)^C124-1)/C124/E124,((W124/N124)^M124-1)/M124/O124) -> 
A125: 10.16666667 | B125: 122 | C125: 1 | D125: 138.6452 | E125: 0.0464 | F125: 126.546 | G125: 130.4008028 | H125: 134.306 | I125: 138.645 | J125: 142.984 | K125: 146.8895972 | L125: 150.745 | M125: 1 | N125: 139.6803 | O125: 0.04611 | P125: 127.567 | Q125: 131.4262638 | R125: 135.336 | S125: 139.68 | T125: 144.024 | U125: 147.9343362 | V125: 151.794 | W125: =VLOOKUP(Perzentile!B125,Berechnungen!$E$2:$F$40,2,FALSE) ->  | X125: =IF('Entrée des données_Eingabemaske'!$N$12="männlich / masculin",((W125/D125)^C125-1)/C125/E125,((W125/N125)^M125-1)/M125/O125) -> 
A126: 10.25 | B126: 123 | C126: 1 | D126: 139.0797 | E126: 0.04647 | F126: 126.924 | G126: 130.7969891 | H126: 134.72 | I126: 139.08 | J126: 143.439 | K126: 147.3624109 | L126: 151.235 | M126: 1 | N126: 140.2049 | O126: 0.04609 | P126: 128.051 | Q126: 131.9234576 | R126: 135.846 | S126: 140.205 | T126: 144.563 | U126: 148.4863424 | V126: 152.359 | W126: =VLOOKUP(Perzentile!B126,Berechnungen!$E$2:$F$40,2,FALSE) ->  | X126: =IF('Entrée des données_Eingabemaske'!$N$12="männlich / masculin",((W126/D126)^C126-1)/C126/E126,((W126/N126)^M126-1)/M126/O126) -> 
A127: 10.33333333 | B127: 124 | C127: 1 | D127: 139.5158 | E127: 0.04654 | F127: 127.304 | G127: 131.194602 | H127: 135.136 | I127: 139.516 | J127: 143.895 | K127: 147.836998 | L127: 151.728 | M127: 1 | N127: 140.7313 | O127: 0.04607 | P127: 128.537 | Q127: 132.422372 | R127: 136.358 | S127: 140.731 | T127: 145.104 | U127: 149.040228 | V127: 152.925 | W127: =VLOOKUP(Perzentile!B127,Berechnungen!$E$2:$F$40,2,FALSE) ->  | X127: =IF('Entrée des données_Eingabemaske'!$N$12="männlich / masculin",((W127/D127)^C127-1)/C127/E127,((W127/N127)^M127-1)/M127/O127) -> 
A128: 10.41666667 | B128: 125 | C128: 1 | D128: 139.954 | E128: 0.04661 | F128: 127.685 | G128: 131.5941111 | H128: 135.554 | I128: 139.954 | J128: 144.354 | K128: 148.3138889 | L128: 152.223 | M128: 1 | N128: 141.2594 | O128: 0.04605 | P128: 129.025 | Q128: 132.922913 | R128: 136.872 | S128: 141.259 | T128: 145.647 | U128: 149.595887 | V128: 153.494 | W128: =VLOOKUP(Perzentile!B128,Berechnungen!$E$2:$F$40,2,FALSE) ->  | X128: =IF('Entrée des données_Eingabemaske'!$N$12="männlich / masculin",((W128/D128)^C128-1)/C128/E128,((W128/N128)^M128-1)/M128/O128) -> 
A129: 10.5 | B129: 126 | C129: 1 | D129: 140.3948 | E129: 0.04667 | F129: 128.071 | G129: 131.9977854 | H129: 135.975 | I129: 140.395 | J129: 144.814 | K129: 148.7918146 | L129: 152.718 | M129: 1 | N129: 141.7892 | O129: 0.04603 | P129: 129.514 | Q129: 133.4250808 | R129: 137.387 | S129: 141.789 | T129: 146.191 | U129: 150.1533192 | V129: 154.064 | W129: =VLOOKUP(Perzentile!B129,Berechnungen!$E$2:$F$40,2,FALSE) ->  | X129: =IF('Entrée des données_Eingabemaske'!$N$12="männlich / masculin",((W129/D129)^C129-1)/C129/E129,((W129/N129)^M129-1)/M129/O129) -> 
A130: 10.58333333 | B130: 127 | C130: 1 | D130: 140.8387 | E130: 0.04674 | F130: 128.458 | G130: 132.4025013 | H130: 136.399 | I130: 140.839 | J130: 145.279 | K130: 149.2748987 | L130: 153.22 | M130: 1 | N130: 142.3206 | O130: 0.046 | P130: 130.008 | Q130: 133.9306054 | R130: 137.905 | S130: 142.321 | T130: 146.736 | U130: 150.7105946 | V130: 154.634 | W130: =VLOOKUP(Perzentile!B130,Berechnungen!$E$2:$F$40,2,FALSE) ->  | X130: =IF('Entrée des données_Eingabemaske'!$N$12="männlich / masculin",((W130/D130)^C130-1)/C130/E130,((W130/N130)^M130-1)/M130/O130) -> 
A131: =B131/12 -> 10.66666667 | B131: 128 | C131: 1 | D131: 141.2859 | E131: 0.0468 | F131: 128.85 | G131: 132.8120502 | H131: 136.826 | I131: 141.286 | J131: 145.746 | K131: 149.7597498 | L131: 153.722 | M131: 1 | N131: 142.8534 | O131: 0.04597 | P131: 130.502 | Q131: 134.4374883 | R131: 138.424 | S131: 142.853 | T131: 147.283 | U131: 151.2693117 | V131: 155.205 | W131: =VLOOKUP(Perzentile!B131,Berechnungen!$E$2:$F$40,2,FALSE) ->  | X131: =IF('Entrée des données_Eingabemaske'!$N$12="männlich / masculin",((W131/D131)^C131-1)/C131/E131,((W131/N131)^M131-1)/M131/O131) ->  | Y131: =_xlfn.NORM.S.DIST(X131,TRUE) -> 
A132: 10.75 | B132: 129 | C132: 1 | D132: 141.7368 | E132: 0.04686 | F132: 129.245 | G132: 133.2250082 | H132: 137.257 | I132: 141.737 | J132: 146.217 | K132: 150.2485918 | L132: 154.229 | M132: 1 | N132: 143.3874 | O132: 0.04594 | P132: 130.998 | Q132: 134.9455415 | R132: 138.944 | S132: 143.387 | T132: 147.83 | U132: 151.8292585 | V132: 155.777 | W132: =VLOOKUP(Perzentile!B132,Berechnungen!$E$2:$F$40,2,FALSE) ->  | X132: =IF('Entrée des données_Eingabemaske'!$N$12="männlich / masculin",((W132/D132)^C132-1)/C132/E132,((W132/N132)^M132-1)/M132/O132) -> 
A133: 10.83333333 | B133: 130 | C133: 1 | D133: 142.1916 | E133: 0.04692 | F133: 129.644 | G133: 133.6415623 | H133: 137.692 | I133: 142.192 | J133: 146.692 | K133: 150.7416377 | L133: 154.74 | M133: 1 | N133: 143.9222 | O133: 0.04591 | P133: 131.495 | Q133: 135.4543888 | R133: 139.466 | S133: 143.922 | T133: 148.379 | U133: 152.3900112 | V133: 156.349 | W133: =VLOOKUP(Perzentile!B133,Berechnungen!$E$2:$F$40,2,FALSE) ->  | X133: =IF('Entrée des données_Eingabemaske'!$N$12="männlich / masculin",((W133/D133)^C133-1)/C133/E133,((W133/N133)^M133-1)/M133/O133) -> 
A134: 10.91666667 | B134: 131 | C134: 1 | D134: 142.6501 | E134: 0.04698 | F134: 130.046 | G134: 134.0615237 | H134: 138.13 | I134: 142.65 | J134: 147.17 | K134: 151.2386763 | L134: 155.255 | M134: 1 | N134: 144.4575 | O134: 0.04588 | P134: 131.992 | Q134: 135.9637477 | R134: 139.987 | S134: 144.458 | T134: 148.928 | U134: 152.9512523 | V134: 156.923 | W134: =VLOOKUP(Perzentile!B134,Berechnungen!$E$2:$F$40,2,FALSE) ->  | X134: =IF('Entrée des données_Eingabemaske'!$N$12="männlich / masculin",((W134/D134)^C134-1)/C134/E134,((W134/N134)^M134-1)/M134/O134) -> 
A135: 11 | B135: 132 | C135: 1 | D135: 143.1126 | E135: 0.04703 | F135: 130.454 | G135: 134.4870075 | H135: 138.573 | I135: 143.113 | J135: 147.652 | K135: 151.7381925 | L135: 155.771 | M135: 1 | N135: 144.9929 | O135: 0.04584 | P135: 132.492 | Q135: 136.4751002 | R135: 140.51 | S135: 144.993 | T135: 149.476 | U135: 153.5106998 | V135: 157.494 | W135: =VLOOKUP(Perzentile!B135,Berechnungen!$E$2:$F$40,2,FALSE) ->  | X135: =IF('Entrée des données_Eingabemaske'!$N$12="männlich / masculin",((W135/D135)^C135-1)/C135/E135,((W135/N135)^M135-1)/M135/O135) -> 
A136: 11.08333333 | B136: 133 | C136: 1 | D136: 143.5795 | E136: 0.04709 | F136: 130.863 | G136: 134.9147265 | H136: 139.019 | I136: 143.58 | J136: 148.14 | K136: 152.2442735 | L136: 156.296 | M136: 1 | N136: 145.528 | O136: 0.0458 | P136: 132.992 | Q136: 136.9862251 | R136: 141.032 | S136: 145.528 | T136: 150.024 | U136: 154.0697749 | V136: 158.064 | W136: =VLOOKUP(Perzentile!B136,Berechnungen!$E$2:$F$40,2,FALSE) ->  | X136: =IF('Entrée des données_Eingabemaske'!$N$12="männlich / masculin",((W136/D136)^C136-1)/C136/E136,((W136/N136)^M136-1)/M136/O136) -> 
A137: 11.16666667 | B137: 134 | C137: 1 | D137: 144.0511 | E137: 0.04714 | F137: 131.279 | G137: 135.3486359 | H137: 139.471 | I137: 144.051 | J137: 148.631 | K137: 152.7535641 | L137: 156.823 | M137: 1 | N137: 146.0622 | O137: 0.04576 | P137: 133.491 | Q137: 137.4965576 | R137: 141.554 | S137: 146.062 | T137: 150.57 | U137: 154.6278424 | V137: 158.633 | W137: =VLOOKUP(Perzentile!B137,Berechnungen!$E$2:$F$40,2,FALSE) ->  | X137: =IF('Entrée des données_Eingabemaske'!$N$12="männlich / masculin",((W137/D137)^C137-1)/C137/E137,((W137/N137)^M137-1)/M137/O137) -> 
A138: 11.25 | B138: 135 | C138: 1 | D138: 144.5276 | E138: 0.04719 | F138: 131.7 | G138: 135.7870884 | H138: 139.927 | I138: 144.528 | J138: 149.128 | K138: 153.2681116 | L138: 157.355 | M138: 1 | N138: 146.5951 | O138: 0.04571 | P138: 133.992 | Q138: 138.0075998 | R138: 142.075 | S138: 146.595 | T138: 151.115 | U138: 155.1826002 | V138: 159.198 | W138: =VLOOKUP(Perzentile!B138,Berechnungen!$E$2:$F$40,2,FALSE) ->  | X138: =IF('Entrée des données_Eingabemaske'!$N$12="männlich / masculin",((W138/D138)^C138-1)/C138/E138,((W138/N138)^M138-1)/M138/O138) -> 
A139: 11.33333333 | B139: 136 | C139: 1 | D139: 145.0093 | E139: 0.04723 | F139: 132.128 | G139: 136.2322234 | H139: 140.39 | I139: 145.009 | J139: 149.629 | K139: 153.7863766 | L139: 157.89 | M139: 1 | N139: 147.1262 | O139: 0.04567 | P139: 134.489 | Q139: 138.5151301 | R139: 142.594 | S139: 147.126 | T139: 151.658 | U139: 155.7372699 | V139: 159.764 | W139: =VLOOKUP(Perzentile!B139,Berechnungen!$E$2:$F$40,2,FALSE) ->  | X139: =IF('Entrée des données_Eingabemaske'!$N$12="männlich / masculin",((W139/D139)^C139-1)/C139/E139,((W139/N139)^M139-1)/M139/O139) -> 
A140: 11.41666667 | B140: 137 | C140: 1 | D140: 145.4964 | E140: 0.04728 | F140: 132.558 | G140: 136.6805173 | H140: 140.857 | I140: 145.496 | J140: 150.136 | K140: 154.3122827 | L140: 158.435 | M140: 1 | N140: 147.6548 | O140: 0.04562 | P140: 134.986 | Q140: 139.0222533 | R140: 143.111 | S140: 147.655 | T140: 152.198 | U140: 156.2873467 | V140: 160.324 | W140: =VLOOKUP(Perzentile!B140,Berechnungen!$E$2:$F$40,2,FALSE) ->  | X140: =IF('Entrée des données_Eingabemaske'!$N$12="männlich / masculin",((W140/D140)^C140-1)/C140/E140,((W140/N140)^M140-1)/M140/O140) -> 
A141: 11.5 | B141: 138 | C141: 1 | D141: 145.9891 | E141: 0.04732 | F141: 132.996 | G141: 137.1358801 | H141: 141.33 | I141: 145.989 | J141: 150.649 | K141: 154.8423199 | L141: 158.982 | M141: 1 | N141: 148.1804 | O141: 0.04557 | P141: 135.48 | Q141: 139.5266195 | R141: 143.626 | S141: 148.18 | T141: 152.735 | U141: 156.8341805 | V141: 160.881 | W141: =VLOOKUP(Perzentile!B141,Berechnungen!$E$2:$F$40,2,FALSE) ->  | X141: =IF('Entrée des données_Eingabemaske'!$N$12="männlich / masculin",((W141/D141)^C141-1)/C141/E141,((W141/N141)^M141-1)/M141/O141) -> 
A142: 11.58333333 | B142: 139 | C142: 1 | D142: 146.4878 | E142: 0.04736 | F142: 133.439 | G142: 137.5968281 | H142: 141.808 | I142: 146.488 | J142: 151.167 | K142: 155.3787719 | L142: 159.536 | M142: 1 | N142: 148.7023 | O142: 0.04552 | P142: 135.971 | Q142: 140.0275688 | R142: 144.137 | S142: 148.702 | T142: 153.268 | U142: 157.3770312 | V142: 161.433 | W142: =VLOOKUP(Perzentile!B142,Berechnungen!$E$2:$F$40,2,FALSE) ->  | X142: =IF('Entrée des données_Eingabemaske'!$N$12="männlich / masculin",((W142/D142)^C142-1)/C142/E142,((W142/N142)^M142-1)/M142/O142) ->  | Y142: =_xlfn.NORM.S.DIST(X142,TRUE) -> 
A143: 11.66666667 | B143: 140 | C143: 1 | D143: 146.9927 | E143: 0.0474 | F143: 133.888 | G143: 138.0635484 | H143: 142.293 | I143: 146.993 | J143: 151.692 | K143: 155.9218516 | L143: 160.097 | M143: 1 | N143: 149.2197 | O143: 0.04546 | P143: 136.461 | Q143: 140.5262596 | R143: 144.644 | S143: 149.22 | T143: 153.795 | U143: 157.9131404 | V143: 161.978 | W143: =VLOOKUP(Perzentile!B143,Berechnungen!$E$2:$F$40,2,FALSE) ->  | X143: =IF('Entrée des données_Eingabemaske'!$N$12="männlich / masculin",((W143/D143)^C143-1)/C143/E143,((W143/N143)^M143-1)/M143/O143) -> 
A144: 11.75 | B144: 141 | C144: 1 | D144: 147.5041 | E144: 0.04744 | F144: 134.343 | G144: 138.5363218 | H144: 142.784 | I144: 147.504 | J144: 152.224 | K144: 156.4718782 | L144: 160.665 | M144: 1 | N144: 149.7322 | O144: 0.04541 | P144: 136.944 | Q144: 141.0184962 | R144: 145.146 | S144: 149.732 | T144: 154.318 | U144: 158.4459038 | V144: 162.52 | W144: =VLOOKUP(Perzentile!B144,Berechnungen!$E$2:$F$40,2,FALSE) ->  | X144: =IF('Entrée des données_Eingabemaske'!$N$12="männlich / masculin",((W144/D144)^C144-1)/C144/E144,((W144/N144)^M144-1)/M144/O144) -> 
A145: 11.83333333 | B145: 142 | C145: 1 | D145: 148.0224 | E145: 0.04747 | F145: 134.807 | G145: 139.0174199 | H145: 143.283 | I145: 148.022 | J145: 152.762 | K145: 157.0273801 | L145: 161.238 | M145: 1 | N145: 150.239 | O145: 0.04535 | P145: 137.425 | Q145: 141.5073552 | R145: 145.643 | S145: 150.239 | T145: 154.835 | U145: 158.9706448 | V145: 163.053 | W145: =VLOOKUP(Perzentile!B145,Berechnungen!$E$2:$F$40,2,FALSE) ->  | X145: =IF('Entrée des données_Eingabemaske'!$N$12="männlich / masculin",((W145/D145)^C145-1)/C145/E145,((W145/N145)^M145-1)/M145/O145) -> 
A146: 11.91666667 | B146: 143 | C146: 1 | D146: 148.5478 | E146: 0.0475 | F146: 135.277 | G146: 139.5051459 | H146: 143.789 | I146: 148.548 | J146: 153.307 | K146: 157.5904541 | L146: 161.819 | M146: 1 | N146: 150.7394 | O146: 0.04529 | P146: 137.899 | Q146: 141.9902636 | R146: 146.135 | S146: 150.739 | T146: 155.344 | U146: 159.4885364 | V146: 163.58 | W146: =VLOOKUP(Perzentile!B146,Berechnungen!$E$2:$F$40,2,FALSE) ->  | X146: =IF('Entrée des données_Eingabemaske'!$N$12="männlich / masculin",((W146/D146)^C146-1)/C146/E146,((W146/N146)^M146-1)/M146/O146) -> 
A147: 12 | B147: 144 | C147: 1 | D147: 149.0807 | E147: 0.04753 | F147: 135.754 | G147: 139.9998746 | H147: 144.301 | I147: 149.081 | J147: 153.86 | K147: 158.1615254 | L147: 162.408 | M147: 1 | N147: 151.2327 | O147: 0.04523 | P147: 138.368 | Q147: 142.4665605 | R147: 146.619 | S147: 151.233 | T147: 155.846 | U147: 159.9988395 | V147: 164.098 | W147: =VLOOKUP(Perzentile!B147,Berechnungen!$E$2:$F$40,2,FALSE) ->  | X147: =IF('Entrée des données_Eingabemaske'!$N$12="männlich / masculin",((W147/D147)^C147-1)/C147/E147,((W147/N147)^M147-1)/M147/O147) -> 
A148: 12.08333333 | B148: 145 | C148: 1 | D148: 149.6212 | E148: 0.04755 | F148: 136.24 | G148: 140.5036167 | H148: 144.823 | I148: 149.621 | J148: 154.42 | K148: 158.7387833 | L148: 163.002 | M148: 1 | N148: 151.7182 | O148: 0.04516 | P148: 138.832 | Q148: 142.9375291 | R148: 147.097 | S148: 151.718 | T148: 156.34 | U148: 160.4988709 | V148: 164.605 | W148: =VLOOKUP(Perzentile!B148,Berechnungen!$E$2:$F$40,2,FALSE) ->  | X148: =IF('Entrée des données_Eingabemaske'!$N$12="männlich / masculin",((W148/D148)^C148-1)/C148/E148,((W148/N148)^M148-1)/M148/O148) -> 
A149: 12.16666667 | B149: 146 | C149: 1 | D149: 150.1694 | E149: 0.04758 | F149: 136.731 | G149: 141.0126371 | H149: 145.35 | I149: 150.169 | J149: 154.989 | K149: 159.3261629 | L149: 163.608 | M149: 1 | N149: 152.1951 | O149: 0.0451 | P149: 139.285 | Q149: 143.3985313 | R149: 147.565 | S149: 152.195 | T149: 156.825 | U149: 160.9916687 | V149: 165.105 | W149: =VLOOKUP(Perzentile!B149,Berechnungen!$E$2:$F$40,2,FALSE) ->  | X149: =IF('Entrée des données_Eingabemaske'!$N$12="männlich / masculin",((W149/D149)^C149-1)/C149/E149,((W149/N149)^M149-1)/M149/O149) -> 
A150: 12.25 | B150: 147 | C150: 1 | D150: 150.7256 | E150: 0.04759 | F150: 137.235 | G150: 141.5329905 | H150: 145.887 | I150: 150.726 | J150: 155.564 | K150: 159.9182095 | L150: 164.217 | M150: 1 | N150: 152.6628 | O150: 0.04503 | P150: 139.733 | Q150: 143.8528944 | R150: 148.026 | S150: 152.663 | T150: 157.3 | U150: 161.4727056 | V150: 165.592 | W150: =VLOOKUP(Perzentile!B150,Berechnungen!$E$2:$F$40,2,FALSE) ->  | X150: =IF('Entrée des données_Eingabemaske'!$N$12="männlich / masculin",((W150/D150)^C150-1)/C150/E150,((W150/N150)^M150-1)/M150/O150) -> 
A151: 12.33333333 | B151: 148 | C151: 1 | D151: 151.2899 | E151: 0.04761 | F151: 137.743 | G151: 142.0589967 | H151: 146.432 | I151: 151.29 | J151: 156.148 | K151: 160.5208033 | L151: 164.837 | M151: 1 | N151: 153.1206 | O151: 0.04497 | P151: 140.17 | Q151: 144.2960494 | R151: 148.476 | S151: 153.121 | T151: 157.765 | U151: 161.9451506 | V151: 166.071 | W151: =VLOOKUP(Perzentile!B151,Berechnungen!$E$2:$F$40,2,FALSE) ->  | X151: =IF('Entrée des données_Eingabemaske'!$N$12="männlich / masculin",((W151/D151)^C151-1)/C151/E151,((W151/N151)^M151-1)/M151/O151) -> 
A152: 12.41666667 | B152: 149 | C152: 1 | D152: 151.8623 | E152: 0.04762 | F152: 138.261 | G152: 142.5945257 | H152: 146.985 | I152: 151.862 | J152: 156.74 | K152: 161.1300743 | L152: 165.464 | M152: 1 | N152: 153.5678 | O152: 0.0449 | P152: 140.599 | Q152: 144.7312531 | R152: 148.917 | S152: 153.568 | T152: 158.219 | U152: 162.4043469 | V152: 166.536 | W152: =VLOOKUP(Perzentile!B152,Berechnungen!$E$2:$F$40,2,FALSE) ->  | X152: =IF('Entrée des données_Eingabemaske'!$N$12="männlich / masculin",((W152/D152)^C152-1)/C152/E152,((W152/N152)^M152-1)/M152/O152) -> 
A153: 12.5 | B153: 150 | C153: 1 | D153: 152.4425 | E153: 0.04763 | F153: 138.786 | G153: 143.1373639 | H153: 147.545 | I153: 152.442 | J153: 157.34 | K153: 161.7476361 | L153: 166.099 | M153: 1 | N153: 154.0041 | O153: 0.04483 | P153: 141.019 | Q153: 145.1562631 | R153: 149.347 | S153: 154.004 | T153: 158.661 | U153: 162.8519369 | V153: 166.989 | W153: =VLOOKUP(Perzentile!B153,Berechnungen!$E$2:$F$40,2,FALSE) ->  | X153: =IF('Entrée des données_Eingabemaske'!$N$12="männlich / masculin",((W153/D153)^C153-1)/C153/E153,((W153/N153)^M153-1)/M153/O153) -> 
A154: 12.58333333 | B154: 151 | C154: 1 | D154: 153.0298 | E154: 0.04763 | F154: 139.321 | G154: 143.6888149 | H154: 148.114 | I154: 153.03 | J154: 157.946 | K154: 162.3707851 | L154: 166.739 | M154: 1 | N154: 154.429 | O154: 0.04476 | P154: 141.428 | Q154: 145.5706054 | R154: 149.767 | S154: 154.429 | T154: 159.091 | U154: 163.2873946 | V154: 167.43 | W154: =VLOOKUP(Perzentile!B154,Berechnungen!$E$2:$F$40,2,FALSE) ->  | X154: =IF('Entrée des données_Eingabemaske'!$N$12="männlich / masculin",((W154/D154)^C154-1)/C154/E154,((W154/N154)^M154-1)/M154/O154) -> 
A155: 12.66666667 | B155: 152 | C155: 1 | D155: 153.6234 | E155: 0.04764 | F155: 139.859 | G155: 144.2442126 | H155: 148.687 | I155: 153.623 | J155: 158.56 | K155: 163.0025874 | L155: 167.388 | M155: 1 | N155: 154.8423 | O155: 0.04468 | P155: 141.83 | Q155: 145.9760726 | R155: 150.176 | S155: 154.842 | T155: 159.509 | U155: 163.7085274 | V155: 167.854 | W155: =VLOOKUP(Perzentile!B155,Berechnungen!$E$2:$F$40,2,FALSE) ->  | X155: =IF('Entrée des données_Eingabemaske'!$N$12="männlich / masculin",((W155/D155)^C155-1)/C155/E155,((W155/N155)^M155-1)/M155/O155) -> 
A156: 12.75 | B156: 153 | C156: 1 | D156: 154.2223 | E156: 0.04763 | F156: 140.407 | G156: 144.8085244 | H156: 149.268 | I156: 154.222 | J156: 159.177 | K156: 163.6360756 | L156: 168.038 | M156: 1 | N156: 155.2437 | O156: 0.04461 | P156: 142.218 | Q156: 146.3684153 | R156: 150.573 | S156: 155.244 | T156: 159.915 | U156: 164.1189847 | V156: 168.269 | W156: =VLOOKUP(Perzentile!B156,Berechnungen!$E$2:$F$40,2,FALSE) ->  | X156: =IF('Entrée des données_Eingabemaske'!$N$12="männlich / masculin",((W156/D156)^C156-1)/C156/E156,((W156/N156)^M156-1)/M156/O156) -> 
A157: 12.83333333 | B157: 154 | C157: 1 | D157: 154.8258 | E157: 0.04763 | F157: 140.956 | G157: 145.3751866 | H157: 149.852 | I157: 154.826 | J157: 159.8 | K157: 164.2764134 | L157: 168.695 | M157: 1 | N157: 155.633 | O157: 0.04454 | P157: 142.596 | Q157: 146.7494206 | R157: 150.958 | S157: 155.633 | T157: 160.308 | U157: 164.5165794 | V157: 168.67 | W157: =VLOOKUP(Perzentile!B157,Berechnungen!$E$2:$F$40,2,FALSE) ->  | X157: =IF('Entrée des données_Eingabemaske'!$N$12="männlich / masculin",((W157/D157)^C157-1)/C157/E157,((W157/N157)^M157-1)/M157/O157) -> 
A158: 12.91666667 | B158: 155 | C158: 1 | D158: 155.4329 | E158: 0.04762 | F158: 141.512 | G158: 145.9472209 | H158: 150.441 | I158: 155.433 | J158: 160.425 | K158: 164.9185791 | L158: 169.354 | M158: 1 | N158: 156.0101 | O158: 0.04446 | P158: 142.965 | Q158: 147.1209904 | R158: 151.332 | S158: 156.01 | T158: 160.689 | U158: 164.8992096 | V158: 169.056 | W158: =VLOOKUP(Perzentile!B158,Berechnungen!$E$2:$F$40,2,FALSE) ->  | X158: =IF('Entrée des données_Eingabemaske'!$N$12="männlich / masculin",((W158/D158)^C158-1)/C158/E158,((W158/N158)^M158-1)/M158/O158) -> 
A159: 13 | B159: 156 | C159: 1 | D159: 156.0426 | E159: 0.0476 | F159: 142.073 | G159: 146.523712 | H159: 151.033 | I159: 156.043 | J159: 161.052 | K159: 165.561488 | L159: 170.012 | M159: 1 | N159: 156.3748 | O159: 0.04439 | P159: 143.319 | Q159: 147.4789388 | R159: 151.693 | S159: 156.375 | T159: 161.057 | U159: 165.2706612 | V159: 169.43 | W159: =VLOOKUP(Perzentile!B159,Berechnungen!$E$2:$F$40,2,FALSE) ->  | X159: =IF('Entrée des données_Eingabemaske'!$N$12="männlich / masculin",((W159/D159)^C159-1)/C159/E159,((W159/N159)^M159-1)/M159/O159) -> 
A160: 13.08333333 | B160: 157 | C160: 1 | D160: 156.6539 | E160: 0.04758 | F160: 142.635 | G160: 147.1017368 | H160: 151.627 | I160: 156.654 | J160: 161.681 | K160: 166.2060632 | L160: 170.673 | M160: 1 | N160: 156.7269 | O160: 0.04431 | P160: 143.666 | Q160: 147.8270768 | R160: 152.043 | S160: 156.727 | T160: 161.411 | U160: 165.6267232 | V160: 169.788 | W160: =VLOOKUP(Perzentile!B160,Berechnungen!$E$2:$F$40,2,FALSE) ->  | X160: =IF('Entrée des données_Eingabemaske'!$N$12="männlich / masculin",((W160/D160)^C160-1)/C160/E160,((W160/N160)^M160-1)/M160/O160) -> 
A161: 13.16666667 | B161: 158 | C161: 1 | D161: 157.266 | E161: 0.04756 | F161: 143.198 | G161: 147.6805441 | H161: 152.221 | I161: 157.266 | J161: 162.311 | K161: 166.8514559 | L161: 171.334 | M161: 1 | N161: 157.0666 | O161: 0.04423 | P161: 144.001 | Q161: 148.1635899 | R161: 152.381 | S161: 157.067 | T161: 161.752 | U161: 165.9696101 | V161: 170.133 | W161: =VLOOKUP(Perzentile!B161,Berechnungen!$E$2:$F$40,2,FALSE) ->  | X161: =IF('Entrée des données_Eingabemaske'!$N$12="männlich / masculin",((W161/D161)^C161-1)/C161/E161,((W161/N161)^M161-1)/M161/O161) -> 
A162: 13.25 | B162: 159 | C162: 1 | D162: 157.8775 | E162: 0.04754 | F162: 143.761 | G162: 148.2588194 | H162: 152.815 | I162: 157.878 | J162: 162.94 | K162: 167.4961806 | L162: 171.994 | M162: 1 | N162: 157.3936 | O162: 0.04415 | P162: 144.324 | Q162: 148.4881912 | R162: 152.707 | S162: 157.394 | T162: 162.081 | U162: 166.2990088 | V162: 170.463 | W162: =VLOOKUP(Perzentile!B162,Berechnungen!$E$2:$F$40,2,FALSE) ->  | X162: =IF('Entrée des données_Eingabemaske'!$N$12="männlich / masculin",((W162/D162)^C162-1)/C162/E162,((W162/N162)^M162-1)/M162/O162) -> 
A163: 13.33333333 | B163: 160 | C163: 1 | D163: 158.4871 | E163: 0.04751 | F163: 144.325 | G163: 148.8373728 | H163: 153.408 | I163: 158.487 | J163: 163.566 | K163: 168.1368272 | L163: 172.649 | M163: 1 | N163: 157.7082 | O163: 0.04408 | P163: 144.633 | Q163: 148.7991387 | R163: 153.019 | S163: 157.708 | T163: 162.397 | U163: 166.6172613 | V163: 170.783 | W163: =VLOOKUP(Perzentile!B163,Berechnungen!$E$2:$F$40,2,FALSE) ->  | X163: =IF('Entrée des données_Eingabemaske'!$N$12="männlich / masculin",((W163/D163)^C163-1)/C163/E163,((W163/N163)^M163-1)/M163/O163) -> 
A164: 13.41666667 | B164: 161 | C164: 1 | D164: 159.0937 | E164: 0.04747 | F164: 144.89 | G164: 149.4151945 | H164: 154 | I164: 159.094 | J164: 164.188 | K164: 168.7722055 | L164: 173.298 | M164: 1 | N164: 158.0102 | O164: 0.044 | P164: 144.934 | Q164: 149.1002784 | R164: 153.321 | S164: 158.01 | T164: 162.7 | U164: 166.9201216 | V164: 171.086 | W164: =VLOOKUP(Perzentile!B164,Berechnungen!$E$2:$F$40,2,FALSE) ->  | X164: =IF('Entrée des données_Eingabemaske'!$N$12="männlich / masculin",((W164/D164)^C164-1)/C164/E164,((W164/N164)^M164-1)/M164/O164) -> 
A165: 13.5 | B165: 162 | C165: 1 | D165: 159.6962 | E165: 0.04744 | F165: 145.447 | G165: 149.9871811 | H165: 154.586 | I165: 159.696 | J165: 164.806 | K165: 169.4052189 | L165: 173.945 | M165: 1 | N165: 158.2997 | O165: 0.04392 | P165: 145.223 | Q165: 149.3896835 | R165: 153.61 | S165: 158.3 | T165: 162.989 | U165: 167.2097165 | V165: 171.376 | W165: =VLOOKUP(Perzentile!B165,Berechnungen!$E$2:$F$40,2,FALSE) ->  | X165: =IF('Entrée des données_Eingabemaske'!$N$12="männlich / masculin",((W165/D165)^C165-1)/C165/E165,((W165/N165)^M165-1)/M165/O165) -> 
A166: 13.58333333 | B166: 163 | C166: 1 | D166: 160.2939 | E166: 0.0474 | F166: 146.004 | G166: 150.5567598 | H166: 155.169 | I166: 160.294 | J166: 165.419 | K166: 170.0310402 | L166: 174.584 | M166: 1 | N166: 158.5771 | O166: 0.04384 | P166: 145.502 | Q166: 149.6677278 | R166: 153.888 | S166: 158.577 | T166: 163.266 | U166: 167.4864722 | V166: 171.652 | W166: =VLOOKUP(Perzentile!B166,Berechnungen!$E$2:$F$40,2,FALSE) ->  | X166: =IF('Entrée des données_Eingabemaske'!$N$12="männlich / masculin",((W166/D166)^C166-1)/C166/E166,((W166/N166)^M166-1)/M166/O166) -> 
A167: 13.66666667 | B167: 164 | C167: 1 | D167: 160.8861 | E167: 0.04735 | F167: 146.558 | G167: 151.1232955 | H167: 155.748 | I167: 160.886 | J167: 166.024 | K167: 170.6489045 | L167: 175.214 | M167: 1 | N167: 158.8425 | O167: 0.04376 | P167: 145.769 | Q167: 149.934502 | R167: 154.154 | S167: 158.842 | T167: 163.531 | U167: 167.750498 | V167: 171.916 | W167: =VLOOKUP(Perzentile!B167,Berechnungen!$E$2:$F$40,2,FALSE) ->  | X167: =IF('Entrée des données_Eingabemaske'!$N$12="männlich / masculin",((W167/D167)^C167-1)/C167/E167,((W167/N167)^M167-1)/M167/O167) -> 
A168: 13.75 | B168: 165 | C168: 1 | D168: 161.472 | E168: 0.0473 | F168: 147.107 | G168: 151.683989 | H168: 156.32 | I168: 161.472 | J168: 166.624 | K168: 171.260011 | L168: 175.837 | M168: 1 | N168: 159.0961 | O168: 0.04369 | P168: 146.023 | Q168: 150.1881522 | R168: 154.408 | S168: 159.096 | T168: 163.784 | U168: 168.0040478 | V168: 172.169 | W168: =VLOOKUP(Perzentile!B168,Berechnungen!$E$2:$F$40,2,FALSE) ->  | X168: =IF('Entrée des données_Eingabemaske'!$N$12="männlich / masculin",((W168/D168)^C168-1)/C168/E168,((W168/N168)^M168-1)/M168/O168) -> 
A169: 13.83333333 | B169: 166 | C169: 1 | D169: 162.0505 | E169: 0.04725 | F169: 147.649 | G169: 152.2378056 | H169: 156.886 | I169: 162.05 | J169: 167.215 | K169: 171.8631944 | L169: 176.452 | M169: 1 | N169: 159.3382 | O169: 0.04361 | P169: 146.269 | Q169: 150.4330328 | R169: 154.651 | S169: 159.338 | T169: 164.025 | U169: 168.2433672 | V169: 172.407 | W169: =VLOOKUP(Perzentile!B169,Berechnungen!$E$2:$F$40,2,FALSE) ->  | X169: =IF('Entrée des données_Eingabemaske'!$N$12="männlich / masculin",((W169/D169)^C169-1)/C169/E169,((W169/N169)^M169-1)/M169/O169) -> 
A170: 13.91666667 | B170: 167 | C170: 1 | D170: 162.6207 | E170: 0.0472 | F170: 148.184 | G170: 152.7838984 | H170: 157.444 | I170: 162.621 | J170: 167.798 | K170: 172.4575016 | L170: 177.057 | M170: 1 | N170: 159.5691 | O170: 0.04353 | P170: 146.505 | Q170: 150.6673878 | R170: 154.884 | S170: 159.569 | T170: 164.254 | U170: 168.4708122 | V170: 172.633 | W170: =VLOOKUP(Perzentile!B170,Berechnungen!$E$2:$F$40,2,FALSE) ->  | X170: =IF('Entrée des données_Eingabemaske'!$N$12="männlich / masculin",((W170/D170)^C170-1)/C170/E170,((W170/N170)^M170-1)/M170/O170) -> 
A171: 14 | B171: 168 | C171: 1 | D171: 163.1816 | E171: 0.04714 | F171: 148.714 | G171: 153.3234176 | H171: 157.993 | I171: 163.182 | J171: 168.37 | K171: 173.0397824 | L171: 177.649 | M171: 1 | N171: 159.789 | O171: 0.04345 | P171: 146.731 | Q171: 150.8914027 | R171: 155.106 | S171: 159.789 | T171: 164.472 | U171: 168.6865973 | V171: 172.847 | W171: =VLOOKUP(Perzentile!B171,Berechnungen!$E$2:$F$40,2,FALSE) ->  | X171: =IF('Entrée des données_Eingabemaske'!$N$12="männlich / masculin",((W171/D171)^C171-1)/C171/E171,((W171/N171)^M171-1)/M171/O171) -> 
A172: 14.08333333 | B172: 169 | C172: 1 | D172: 163.7321 | E172: 0.04707 | F172: 149.237 | G172: 153.8553488 | H172: 158.534 | I172: 163.732 | J172: 168.93 | K172: 173.6088512 | L172: 178.227 | M172: 1 | N172: 159.9983 | O172: 0.04337 | P172: 146.947 | Q172: 151.1054519 | R172: 155.318 | S172: 159.998 | T172: 164.679 | U172: 168.8911481 | V172: 173.049 | W172: =VLOOKUP(Perzentile!B172,Berechnungen!$E$2:$F$40,2,FALSE) ->  | X172: =IF('Entrée des données_Eingabemaske'!$N$12="männlich / masculin",((W172/D172)^C172-1)/C172/E172,((W172/N172)^M172-1)/M172/O172) -> 
A173: 14.16666667 | B173: 170 | C173: 1 | D173: 164.2717 | E173: 0.04701 | F173: 149.747 | G173: 154.37503 | H173: 159.063 | I173: 164.272 | J173: 169.48 | K173: 174.16837 | L173: 178.796 | M173: 1 | N173: 160.1971 | O173: 0.0433 | P173: 147.151 | Q173: 151.3075734 | R173: 155.518 | S173: 160.197 | T173: 164.876 | U173: 169.0866266 | V173: 173.243 | W173: =VLOOKUP(Perzentile!B173,Berechnungen!$E$2:$F$40,2,FALSE) ->  | X173: =IF('Entrée des données_Eingabemaske'!$N$12="männlich / masculin",((W173/D173)^C173-1)/C173/E173,((W173/N173)^M173-1)/M173/O173) -> 
A174: 14.25 | B174: 171 | C174: 1 | D174: 164.7994 | E174: 0.04694 | F174: 150.25 | G174: 154.8857223 | H174: 159.582 | I174: 164.799 | J174: 170.017 | K174: 174.7130777 | L174: 179.349 | M174: 1 | N174: 160.3857 | O174: 0.04322 | P174: 147.348 | Q174: 151.5021512 | R174: 155.71 | S174: 160.386 | T174: 165.061 | U174: 169.2692488 | V174: 173.423 | W174: =VLOOKUP(Perzentile!B174,Berechnungen!$E$2:$F$40,2,FALSE) ->  | X174: =IF('Entrée des données_Eingabemaske'!$N$12="männlich / masculin",((W174/D174)^C174-1)/C174/E174,((W174/N174)^M174-1)/M174/O174) -> 
A175: 14.33333333 | B175: 172 | C175: 1 | D175: 165.3145 | E175: 0.04687 | F175: 150.742 | G175: 155.384666 | H175: 160.088 | I175: 165.314 | J175: 170.541 | K175: 175.244334 | L175: 179.887 | M175: 1 | N175: 160.5643 | O175: 0.04314 | P175: 147.537 | Q175: 151.6873205 | R175: 155.892 | S175: 160.564 | T175: 165.236 | U175: 169.4412795 | V175: 173.592 | W175: =VLOOKUP(Perzentile!B175,Berechnungen!$E$2:$F$40,2,FALSE) ->  | X175: =IF('Entrée des données_Eingabemaske'!$N$12="männlich / masculin",((W175/D175)^C175-1)/C175/E175,((W175/N175)^M175-1)/M175/O175) -> 
A176: 14.41666667 | B176: 173 | C176: 1 | D176: 165.8165 | E176: 0.04679 | F176: 151.224 | G176: 155.8735129 | H176: 160.583 | I176: 165.816 | J176: 171.05 | K176: 175.7594871 | L176: 180.409 | M176: 1 | N176: 160.7332 | O176: 0.04307 | P176: 147.713 | Q176: 151.8613018 | R176: 156.064 | S176: 160.733 | T176: 165.403 | U176: 169.6050982 | V176: 173.754 | W176: =VLOOKUP(Perzentile!B176,Berechnungen!$E$2:$F$40,2,FALSE) ->  | X176: =IF('Entrée des données_Eingabemaske'!$N$12="männlich / masculin",((W176/D176)^C176-1)/C176/E176,((W176/N176)^M176-1)/M176/O176) -> 
A177: 14.5 | B177: 174 | C177: 1 | D177: 166.305 | E177: 0.04671 | F177: 151.695 | G177: 156.3497709 | H177: 161.065 | I177: 166.305 | J177: 171.545 | K177: 176.2602291 | L177: 180.915 | M177: 1 | N177: 160.8927 | O177: 0.04299 | P177: 147.884 | Q177: 152.0284934 | R177: 156.227 | S177: 160.893 | T177: 165.558 | U177: 169.7569066 | V177: 173.902 | W177: =VLOOKUP(Perzentile!B177,Berechnungen!$E$2:$F$40,2,FALSE) ->  | X177: =IF('Entrée des données_Eingabemaske'!$N$12="männlich / masculin",((W177/D177)^C177-1)/C177/E177,((W177/N177)^M177-1)/M177/O177) -> 
A178: 14.58333333 | B178: 175 | C178: 1 | D178: 166.7799 | E178: 0.04663 | F178: 152.153 | G178: 156.8133417 | H178: 161.534 | I178: 166.78 | J178: 172.025 | K178: 176.7464583 | L178: 181.407 | M178: 1 | N178: 161.043 | O178: 0.04292 | P178: 148.043 | Q178: 152.1849597 | R178: 156.381 | S178: 161.043 | T178: 165.705 | U178: 169.9010403 | V178: 174.043 | W178: =VLOOKUP(Perzentile!B178,Berechnungen!$E$2:$F$40,2,FALSE) ->  | X178: =IF('Entrée des données_Eingabemaske'!$N$12="männlich / masculin",((W178/D178)^C178-1)/C178/E178,((W178/N178)^M178-1)/M178/O178) -> 
A179: 14.66666667 | B179: 176 | C179: 1 | D179: 167.2415 | E179: 0.04655 | F179: 152.599 | G179: 157.2645034 | H179: 161.991 | I179: 167.242 | J179: 172.492 | K179: 177.2184966 | L179: 181.884 | M179: 1 | N179: 161.1845 | O179: 0.04284 | P179: 148.197 | Q179: 152.3352019 | R179: 156.527 | S179: 161.184 | T179: 165.842 | U179: 170.0337981 | V179: 174.172 | W179: =VLOOKUP(Perzentile!B179,Berechnungen!$E$2:$F$40,2,FALSE) ->  | X179: =IF('Entrée des données_Eingabemaske'!$N$12="männlich / masculin",((W179/D179)^C179-1)/C179/E179,((W179/N179)^M179-1)/M179/O179) -> 
A180: 14.75 | B180: 177 | C180: 1 | D180: 167.6899 | E180: 0.04646 | F180: 153.037 | G180: 157.7054948 | H180: 162.435 | I180: 167.69 | J180: 172.945 | K180: 177.6743052 | L180: 182.343 | M180: 1 | N180: 161.3176 | O180: 0.04277 | P180: 148.341 | Q180: 152.4754661 | R180: 156.664 | S180: 161.318 | T180: 165.971 | U180: 170.1597339 | V180: 174.294 | W180: =VLOOKUP(Perzentile!B180,Berechnungen!$E$2:$F$40,2,FALSE) ->  | X180: =IF('Entrée des données_Eingabemaske'!$N$12="männlich / masculin",((W180/D180)^C180-1)/C180/E180,((W180/N180)^M180-1)/M180/O180) -> 
A181: 14.83333333 | B181: 178 | C181: 1 | D181: 168.1255 | E181: 0.04637 | F181: 153.463 | G181: 158.1345504 | H181: 162.867 | I181: 168.126 | J181: 173.384 | K181: 178.1164496 | L181: 182.788 | M181: 1 | N181: 161.4425 | O181: 0.0427 | P181: 148.477 | Q181: 152.6080029 | R181: 156.793 | S181: 161.442 | T181: 166.092 | U181: 170.2769971 | V181: 174.408 | W181: =VLOOKUP(Perzentile!B181,Berechnungen!$E$2:$F$40,2,FALSE) ->  | X181: =IF('Entrée des données_Eingabemaske'!$N$12="männlich / masculin",((W181/D181)^C181-1)/C181/E181,((W181/N181)^M181-1)/M181/O181) -> 
A182: 14.91666667 | B182: 179 | C182: 1 | D182: 168.5482 | E182: 0.04628 | F182: 153.877 | G182: 158.5515715 | H182: 163.287 | I182: 168.548 | J182: 173.809 | K182: 178.5448285 | L182: 183.219 | M182: 1 | N182: 161.5596 | O182: 0.04263 | P182: 148.606 | Q182: 152.7331882 | R182: 156.914 | S182: 161.56 | T182: 166.205 | U182: 170.3860118 | V182: 174.513 | W182: =VLOOKUP(Perzentile!B182,Berechnungen!$E$2:$F$40,2,FALSE) ->  | X182: =IF('Entrée des données_Eingabemaske'!$N$12="männlich / masculin",((W182/D182)^C182-1)/C182/E182,((W182/N182)^M182-1)/M182/O182) -> 
A183: 15 | B183: 180 | C183: 1 | D183: 168.958 | E183: 0.04619 | F183: 154.28 | G183: 158.9565537 | H183: 163.694 | I183: 168.958 | J183: 174.222 | K183: 178.9594463 | L183: 183.636 | M183: 1 | N183: 161.6692 | O183: 0.04255 | P183: 148.731 | Q183: 152.8533754 | R183: 157.029 | S183: 161.669 | T183: 166.309 | U183: 170.4850246 | V183: 174.607 | W183: =VLOOKUP(Perzentile!B183,Berechnungen!$E$2:$F$40,2,FALSE) ->  | X183: =IF('Entrée des données_Eingabemaske'!$N$12="männlich / masculin",((W183/D183)^C183-1)/C183/E183,((W183/N183)^M183-1)/M183/O183) -> 
A184: 15.08333333 | B184: 181 | C184: 1 | D184: 169.3549 | E184: 0.04609 | F184: 154.674 | G184: 159.351663 | H184: 164.09 | I184: 169.355 | J184: 174.62 | K184: 179.358137 | L184: 184.036 | M184: 1 | N184: 161.7717 | O184: 0.04248 | P184: 148.847 | Q184: 152.9647984 | R184: 157.137 | S184: 161.772 | T184: 166.407 | U184: 170.5786016 | V184: 174.697 | W184: =VLOOKUP(Perzentile!B184,Berechnungen!$E$2:$F$40,2,FALSE) ->  | X184: =IF('Entrée des données_Eingabemaske'!$N$12="männlich / masculin",((W184/D184)^C184-1)/C184/E184,((W184/N184)^M184-1)/M184/O184) -> 
A185: 15.16666667 | B185: 182 | C185: 1 | D185: 169.7389 | E185: 0.04599 | F185: 155.057 | G185: 159.7347343 | H185: 164.474 | I185: 169.739 | J185: 175.004 | K185: 179.7430657 | L185: 184.421 | M185: 1 | N185: 161.8673 | O185: 0.04241 | P185: 148.956 | Q185: 153.0697148 | R185: 157.237 | S185: 161.867 | T185: 166.498 | U185: 170.6648852 | V185: 174.779 | W185: =VLOOKUP(Perzentile!B185,Berechnungen!$E$2:$F$40,2,FALSE) ->  | X185: =IF('Entrée des données_Eingabemaske'!$N$12="männlich / masculin",((W185/D185)^C185-1)/C185/E185,((W185/N185)^M185-1)/M185/O185) -> 
A186: 15.25 | B186: 183 | C186: 1 | D186: 170.1099 | E186: 0.04589 | F186: 155.428 | G186: 160.1056685 | H186: 164.845 | I186: 170.11 | J186: 175.375 | K186: 180.1141315 | L186: 184.792 | M186: 1 | N186: 161.9564 | O186: 0.04235 | P186: 149.056 | Q186: 153.1664255 | R186: 157.33 | S186: 161.956 | T186: 166.583 | U186: 170.7463745 | V186: 174.856 | W186: =VLOOKUP(Perzentile!B186,Berechnungen!$E$2:$F$40,2,FALSE) ->  | X186: =IF('Entrée des données_Eingabemaske'!$N$12="männlich / masculin",((W186/D186)^C186-1)/C186/E186,((W186/N186)^M186-1)/M186/O186) -> 
A187: 15.33333333 | B187: 184 | C187: 1 | D187: 170.468 | E187: 0.04579 | F187: 155.787 | G187: 160.4645549 | H187: 165.203 | I187: 170.468 | J187: 175.733 | K187: 180.4714451 | L187: 185.149 | M187: 1 | N187: 162.0393 | O187: 0.04228 | P187: 149.154 | Q187: 153.2593625 | R187: 157.418 | S187: 162.039 | T187: 166.66 | U187: 170.8192375 | V187: 174.925 | W187: =VLOOKUP(Perzentile!B187,Berechnungen!$E$2:$F$40,2,FALSE) ->  | X187: =IF('Entrée des données_Eingabemaske'!$N$12="männlich / masculin",((W187/D187)^C187-1)/C187/E187,((W187/N187)^M187-1)/M187/O187) -> 
A188: 15.41666667 | B188: 185 | C188: 1 | D188: 170.8136 | E188: 0.04569 | F188: 156.135 | G188: 160.8117649 | H188: 165.55 | I188: 170.814 | J188: 176.078 | K188: 180.8154351 | L188: 185.492 | M188: 1 | N188: 162.1164 | O188: 0.04221 | P188: 149.246 | Q188: 153.3468282 | R188: 157.501 | S188: 162.116 | T188: 166.732 | U188: 170.8859718 | V188: 174.987 | W188: =VLOOKUP(Perzentile!B188,Berechnungen!$E$2:$F$40,2,FALSE) ->  | X188: =IF('Entrée des données_Eingabemaske'!$N$12="männlich / masculin",((W188/D188)^C188-1)/C188/E188,((W188/N188)^M188-1)/M188/O188) -> 
A189: 15.5 | B189: 186 | C189: 1 | D189: 171.1468 | E189: 0.04559 | F189: 156.472 | G189: 161.147388 | H189: 165.884 | I189: 171.147 | J189: 176.41 | K189: 181.146212 | L189: 185.822 | M189: 1 | N189: 162.188 | O189: 0.04214 | P189: 149.334 | Q189: 153.4291047 | R189: 157.578 | S189: 162.188 | T189: 166.798 | U189: 170.9468953 | V189: 175.042 | W189: =VLOOKUP(Perzentile!B189,Berechnungen!$E$2:$F$40,2,FALSE) ->  | X189: =IF('Entrée des données_Eingabemaske'!$N$12="männlich / masculin",((W189/D189)^C189-1)/C189/E189,((W189/N189)^M189-1)/M189/O189) -> 
A190: 15.58333333 | B190: 187 | C190: 1 | D190: 171.468 | E190: 0.04548 | F190: 156.801 | G190: 161.4739936 | H190: 166.208 | I190: 171.468 | J190: 176.728 | K190: 181.4620064 | L190: 186.135 | M190: 1 | N190: 162.2542 | O190: 0.04208 | P190: 149.413 | Q190: 153.5042058 | R190: 157.649 | S190: 162.254 | T190: 166.859 | U190: 171.0041942 | V190: 175.096 | W190: =VLOOKUP(Perzentile!B190,Berechnungen!$E$2:$F$40,2,FALSE) ->  | X190: =IF('Entrée des données_Eingabemaske'!$N$12="männlich / masculin",((W190/D190)^C190-1)/C190/E190,((W190/N190)^M190-1)/M190/O190) -> 
A191: 15.66666667 | B191: 188 | C191: 1 | D191: 171.7773 | E191: 0.04538 | F191: 157.116 | G191: 161.7872802 | H191: 166.519 | I191: 171.777 | J191: 177.035 | K191: 181.7673198 | L191: 186.439 | M191: 1 | N191: 162.3154 | O191: 0.04201 | P191: 149.491 | Q191: 153.5766665 | R191: 157.716 | S191: 162.315 | T191: 166.915 | U191: 171.0541335 | V191: 175.14 | W191: =VLOOKUP(Perzentile!B191,Berechnungen!$E$2:$F$40,2,FALSE) ->  | X191: =IF('Entrée des données_Eingabemaske'!$N$12="männlich / masculin",((W191/D191)^C191-1)/C191/E191,((W191/N191)^M191-1)/M191/O191) -> 
A192: 15.75 | B192: 189 | C192: 1 | D192: 172.0748 | E192: 0.04527 | F192: 157.424 | G192: 162.091736 | H192: 166.821 | I192: 172.075 | J192: 177.329 | K192: 182.057864 | L192: 186.726 | M192: 1 | N192: 162.3719 | O192: 0.04195 | P192: 149.561 | Q192: 153.64261 | R192: 157.778 | S192: 162.372 | T192: 166.966 | U192: 171.10119 | V192: 175.183 | W192: =VLOOKUP(Perzentile!B192,Berechnungen!$E$2:$F$40,2,FALSE) ->  | X192: =IF('Entrée des données_Eingabemaske'!$N$12="männlich / masculin",((W192/D192)^C192-1)/C192/E192,((W192/N192)^M192-1)/M192/O192) -> 
A193: 15.83333333 | B193: 190 | C193: 1 | D193: 172.3606 | E193: 0.04516 | F193: 157.721 | G193: 162.3852529 | H193: 167.111 | I193: 172.361 | J193: 177.611 | K193: 182.3359471 | L193: 187 | M193: 1 | N193: 162.4239 | O193: 0.04189 | P193: 149.627 | Q193: 153.7043037 | R193: 157.835 | S193: 162.424 | T193: 167.013 | U193: 171.1434963 | V193: 175.221 | W193: =VLOOKUP(Perzentile!B193,Berechnungen!$E$2:$F$40,2,FALSE) ->  | X193: =IF('Entrée des données_Eingabemaske'!$N$12="männlich / masculin",((W193/D193)^C193-1)/C193/E193,((W193/N193)^M193-1)/M193/O193) -> 
A194: 15.91666667 | B194: 191 | C194: 1 | D194: 172.6345 | E194: 0.04506 | F194: 158.004 | G194: 162.665425 | H194: 167.388 | I194: 172.634 | J194: 177.881 | K194: 182.603575 | L194: 187.265 | M194: 1 | N194: 162.4717 | O194: 0.04182 | P194: 149.693 | Q194: 153.7641127 | R194: 157.889 | S194: 162.472 | T194: 167.055 | U194: 171.1792873 | V194: 175.251 | W194: =VLOOKUP(Perzentile!B194,Berechnungen!$E$2:$F$40,2,FALSE) ->  | X194: =IF('Entrée des données_Eingabemaske'!$N$12="männlich / masculin",((W194/D194)^C194-1)/C194/E194,((W194/N194)^M194-1)/M194/O194) -> 
A195: =B195/12 -> 16 | B195: 192 | C195: 1 | D195: 172.8967 | E195: 0.04495 | F195: 158.28 | G195: 162.9368572 | H195: 167.655 | I195: 172.897 | J195: 178.139 | K195: 182.8565428 | L195: 187.514 | M195: 1 | N195: 162.5156 | O195: 0.04176 | P195: 149.751 | Q195: 153.8181562 | R195: 157.938 | S195: 162.516 | T195: 167.093 | U195: 171.2130438 | V195: 175.28 | W195: =VLOOKUP(Perzentile!B195,Berechnungen!$E$2:$F$40,2,FALSE) ->  | X195: =IF('Entrée des données_Eingabemaske'!$N$12="männlich / masculin",((W195/D195)^C195-1)/C195/E195,((W195/N195)^M195-1)/M195/O195) ->  | Y195: =_xlfn.NORM.S.DIST(X195,TRUE) -> 
A196: 16.08333333 | B196: 193 | C196: 1 | D196: 173.147 | E196: 0.04484 | F196: 158.545 | G196: 163.1971471 | H196: 167.91 | I196: 173.147 | J196: 178.384 | K196: 183.0968529 | L196: 187.749 | M196: 1 | N196: 162.556 | O196: 0.0417 | P196: 149.807 | Q196: 153.8688935 | R196: 157.984 | S196: 162.556 | T196: 167.128 | U196: 171.2431065 | V196: 175.305 | W196: =VLOOKUP(Perzentile!B196,Berechnungen!$E$2:$F$40,2,FALSE) ->  | X196: =IF('Entrée des données_Eingabemaske'!$N$12="männlich / masculin",((W196/D196)^C196-1)/C196/E196,((W196/N196)^M196-1)/M196/O196) -> 
A197: 16.16666667 | B197: 194 | C197: 1 | D197: 173.3856 | E197: 0.04473 | F197: 158.799 | G197: 163.4464783 | H197: 168.155 | I197: 173.386 | J197: 178.617 | K197: 183.3247217 | L197: 187.972 | M197: 1 | N197: 162.5933 | O197: 0.04164 | P197: 149.86 | Q197: 153.9167025 | R197: 158.027 | S197: 162.593 | T197: 167.16 | U197: 171.2698975 | V197: 175.327 | W197: =VLOOKUP(Perzentile!B197,Berechnungen!$E$2:$F$40,2,FALSE) ->  | X197: =IF('Entrée des données_Eingabemaske'!$N$12="männlich / masculin",((W197/D197)^C197-1)/C197/E197,((W197/N197)^M197-1)/M197/O197) -> 
A198: 16.25 | B198: 195 | C198: 1 | D198: 173.6126 | E198: 0.04462 | F198: 159.043 | G198: 163.6849401 | H198: 168.388 | I198: 173.613 | J198: 178.838 | K198: 183.5402599 | L198: 188.182 | M198: 1 | N198: 162.6276 | O198: 0.04158 | P198: 149.91 | Q198: 153.961677 | R198: 158.067 | S198: 162.628 | T198: 167.189 | U198: 171.293523 | V198: 175.346 | W198: =VLOOKUP(Perzentile!B198,Berechnungen!$E$2:$F$40,2,FALSE) ->  | X198: =IF('Entrée des données_Eingabemaske'!$N$12="männlich / masculin",((W198/D198)^C198-1)/C198/E198,((W198/N198)^M198-1)/M198/O198) -> 
A199: 16.33333333 | B199: 196 | C199: 1 | D199: 173.828 | E199: 0.04451 | F199: 159.276 | G199: 163.9125275 | H199: 168.609 | I199: 173.828 | J199: 179.047 | K199: 183.7434725 | L199: 188.38 | M199: 1 | N199: 162.6594 | O199: 0.04152 | P199: 149.957 | Q199: 154.0042899 | R199: 158.104 | S199: 162.659 | T199: 167.215 | U199: 171.3145101 | V199: 175.362 | W199: =VLOOKUP(Perzentile!B199,Berechnungen!$E$2:$F$40,2,FALSE) ->  | X199: =IF('Entrée des données_Eingabemaske'!$N$12="männlich / masculin",((W199/D199)^C199-1)/C199/E199,((W199/N199)^M199-1)/M199/O199) -> 
A200: 16.41666667 | B200: 197 | C200: 1 | D200: 174.0321 | E200: 0.0444 | F200: 159.499 | G200: 164.1295187 | H200: 168.82 | I200: 174.032 | J200: 179.244 | K200: 183.9346813 | L200: 188.565 | M200: 1 | N200: 162.689 | O200: 0.04147 | P200: 150 | Q200: 154.0427396 | R200: 158.138 | S200: 162.689 | T200: 167.24 | U200: 171.3352604 | V200: 175.378 | W200: =VLOOKUP(Perzentile!B200,Berechnungen!$E$2:$F$40,2,FALSE) ->  | X200: =IF('Entrée des données_Eingabemaske'!$N$12="männlich / masculin",((W200/D200)^C200-1)/C200/E200,((W200/N200)^M200-1)/M200/O200) -> 
... 67 more rows

Sheet Perzentile_Graphik (hidden)
A1: Age arrondi | B1: Age | C1: Month | D1: L | E1: M | F1: SD | G1: P3 | H1: P10 | I1: P25 | J1: P50 | K1: P75 | L1: P90 | M1: P97 | N1: Grösse / Taille | O1: Z-score | P1: Percentile | Q1: Si(Eingabemaske="")
A2: =ROUND(B2,1) -> 0.1 | B2: =C2/12 -> 0.08333333333 | C2: 1 | D2: =IF('Entrée des données_Eingabemaske'!$N$12="männlich / masculin",Perzentile!C3,Perzentile!M3) -> 1 | E2: =IF('Entrée des données_Eingabemaske'!$N$12="männlich / masculin",Perzentile!D3,Perzentile!N3) -> 53.6872 | F2: =IF('Entrée des données_Eingabemaske'!$N$12="männlich / masculin",Perzentile!E3,Perzentile!O3) -> 0.0364 | G2: =IF('Entrée des données_Eingabemaske'!$N$12="männlich / masculin",Perzentile!F3,Perzentile!P3) -> 50.01172665 | H2: =IF('Entrée des données_Eingabemaske'!$N$12="männlich / masculin",Perzentile!G3,Perzentile!Q3) -> 51.18277389 | I2: =IF('Entrée des données_Eingabemaske'!$N$12="männlich / masculin",Perzentile!H3,Perzentile!R3) -> 52.36910263 | J2: =IF('Entrée des données_Eingabemaske'!$N$12="männlich / masculin",Perzentile!I3,Perzentile!S3) -> 53.6872 | K2: =IF('Entrée des données_Eingabemaske'!$N$12="männlich / masculin",Perzentile!J3,Perzentile!T3) -> 55.00529737 | L2: =IF('Entrée des données_Eingabemaske'!$N$12="männlich / masculin",Perzentile!K3,Perzentile!U3) -> 56.19162611 | M2: =IF('Entrée des données_Eingabemaske'!$N$12="männlich / masculin",Perzentile!L3,Perzentile!V3) -> 57.36267335 | N2: =Perzentile!W3 ->  | O2: =Perzentile!X3 ->  | P2: =Perzentile!Y3 ->  | Q2: 0
A3: =ROUND(B3,1) -> 0.2 | B3: 0.1666666667 | C3: 2 | D3: =IF('Entrée des données_Eingabemaske'!$N$12="männlich / masculin",Perzentile!C4,Perzentile!M4) -> 1 | E3: =IF('Entrée des données_Eingabemaske'!$N$12="männlich / masculin",Perzentile!D4,Perzentile!N4) -> 57.0673 | F3: =IF('Entrée des données_Eingabemaske'!$N$12="männlich / masculin",Perzentile!E4,Perzentile!O4) -> 0.03568 | G3: =IF('Entrée des données_Eingabemaske'!$N$12="männlich / masculin",Perzentile!F4,Perzentile!P4) -> 53.23770091 | H3: =IF('Entrée des données_Eingabemaske'!$N$12="männlich / masculin",Perzentile!G4,Perzentile!Q4) -> 54.45785434 | I3: =IF('Entrée des données_Eingabemaske'!$N$12="männlich / masculin",Perzentile!H4,Perzentile!R4) -> 55.6939301 | J3: =IF('Entrée des données_Eingabemaske'!$N$12="männlich / masculin",Perzentile!I4,Perzentile!S4) -> 57.0673 | K3: =IF('Entrée des données_Eingabemaske'!$N$12="männlich / masculin",Perzentile!J4,Perzentile!T4) -> 58.4406699 | L3: =IF('Entrée des données_Eingabemaske'!$N$12="männlich / masculin",Perzentile!K4,Perzentile!U4) -> 59.67674566 | M3: =IF('Entrée des données_Eingabemaske'!$N$12="männlich / masculin",Perzentile!L4,Perzentile!V4) -> 60.89689909 | N3: =Perzentile!W4 ->  | O3: =Perzentile!X4 ->  | P3: =Perzentile!Y4 ->  | Q3: 0
A4: 0.3 | B4: 0.25 | C4: 3 | D4: =IF('Entrée des données_Eingabemaske'!$N$12="männlich / masculin",Perzentile!C5,Perzentile!M5) -> 1 | E4: =IF('Entrée des données_Eingabemaske'!$N$12="männlich / masculin",Perzentile!D5,Perzentile!N5) -> 59.8029 | F4: =IF('Entrée des données_Eingabemaske'!$N$12="männlich / masculin",Perzentile!E5,Perzentile!O5) -> 0.0352 | G4: =IF('Entrée des données_Eingabemaske'!$N$12="männlich / masculin",Perzentile!F5,Perzentile!P5) -> 55.8437127 | H4: =IF('Entrée des données_Eingabemaske'!$N$12="männlich / masculin",Perzentile!G5,Perzentile!Q5) -> 57.1051544 | I4: =IF('Entrée des données_Eingabemaske'!$N$12="männlich / masculin",Perzentile!H5,Perzentile!R5) -> 58.3830572 | J4: =IF('Entrée des données_Eingabemaske'!$N$12="männlich / masculin",Perzentile!I5,Perzentile!S5) -> 59.8029 | K4: =IF('Entrée des données_Eingabemaske'!$N$12="männlich / masculin",Perzentile!J5,Perzentile!T5) -> 61.2227428 | L4: =IF('Entrée des données_Eingabemaske'!$N$12="männlich / masculin",Perzentile!K5,Perzentile!U5) -> 62.5006456 | M4: =IF('Entrée des données_Eingabemaske'!$N$12="männlich / masculin",Perzentile!L5,Perzentile!V5) -> 63.7620873 | N4: =Perzentile!W5 ->  | O4: =Perzentile!X5 ->  | P4: =Perzentile!Y5 ->  | Q4: 0 | R4: 1) définir le début
A5: 0.3 | B5: 0.3333333333 | C5: 4 | D5: =IF('Entrée des données_Eingabemaske'!$N$12="männlich / masculin",Perzentile!C6,Perzentile!M6) -> 1 | E5: =IF('Entrée des données_Eingabemaske'!$N$12="männlich / masculin",Perzentile!D6,Perzentile!N6) -> 62.0899 | F5: =IF('Entrée des données_Eingabemaske'!$N$12="männlich / masculin",Perzentile!E6,Perzentile!O6) -> 0.03486 | G5: =IF('Entrée des données_Eingabemaske'!$N$12="männlich / masculin",Perzentile!F6,Perzentile!P6) -> 58.01900891 | H5: =IF('Entrée des données_Eingabemaske'!$N$12="männlich / masculin",Perzentile!G6,Perzentile!Q6) -> 59.3160407 | I5: =IF('Entrée des données_Eingabemaske'!$N$12="männlich / masculin",Perzentile!H6,Perzentile!R6) -> 60.62999802 | J5: =IF('Entrée des données_Eingabemaske'!$N$12="männlich / masculin",Perzentile!I6,Perzentile!S6) -> 62.0899 | K5: =IF('Entrée des données_Eingabemaske'!$N$12="männlich / masculin",Perzentile!J6,Perzentile!T6) -> 63.54980198 | L5: =IF('Entrée des données_Eingabemaske'!$N$12="männlich / masculin",Perzentile!K6,Perzentile!U6) -> 64.8637593 | M5: =IF('Entrée des données_Eingabemaske'!$N$12="männlich / masculin",Perzentile!L6,Perzentile!V6) -> 66.16079109 | N5: =Perzentile!W6 ->  | O5: =Perzentile!X6 ->  | P5: =Perzentile!Y6 ->  | Q5: 0 | R5: =MATCH(ROUND(MIN('Entrée des données_Eingabemaske'!$G$20:$G$74),1),Perzentile_Graphik!$A$1:$A$266,0) ->  | T5: =définir.début
A6: 0.4 | B6: 0.4166666667 | C6: 5 | D6: =IF('Entrée des données_Eingabemaske'!$N$12="männlich / masculin",Perzentile!C7,Perzentile!M7) -> 1 | E6: =IF('Entrée des données_Eingabemaske'!$N$12="männlich / masculin",Perzentile!D7,Perzentile!N7) -> 64.0301 | F6: =IF('Entrée des données_Eingabemaske'!$N$12="männlich / masculin",Perzentile!E7,Perzentile!O7) -> 0.03463 | G6: =IF('Entrée des données_Eingabemaske'!$N$12="männlich / masculin",Perzentile!F7,Perzentile!P7) -> 59.85969904 | H6: =IF('Entrée des données_Eingabemaske'!$N$12="männlich / masculin",Perzentile!G7,Perzentile!Q7) -> 61.18843579 | I6: =IF('Entrée des données_Eingabemaske'!$N$12="männlich / masculin",Perzentile!H7,Perzentile!R7) -> 62.53451181 | J6: =IF('Entrée des données_Eingabemaske'!$N$12="männlich / masculin",Perzentile!I7,Perzentile!S7) -> 64.0301 | K6: =IF('Entrée des données_Eingabemaske'!$N$12="männlich / masculin",Perzentile!J7,Perzentile!T7) -> 65.52568819 | L6: =IF('Entrée des données_Eingabemaske'!$N$12="männlich / masculin",Perzentile!K7,Perzentile!U7) -> 66.87176421 | M6: =IF('Entrée des données_Eingabemaske'!$N$12="männlich / masculin",Perzentile!L7,Perzentile!V7) -> 68.20050096 | N6: =Perzentile!W7 ->  | O6: =Perzentile!X7 ->  | P6: =Perzentile!Y7 ->  | Q6: 0
A7: 0.5 | B7: 0.5 | C7: 6 | D7: =IF('Entrée des données_Eingabemaske'!$N$12="männlich / masculin",Perzentile!C8,Perzentile!M8) -> 1 | E7: =IF('Entrée des données_Eingabemaske'!$N$12="männlich / masculin",Perzentile!D8,Perzentile!N8) -> 65.7311 | F7: =IF('Entrée des données_Eingabemaske'!$N$12="männlich / masculin",Perzentile!E8,Perzentile!O8) -> 0.03448 | G7: =IF('Entrée des données_Eingabemaske'!$N$12="männlich / masculin",Perzentile!F8,Perzentile!P8) -> 61.4684537 | H7: =IF('Entrée des données_Eingabemaske'!$N$12="männlich / masculin",Perzentile!G8,Perzentile!Q8) -> 62.82658086 | I7: =IF('Entrée des données_Eingabemaske'!$N$12="männlich / masculin",Perzentile!H8,Perzentile!R8) -> 64.20243081 | J7: =IF('Entrée des données_Eingabemaske'!$N$12="männlich / masculin",Perzentile!I8,Perzentile!S8) -> 65.7311 | K7: =IF('Entrée des données_Eingabemaske'!$N$12="männlich / masculin",Perzentile!J8,Perzentile!T8) -> 67.25976919 | L7: =IF('Entrée des données_Eingabemaske'!$N$12="männlich / masculin",Perzentile!K8,Perzentile!U8) -> 68.63561914 | M7: =IF('Entrée des données_Eingabemaske'!$N$12="männlich / masculin",Perzentile!L8,Perzentile!V8) -> 69.9937463 | N7: =Perzentile!W8 ->  | O7: =Perzentile!X8 ->  | P7: =Perzentile!Y8 ->  | Q7: 0 | R7: 2) définir la fin
A8: 0.6 | B8: 0.5833333333 | C8: 7 | D8: =IF('Entrée des données_Eingabemaske'!$N$12="männlich / masculin",Perzentile!C9,Perzentile!M9) -> 1 | E8: =IF('Entrée des données_Eingabemaske'!$N$12="männlich / masculin",Perzentile!D9,Perzentile!N9) -> 67.2873 | F8: =IF('Entrée des données_Eingabemaske'!$N$12="männlich / masculin",Perzentile!E9,Perzentile!O9) -> 0.03441 | G8: =IF('Entrée des données_Eingabemaske'!$N$12="männlich / masculin",Perzentile!F9,Perzentile!P9) -> 62.93259325 | H8: =IF('Entrée des données_Eingabemaske'!$N$12="männlich / masculin",Perzentile!G9,Perzentile!Q9) -> 64.3200519 | I8: =IF('Entrée des données_Eingabemaske'!$N$12="männlich / masculin",Perzentile!H9,Perzentile!R9) -> 65.72561611 | J8: =IF('Entrée des données_Eingabemaske'!$N$12="männlich / masculin",Perzentile!I9,Perzentile!S9) -> 67.2873 | K8: =IF('Entrée des données_Eingabemaske'!$N$12="männlich / masculin",Perzentile!J9,Perzentile!T9) -> 68.84898389 | L8: =IF('Entrée des données_Eingabemaske'!$N$12="männlich / masculin",Perzentile!K9,Perzentile!U9) -> 70.2545481 | M8: =IF('Entrée des données_Eingabemaske'!$N$12="männlich / masculin",Perzentile!L9,Perzentile!V9) -> 71.64200675 | N8: =Perzentile!W9 ->  | O8: =Perzentile!X9 ->  | P8: =Perzentile!Y9 ->  | Q8: 0 | R8: =242-définir.début ->  | T8: =définir.fin
A9: 0.7 | B9: 0.6666666667 | C9: 8 | D9: =IF('Entrée des données_Eingabemaske'!$N$12="männlich / masculin",Perzentile!C10,Perzentile!M10) -> 1 | E9: =IF('Entrée des données_Eingabemaske'!$N$12="männlich / masculin",Perzentile!D10,Perzentile!N10) -> 68.7498 | F9: =IF('Entrée des données_Eingabemaske'!$N$12="männlich / masculin",Perzentile!E10,Perzentile!O10) -> 0.0344 | G9: =IF('Entrée des données_Eingabemaske'!$N$12="männlich / masculin",Perzentile!F10,Perzentile!P10) -> 64.30173606 | H9: =IF('Entrée des données_Eingabemaske'!$N$12="männlich / masculin",Perzentile!G10,Perzentile!Q10) -> 65.71893936 | I9: =IF('Entrée des données_Eingabemaske'!$N$12="männlich / masculin",Perzentile!H10,Perzentile!R10) -> 67.15463638 | J9: =IF('Entrée des données_Eingabemaske'!$N$12="männlich / masculin",Perzentile!I10,Perzentile!S10) -> 68.7498 | K9: =IF('Entrée des données_Eingabemaske'!$N$12="männlich / masculin",Perzentile!J10,Perzentile!T10) -> 70.34496362 | L9: =IF('Entrée des données_Eingabemaske'!$N$12="männlich / masculin",Perzentile!K10,Perzentile!U10) -> 71.78066064 | M9: =IF('Entrée des données_Eingabemaske'!$N$12="männlich / masculin",Perzentile!L10,Perzentile!V10) -> 73.19786394 | N9: =Perzentile!W10 ->  | O9: =Perzentile!X10 ->  | P9: =Perzentile!Y10 ->  | Q9: 0
A10: 0.8 | B10: 0.75 | C10: 9 | D10: =IF('Entrée des données_Eingabemaske'!$N$12="männlich / masculin",Perzentile!C11,Perzentile!M11) -> 1 | E10: =IF('Entrée des données_Eingabemaske'!$N$12="männlich / masculin",Perzentile!D11,Perzentile!N11) -> 70.1435 | F10: =IF('Entrée des données_Eingabemaske'!$N$12="männlich / masculin",Perzentile!E11,Perzentile!O11) -> 0.03444 | G10: =IF('Entrée des données_Eingabemaske'!$N$12="männlich / masculin",Perzentile!F11,Perzentile!P11) -> 65.59998762 | H10: =IF('Entrée des données_Eingabemaske'!$N$12="männlich / masculin",Perzentile!G11,Perzentile!Q11) -> 67.04760188 | I10: =IF('Entrée des données_Eingabemaske'!$N$12="männlich / masculin",Perzentile!H11,Perzentile!R11) -> 68.51410669 | J10: =IF('Entrée des données_Eingabemaske'!$N$12="männlich / masculin",Perzentile!I11,Perzentile!S11) -> 70.1435 | K10: =IF('Entrée des données_Eingabemaske'!$N$12="männlich / masculin",Perzentile!J11,Perzentile!T11) -> 71.77289331 | L10: =IF('Entrée des données_Eingabemaske'!$N$12="männlich / masculin",Perzentile!K11,Perzentile!U11) -> 73.23939812 | M10: =IF('Entrée des données_Eingabemaske'!$N$12="männlich / masculin",Perzentile!L11,Perzentile!V11) -> 74.68701238 | N10: =Perzentile!W11 ->  | O10: =Perzentile!X11 ->  | P10: =Perzentile!Y11 ->  | Q10: 0 | R10: 3) définir la valeur de l'axe des x
A11: 0.8 | B11: 0.8333333333 | C11: 10 | D11: =IF('Entrée des données_Eingabemaske'!$N$12="männlich / masculin",Perzentile!C12,Perzentile!M12) -> 1 | E11: =IF('Entrée des données_Eingabemaske'!$N$12="männlich / masculin",Perzentile!D12,Perzentile!N12) -> 71.4818 | F11: =IF('Entrée des données_Eingabemaske'!$N$12="männlich / masculin",Perzentile!E12,Perzentile!O12) -> 0.03452 | G11: =IF('Entrée des données_Eingabemaske'!$N$12="männlich / masculin",Perzentile!F12,Perzentile!P12) -> 66.84084447 | H11: =IF('Entrée des données_Eingabemaske'!$N$12="männlich / masculin",Perzentile!G12,Perzentile!Q12) -> 68.31950521 | I11: =IF('Entrée des données_Eingabemaske'!$N$12="männlich / masculin",Perzentile!H12,Perzentile!R12) -> 69.81746165 | J11: =IF('Entrée des données_Eingabemaske'!$N$12="männlich / masculin",Perzentile!I12,Perzentile!S12) -> 71.4818 | K11: =IF('Entrée des données_Eingabemaske'!$N$12="männlich / masculin",Perzentile!J12,Perzentile!T12) -> 73.14613835 | L11: =IF('Entrée des données_Eingabemaske'!$N$12="männlich / masculin",Perzentile!K12,Perzentile!U12) -> 74.64409479 | M11: =IF('Entrée des données_Eingabemaske'!$N$12="männlich / masculin",Perzentile!L12,Perzentile!V12) -> 76.12275553 | N11: =Perzentile!W12 ->  | O11: =Perzentile!X12 ->  | P11: =Perzentile!Y12 ->  | Q11: 0 | R11: =DECALER($B$1;définir.début+13;;définir.fin+13;)
A12: 0.9 | B12: 0.9166666667 | C12: 11 | D12: =IF('Entrée des données_Eingabemaske'!$N$12="männlich / masculin",Perzentile!C13,Perzentile!M13) -> 1 | E12: =IF('Entrée des données_Eingabemaske'!$N$12="männlich / masculin",Perzentile!D13,Perzentile!N13) -> 72.771 | F12: =IF('Entrée des données_Eingabemaske'!$N$12="männlich / masculin",Perzentile!E13,Perzentile!O13) -> 0.03464 | G12: =IF('Entrée des données_Eingabemaske'!$N$12="männlich / masculin",Perzentile!F13,Perzentile!P13) -> 68.0299191 | H12: =IF('Entrée des données_Eingabemaske'!$N$12="männlich / masculin",Perzentile!G13,Perzentile!Q13) -> 69.54048091 | I12: =IF('Entrée des données_Eingabemaske'!$N$12="männlich / masculin",Perzentile!H13,Perzentile!R13) -> 71.07075471 | J12: =IF('Entrée des données_Eingabemaske'!$N$12="männlich / masculin",Perzentile!I13,Perzentile!S13) -> 72.771 | K12: =IF('Entrée des données_Eingabemaske'!$N$12="männlich / masculin",Perzentile!J13,Perzentile!T13) -> 74.47124529 | L12: =IF('Entrée des données_Eingabemaske'!$N$12="männlich / masculin",Perzentile!K13,Perzentile!U13) -> 76.00151909 | M12: =IF('Entrée des données_Eingabemaske'!$N$12="männlich / masculin",Perzentile!L13,Perzentile!V13) -> 77.5120809 | N12: =Perzentile!W13 ->  | O12: =Perzentile!X13 ->  | P12: =Perzentile!Y13 ->  | Q12: 0
A13: 1 | B13: 1 | C13: 12 | D13: =IF('Entrée des données_Eingabemaske'!$N$12="männlich / masculin",Perzentile!C14,Perzentile!M14) -> 1 | E13: =IF('Entrée des données_Eingabemaske'!$N$12="männlich / masculin",Perzentile!D14,Perzentile!N14) -> 74.015 | F13: =IF('Entrée des données_Eingabemaske'!$N$12="männlich / masculin",Perzentile!E14,Perzentile!O14) -> 0.03479 | G13: =IF('Entrée des données_Eingabemaske'!$N$12="männlich / masculin",Perzentile!F14,Perzentile!P14) -> 69.1719906 | H13: =IF('Entrée des données_Eingabemaske'!$N$12="männlich / masculin",Perzentile!G14,Perzentile!Q14) -> 70.71502798 | I13: =IF('Entrée des données_Eingabemaske'!$N$12="männlich / masculin",Perzentile!H14,Perzentile!R14) -> 72.27820114 | J13: =IF('Entrée des données_Eingabemaske'!$N$12="männlich / masculin",Perzentile!I14,Perzentile!S14) -> 74.015 | K13: =IF('Entrée des données_Eingabemaske'!$N$12="männlich / masculin",Perzentile!J14,Perzentile!T14) -> 75.75179886 | L13: =IF('Entrée des données_Eingabemaske'!$N$12="männlich / masculin",Perzentile!K14,Perzentile!U14) -> 77.31497202 | M13: =IF('Entrée des données_Eingabemaske'!$N$12="männlich / masculin",Perzentile!L14,Perzentile!V14) -> 78.8580094 | N13: =Perzentile!W14 ->  | O13: =Perzentile!X14 ->  | P13: =Perzentile!Y14 ->  | Q13: 0 | R13: 4) définir la valeur de l'axe des y
A14: 1.1 | B14: 1.083333333 | C14: 13 | D14: =IF('Entrée des données_Eingabemaske'!$N$12="männlich / masculin",Perzentile!C15,Perzentile!M15) -> 1 | E14: =IF('Entrée des données_Eingabemaske'!$N$12="männlich / masculin",Perzentile!D15,Perzentile!N15) -> 75.2176 | F14: =IF('Entrée des données_Eingabemaske'!$N$12="männlich / masculin",Perzentile!E15,Perzentile!O15) -> 0.03496 | G14: =IF('Entrée des données_Eingabemaske'!$N$12="männlich / masculin",Perzentile!F15,Perzentile!P15) -> 70.27185141 | H14: =IF('Entrée des données_Eingabemaske'!$N$12="männlich / masculin",Perzentile!G15,Perzentile!Q15) -> 71.84762265 | I14: =IF('Entrée des données_Eingabemaske'!$N$12="männlich / masculin",Perzentile!H15,Perzentile!R15) -> 73.44395683 | J14: =IF('Entrée des données_Eingabemaske'!$N$12="männlich / masculin",Perzentile!I15,Perzentile!S15) -> 75.2176 | K14: =IF('Entrée des données_Eingabemaske'!$N$12="männlich / masculin",Perzentile!J15,Perzentile!T15) -> 76.99124317 | L14: =IF('Entrée des données_Eingabemaske'!$N$12="männlich / masculin",Perzentile!K15,Perzentile!U15) -> 78.58757735 | M14: =IF('Entrée des données_Eingabemaske'!$N$12="männlich / masculin",Perzentile!L15,Perzentile!V15) -> 80.16334859 | N14: =Perzentile!W15 ->  | O14: =Perzentile!X15 ->  | P14: =Perzentile!Y15 ->  | Q14: 0 | R14: Attention pour l'axe des y, il faut définir un nom pour tous les percentiles
A15: 1.2 | B15: 1.166666667 | C15: 14 | D15: =IF('Entrée des données_Eingabemaske'!$N$12="männlich / masculin",Perzentile!C16,Perzentile!M16) -> 1 | E15: =IF('Entrée des données_Eingabemaske'!$N$12="männlich / masculin",Perzentile!D16,Perzentile!N16) -> 76.3817 | F15: =IF('Entrée des données_Eingabemaske'!$N$12="männlich / masculin",Perzentile!E16,Perzentile!O16) -> 0.03514 | G15: =IF('Entrée des données_Eingabemaske'!$N$12="männlich / masculin",Perzentile!F16,Perzentile!P16) -> 71.33355039 | H15: =IF('Entrée des données_Eingabemaske'!$N$12="männlich / masculin",Perzentile!G16,Perzentile!Q16) -> 72.94194776 | I15: =IF('Entrée des données_Eingabemaske'!$N$12="männlich / masculin",Perzentile!H16,Perzentile!R16) -> 74.5713338 | J15: =IF('Entrée des données_Eingabemaske'!$N$12="männlich / masculin",Perzentile!I16,Perzentile!S16) -> 76.3817 | K15: =IF('Entrée des données_Eingabemaske'!$N$12="männlich / masculin",Perzentile!J16,Perzentile!T16) -> 78.1920662 | L15: =IF('Entrée des données_Eingabemaske'!$N$12="männlich / masculin",Perzentile!K16,Perzentile!U16) -> 79.82145224 | M15: =IF('Entrée des données_Eingabemaske'!$N$12="männlich / masculin",Perzentile!L16,Perzentile!V16) -> 81.42984961 | N15: =Perzentile!W16 ->  | O15: =Perzentile!X16 ->  | P15: =Perzentile!Y16 ->  | Q15: 0 | R15: =DECALER($N$1;définir.début-13;;définir.fin+13;)
A16: 1.3 | B16: 1.25 | C16: 15 | D16: =IF('Entrée des données_Eingabemaske'!$N$12="männlich / masculin",Perzentile!C17,Perzentile!M17) -> 1 | E16: =IF('Entrée des données_Eingabemaske'!$N$12="männlich / masculin",Perzentile!D17,Perzentile!N17) -> 77.5099 | F16: =IF('Entrée des données_Eingabemaske'!$N$12="männlich / masculin",Perzentile!E17,Perzentile!O17) -> 0.03534 | G16: =IF('Entrée des données_Eingabemaske'!$N$12="männlich / masculin",Perzentile!F17,Perzentile!P17) -> 72.3580304 | H16: =IF('Entrée des données_Eingabemaske'!$N$12="männlich / masculin",Perzentile!G17,Perzentile!Q17) -> 73.99947412 | I16: =IF('Entrée des données_Eingabemaske'!$N$12="männlich / masculin",Perzentile!H17,Perzentile!R17) -> 75.66233777 | J16: =IF('Entrée des données_Eingabemaske'!$N$12="männlich / masculin",Perzentile!I17,Perzentile!S17) -> 77.5099 | K16: =IF('Entrée des données_Eingabemaske'!$N$12="männlich / masculin",Perzentile!J17,Perzentile!T17) -> 79.35746223 | L16: =IF('Entrée des données_Eingabemaske'!$N$12="männlich / masculin",Perzentile!K17,Perzentile!U17) -> 81.02032588 | M16: =IF('Entrée des données_Eingabemaske'!$N$12="männlich / masculin",Perzentile!L17,Perzentile!V17) -> 82.6617696 | N16: =Perzentile!W17 ->  | O16: =Perzentile!X17 ->  | P16: =Perzentile!Y17 ->  | Q16: 0
A17: 1.3 | B17: 1.333333333 | C17: 16 | D17: =IF('Entrée des données_Eingabemaske'!$N$12="männlich / masculin",Perzentile!C18,Perzentile!M18) -> 1 | E17: =IF('Entrée des données_Eingabemaske'!$N$12="männlich / masculin",Perzentile!D18,Perzentile!N18) -> 78.6055 | F17: =IF('Entrée des données_Eingabemaske'!$N$12="männlich / masculin",Perzentile!E18,Perzentile!O18) -> 0.03555 | G17: =IF('Entrée des données_Eingabemaske'!$N$12="männlich / masculin",Perzentile!F18,Perzentile!P18) -> 73.34976233 | H17: =IF('Entrée des données_Eingabemaske'!$N$12="männlich / masculin",Perzentile!G18,Perzentile!Q18) -> 75.02429959 | I17: =IF('Entrée des données_Eingabemaske'!$N$12="männlich / masculin",Perzentile!H18,Perzentile!R18) -> 76.72068863 | J17: =IF('Entrée des données_Eingabemaske'!$N$12="männlich / masculin",Perzentile!I18,Perzentile!S18) -> 78.6055 | K17: =IF('Entrée des données_Eingabemaske'!$N$12="männlich / masculin",Perzentile!J18,Perzentile!T18) -> 80.49031137 | L17: =IF('Entrée des données_Eingabemaske'!$N$12="männlich / masculin",Perzentile!K18,Perzentile!U18) -> 82.18670041 | M17: =IF('Entrée des données_Eingabemaske'!$N$12="männlich / masculin",Perzentile!L18,Perzentile!V18) -> 83.86123767 | N17: =Perzentile!W18 ->  | O17: =Perzentile!X18 ->  | P17: =Perzentile!Y18 ->  | Q17: 0
A18: 1.4 | B18: 1.416666667 | C18: 17 | D18: =IF('Entrée des données_Eingabemaske'!$N$12="männlich / masculin",Perzentile!C19,Perzentile!M19) -> 1 | E18: =IF('Entrée des données_Eingabemaske'!$N$12="männlich / masculin",Perzentile!D19,Perzentile!N19) -> 79.671 | F18: =IF('Entrée des données_Eingabemaske'!$N$12="männlich / masculin",Perzentile!E19,Perzentile!O19) -> 0.03576 | G18: =IF('Entrée des données_Eingabemaske'!$N$12="männlich / masculin",Perzentile!F19,Perzentile!P19) -> 74.31255326 | H18: =IF('Entrée des données_Eingabemaske'!$N$12="männlich / masculin",Perzentile!G19,Perzentile!Q19) -> 76.01981479 | I18: =IF('Entrée des données_Eingabemaske'!$N$12="männlich / masculin",Perzentile!H19,Perzentile!R19) -> 77.74935512 | J18: =IF('Entrée des données_Eingabemaske'!$N$12="männlich / masculin",Perzentile!I19,Perzentile!S19) -> 79.671 | K18: =IF('Entrée des données_Eingabemaske'!$N$12="männlich / masculin",Perzentile!J19,Perzentile!T19) -> 81.59264488 | L18: =IF('Entrée des données_Eingabemaske'!$N$12="männlich / masculin",Perzentile!K19,Perzentile!U19) -> 83.32218521 | M18: =IF('Entrée des données_Eingabemaske'!$N$12="männlich / masculin",Perzentile!L19,Perzentile!V19) -> 85.02944674 | N18: =Perzentile!W19 ->  | O18: =Perzentile!X19 ->  | P18: =Perzentile!Y19 ->  | Q18: 0
A19: 1.5 | B19: 1.5 | C19: 18 | D19: =IF('Entrée des données_Eingabemaske'!$N$12="männlich / masculin",Perzentile!C20,Perzentile!M20) -> 1 | E19: =IF('Entrée des données_Eingabemaske'!$N$12="männlich / masculin",Perzentile!D20,Perzentile!N20) -> 80.7079 | F19: =IF('Entrée des données_Eingabemaske'!$N$12="männlich / masculin",Perzentile!E20,Perzentile!O20) -> 0.03598 | G19: =IF('Entrée des données_Eingabemaske'!$N$12="männlich / masculin",Perzentile!F20,Perzentile!P20) -> 75.24631941 | H19: =IF('Entrée des données_Eingabemaske'!$N$12="männlich / masculin",Perzentile!G20,Perzentile!Q20) -> 76.98644055 | I19: =IF('Entrée des données_Eingabemaske'!$N$12="männlich / masculin",Perzentile!H20,Perzentile!R20) -> 78.74926929 | J19: =IF('Entrée des données_Eingabemaske'!$N$12="männlich / masculin",Perzentile!I20,Perzentile!S20) -> 80.7079 | K19: =IF('Entrée des données_Eingabemaske'!$N$12="männlich / masculin",Perzentile!J20,Perzentile!T20) -> 82.66653071 | L19: =IF('Entrée des données_Eingabemaske'!$N$12="männlich / masculin",Perzentile!K20,Perzentile!U20) -> 84.42935945 | M19: =IF('Entrée des données_Eingabemaske'!$N$12="männlich / masculin",Perzentile!L20,Perzentile!V20) -> 86.16948059 | N19: =Perzentile!W20 ->  | O19: =Perzentile!X20 ->  | P19: =Perzentile!Y20 ->  | Q19: 0
A20: 1.6 | B20: 1.583333333 | C20: 19 | D20: =IF('Entrée des données_Eingabemaske'!$N$12="männlich / masculin",Perzentile!C21,Perzentile!M21) -> 1 | E20: =IF('Entrée des données_Eingabemaske'!$N$12="männlich / masculin",Perzentile!D21,Perzentile!N21) -> 81.7182 | F20: =IF('Entrée des données_Eingabemaske'!$N$12="männlich / masculin",Perzentile!E21,Perzentile!O21) -> 0.0362 | G20: =IF('Entrée des données_Eingabemaske'!$N$12="männlich / masculin",Perzentile!F21,Perzentile!P21) -> 76.15443853 | H20: =IF('Entrée des données_Eingabemaske'!$N$12="männlich / masculin",Perzentile!G21,Perzentile!Q21) -> 77.92711565 | I20: =IF('Entrée des données_Eingabemaske'!$N$12="männlich / masculin",Perzentile!H21,Perzentile!R21) -> 79.7229252 | J20: =IF('Entrée des données_Eingabemaske'!$N$12="männlich / masculin",Perzentile!I21,Perzentile!S21) -> 81.7182 | K20: =IF('Entrée des données_Eingabemaske'!$N$12="männlich / masculin",Perzentile!J21,Perzentile!T21) -> 83.7134748 | L20: =IF('Entrée des données_Eingabemaske'!$N$12="männlich / masculin",Perzentile!K21,Perzentile!U21) -> 85.50928435 | M20: =IF('Entrée des données_Eingabemaske'!$N$12="männlich / masculin",Perzentile!L21,Perzentile!V21) -> 87.28196147 | N20: =Perzentile!W21 ->  | O20: =Perzentile!X21 ->  | P20: =Perzentile!Y21 ->  | Q20: 0
A21: 1.7 | B21: 1.666666667 | C21: 20 | D21: =IF('Entrée des données_Eingabemaske'!$N$12="männlich / masculin",Perzentile!C22,Perzentile!M22) -> 1 | E21: =IF('Entrée des données_Eingabemaske'!$N$12="männlich / masculin",Perzentile!D22,Perzentile!N22) -> 82.7036 | F21: =IF('Entrée des données_Eingabemaske'!$N$12="männlich / masculin",Perzentile!E22,Perzentile!O22) -> 0.03643 | G21: =IF('Entrée des données_Eingabemaske'!$N$12="männlich / masculin",Perzentile!F22,Perzentile!P22) -> 77.03697171 | H21: =IF('Entrée des données_Eingabemaske'!$N$12="männlich / masculin",Perzentile!G22,Perzentile!Q22) -> 78.84242335 | I21: =IF('Entrée des données_Eingabemaske'!$N$12="männlich / masculin",Perzentile!H22,Perzentile!R22) -> 80.67143513 | J21: =IF('Entrée des données_Eingabemaske'!$N$12="männlich / masculin",Perzentile!I22,Perzentile!S22) -> 82.7036 | K21: =IF('Entrée des données_Eingabemaske'!$N$12="männlich / masculin",Perzentile!J22,Perzentile!T22) -> 84.73576487 | L21: =IF('Entrée des données_Eingabemaske'!$N$12="männlich / masculin",Perzentile!K22,Perzentile!U22) -> 86.56477665 | M21: =IF('Entrée des données_Eingabemaske'!$N$12="männlich / masculin",Perzentile!L22,Perzentile!V22) -> 88.37022829 | N21: =Perzentile!W22 ->  | O21: =Perzentile!X22 ->  | P21: =Perzentile!Y22 ->  | Q21: 0
A22: 1.8 | B22: 1.75 | C22: 21 | D22: =IF('Entrée des données_Eingabemaske'!$N$12="männlich / masculin",Perzentile!C23,Perzentile!M23) -> 1 | E22: =IF('Entrée des données_Eingabemaske'!$N$12="männlich / masculin",Perzentile!D23,Perzentile!N23) -> 83.6654 | F22: =IF('Entrée des données_Eingabemaske'!$N$12="männlich / masculin",Perzentile!E23,Perzentile!O23) -> 0.03666 | G22: =IF('Entrée des données_Eingabemaske'!$N$12="männlich / masculin",Perzentile!F23,Perzentile!P23) -> 77.89667957 | H22: =IF('Entrée des données_Eingabemaske'!$N$12="männlich / masculin",Perzentile!G23,Perzentile!Q23) -> 79.73465892 | I22: =IF('Entrée des données_Eingabemaske'!$N$12="männlich / masculin",Perzentile!H23,Perzentile!R23) -> 81.59662287 | J22: =IF('Entrée des données_Eingabemaske'!$N$12="männlich / masculin",Perzentile!I23,Perzentile!S23) -> 83.6654 | K22: =IF('Entrée des données_Eingabemaske'!$N$12="männlich / masculin",Perzentile!J23,Perzentile!T23) -> 85.73417713 | L22: =IF('Entrée des données_Eingabemaske'!$N$12="männlich / masculin",Perzentile!K23,Perzentile!U23) -> 87.59614108 | M22: =IF('Entrée des données_Eingabemaske'!$N$12="männlich / masculin",Perzentile!L23,Perzentile!V23) -> 89.43412043 | N22: =Perzentile!W23 ->  | O22: =Perzentile!X23 ->  | P22: =Perzentile!Y23 ->  | Q22: 0
A23: 1.8 | B23: 1.833333333 | C23: 22 | D23: =IF('Entrée des données_Eingabemaske'!$N$12="männlich / masculin",Perzentile!C24,Perzentile!M24) -> 1 | E23: =IF('Entrée des données_Eingabemaske'!$N$12="männlich / masculin",Perzentile!D24,Perzentile!N24) -> 84.604 | F23: =IF('Entrée des données_Eingabemaske'!$N$12="männlich / masculin",Perzentile!E24,Perzentile!O24) -> 0.03688 | G23: =IF('Entrée des données_Eingabemaske'!$N$12="männlich / masculin",Perzentile!F24,Perzentile!P24) -> 78.73555621 | H23: =IF('Entrée des données_Eingabemaske'!$N$12="männlich / masculin",Perzentile!G24,Perzentile!Q24) -> 80.60530855 | I23: =IF('Entrée des données_Eingabemaske'!$N$12="männlich / masculin",Perzentile!H24,Perzentile!R24) -> 82.4994601 | J23: =IF('Entrée des données_Eingabemaske'!$N$12="männlich / masculin",Perzentile!I24,Perzentile!S24) -> 84.604 | K23: =IF('Entrée des données_Eingabemaske'!$N$12="männlich / masculin",Perzentile!J24,Perzentile!T24) -> 86.7085399 | L23: =IF('Entrée des données_Eingabemaske'!$N$12="männlich / masculin",Perzentile!K24,Perzentile!U24) -> 88.60269145 | M23: =IF('Entrée des données_Eingabemaske'!$N$12="männlich / masculin",Perzentile!L24,Perzentile!V24) -> 90.47244379 | N23: =Perzentile!W24 ->  | O23: =Perzentile!X24 ->  | P23: =Perzentile!Y24 ->  | Q23: 0
A24: 1.9 | B24: 1.916666667 | C24: 23 | D24: =IF('Entrée des données_Eingabemaske'!$N$12="männlich / masculin",Perzentile!C25,Perzentile!M25) -> 1 | E24: =IF('Entrée des données_Eingabemaske'!$N$12="männlich / masculin",Perzentile!D25,Perzentile!N25) -> 85.5202 | F24: =IF('Entrée des données_Eingabemaske'!$N$12="männlich / masculin",Perzentile!E25,Perzentile!O25) -> 0.03711 | G24: =IF('Entrée des données_Eingabemaske'!$N$12="männlich / masculin",Perzentile!F25,Perzentile!P25) -> 79.55121067 | H24: =IF('Entrée des données_Eingabemaske'!$N$12="männlich / masculin",Perzentile!G25,Perzentile!Q25) -> 81.45299795 | I24: =IF('Entrée des données_Eingabemaske'!$N$12="männlich / masculin",Perzentile!H25,Perzentile!R25) -> 83.37960249 | J24: =IF('Entrée des données_Eingabemaske'!$N$12="männlich / masculin",Perzentile!I25,Perzentile!S25) -> 85.5202 | K24: =IF('Entrée des données_Eingabemaske'!$N$12="männlich / masculin",Perzentile!J25,Perzentile!T25) -> 87.66079751 | L24: =IF('Entrée des données_Eingabemaske'!$N$12="männlich / masculin",Perzentile!K25,Perzentile!U25) -> 89.58740205 | M24: =IF('Entrée des données_Eingabemaske'!$N$12="männlich / masculin",Perzentile!L25,Perzentile!V25) -> 91.48918933 | N24: =Perzentile!W25 ->  | O24: =Perzentile!X25 ->  | P24: =Perzentile!Y25 ->  | Q24: 0
A25: 2 | B25: 2 | C25: 24 | D25: =IF('Entrée des données_Eingabemaske'!$N$12="männlich / masculin",Perzentile!C26,Perzentile!M26) -> 1 | E25: =IF('Entrée des données_Eingabemaske'!$N$12="männlich / masculin",Perzentile!D26,Perzentile!N26) -> 86.4153 | F25: =IF('Entrée des données_Eingabemaske'!$N$12="männlich / masculin",Perzentile!E26,Perzentile!O26) -> 0.03734 | G25: =IF('Entrée des données_Eingabemaske'!$N$12="männlich / masculin",Perzentile!F26,Perzentile!P26) -> 80.3464543 | H25: =IF('Entrée des données_Eingabemaske'!$N$12="männlich / masculin",Perzentile!G26,Perzentile!Q26) -> 82.28005694 | I25: =IF('Entrée des données_Eingabemaske'!$N$12="männlich / masculin",Perzentile!H26,Perzentile!R26) -> 84.23889202 | J25: =IF('Entrée des données_Eingabemaske'!$N$12="männlich / masculin",Perzentile!I26,Perzentile!S26) -> 86.4153 | K25: =IF('Entrée des données_Eingabemaske'!$N$12="männlich / masculin",Perzentile!J26,Perzentile!T26) -> 88.59170798 | L25: =IF('Entrée des données_Eingabemaske'!$N$12="männlich / masculin",Perzentile!K26,Perzentile!U26) -> 90.55054306 | M25: =IF('Entrée des données_Eingabemaske'!$N$12="männlich / masculin",Perzentile!L26,Perzentile!V26) -> 92.4841457 | N25: =Perzentile!W26 ->  | O25: =Perzentile!X26 ->  | P25: =Perzentile!Y26 ->  | Q25: 0
A26: 2 | B26: 2 | C26: 24 | D26: =IF('Entrée des données_Eingabemaske'!$N$12="männlich / masculin",Perzentile!C27,Perzentile!M27) -> 1 | E26: =IF('Entrée des données_Eingabemaske'!$N$12="männlich / masculin",Perzentile!D27,Perzentile!N27) -> 85.7153 | F26: =IF('Entrée des données_Eingabemaske'!$N$12="männlich / masculin",Perzentile!E27,Perzentile!O27) -> 0.037644 | G26: =IF('Entrée des données_Eingabemaske'!$N$12="männlich / masculin",Perzentile!F27,Perzentile!P27) -> 79.64660579 | H26: =IF('Entrée des données_Eingabemaske'!$N$12="männlich / masculin",Perzentile!G27,Perzentile!Q27) -> 81.58016017 | I26: =IF('Entrée des données_Eingabemaske'!$N$12="männlich / masculin",Perzentile!H27,Perzentile!R27) -> 83.53894635 | J26: =IF('Entrée des données_Eingabemaske'!$N$12="männlich / masculin",Perzentile!I27,Perzentile!S27) -> 85.7153 | K26: =IF('Entrée des données_Eingabemaske'!$N$12="männlich / masculin",Perzentile!J27,Perzentile!T27) -> 87.89165365 | L26: =IF('Entrée des données_Eingabemaske'!$N$12="männlich / masculin",Perzentile!K27,Perzentile!U27) -> 89.85043983 | M26: =IF('Entrée des données_Eingabemaske'!$N$12="männlich / masculin",Perzentile!L27,Perzentile!V27) -> 91.78399421 | N26: =Perzentile!W27 ->  | O26: =Perzentile!X27 ->  | P26: =Perzentile!Y27 ->  | Q26: 0
A27: 2.1 | B27: 2.083333333 | C27: 25 | D27: =IF('Entrée des données_Eingabemaske'!$N$12="männlich / masculin",Perzentile!C28,Perzentile!M28) -> 1 | E27: =IF('Entrée des données_Eingabemaske'!$N$12="männlich / masculin",Perzentile!D28,Perzentile!N28) -> 86.5904 | F27: =IF('Entrée des données_Eingabemaske'!$N$12="männlich / masculin",Perzentile!E28,Perzentile!O28) -> 0.03786 | G27: =IF('Entrée des données_Eingabemaske'!$N$12="männlich / masculin",Perzentile!F28,Perzentile!P28) -> 80.42457072 | H27: =IF('Entrée des données_Eingabemaske'!$N$12="männlich / masculin",Perzentile!G28,Perzentile!Q28) -> 82.38907343 | I27: =IF('Entrée des données_Eingabemaske'!$N$12="männlich / masculin",Perzentile!H28,Perzentile!R28) -> 84.37921179 | J27: =IF('Entrée des données_Eingabemaske'!$N$12="männlich / masculin",Perzentile!I28,Perzentile!S28) -> 86.5904 | K27: =IF('Entrée des données_Eingabemaske'!$N$12="männlich / masculin",Perzentile!J28,Perzentile!T28) -> 88.80158821 | L27: =IF('Entrée des données_Eingabemaske'!$N$12="männlich / masculin",Perzentile!K28,Perzentile!U28) -> 90.79172657 | M27: =IF('Entrée des données_Eingabemaske'!$N$12="männlich / masculin",Perzentile!L28,Perzentile!V28) -> 92.75622928 | N27: =Perzentile!W28 ->  | O27: =Perzentile!X28 ->  | P27: =Perzentile!Y28 ->  | Q27: 0
A28: 2.2 | B28: 2.166666667 | C28: 26 | D28: =IF('Entrée des données_Eingabemaske'!$N$12="männlich / masculin",Perzentile!C29,Perzentile!M29) -> 1 | E28: =IF('Entrée des données_Eingabemaske'!$N$12="männlich / masculin",Perzentile!D29,Perzentile!N29) -> 87.4462 | F28: =IF('Entrée des données_Eingabemaske'!$N$12="männlich / masculin",Perzentile!E29,Perzentile!O29) -> 0.03808 | G28: =IF('Entrée des données_Eingabemaske'!$N$12="männlich / masculin",Perzentile!F29,Perzentile!P29) -> 81.18324889 | H28: =IF('Entrée des données_Eingabemaske'!$N$12="männlich / masculin",Perzentile!G29,Perzentile!Q29) -> 83.1786957 | I28: =IF('Entrée des données_Eingabemaske'!$N$12="männlich / masculin",Perzentile!H29,Perzentile!R29) -> 85.20018198 | J28: =IF('Entrée des données_Eingabemaske'!$N$12="männlich / masculin",Perzentile!I29,Perzentile!S29) -> 87.4462 | K28: =IF('Entrée des données_Eingabemaske'!$N$12="männlich / masculin",Perzentile!J29,Perzentile!T29) -> 89.69221802 | L28: =IF('Entrée des données_Eingabemaske'!$N$12="männlich / masculin",Perzentile!K29,Perzentile!U29) -> 91.7137043 | M28: =IF('Entrée des données_Eingabemaske'!$N$12="männlich / masculin",Perzentile!L29,Perzentile!V29) -> 93.70915111 | N28: =Perzentile!W29 ->  | O28: =Perzentile!X29 ->  | P28: =Perzentile!Y29 ->  | Q28: 0
A29: 2.3 | B29: 2.25 | C29: 27 | D29: =IF('Entrée des données_Eingabemaske'!$N$12="männlich / masculin",Perzentile!C30,Perzentile!M30) -> 1 | E29: =IF('Entrée des données_Eingabemaske'!$N$12="männlich / masculin",Perzentile!D30,Perzentile!N30) -> 88.283 | F29: =IF('Entrée des données_Eingabemaske'!$N$12="männlich / masculin",Perzentile!E30,Perzentile!O30) -> 0.0383 | G29: =IF('Entrée des données_Eingabemaske'!$N$12="männlich / masculin",Perzentile!F30,Perzentile!P30) -> 81.92358749 | H29: =IF('Entrée des données_Eingabemaske'!$N$12="männlich / masculin",Perzentile!G30,Perzentile!Q30) -> 83.94976799 | I29: =IF('Entrée des données_Eingabemaske'!$N$12="männlich / masculin",Perzentile!H30,Perzentile!R30) -> 86.00238902 | J29: =IF('Entrée des données_Eingabemaske'!$N$12="männlich / masculin",Perzentile!I30,Perzentile!S30) -> 88.283 | K29: =IF('Entrée des données_Eingabemaske'!$N$12="männlich / masculin",Perzentile!J30,Perzentile!T30) -> 90.56361098 | L29: =IF('Entrée des données_Eingabemaske'!$N$12="männlich / masculin",Perzentile!K30,Perzentile!U30) -> 92.61623201 | M29: =IF('Entrée des données_Eingabemaske'!$N$12="männlich / masculin",Perzentile!L30,Perzentile!V30) -> 94.64241251 | N29: =Perzentile!W30 ->  | O29: =Perzentile!X30 ->  | P29: =Perzentile!Y30 ->  | Q29: 0
A30: 2.3 | B30: 2.333333333 | C30: 28 | D30: =IF('Entrée des données_Eingabemaske'!$N$12="männlich / masculin",Perzentile!C31,Perzentile!M31) -> 1 | E30: =IF('Entrée des données_Eingabemaske'!$N$12="männlich / masculin",Perzentile!D31,Perzentile!N31) -> 89.1004 | F30: =IF('Entrée des données_Eingabemaske'!$N$12="männlich / masculin",Perzentile!E31,Perzentile!O31) -> 0.03851 | G30: =IF('Entrée des données_Eingabemaske'!$N$12="männlich / masculin",Perzentile!F31,Perzentile!P31) -> 82.64691489 | H30: =IF('Entrée des données_Eingabemaske'!$N$12="männlich / masculin",Perzentile!G31,Perzentile!Q31) -> 84.70306798 | I30: =IF('Entrée des données_Eingabemaske'!$N$12="männlich / masculin",Perzentile!H31,Perzentile!R31) -> 86.78605273 | J30: =IF('Entrée des données_Eingabemaske'!$N$12="männlich / masculin",Perzentile!I31,Perzentile!S31) -> 89.1004 | K30: =IF('Entrée des données_Eingabemaske'!$N$12="männlich / masculin",Perzentile!J31,Perzentile!T31) -> 91.41474727 | L30: =IF('Entrée des données_Eingabemaske'!$N$12="männlich / masculin",Perzentile!K31,Perzentile!U31) -> 93.49773202 | M30: =IF('Entrée des données_Eingabemaske'!$N$12="männlich / masculin",Perzentile!L31,Perzentile!V31) -> 95.55388511 | N30: =Perzentile!W31 ->  | O30: =Perzentile!X31 ->  | P30: =Perzentile!Y31 ->  | Q30: 0
A31: 2.4 | B31: 2.416666667 | C31: 29 | D31: =IF('Entrée des données_Eingabemaske'!$N$12="männlich / masculin",Perzentile!C32,Perzentile!M32) -> 1 | E31: =IF('Entrée des données_Eingabemaske'!$N$12="männlich / masculin",Perzentile!D32,Perzentile!N32) -> 89.8991 | F31: =IF('Entrée des données_Eingabemaske'!$N$12="männlich / masculin",Perzentile!E32,Perzentile!O32) -> 0.03872 | G31: =IF('Entrée des données_Eingabemaske'!$N$12="männlich / masculin",Perzentile!F32,Perzentile!P32) -> 83.35225841 | H31: =IF('Entrée des données_Eingabemaske'!$N$12="männlich / masculin",Perzentile!G32,Perzentile!Q32) -> 85.43815593 | I31: =IF('Entrée des données_Eingabemaske'!$N$12="männlich / masculin",Perzentile!H32,Perzentile!R32) -> 87.55127325 | J31: =IF('Entrée des données_Eingabemaske'!$N$12="männlich / masculin",Perzentile!I32,Perzentile!S32) -> 89.8991 | K31: =IF('Entrée des données_Eingabemaske'!$N$12="männlich / masculin",Perzentile!J32,Perzentile!T32) -> 92.24692675 | L31: =IF('Entrée des données_Eingabemaske'!$N$12="männlich / masculin",Perzentile!K32,Perzentile!U32) -> 94.36004407 | M31: =IF('Entrée des données_Eingabemaske'!$N$12="männlich / masculin",Perzentile!L32,Perzentile!V32) -> 96.44594159 | N31: =Perzentile!W32 ->  | O31: =Perzentile!X32 ->  | P31: =Perzentile!Y32 ->  | Q31: 0
A32: 2.5 | B32: 2.5 | C32: 30 | D32: =IF('Entrée des données_Eingabemaske'!$N$12="männlich / masculin",Perzentile!C33,Perzentile!M33) -> 1 | E32: =IF('Entrée des données_Eingabemaske'!$N$12="männlich / masculin",Perzentile!D33,Perzentile!N33) -> 90.6797 | F32: =IF('Entrée des données_Eingabemaske'!$N$12="männlich / masculin",Perzentile!E33,Perzentile!O33) -> 0.03893 | G32: =IF('Entrée des données_Eingabemaske'!$N$12="männlich / masculin",Perzentile!F33,Perzentile!P33) -> 84.04019628 | H32: =IF('Entrée des données_Eingabemaske'!$N$12="männlich / masculin",Perzentile!G33,Perzentile!Q33) -> 86.155617 | I32: =IF('Entrée des données_Eingabemaske'!$N$12="männlich / masculin",Perzentile!H33,Perzentile!R33) -> 88.29864278 | J32: =IF('Entrée des données_Eingabemaske'!$N$12="männlich / masculin",Perzentile!I33,Perzentile!S33) -> 90.6797 | K32: =IF('Entrée des données_Eingabemaske'!$N$12="männlich / masculin",Perzentile!J33,Perzentile!T33) -> 93.06075722 | L32: =IF('Entrée des données_Eingabemaske'!$N$12="männlich / masculin",Perzentile!K33,Perzentile!U33) -> 95.203783 | M32: =IF('Entrée des données_Eingabemaske'!$N$12="männlich / masculin",Perzentile!L33,Perzentile!V33) -> 97.31920372 | N32: =Perzentile!W33 ->  | O32: =Perzentile!X33 ->  | P32: =Perzentile!Y33 ->  | Q32: 0
A33: 2.6 | B33: 2.583333333 | C33: 31 | D33: =IF('Entrée des données_Eingabemaske'!$N$12="männlich / masculin",Perzentile!C34,Perzentile!M34) -> 1 | E33: =IF('Entrée des données_Eingabemaske'!$N$12="männlich / masculin",Perzentile!D34,Perzentile!N34) -> 91.443 | F33: =IF('Entrée des données_Eingabemaske'!$N$12="männlich / masculin",Perzentile!E34,Perzentile!O34) -> 0.03913 | G33: =IF('Entrée des données_Eingabemaske'!$N$12="männlich / masculin",Perzentile!F34,Perzentile!P34) -> 84.71321091 | H33: =IF('Entrée des données_Eingabemaske'!$N$12="männlich / masculin",Perzentile!G34,Perzentile!Q34) -> 86.85739757 | I33: =IF('Entrée des données_Eingabemaske'!$N$12="männlich / masculin",Perzentile!H34,Perzentile!R34) -> 89.02956466 | J33: =IF('Entrée des données_Eingabemaske'!$N$12="männlich / masculin",Perzentile!I34,Perzentile!S34) -> 91.443 | K33: =IF('Entrée des données_Eingabemaske'!$N$12="männlich / masculin",Perzentile!J34,Perzentile!T34) -> 93.85643534 | L33: =IF('Entrée des données_Eingabemaske'!$N$12="männlich / masculin",Perzentile!K34,Perzentile!U34) -> 96.02860243 | M33: =IF('Entrée des données_Eingabemaske'!$N$12="männlich / masculin",Perzentile!L34,Perzentile!V34) -> 98.17278909 | N33: =Perzentile!W34 ->  | O33: =Perzentile!X34 ->  | P33: =Perzentile!Y34 ->  | Q33: 0
A34: 2.7 | B34: 2.666666667 | C34: 32 | D34: =IF('Entrée des données_Eingabemaske'!$N$12="männlich / masculin",Perzentile!C35,Perzentile!M35) -> 1 | E34: =IF('Entrée des données_Eingabemaske'!$N$12="männlich / masculin",Perzentile!D35,Perzentile!N35) -> 92.1906 | F34: =IF('Entrée des données_Eingabemaske'!$N$12="männlich / masculin",Perzentile!E35,Perzentile!O35) -> 0.03933 | G34: =IF('Entrée des données_Eingabemaske'!$N$12="männlich / masculin",Perzentile!F35,Perzentile!P35) -> 85.37111265 | H34: =IF('Entrée des données_Eingabemaske'!$N$12="männlich / masculin",Perzentile!G35,Perzentile!Q35) -> 87.54387818 | I34: =IF('Entrée des données_Eingabemaske'!$N$12="männlich / masculin",Perzentile!H35,Perzentile!R35) -> 89.74499709 | J34: =IF('Entrée des données_Eingabemaske'!$N$12="männlich / masculin",Perzentile!I35,Perzentile!S35) -> 92.1906 | K34: =IF('Entrée des données_Eingabemaske'!$N$12="männlich / masculin",Perzentile!J35,Perzentile!T35) -> 94.63620291 | L34: =IF('Entrée des données_Eingabemaske'!$N$12="männlich / masculin",Perzentile!K35,Perzentile!U35) -> 96.83732182 | M34: =IF('Entrée des données_Eingabemaske'!$N$12="männlich / masculin",Perzentile!L35,Perzentile!V35) -> 99.01008735 | N34: =Perzentile!W35 ->  | O34: =Perzentile!X35 ->  | P34: =Perzentile!Y35 ->  | Q34: 0
A35: 2.8 | B35: 2.75 | C35: 33 | D35: =IF('Entrée des données_Eingabemaske'!$N$12="männlich / masculin",Perzentile!C36,Perzentile!M36) -> 1 | E35: =IF('Entrée des données_Eingabemaske'!$N$12="männlich / masculin",Perzentile!D36,Perzentile!N36) -> 92.9239 | F35: =IF('Entrée des données_Eingabemaske'!$N$12="männlich / masculin",Perzentile!E36,Perzentile!O36) -> 0.03952 | G35: =IF('Entrée des données_Eingabemaske'!$N$12="männlich / masculin",Perzentile!F36,Perzentile!P36) -> 86.01696284 | H35: =IF('Entrée des données_Eingabemaske'!$N$12="männlich / masculin",Perzentile!G36,Perzentile!Q36) -> 88.21759087 | I35: =IF('Entrée des données_Eingabemaske'!$N$12="männlich / masculin",Perzentile!H36,Perzentile!R36) -> 90.44693586 | J35: =IF('Entrée des données_Eingabemaske'!$N$12="männlich / masculin",Perzentile!I36,Perzentile!S36) -> 92.9239 | K35: =IF('Entrée des données_Eingabemaske'!$N$12="männlich / masculin",Perzentile!J36,Perzentile!T36) -> 95.40086414 | L35: =IF('Entrée des données_Eingabemaske'!$N$12="männlich / masculin",Perzentile!K36,Perzentile!U36) -> 97.63020913 | M35: =IF('Entrée des données_Eingabemaske'!$N$12="männlich / masculin",Perzentile!L36,Perzentile!V36) -> 99.83083716 | N35: =Perzentile!W36 ->  | O35: =Perzentile!X36 ->  | P35: =Perzentile!Y36 ->  | Q35: 0
A36: 2.8 | B36: 2.833333333 | C36: 34 | D36: =IF('Entrée des données_Eingabemaske'!$N$12="männlich / masculin",Perzentile!C37,Perzentile!M37) -> 1 | E36: =IF('Entrée des données_Eingabemaske'!$N$12="männlich / masculin",Perzentile!D37,Perzentile!N37) -> 93.6444 | F36: =IF('Entrée des données_Eingabemaske'!$N$12="männlich / masculin",Perzentile!E37,Perzentile!O37) -> 0.03971 | G36: =IF('Entrée des données_Eingabemaske'!$N$12="männlich / masculin",Perzentile!F37,Perzentile!P37) -> 86.65044492 | H36: =IF('Entrée des données_Eingabemaske'!$N$12="männlich / masculin",Perzentile!G37,Perzentile!Q37) -> 88.87879784 | I36: =IF('Entrée des données_Eingabemaske'!$N$12="männlich / masculin",Perzentile!H37,Perzentile!R37) -> 91.13622952 | J36: =IF('Entrée des données_Eingabemaske'!$N$12="männlich / masculin",Perzentile!I37,Perzentile!S37) -> 93.6444 | K36: =IF('Entrée des données_Eingabemaske'!$N$12="männlich / masculin",Perzentile!J37,Perzentile!T37) -> 96.15257048 | L36: =IF('Entrée des données_Eingabemaske'!$N$12="männlich / masculin",Perzentile!K37,Perzentile!U37) -> 98.41000216 | M36: =IF('Entrée des données_Eingabemaske'!$N$12="männlich / masculin",Perzentile!L37,Perzentile!V37) -> 100.6383551 | N36: =Perzentile!W37 ->  | O36: =Perzentile!X37 ->  | P36: =Perzentile!Y37 ->  | Q36: 0
A37: 2.9 | B37: 2.916666667 | C37: 35 | D37: =IF('Entrée des données_Eingabemaske'!$N$12="männlich / masculin",Perzentile!C38,Perzentile!M38) -> 1 | E37: =IF('Entrée des données_Eingabemaske'!$N$12="männlich / masculin",Perzentile!D38,Perzentile!N38) -> 94.3533 | F37: =IF('Entrée des données_Eingabemaske'!$N$12="männlich / masculin",Perzentile!E38,Perzentile!O38) -> 0.03989 | G37: =IF('Entrée des données_Eingabemaske'!$N$12="männlich / masculin",Perzentile!F38,Perzentile!P38) -> 87.27445716 | H37: =IF('Entrée des données_Eingabemaske'!$N$12="männlich / masculin",Perzentile!G38,Perzentile!Q38) -> 89.52985627 | I37: =IF('Entrée des données_Eingabemaske'!$N$12="männlich / masculin",Perzentile!H38,Perzentile!R38) -> 91.81468709 | J37: =IF('Entrée des données_Eingabemaske'!$N$12="männlich / masculin",Perzentile!I38,Perzentile!S38) -> 94.3533 | K37: =IF('Entrée des données_Eingabemaske'!$N$12="männlich / masculin",Perzentile!J38,Perzentile!T38) -> 96.89191291 | L37: =IF('Entrée des données_Eingabemaske'!$N$12="männlich / masculin",Perzentile!K38,Perzentile!U38) -> 99.17674373 | M37: =IF('Entrée des données_Eingabemaske'!$N$12="männlich / masculin",Perzentile!L38,Perzentile!V38) -> 101.4321428 | N37: =Perzentile!W38 ->  | O37: =Perzentile!X38 ->  | P37: =Perzentile!Y38 ->  | Q37: 0
A38: 3 | B38: 3 | C38: 36 | D38: =IF('Entrée des données_Eingabemaske'!$N$12="männlich / masculin",Perzentile!C39,Perzentile!M39) -> 1 | E38: =IF('Entrée des données_Eingabemaske'!$N$12="männlich / masculin",Perzentile!D39,Perzentile!N39) -> 95.0515 | F38: =IF('Entrée des données_Eingabemaske'!$N$12="männlich / masculin",Perzentile!E39,Perzentile!O39) -> 0.04006 | G38: =IF('Entrée des données_Eingabemaske'!$N$12="männlich / masculin",Perzentile!F39,Perzentile!P39) -> 87.88988352 | H38: =IF('Entrée des données_Eingabemaske'!$N$12="männlich / masculin",Perzentile!G39,Perzentile!Q39) -> 90.17165525 | I38: =IF('Entrée des données_Eingabemaske'!$N$12="männlich / masculin",Perzentile!H39,Perzentile!R39) -> 92.48320282 | J38: =IF('Entrée des données_Eingabemaske'!$N$12="männlich / masculin",Perzentile!I39,Perzentile!S39) -> 95.0515 | K38: =IF('Entrée des données_Eingabemaske'!$N$12="männlich / masculin",Perzentile!J39,Perzentile!T39) -> 97.61979718 | L38: =IF('Entrée des données_Eingabemaske'!$N$12="männlich / masculin",Perzentile!K39,Perzentile!U39) -> 99.93134475 | M38: =IF('Entrée des données_Eingabemaske'!$N$12="männlich / masculin",Perzentile!L39,Perzentile!V39) -> 102.2131165 | N38: =Perzentile!W39 ->  | O38: =Perzentile!X39 ->  | P38: =Perzentile!Y39 ->  | Q38: 0
A39: 3.1 | B39: 3.083333333 | C39: 37 | D39: =IF('Entrée des données_Eingabemaske'!$N$12="männlich / masculin",Perzentile!C40,Perzentile!M40) -> 1 | E39: =IF('Entrée des données_Eingabemaske'!$N$12="männlich / masculin",Perzentile!D40,Perzentile!N40) -> 95.7399 | F39: =IF('Entrée des données_Eingabemaske'!$N$12="männlich / masculin",Perzentile!E40,Perzentile!O40) -> 0.04024 | G39: =IF('Entrée des données_Eingabemaske'!$N$12="männlich / masculin",Perzentile!F40,Perzentile!P40) -> 88.49400424 | H39: =IF('Entrée des données_Eingabemaske'!$N$12="männlich / masculin",Perzentile!G40,Perzentile!Q40) -> 90.8026283 | I39: =IF('Entrée des données_Eingabemaske'!$N$12="männlich / masculin",Perzentile!H40,Perzentile!R40) -> 93.14137861 | J39: =IF('Entrée des données_Eingabemaske'!$N$12="männlich / masculin",Perzentile!I40,Perzentile!S40) -> 95.7399 | K39: =IF('Entrée des données_Eingabemaske'!$N$12="männlich / masculin",Perzentile!J40,Perzentile!T40) -> 98.33842139 | L39: =IF('Entrée des données_Eingabemaske'!$N$12="männlich / masculin",Perzentile!K40,Perzentile!U40) -> 100.6771717 | M39: =IF('Entrée des données_Eingabemaske'!$N$12="männlich / masculin",Perzentile!L40,Perzentile!V40) -> 102.9857958 | N39: =Perzentile!W40 ->  | O39: =Perzentile!X40 ->  | P39: =Perzentile!Y40 ->  | Q39: 0
A40: 3.2 | B40: 3.166666667 | C40: 38 | D40: =IF('Entrée des données_Eingabemaske'!$N$12="männlich / masculin",Perzentile!C41,Perzentile!M41) -> 1 | E40: =IF('Entrée des données_Eingabemaske'!$N$12="männlich / masculin",Perzentile!D41,Perzentile!N41) -> 96.4187 | F40: =IF('Entrée des données_Eingabemaske'!$N$12="männlich / masculin",Perzentile!E41,Perzentile!O41) -> 0.04041 | G40: =IF('Entrée des données_Eingabemaske'!$N$12="männlich / masculin",Perzentile!F41,Perzentile!P41) -> 89.09060211 | H40: =IF('Entrée des données_Eingabemaske'!$N$12="männlich / masculin",Perzentile!G41,Perzentile!Q41) -> 91.42541669 | I40: =IF('Entrée des données_Eingabemaske'!$N$12="männlich / masculin",Perzentile!H41,Perzentile!R41) -> 93.7906993 | J40: =IF('Entrée des données_Eingabemaske'!$N$12="männlich / masculin",Perzentile!I41,Perzentile!S41) -> 96.4187 | K40: =IF('Entrée des données_Eingabemaske'!$N$12="männlich / masculin",Perzentile!J41,Perzentile!T41) -> 99.0467007 | L40: =IF('Entrée des données_Eingabemaske'!$N$12="männlich / masculin",Perzentile!K41,Perzentile!U41) -> 101.4119833 | M40: =IF('Entrée des données_Eingabemaske'!$N$12="männlich / masculin",Perzentile!L41,Perzentile!V41) -> 103.7467979 | N40: =Perzentile!W41 ->  | O40: =Perzentile!X41 ->  | P40: =Perzentile!Y41 ->  | Q40: 0
A41: 3.3 | B41: 3.25 | C41: 39 | D41: =IF('Entrée des données_Eingabemaske'!$N$12="männlich / masculin",Perzentile!C42,Perzentile!M42) -> 1 | E41: =IF('Entrée des données_Eingabemaske'!$N$12="männlich / masculin",Perzentile!D42,Perzentile!N42) -> 97.0885 | F41: =IF('Entrée des données_Eingabemaske'!$N$12="männlich / masculin",Perzentile!E42,Perzentile!O42) -> 0.04057 | G41: =IF('Entrée des données_Eingabemaske'!$N$12="männlich / masculin",Perzentile!F42,Perzentile!P42) -> 89.68027884 | H41: =IF('Entrée des données_Eingabemaske'!$N$12="männlich / masculin",Perzentile!G42,Perzentile!Q42) -> 92.0406216 | I41: =IF('Entrée des données_Eingabemaske'!$N$12="männlich / masculin",Perzentile!H42,Perzentile!R42) -> 94.43176551 | J41: =IF('Entrée des données_Eingabemaske'!$N$12="männlich / masculin",Perzentile!I42,Perzentile!S42) -> 97.0885 | K41: =IF('Entrée des données_Eingabemaske'!$N$12="männlich / masculin",Perzentile!J42,Perzentile!T42) -> 99.74523449 | L41: =IF('Entrée des données_Eingabemaske'!$N$12="männlich / masculin",Perzentile!K42,Perzentile!U42) -> 102.1363784 | M41: =IF('Entrée des données_Eingabemaske'!$N$12="männlich / masculin",Perzentile!L42,Perzentile!V42) -> 104.4967212 | N41: =Perzentile!W42 ->  | O41: =Perzentile!X42 ->  | P41: =Perzentile!Y42 ->  | Q41: 0
A42: 3.3 | B42: 3.333333333 | C42: 40 | D42: =IF('Entrée des données_Eingabemaske'!$N$12="männlich / masculin",Perzentile!C43,Perzentile!M43) -> 1 | E42: =IF('Entrée des données_Eingabemaske'!$N$12="männlich / masculin",Perzentile!D43,Perzentile!N43) -> 97.7493 | F42: =IF('Entrée des données_Eingabemaske'!$N$12="männlich / masculin",Perzentile!E43,Perzentile!O43) -> 0.04073 | G42: =IF('Entrée des données_Eingabemaske'!$N$12="männlich / masculin",Perzentile!F43,Perzentile!P43) -> 90.26124189 | H42: =IF('Entrée des données_Eingabemaske'!$N$12="männlich / masculin",Perzentile!G43,Perzentile!Q43) -> 92.6470216 | I42: =IF('Entrée des données_Eingabemaske'!$N$12="männlich / masculin",Perzentile!H43,Perzentile!R43) -> 95.0639344 | J42: =IF('Entrée des données_Eingabemaske'!$N$12="männlich / masculin",Perzentile!I43,Perzentile!S43) -> 97.7493 | K42: =IF('Entrée des données_Eingabemaske'!$N$12="männlich / masculin",Perzentile!J43,Perzentile!T43) -> 100.4346656 | L42: =IF('Entrée des données_Eingabemaske'!$N$12="männlich / masculin",Perzentile!K43,Perzentile!U43) -> 102.8515784 | M42: =IF('Entrée des données_Eingabemaske'!$N$12="männlich / masculin",Perzentile!L43,Perzentile!V43) -> 105.2373581 | N42: =Perzentile!W43 ->  | O42: =Perzentile!X43 ->  | P42: =Perzentile!Y43 ->  | Q42: 0
A43: 3.4 | B43: 3.416666667 | C43: 41 | D43: =IF('Entrée des données_Eingabemaske'!$N$12="männlich / masculin",Perzentile!C44,Perzentile!M44) -> 1 | E43: =IF('Entrée des données_Eingabemaske'!$N$12="männlich / masculin",Perzentile!D44,Perzentile!N44) -> 98.4015 | F43: =IF('Entrée des données_Eingabemaske'!$N$12="männlich / masculin",Perzentile!E44,Perzentile!O44) -> 0.04089 | G43: =IF('Entrée des données_Eingabemaske'!$N$12="männlich / masculin",Perzentile!F44,Perzentile!P44) -> 90.83386862 | H43: =IF('Entrée des données_Eingabemaske'!$N$12="männlich / masculin",Perzentile!G44,Perzentile!Q44) -> 93.24500127 | I43: =IF('Entrée des données_Eingabemaske'!$N$12="männlich / masculin",Perzentile!H44,Perzentile!R44) -> 95.68759786 | J43: =IF('Entrée des données_Eingabemaske'!$N$12="männlich / masculin",Perzentile!I44,Perzentile!S44) -> 98.4015 | K43: =IF('Entrée des données_Eingabemaske'!$N$12="männlich / masculin",Perzentile!J44,Perzentile!T44) -> 101.1154021 | L43: =IF('Entrée des données_Eingabemaske'!$N$12="männlich / masculin",Perzentile!K44,Perzentile!U44) -> 103.5579987 | M43: =IF('Entrée des données_Eingabemaske'!$N$12="männlich / masculin",Perzentile!L44,Perzentile!V44) -> 105.9691314 | N43: =Perzentile!W44 ->  | O43: =Perzentile!X44 ->  | P43: =Perzentile!Y44 ->  | Q43: 0
A44: 3.5 | B44: 3.5 | C44: 42 | D44: =IF('Entrée des données_Eingabemaske'!$N$12="männlich / masculin",Perzentile!C45,Perzentile!M45) -> 1 | E44: =IF('Entrée des données_Eingabemaske'!$N$12="männlich / masculin",Perzentile!D45,Perzentile!N45) -> 99.0448 | F44: =IF('Entrée des données_Eingabemaske'!$N$12="männlich / masculin",Perzentile!E45,Perzentile!O45) -> 0.04105 | G44: =IF('Entrée des données_Eingabemaske'!$N$12="männlich / masculin",Perzentile!F45,Perzentile!P45) -> 91.39788996 | H44: =IF('Entrée des données_Eingabemaske'!$N$12="männlich / masculin",Perzentile!G45,Perzentile!Q45) -> 93.83428169 | I44: =IF('Entrée des données_Eingabemaske'!$N$12="männlich / masculin",Perzentile!H45,Perzentile!R45) -> 96.30246697 | J44: =IF('Entrée des données_Eingabemaske'!$N$12="männlich / masculin",Perzentile!I45,Perzentile!S45) -> 99.0448 | K44: =IF('Entrée des données_Eingabemaske'!$N$12="männlich / masculin",Perzentile!J45,Perzentile!T45) -> 101.787133 | L44: =IF('Entrée des données_Eingabemaske'!$N$12="männlich / masculin",Perzentile!K45,Perzentile!U45) -> 104.2553183 | M44: =IF('Entrée des données_Eingabemaske'!$N$12="männlich / masculin",Perzentile!L45,Perzentile!V45) -> 106.69171 | N44: =Perzentile!W45 ->  | O44: =Perzentile!X45 ->  | P44: =Perzentile!Y45 ->  | Q44: 0
A45: 3.6 | B45: 3.583333333 | C45: 43 | D45: =IF('Entrée des données_Eingabemaske'!$N$12="männlich / masculin",Perzentile!C46,Perzentile!M46) -> 1 | E45: =IF('Entrée des données_Eingabemaske'!$N$12="männlich / masculin",Perzentile!D46,Perzentile!N46) -> 99.6795 | F45: =IF('Entrée des données_Eingabemaske'!$N$12="männlich / masculin",Perzentile!E46,Perzentile!O46) -> 0.0412 | G45: =IF('Entrée des données_Eingabemaske'!$N$12="männlich / masculin",Perzentile!F46,Perzentile!P46) -> 91.95546546 | H45: =IF('Entrée des données_Eingabemaske'!$N$12="männlich / masculin",Perzentile!G46,Perzentile!Q46) -> 94.41642993 | I45: =IF('Entrée des données_Eingabemaske'!$N$12="männlich / masculin",Perzentile!H46,Perzentile!R46) -> 96.9095086 | J45: =IF('Entrée des données_Eingabemaske'!$N$12="männlich / masculin",Perzentile!I46,Perzentile!S46) -> 99.6795 | K45: =IF('Entrée des données_Eingabemaske'!$N$12="männlich / masculin",Perzentile!J46,Perzentile!T46) -> 102.4494914 | L45: =IF('Entrée des données_Eingabemaske'!$N$12="männlich / masculin",Perzentile!K46,Perzentile!U46) -> 104.9425701 | M45: =IF('Entrée des données_Eingabemaske'!$N$12="männlich / masculin",Perzentile!L46,Perzentile!V46) -> 107.4035345 | N45: =Perzentile!W46 ->  | O45: =Perzentile!X46 ->  | P45: =Perzentile!Y46 ->  | Q45: 0
A46: 3.7 | B46: 3.666666667 | C46: 44 | D46: =IF('Entrée des données_Eingabemaske'!$N$12="männlich / masculin",Perzentile!C47,Perzentile!M47) -> 1 | E46: =IF('Entrée des données_Eingabemaske'!$N$12="männlich / masculin",Perzentile!D47,Perzentile!N47) -> 100.3058 | F46: =IF('Entrée des données_Eingabemaske'!$N$12="männlich / masculin",Perzentile!E47,Perzentile!O47) -> 0.04135 | G46: =IF('Entrée des données_Eingabemaske'!$N$12="männlich / masculin",Perzentile!F47,Perzentile!P47) -> 92.50493611 | H46: =IF('Entrée des données_Eingabemaske'!$N$12="männlich / masculin",Perzentile!G47,Perzentile!Q47) -> 94.99037927 | I46: =IF('Entrée des données_Eingabemaske'!$N$12="männlich / masculin",Perzentile!H47,Perzentile!R47) -> 97.50825607 | J46: =IF('Entrée des données_Eingabemaske'!$N$12="männlich / masculin",Perzentile!I47,Perzentile!S47) -> 100.3058 | K46: =IF('Entrée des données_Eingabemaske'!$N$12="männlich / masculin",Perzentile!J47,Perzentile!T47) -> 103.1033439 | L46: =IF('Entrée des données_Eingabemaske'!$N$12="männlich / masculin",Perzentile!K47,Perzentile!U47) -> 105.6212207 | M46: =IF('Entrée des données_Eingabemaske'!$N$12="männlich / masculin",Perzentile!L47,Perzentile!V47) -> 108.1066639 | N46: =Perzentile!W47 ->  | O46: =Perzentile!X47 ->  | P46: =Perzentile!Y47 ->  | Q46: 0
A47: 3.8 | B47: 3.75 | C47: 45 | D47: =IF('Entrée des données_Eingabemaske'!$N$12="männlich / masculin",Perzentile!C48,Perzentile!M48) -> 1 | E47: =IF('Entrée des données_Eingabemaske'!$N$12="männlich / masculin",Perzentile!D48,Perzentile!N48) -> 100.9238 | F47: =IF('Entrée des données_Eingabemaske'!$N$12="männlich / masculin",Perzentile!E48,Perzentile!O48) -> 0.0415 | G47: =IF('Entrée des données_Eingabemaske'!$N$12="männlich / masculin",Perzentile!F48,Perzentile!P48) -> 93.04640123 | H47: =IF('Entrée des données_Eingabemaske'!$N$12="männlich / masculin",Perzentile!G48,Perzentile!Q48) -> 95.55622926 | I47: =IF('Entrée des données_Eingabemaske'!$N$12="männlich / masculin",Perzentile!H48,Perzentile!R48) -> 98.09880915 | J47: =IF('Entrée des données_Eingabemaske'!$N$12="männlich / masculin",Perzentile!I48,Perzentile!S48) -> 100.9238 | K47: =IF('Entrée des données_Eingabemaske'!$N$12="männlich / masculin",Perzentile!J48,Perzentile!T48) -> 103.7487908 | L47: =IF('Entrée des données_Eingabemaske'!$N$12="männlich / masculin",Perzentile!K48,Perzentile!U48) -> 106.2913707 | M47: =IF('Entrée des données_Eingabemaske'!$N$12="männlich / masculin",Perzentile!L48,Perzentile!V48) -> 108.8011988 | N47: =Perzentile!W48 ->  | O47: =Perzentile!X48 ->  | P47: =Perzentile!Y48 ->  | Q47: 0
A48: 3.8 | B48: 3.833333333 | C48: 46 | D48: =IF('Entrée des données_Eingabemaske'!$N$12="männlich / masculin",Perzentile!C49,Perzentile!M49) -> 1 | E48: =IF('Entrée des données_Eingabemaske'!$N$12="männlich / masculin",Perzentile!D49,Perzentile!N49) -> 101.5337 | F48: =IF('Entrée des données_Eingabemaske'!$N$12="männlich / masculin",Perzentile!E49,Perzentile!O49) -> 0.04164 | G48: =IF('Entrée des données_Eingabemaske'!$N$12="männlich / masculin",Perzentile!F49,Perzentile!P49) -> 93.58196179 | H48: =IF('Entrée des données_Eingabemaske'!$N$12="männlich / masculin",Perzentile!G49,Perzentile!Q49) -> 96.11547521 | I48: =IF('Entrée des données_Eingabemaske'!$N$12="männlich / masculin",Perzentile!H49,Perzentile!R49) -> 98.68204956 | J48: =IF('Entrée des données_Eingabemaske'!$N$12="männlich / masculin",Perzentile!I49,Perzentile!S49) -> 101.5337 | K48: =IF('Entrée des données_Eingabemaske'!$N$12="männlich / masculin",Perzentile!J49,Perzentile!T49) -> 104.3853504 | L48: =IF('Entrée des données_Eingabemaske'!$N$12="männlich / masculin",Perzentile!K49,Perzentile!U49) -> 106.9519248 | M48: =IF('Entrée des données_Eingabemaske'!$N$12="männlich / masculin",Perzentile!L49,Perzentile!V49) -> 109.4854382 | N48: =Perzentile!W49 ->  | O48: =Perzentile!X49 ->  | P48: =Perzentile!Y49 ->  | Q48: 0
A49: 3.9 | B49: 3.916666667 | C49: 47 | D49: =IF('Entrée des données_Eingabemaske'!$N$12="männlich / masculin",Perzentile!C50,Perzentile!M50) -> 1 | E49: =IF('Entrée des données_Eingabemaske'!$N$12="männlich / masculin",Perzentile!D50,Perzentile!N50) -> 102.136 | F49: =IF('Entrée des données_Eingabemaske'!$N$12="männlich / masculin",Perzentile!E50,Perzentile!O50) -> 0.04179 | G49: =IF('Entrée des données_Eingabemaske'!$N$12="männlich / masculin",Perzentile!F50,Perzentile!P50) -> 94.1082774 | H49: =IF('Entrée des données_Eingabemaske'!$N$12="männlich / masculin",Perzentile!G50,Perzentile!Q50) -> 96.66600031 | I49: =IF('Entrée des données_Eingabemaske'!$N$12="männlich / masculin",Perzentile!H50,Perzentile!R50) -> 99.25710006 | J49: =IF('Entrée des données_Eingabemaske'!$N$12="männlich / masculin",Perzentile!I50,Perzentile!S50) -> 102.136 | K49: =IF('Entrée des données_Eingabemaske'!$N$12="männlich / masculin",Perzentile!J50,Perzentile!T50) -> 105.0148999 | L49: =IF('Entrée des données_Eingabemaske'!$N$12="männlich / masculin",Perzentile!K50,Perzentile!U50) -> 107.6059997 | M49: =IF('Entrée des données_Eingabemaske'!$N$12="männlich / masculin",Perzentile!L50,Perzentile!V50) -> 110.1637226 | N49: =Perzentile!W50 ->  | O49: =Perzentile!X50 ->  | P49: =Perzentile!Y50 ->  | Q49: 0
A50: 4 | B50: 4 | C50: 48 | D50: =IF('Entrée des données_Eingabemaske'!$N$12="männlich / masculin",Perzentile!C51,Perzentile!M51) -> 1 | E50: =IF('Entrée des données_Eingabemaske'!$N$12="männlich / masculin",Perzentile!D51,Perzentile!N51) -> 102.7312 | F50: =IF('Entrée des données_Eingabemaske'!$N$12="männlich / masculin",Perzentile!E51,Perzentile!O51) -> 0.04193 | G50: =IF('Entrée des données_Eingabemaske'!$N$12="männlich / masculin",Perzentile!F51,Perzentile!P51) -> 94.62964539 | H50: =IF('Entrée des données_Eingabemaske'!$N$12="männlich / masculin",Perzentile!G51,Perzentile!Q51) -> 97.21089201 | I50: =IF('Entrée des données_Eingabemaske'!$N$12="männlich / masculin",Perzentile!H51,Perzentile!R51) -> 99.82582244 | J50: =IF('Entrée des données_Eingabemaske'!$N$12="männlich / masculin",Perzentile!I51,Perzentile!S51) -> 102.7312 | K50: =IF('Entrée des données_Eingabemaske'!$N$12="männlich / masculin",Perzentile!J51,Perzentile!T51) -> 105.6365776 | L50: =IF('Entrée des données_Eingabemaske'!$N$12="männlich / masculin",Perzentile!K51,Perzentile!U51) -> 108.251508 | M50: =IF('Entrée des données_Eingabemaske'!$N$12="männlich / masculin",Perzentile!L51,Perzentile!V51) -> 110.8327546 | N50: =Perzentile!W51 ->  | O50: =Perzentile!X51 ->  | P50: =Perzentile!Y51 ->  | Q50: 0
A51: 4.1 | B51: 4.083333333 | C51: 49 | D51: =IF('Entrée des données_Eingabemaske'!$N$12="männlich / masculin",Perzentile!C52,Perzentile!M52) -> 1 | E51: =IF('Entrée des données_Eingabemaske'!$N$12="männlich / masculin",Perzentile!D52,Perzentile!N52) -> 103.3197 | F51: =IF('Entrée des données_Eingabemaske'!$N$12="männlich / masculin",Perzentile!E52,Perzentile!O52) -> 0.04206 | G51: =IF('Entrée des données_Eingabemaske'!$N$12="männlich / masculin",Perzentile!F52,Perzentile!P52) -> 95.1464733 | H51: =IF('Entrée des données_Eingabemaske'!$N$12="männlich / masculin",Perzentile!G52,Perzentile!Q52) -> 97.75055545 | I51: =IF('Entrée des données_Eingabemaske'!$N$12="männlich / masculin",Perzentile!H52,Perzentile!R52) -> 100.3886194 | J51: =IF('Entrée des données_Eingabemaske'!$N$12="männlich / masculin",Perzentile!I52,Perzentile!S52) -> 103.3197 | K51: =IF('Entrée des données_Eingabemaske'!$N$12="männlich / masculin",Perzentile!J52,Perzentile!T52) -> 106.2507806 | L51: =IF('Entrée des données_Eingabemaske'!$N$12="männlich / masculin",Perzentile!K52,Perzentile!U52) -> 108.8888445 | M51: =IF('Entrée des données_Eingabemaske'!$N$12="männlich / masculin",Perzentile!L52,Perzentile!V52) -> 111.4929267 | N51: =Perzentile!W52 ->  | O51: =Perzentile!X52 ->  | P51: =Perzentile!Y52 ->  | Q51: 0
A52: 4.2 | B52: 4.166666667 | C52: 50 | D52: =IF('Entrée des données_Eingabemaske'!$N$12="männlich / masculin",Perzentile!C53,Perzentile!M53) -> 1 | E52: =IF('Entrée des données_Eingabemaske'!$N$12="männlich / masculin",Perzentile!D53,Perzentile!N53) -> 103.9021 | F52: =IF('Entrée des données_Eingabemaske'!$N$12="männlich / masculin",Perzentile!E53,Perzentile!O53) -> 0.0422 | G52: =IF('Entrée des données_Eingabemaske'!$N$12="männlich / masculin",Perzentile!F53,Perzentile!P53) -> 95.65544329 | H52: =IF('Entrée des données_Eingabemaske'!$N$12="männlich / masculin",Perzentile!G53,Perzentile!Q53) -> 98.28292107 | I52: =IF('Entrée des données_Eingabemaske'!$N$12="männlich / masculin",Perzentile!H53,Perzentile!R53) -> 100.944686 | J52: =IF('Entrée des données_Eingabemaske'!$N$12="männlich / masculin",Perzentile!I53,Perzentile!S53) -> 103.9021 | K52: =IF('Entrée des données_Eingabemaske'!$N$12="männlich / masculin",Perzentile!J53,Perzentile!T53) -> 106.859514 | L52: =IF('Entrée des données_Eingabemaske'!$N$12="männlich / masculin",Perzentile!K53,Perzentile!U53) -> 109.5212789 | M52: =IF('Entrée des données_Eingabemaske'!$N$12="männlich / masculin",Perzentile!L53,Perzentile!V53) -> 112.1487567 | N52: =Perzentile!W53 ->  | O52: =Perzentile!X53 ->  | P52: =Perzentile!Y53 ->  | Q52: 0
A53: 4.3 | B53: 4.25 | C53: 51 | D53: =IF('Entrée des données_Eingabemaske'!$N$12="männlich / masculin",Perzentile!C54,Perzentile!M54) -> 1 | E53: =IF('Entrée des données_Eingabemaske'!$N$12="männlich / masculin",Perzentile!D54,Perzentile!N54) -> 104.4786 | F53: =IF('Entrée des données_Eingabemaske'!$N$12="männlich / masculin",Perzentile!E54,Perzentile!O54) -> 0.04233 | G53: =IF('Entrée des données_Eingabemaske'!$N$12="männlich / masculin",Perzentile!F54,Perzentile!P54) -> 96.16064143 | H53: =IF('Entrée des données_Eingabemaske'!$N$12="männlich / masculin",Perzentile!G54,Perzentile!Q54) -> 98.81083678 | I53: =IF('Entrée des données_Eingabemaske'!$N$12="männlich / masculin",Perzentile!H54,Perzentile!R54) -> 101.4956157 | J53: =IF('Entrée des données_Eingabemaske'!$N$12="männlich / masculin",Perzentile!I54,Perzentile!S54) -> 104.4786 | K53: =IF('Entrée des données_Eingabemaske'!$N$12="männlich / masculin",Perzentile!J54,Perzentile!T54) -> 107.4615843 | L53: =IF('Entrée des données_Eingabemaske'!$N$12="männlich / masculin",Perzentile!K54,Perzentile!U54) -> 110.1463632 | M53: =IF('Entrée des données_Eingabemaske'!$N$12="männlich / masculin",Perzentile!L54,Perzentile!V54) -> 112.7965586 | N53: =Perzentile!W54 ->  | O53: =Perzentile!X54 ->  | P53: =Perzentile!Y54 ->  | Q53: 0
A54: 4.3 | B54: 4.333333333 | C54: 52 | D54: =IF('Entrée des données_Eingabemaske'!$N$12="männlich / masculin",Perzentile!C55,Perzentile!M55) -> 1 | E54: =IF('Entrée des données_Eingabemaske'!$N$12="männlich / masculin",Perzentile!D55,Perzentile!N55) -> 105.0494 | F54: =IF('Entrée des données_Eingabemaske'!$N$12="männlich / masculin",Perzentile!E55,Perzentile!O55) -> 0.04246 | G54: =IF('Entrée des données_Eingabemaske'!$N$12="männlich / masculin",Perzentile!F55,Perzentile!P55) -> 96.66031285 | H54: =IF('Entrée des données_Eingabemaske'!$N$12="männlich / masculin",Perzentile!G55,Perzentile!Q55) -> 99.33317057 | I54: =IF('Entrée des données_Eingabemaske'!$N$12="männlich / masculin",Perzentile!H55,Perzentile!R55) -> 102.0409076 | J54: =IF('Entrée des données_Eingabemaske'!$N$12="männlich / masculin",Perzentile!I55,Perzentile!S55) -> 105.0494 | K54: =IF('Entrée des données_Eingabemaske'!$N$12="männlich / masculin",Perzentile!J55,Perzentile!T55) -> 108.0578924 | L54: =IF('Entrée des données_Eingabemaske'!$N$12="männlich / masculin",Perzentile!K55,Perzentile!U55) -> 110.7656294 | M54: =IF('Entrée des données_Eingabemaske'!$N$12="männlich / masculin",Perzentile!L55,Perzentile!V55) -> 113.4384872 | N54: =Perzentile!W55 ->  | O54: =Perzentile!X55 ->  | P54: =Perzentile!Y55 ->  | Q54: 0
A55: 4.4 | B55: 4.416666667 | C55: 53 | D55: =IF('Entrée des données_Eingabemaske'!$N$12="männlich / masculin",Perzentile!C56,Perzentile!M56) -> 1 | E55: =IF('Entrée des données_Eingabemaske'!$N$12="männlich / masculin",Perzentile!D56,Perzentile!N56) -> 105.6148 | F55: =IF('Entrée des données_Eingabemaske'!$N$12="männlich / masculin",Perzentile!E56,Perzentile!O56) -> 0.04259 | G55: =IF('Entrée des données_Eingabemaske'!$N$12="männlich / masculin",Perzentile!F56,Perzentile!P56) -> 97.1547377 | H55: =IF('Entrée des données_Eingabemaske'!$N$12="männlich / masculin",Perzentile!G56,Perzentile!Q56) -> 99.8502089 | I55: =IF('Entrée des données_Eingabemaske'!$N$12="männlich / masculin",Perzentile!H56,Perzentile!R56) -> 102.5808545 | J55: =IF('Entrée des données_Eingabemaske'!$N$12="männlich / masculin",Perzentile!I56,Perzentile!S56) -> 105.6148 | K55: =IF('Entrée des données_Eingabemaske'!$N$12="männlich / masculin",Perzentile!J56,Perzentile!T56) -> 108.6487455 | L55: =IF('Entrée des données_Eingabemaske'!$N$12="männlich / masculin",Perzentile!K56,Perzentile!U56) -> 111.3793911 | M55: =IF('Entrée des données_Eingabemaske'!$N$12="männlich / masculin",Perzentile!L56,Perzentile!V56) -> 114.0748623 | N55: =Perzentile!W56 ->  | O55: =Perzentile!X56 ->  | P55: =Perzentile!Y56 ->  | Q55: 0
A56: 4.5 | B56: 4.5 | C56: 54 | D56: =IF('Entrée des données_Eingabemaske'!$N$12="männlich / masculin",Perzentile!C57,Perzentile!M57) -> 1 | E56: =IF('Entrée des données_Eingabemaske'!$N$12="männlich / masculin",Perzentile!D57,Perzentile!N57) -> 106.1748 | F56: =IF('Entrée des données_Eingabemaske'!$N$12="männlich / masculin",Perzentile!E57,Perzentile!O57) -> 0.04272 | G56: =IF('Entrée des données_Eingabemaske'!$N$12="männlich / masculin",Perzentile!F57,Perzentile!P57) -> 97.64391994 | H56: =IF('Entrée des données_Eingabemaske'!$N$12="männlich / masculin",Perzentile!G57,Perzentile!Q57) -> 100.3619545 | I56: =IF('Entrée des données_Eingabemaske'!$N$12="männlich / masculin",Perzentile!H57,Perzentile!R57) -> 103.1154579 | J56: =IF('Entrée des données_Eingabemaske'!$N$12="männlich / masculin",Perzentile!I57,Perzentile!S57) -> 106.1748 | K56: =IF('Entrée des données_Eingabemaske'!$N$12="männlich / masculin",Perzentile!J57,Perzentile!T57) -> 109.2341421 | L56: =IF('Entrée des données_Eingabemaske'!$N$12="männlich / masculin",Perzentile!K57,Perzentile!U57) -> 111.9876455 | M56: =IF('Entrée des données_Eingabemaske'!$N$12="männlich / masculin",Perzentile!L57,Perzentile!V57) -> 114.7056801 | N56: =Perzentile!W57 ->  | O56: =Perzentile!X57 ->  | P56: =Perzentile!Y57 ->  | Q56: 0
A57: 4.6 | B57: 4.583333333 | C57: 55 | D57: =IF('Entrée des données_Eingabemaske'!$N$12="männlich / masculin",Perzentile!C58,Perzentile!M58) -> 1 | E57: =IF('Entrée des données_Eingabemaske'!$N$12="männlich / masculin",Perzentile!D58,Perzentile!N58) -> 106.7295 | F57: =IF('Entrée des données_Eingabemaske'!$N$12="männlich / masculin",Perzentile!E58,Perzentile!O58) -> 0.04285 | G57: =IF('Entrée des données_Eingabemaske'!$N$12="männlich / masculin",Perzentile!F58,Perzentile!P58) -> 98.12795548 | H57: =IF('Entrée des données_Eingabemaske'!$N$12="männlich / masculin",Perzentile!G58,Perzentile!Q58) -> 100.8685045 | I57: =IF('Entrée des données_Eingabemaske'!$N$12="männlich / masculin",Perzentile!H58,Perzentile!R58) -> 103.6448162 | J57: =IF('Entrée des données_Eingabemaske'!$N$12="männlich / masculin",Perzentile!I58,Perzentile!S58) -> 106.7295 | K57: =IF('Entrée des données_Eingabemaske'!$N$12="männlich / masculin",Perzentile!J58,Perzentile!T58) -> 109.8141838 | L57: =IF('Entrée des données_Eingabemaske'!$N$12="männlich / masculin",Perzentile!K58,Perzentile!U58) -> 112.5904955 | M57: =IF('Entrée des données_Eingabemaske'!$N$12="männlich / masculin",Perzentile!L58,Perzentile!V58) -> 115.3310445 | N57: =Perzentile!W58 ->  | O57: =Perzentile!X58 ->  | P57: =Perzentile!Y58 ->  | Q57: 0
A58: 4.7 | B58: 4.666666667 | C58: 56 | D58: =IF('Entrée des données_Eingabemaske'!$N$12="männlich / masculin",Perzentile!C59,Perzentile!M59) -> 1 | E58: =IF('Entrée des données_Eingabemaske'!$N$12="männlich / masculin",Perzentile!D59,Perzentile!N59) -> 107.2788 | F58: =IF('Entrée des données_Eingabemaske'!$N$12="männlich / masculin",Perzentile!E59,Perzentile!O59) -> 0.04298 | G58: =IF('Entrée des données_Eingabemaske'!$N$12="männlich / masculin",Perzentile!F59,Perzentile!P59) -> 98.60675629 | H58: =IF('Entrée des données_Eingabemaske'!$N$12="männlich / masculin",Perzentile!G59,Perzentile!Q59) -> 101.3697672 | I58: =IF('Entrée des données_Eingabemaske'!$N$12="männlich / masculin",Perzentile!H59,Perzentile!R59) -> 104.1688338 | J58: =IF('Entrée des données_Eingabemaske'!$N$12="männlich / masculin",Perzentile!I59,Perzentile!S59) -> 107.2788 | K58: =IF('Entrée des données_Eingabemaske'!$N$12="männlich / masculin",Perzentile!J59,Perzentile!T59) -> 110.3887662 | L58: =IF('Entrée des données_Eingabemaske'!$N$12="männlich / masculin",Perzentile!K59,Perzentile!U59) -> 113.1878328 | M58: =IF('Entrée des données_Eingabemaske'!$N$12="männlich / masculin",Perzentile!L59,Perzentile!V59) -> 115.9508437 | N58: =Perzentile!W59 ->  | O58: =Perzentile!X59 ->  | P58: =Perzentile!Y59 ->  | Q58: 0
A59: 4.8 | B59: 4.75 | C59: 57 | D59: =IF('Entrée des données_Eingabemaske'!$N$12="männlich / masculin",Perzentile!C60,Perzentile!M60) -> 1 | E59: =IF('Entrée des données_Eingabemaske'!$N$12="männlich / masculin",Perzentile!D60,Perzentile!N60) -> 107.8227 | F59: =IF('Entrée des données_Eingabemaske'!$N$12="männlich / masculin",Perzentile!E60,Perzentile!O60) -> 0.0431 | G59: =IF('Entrée des données_Eingabemaske'!$N$12="männlich / masculin",Perzentile!F60,Perzentile!P60) -> 99.08235424 | H59: =IF('Entrée des données_Eingabemaske'!$N$12="männlich / masculin",Perzentile!G60,Perzentile!Q60) -> 101.8671269 | I59: =IF('Entrée des données_Eingabemaske'!$N$12="männlich / masculin",Perzentile!H60,Perzentile!R60) -> 104.6882393 | J59: =IF('Entrée des données_Eingabemaske'!$N$12="männlich / masculin",Perzentile!I60,Perzentile!S60) -> 107.8227 | K59: =IF('Entrée des données_Eingabemaske'!$N$12="männlich / masculin",Perzentile!J60,Perzentile!T60) -> 110.9571607 | L59: =IF('Entrée des données_Eingabemaske'!$N$12="männlich / masculin",Perzentile!K60,Perzentile!U60) -> 113.7782731 | M59: =IF('Entrée des données_Eingabemaske'!$N$12="männlich / masculin",Perzentile!L60,Perzentile!V60) -> 116.5630458 | N59: =Perzentile!W60 ->  | O59: =Perzentile!X60 ->  | P59: =Perzentile!Y60 ->  | Q59: 0
A60: 4.8 | B60: 4.833333333 | C60: 58 | D60: =IF('Entrée des données_Eingabemaske'!$N$12="männlich / masculin",Perzentile!C61,Perzentile!M61) -> 1 | E60: =IF('Entrée des données_Eingabemaske'!$N$12="männlich / masculin",Perzentile!D61,Perzentile!N61) -> 108.3613 | F60: =IF('Entrée des données_Eingabemaske'!$N$12="männlich / masculin",Perzentile!E61,Perzentile!O61) -> 0.04322 | G60: =IF('Entrée des données_Eingabemaske'!$N$12="männlich / masculin",Perzentile!F61,Perzentile!P61) -> 99.55283751 | H60: =IF('Entrée des données_Eingabemaske'!$N$12="männlich / masculin",Perzentile!G61,Perzentile!Q61) -> 102.3593129 | I60: =IF('Entrée des données_Eingabemaske'!$N$12="männlich / masculin",Perzentile!H61,Perzentile!R61) -> 105.2024113 | J60: =IF('Entrée des données_Eingabemaske'!$N$12="männlich / masculin",Perzentile!I61,Perzentile!S61) -> 108.3613 | K60: =IF('Entrée des données_Eingabemaske'!$N$12="männlich / masculin",Perzentile!J61,Perzentile!T61) -> 111.5201887 | L60: =IF('Entrée des données_Eingabemaske'!$N$12="männlich / masculin",Perzentile!K61,Perzentile!U61) -> 114.3632871 | M60: =IF('Entrée des données_Eingabemaske'!$N$12="männlich / masculin",Perzentile!L61,Perzentile!V61) -> 117.1697625 | N60: =Perzentile!W61 ->  | O60: =Perzentile!X61 ->  | P60: =Perzentile!Y61 ->  | Q60: 0
A61: 4.9 | B61: 4.916666667 | C61: 59 | D61: =IF('Entrée des données_Eingabemaske'!$N$12="männlich / masculin",Perzentile!C62,Perzentile!M62) -> 1 | E61: =IF('Entrée des données_Eingabemaske'!$N$12="männlich / masculin",Perzentile!D62,Perzentile!N62) -> 108.8948 | F61: =IF('Entrée des données_Eingabemaske'!$N$12="männlich / masculin",Perzentile!E62,Perzentile!O62) -> 0.04334 | G61: =IF('Entrée des données_Eingabemaske'!$N$12="männlich / masculin",Perzentile!F62,Perzentile!P62) -> 100.0183934 | H61: =IF('Entrée des données_Eingabemaske'!$N$12="männlich / masculin",Perzentile!G62,Perzentile!Q62) -> 102.8465166 | I61: =IF('Entrée des données_Eingabemaske'!$N$12="männlich / masculin",Perzentile!H62,Perzentile!R62) -> 105.7115452 | J61: =IF('Entrée des données_Eingabemaske'!$N$12="männlich / masculin",Perzentile!I62,Perzentile!S62) -> 108.8948 | K61: =IF('Entrée des données_Eingabemaske'!$N$12="männlich / masculin",Perzentile!J62,Perzentile!T62) -> 112.0780548 | L61: =IF('Entrée des données_Eingabemaske'!$N$12="männlich / masculin",Perzentile!K62,Perzentile!U62) -> 114.9430834 | M61: =IF('Entrée des données_Eingabemaske'!$N$12="männlich / masculin",Perzentile!L62,Perzentile!V62) -> 117.7712066 | N61: =Perzentile!W62 ->  | O61: =Perzentile!X62 ->  | P61: =Perzentile!Y62 ->  | Q61: 0
A62: 5 | B62: 5 | C62: 60 | D62: =IF('Entrée des données_Eingabemaske'!$N$12="männlich / masculin",Perzentile!C63,Perzentile!M63) -> 1 | E62: =IF('Entrée des données_Eingabemaske'!$N$12="männlich / masculin",Perzentile!D63,Perzentile!N63) -> 109.4233 | F62: =IF('Entrée des données_Eingabemaske'!$N$12="männlich / masculin",Perzentile!E63,Perzentile!O63) -> 0.04347 | G62: =IF('Entrée des données_Eingabemaske'!$N$12="männlich / masculin",Perzentile!F63,Perzentile!P63) -> 100.4770591 | H62: =IF('Entrée des données_Eingabemaske'!$N$12="männlich / masculin",Perzentile!G63,Perzentile!Q63) -> 103.3274323 | I62: =IF('Entrée des données_Eingabemaske'!$N$12="männlich / masculin",Perzentile!H63,Perzentile!R63) -> 106.2150012 | J62: =IF('Entrée des données_Eingabemaske'!$N$12="männlich / masculin",Perzentile!I63,Perzentile!S63) -> 109.4233 | K62: =IF('Entrée des données_Eingabemaske'!$N$12="männlich / masculin",Perzentile!J63,Perzentile!T63) -> 112.6315988 | L62: =IF('Entrée des données_Eingabemaske'!$N$12="männlich / masculin",Perzentile!K63,Perzentile!U63) -> 115.5191677 | M62: =IF('Entrée des données_Eingabemaske'!$N$12="männlich / masculin",Perzentile!L63,Perzentile!V63) -> 118.3695409 | N62: =Perzentile!W63 ->  | O62: =Perzentile!X63 ->  | P62: =Perzentile!Y63 ->  | Q62: 0
A63: 5.1 | B63: 5.083333333 | C63: 61 | D63: =IF('Entrée des données_Eingabemaske'!$N$12="männlich / masculin",Perzentile!C64,Perzentile!M64) -> 1 | E63: =IF('Entrée des données_Eingabemaske'!$N$12="männlich / masculin",Perzentile!D64,Perzentile!N64) -> 109.6016 | F63: =IF('Entrée des données_Eingabemaske'!$N$12="männlich / masculin",Perzentile!E64,Perzentile!O64) -> 0.04355 | G63: =IF('Entrée des données_Eingabemaske'!$N$12="männlich / masculin",Perzentile!F64,Perzentile!P64) -> 100.624 | H63: =IF('Entrée des données_Eingabemaske'!$N$12="männlich / masculin",Perzentile!G64,Perzentile!Q64) -> 103.4845626 | I63: =IF('Entrée des données_Eingabemaske'!$N$12="männlich / masculin",Perzentile!H64,Perzentile!R64) -> 106.382 | J63: =IF('Entrée des données_Eingabemaske'!$N$12="männlich / masculin",Perzentile!I64,Perzentile!S64) -> 109.602 | K63: =IF('Entrée des données_Eingabemaske'!$N$12="männlich / masculin",Perzentile!J64,Perzentile!T64) -> 112.821 | L63: =IF('Entrée des données_Eingabemaske'!$N$12="männlich / masculin",Perzentile!K64,Perzentile!U64) -> 115.7186374 | M63: =IF('Entrée des données_Eingabemaske'!$N$12="männlich / masculin",Perzentile!L64,Perzentile!V64) -> 118.579 | N63: =Perzentile!W64 ->  | O63: =Perzentile!X64 ->  | P63: =Perzentile!Y64 ->  | Q63: 0
A64: 5.2 | B64: 5.166666667 | C64: 62 | D64: =IF('Entrée des données_Eingabemaske'!$N$12="männlich / masculin",Perzentile!C65,Perzentile!M65) -> 1 | E64: =IF('Entrée des données_Eingabemaske'!$N$12="männlich / masculin",Perzentile!D65,Perzentile!N65) -> 110.1258 | F64: =IF('Entrée des données_Eingabemaske'!$N$12="männlich / masculin",Perzentile!E65,Perzentile!O65) -> 0.04364 | G64: =IF('Entrée des données_Eingabemaske'!$N$12="männlich / masculin",Perzentile!F65,Perzentile!P65) -> 101.087 | H64: =IF('Entrée des données_Eingabemaske'!$N$12="männlich / masculin",Perzentile!G65,Perzentile!Q65) -> 103.9668043 | I64: =IF('Entrée des données_Eingabemaske'!$N$12="männlich / masculin",Perzentile!H65,Perzentile!R65) -> 106.884 | J64: =IF('Entrée des données_Eingabemaske'!$N$12="männlich / masculin",Perzentile!I65,Perzentile!S65) -> 110.126 | K64: =IF('Entrée des données_Eingabemaske'!$N$12="männlich / masculin",Perzentile!J65,Perzentile!T65) -> 113.367 | L64: =IF('Entrée des données_Eingabemaske'!$N$12="männlich / masculin",Perzentile!K65,Perzentile!U65) -> 116.2847957 | M64: =IF('Entrée des données_Eingabemaske'!$N$12="männlich / masculin",Perzentile!L65,Perzentile!V65) -> 119.165 | N64: =Perzentile!W65 ->  | O64: =Perzentile!X65 ->  | P64: =Perzentile!Y65 ->  | Q64: 0
A65: 5.3 | B65: 5.25 | C65: 63 | D65: =IF('Entrée des données_Eingabemaske'!$N$12="männlich / masculin",Perzentile!C66,Perzentile!M66) -> 1 | E65: =IF('Entrée des données_Eingabemaske'!$N$12="männlich / masculin",Perzentile!D66,Perzentile!N66) -> 110.6451 | F65: =IF('Entrée des données_Eingabemaske'!$N$12="männlich / masculin",Perzentile!E66,Perzentile!O66) -> 0.04373 | G65: =IF('Entrée des données_Eingabemaske'!$N$12="männlich / masculin",Perzentile!F66,Perzentile!P66) -> 101.545 | H65: =IF('Entrée des données_Eingabemaske'!$N$12="männlich / masculin",Perzentile!G66,Perzentile!Q66) -> 104.4442996 | I65: =IF('Entrée des données_Eingabemaske'!$N$12="männlich / masculin",Perzentile!H66,Perzentile!R66) -> 107.382 | J65: =IF('Entrée des données_Eingabemaske'!$N$12="männlich / masculin",Perzentile!I66,Perzentile!S66) -> 110.645 | K65: =IF('Entrée des données_Eingabemaske'!$N$12="männlich / masculin",Perzentile!J66,Perzentile!T66) -> 113.909 | L65: =IF('Entrée des données_Eingabemaske'!$N$12="männlich / masculin",Perzentile!K66,Perzentile!U66) -> 116.8459004 | M65: =IF('Entrée des données_Eingabemaske'!$N$12="männlich / masculin",Perzentile!L66,Perzentile!V66) -> 119.745 | N65: =Perzentile!W66 ->  | O65: =Perzentile!X66 ->  | P65: =Perzentile!Y66 ->  | Q65: 0
A66: 5.3 | B66: =C66/12 -> 5.333333333 | C66: 64 | D66: =IF('Entrée des données_Eingabemaske'!$N$12="männlich / masculin",Perzentile!C67,Perzentile!M67) -> 1 | E66: =IF('Entrée des données_Eingabemaske'!$N$12="männlich / masculin",Perzentile!D67,Perzentile!N67) -> 111.1596 | F66: =IF('Entrée des données_Eingabemaske'!$N$12="männlich / masculin",Perzentile!E67,Perzentile!O67) -> 0.04382 | G66: =IF('Entrée des données_Eingabemaske'!$N$12="männlich / masculin",Perzentile!F67,Perzentile!P67) -> 101.998 | H66: =IF('Entrée des données_Eingabemaske'!$N$12="männlich / masculin",Perzentile!G67,Perzentile!Q67) -> 104.9171448 | I66: =IF('Entrée des données_Eingabemaske'!$N$12="männlich / masculin",Perzentile!H67,Perzentile!R67) -> 107.874 | J66: =IF('Entrée des données_Eingabemaske'!$N$12="männlich / masculin",Perzentile!I67,Perzentile!S67) -> 111.16 | K66: =IF('Entrée des données_Eingabemaske'!$N$12="männlich / masculin",Perzentile!J67,Perzentile!T67) -> 114.445 | L66: =IF('Entrée des données_Eingabemaske'!$N$12="männlich / masculin",Perzentile!K67,Perzentile!U67) -> 117.4020552 | M66: =IF('Entrée des données_Eingabemaske'!$N$12="männlich / masculin",Perzentile!L67,Perzentile!V67) -> 120.321 | N66: =Perzentile!W67 ->  | O66: =Perzentile!X67 ->  | P66: =Perzentile!Y67 ->  | Q66: 0
A67: =ROUND(B67,1) -> 5.4 | B67: 5.416666667 | C67: 65 | D67: =IF('Entrée des données_Eingabemaske'!$N$12="männlich / masculin",Perzentile!C68,Perzentile!M68) -> 1 | E67: =IF('Entrée des données_Eingabemaske'!$N$12="männlich / masculin",Perzentile!D68,Perzentile!N68) -> 111.6696 | F67: =IF('Entrée des données_Eingabemaske'!$N$12="männlich / masculin",Perzentile!E68,Perzentile!O68) -> 0.0439 | G67: =IF('Entrée des données_Eingabemaske'!$N$12="männlich / masculin",Perzentile!F68,Perzentile!P68) -> 102.449 | H67: =IF('Entrée des données_Eingabemaske'!$N$12="männlich / masculin",Perzentile!G68,Perzentile!Q68) -> 105.3870556 | I67: =IF('Entrée des données_Eingabemaske'!$N$12="männlich / masculin",Perzentile!H68,Perzentile!R68) -> 108.363 | J67: =IF('Entrée des données_Eingabemaske'!$N$12="männlich / masculin",Perzentile!I68,Perzentile!S68) -> 111.67 | K67: =IF('Entrée des données_Eingabemaske'!$N$12="männlich / masculin",Perzentile!J68,Perzentile!T68) -> 114.976 | L67: =IF('Entrée des données_Eingabemaske'!$N$12="männlich / masculin",Perzentile!K68,Perzentile!U68) -> 117.9521444 | M67: =IF('Entrée des données_Eingabemaske'!$N$12="männlich / masculin",Perzentile!L68,Perzentile!V68) -> 120.89 | N67: =Perzentile!W68 ->  | O67: =Perzentile!X68 ->  | P67: =Perzentile!Y68 ->  | Q67: 0
A68: 5.5 | B68: 5.5 | C68: 66 | D68: =IF('Entrée des données_Eingabemaske'!$N$12="männlich / masculin",Perzentile!C69,Perzentile!M69) -> 1 | E68: =IF('Entrée des données_Eingabemaske'!$N$12="männlich / masculin",Perzentile!D69,Perzentile!N69) -> 112.1753 | F68: =IF('Entrée des données_Eingabemaske'!$N$12="männlich / masculin",Perzentile!E69,Perzentile!O69) -> 0.04399 | G68: =IF('Entrée des données_Eingabemaske'!$N$12="männlich / masculin",Perzentile!F69,Perzentile!P69) -> 102.894 | H68: =IF('Entrée des données_Eingabemaske'!$N$12="männlich / masculin",Perzentile!G69,Perzentile!Q69) -> 105.8513666 | I68: =IF('Entrée des données_Eingabemaske'!$N$12="männlich / masculin",Perzentile!H69,Perzentile!R69) -> 108.847 | J68: =IF('Entrée des données_Eingabemaske'!$N$12="männlich / masculin",Perzentile!I69,Perzentile!S69) -> 112.175 | K68: =IF('Entrée des données_Eingabemaske'!$N$12="männlich / masculin",Perzentile!J69,Perzentile!T69) -> 115.504 | L68: =IF('Entrée des données_Eingabemaske'!$N$12="männlich / masculin",Perzentile!K69,Perzentile!U69) -> 118.4992334 | M68: =IF('Entrée des données_Eingabemaske'!$N$12="männlich / masculin",Perzentile!L69,Perzentile!V69) -> 121.456 | N68: =Perzentile!W69 ->  | O68: =Perzentile!X69 ->  | P68: =Perzentile!Y69 ->  | Q68: 0
A69: 5.6 | B69: 5.583333333 | C69: 67 | D69: =IF('Entrée des données_Eingabemaske'!$N$12="männlich / masculin",Perzentile!C70,Perzentile!M70) -> 1 | E69: =IF('Entrée des données_Eingabemaske'!$N$12="männlich / masculin",Perzentile!D70,Perzentile!N70) -> 112.6767 | F69: =IF('Entrée des données_Eingabemaske'!$N$12="männlich / masculin",Perzentile!E70,Perzentile!O70) -> 0.04407 | G69: =IF('Entrée des données_Eingabemaske'!$N$12="männlich / masculin",Perzentile!F70,Perzentile!P70) -> 103.337 | H69: =IF('Entrée des données_Eingabemaske'!$N$12="männlich / masculin",Perzentile!G70,Perzentile!Q70) -> 106.3129479 | I69: =IF('Entrée des données_Eingabemaske'!$N$12="männlich / masculin",Perzentile!H70,Perzentile!R70) -> 109.327 | J69: =IF('Entrée des données_Eingabemaske'!$N$12="männlich / masculin",Perzentile!I70,Perzentile!S70) -> 112.677 | K69: =IF('Entrée des données_Eingabemaske'!$N$12="männlich / masculin",Perzentile!J70,Perzentile!T70) -> 116.026 | L69: =IF('Entrée des données_Eingabemaske'!$N$12="männlich / masculin",Perzentile!K70,Perzentile!U70) -> 119.0404521 | M69: =IF('Entrée des données_Eingabemaske'!$N$12="männlich / masculin",Perzentile!L70,Perzentile!V70) -> 122.016 | N69: =Perzentile!W70 ->  | O69: =Perzentile!X70 ->  | P69: =Perzentile!Y70 ->  | Q69: 0
A70: 5.7 | B70: 5.666666667 | C70: 68 | D70: =IF('Entrée des données_Eingabemaske'!$N$12="männlich / masculin",Perzentile!C71,Perzentile!M71) -> 1 | E70: =IF('Entrée des données_Eingabemaske'!$N$12="männlich / masculin",Perzentile!D71,Perzentile!N71) -> 113.174 | F70: =IF('Entrée des données_Eingabemaske'!$N$12="männlich / masculin",Perzentile!E71,Perzentile!O71) -> 0.04415 | G70: =IF('Entrée des données_Eingabemaske'!$N$12="männlich / masculin",Perzentile!F71,Perzentile!P71) -> 103.776 | H70: =IF('Entrée des données_Eingabemaske'!$N$12="männlich / masculin",Perzentile!G71,Perzentile!Q71) -> 106.7705583 | I70: =IF('Entrée des données_Eingabemaske'!$N$12="männlich / masculin",Perzentile!H71,Perzentile!R71) -> 109.804 | J70: =IF('Entrée des données_Eingabemaske'!$N$12="männlich / masculin",Perzentile!I71,Perzentile!S71) -> 113.174 | K70: =IF('Entrée des données_Eingabemaske'!$N$12="männlich / masculin",Perzentile!J71,Perzentile!T71) -> 116.544 | L70: =IF('Entrée des données_Eingabemaske'!$N$12="männlich / masculin",Perzentile!K71,Perzentile!U71) -> 119.5774417 | M70: =IF('Entrée des données_Eingabemaske'!$N$12="männlich / masculin",Perzentile!L71,Perzentile!V71) -> 122.572 | N70: =Perzentile!W71 ->  | O70: =Perzentile!X71 ->  | P70: =Perzentile!Y71 ->  | Q70: 0
A71: 5.8 | B71: 5.75 | C71: 69 | D71: =IF('Entrée des données_Eingabemaske'!$N$12="männlich / masculin",Perzentile!C72,Perzentile!M72) -> 1 | E71: =IF('Entrée des données_Eingabemaske'!$N$12="männlich / masculin",Perzentile!D72,Perzentile!N72) -> 113.6672 | F71: =IF('Entrée des données_Eingabemaske'!$N$12="männlich / masculin",Perzentile!E72,Perzentile!O72) -> 0.04423 | G71: =IF('Entrée des données_Eingabemaske'!$N$12="männlich / masculin",Perzentile!F72,Perzentile!P72) -> 104.212 | H71: =IF('Entrée des données_Eingabemaske'!$N$12="männlich / masculin",Perzentile!G72,Perzentile!Q72) -> 107.2241992 | I71: =IF('Entrée des données_Eingabemaske'!$N$12="männlich / masculin",Perzentile!H72,Perzentile!R72) -> 110.276 | J71: =IF('Entrée des données_Eingabemaske'!$N$12="männlich / masculin",Perzentile!I72,Perzentile!S72) -> 113.667 | K71: =IF('Entrée des données_Eingabemaske'!$N$12="männlich / masculin",Perzentile!J72,Perzentile!T72) -> 117.058 | L71: =IF('Entrée des données_Eingabemaske'!$N$12="männlich / masculin",Perzentile!K72,Perzentile!U72) -> 120.1102008 | M71: =IF('Entrée des données_Eingabemaske'!$N$12="männlich / masculin",Perzentile!L72,Perzentile!V72) -> 123.123 | N71: =Perzentile!W72 ->  | O71: =Perzentile!X72 ->  | P71: =Perzentile!Y72 ->  | Q71: 0
A72: 5.8 | B72: 5.833333333 | C72: 70 | D72: =IF('Entrée des données_Eingabemaske'!$N$12="männlich / masculin",Perzentile!C73,Perzentile!M73) -> 1 | E72: =IF('Entrée des données_Eingabemaske'!$N$12="männlich / masculin",Perzentile!D73,Perzentile!N73) -> 114.1565 | F72: =IF('Entrée des données_Eingabemaske'!$N$12="männlich / masculin",Perzentile!E73,Perzentile!O73) -> 0.04431 | G72: =IF('Entrée des données_Eingabemaske'!$N$12="männlich / masculin",Perzentile!F73,Perzentile!P73) -> 104.643 | H72: =IF('Entrée des données_Eingabemaske'!$N$12="männlich / masculin",Perzentile!G73,Perzentile!Q73) -> 107.6740604 | I72: =IF('Entrée des données_Eingabemaske'!$N$12="männlich / masculin",Perzentile!H73,Perzentile!R73) -> 110.745 | J72: =IF('Entrée des données_Eingabemaske'!$N$12="männlich / masculin",Perzentile!I73,Perzentile!S73) -> 114.156 | K72: =IF('Entrée des données_Eingabemaske'!$N$12="männlich / masculin",Perzentile!J73,Perzentile!T73) -> 117.568 | L72: =IF('Entrée des données_Eingabemaske'!$N$12="männlich / masculin",Perzentile!K73,Perzentile!U73) -> 120.6389396 | M72: =IF('Entrée des données_Eingabemaske'!$N$12="männlich / masculin",Perzentile!L73,Perzentile!V73) -> 123.67 | N72: =Perzentile!W73 ->  | O72: =Perzentile!X73 ->  | P72: =Perzentile!Y73 ->  | Q72: 0
A73: 5.9 | B73: 5.916666667 | C73: 71 | D73: =IF('Entrée des données_Eingabemaske'!$N$12="männlich / masculin",Perzentile!C74,Perzentile!M74) -> 1 | E73: =IF('Entrée des données_Eingabemaske'!$N$12="männlich / masculin",Perzentile!D74,Perzentile!N74) -> 114.6421 | F73: =IF('Entrée des données_Eingabemaske'!$N$12="männlich / masculin",Perzentile!E74,Perzentile!O74) -> 0.04439 | G73: =IF('Entrée des données_Eingabemaske'!$N$12="männlich / masculin",Perzentile!F74,Perzentile!P74) -> 105.071 | H73: =IF('Entrée des données_Eingabemaske'!$N$12="männlich / masculin",Perzentile!G74,Perzentile!Q74) -> 108.1203317 | I73: =IF('Entrée des données_Eingabemaske'!$N$12="männlich / masculin",Perzentile!H74,Perzentile!R74) -> 111.21 | J73: =IF('Entrée des données_Eingabemaske'!$N$12="männlich / masculin",Perzentile!I74,Perzentile!S74) -> 114.642 | K73: =IF('Entrée des données_Eingabemaske'!$N$12="männlich / masculin",Perzentile!J74,Perzentile!T74) -> 118.075 | L73: =IF('Entrée des données_Eingabemaske'!$N$12="männlich / masculin",Perzentile!K74,Perzentile!U74) -> 121.1638683 | M73: =IF('Entrée des données_Eingabemaske'!$N$12="männlich / masculin",Perzentile!L74,Perzentile!V74) -> 124.213 | N73: =Perzentile!W74 ->  | O73: =Perzentile!X74 ->  | P73: =Perzentile!Y74 ->  | Q73: 0
A74: 6 | B74: 6 | C74: 72 | D74: =IF('Entrée des données_Eingabemaske'!$N$12="männlich / masculin",Perzentile!C75,Perzentile!M75) -> 1 | E74: =IF('Entrée des données_Eingabemaske'!$N$12="männlich / masculin",Perzentile!D75,Perzentile!N75) -> 115.1244 | F74: =IF('Entrée des données_Eingabemaske'!$N$12="männlich / masculin",Perzentile!E75,Perzentile!O75) -> 0.04447 | G74: =IF('Entrée des données_Eingabemaske'!$N$12="männlich / masculin",Perzentile!F75,Perzentile!P75) -> 105.496 | H74: =IF('Entrée des données_Eingabemaske'!$N$12="männlich / masculin",Perzentile!G75,Perzentile!Q75) -> 108.5633916 | I74: =IF('Entrée des données_Eingabemaske'!$N$12="männlich / masculin",Perzentile!H75,Perzentile!R75) -> 111.671 | J74: =IF('Entrée des données_Eingabemaske'!$N$12="männlich / masculin",Perzentile!I75,Perzentile!S75) -> 115.124 | K74: =IF('Entrée des données_Eingabemaske'!$N$12="männlich / masculin",Perzentile!J75,Perzentile!T75) -> 118.578 | L74: =IF('Entrée des données_Eingabemaske'!$N$12="männlich / masculin",Perzentile!K75,Perzentile!U75) -> 121.6854084 | M74: =IF('Entrée des données_Eingabemaske'!$N$12="männlich / masculin",Perzentile!L75,Perzentile!V75) -> 124.753 | N74: =Perzentile!W75 ->  | O74: =Perzentile!X75 ->  | P74: =Perzentile!Y75 ->  | Q74: 0
A75: 6.1 | B75: 6.083333333 | C75: 73 | D75: =IF('Entrée des données_Eingabemaske'!$N$12="männlich / masculin",Perzentile!C76,Perzentile!M76) -> 1 | E75: =IF('Entrée des données_Eingabemaske'!$N$12="männlich / masculin",Perzentile!D76,Perzentile!N76) -> 115.6039 | F75: =IF('Entrée des données_Eingabemaske'!$N$12="männlich / masculin",Perzentile!E76,Perzentile!O76) -> 0.04454 | G75: =IF('Entrée des données_Eingabemaske'!$N$12="männlich / masculin",Perzentile!F76,Perzentile!P76) -> 105.92 | H75: =IF('Entrée des données_Eingabemaske'!$N$12="männlich / masculin",Perzentile!G76,Perzentile!Q76) -> 109.0051939 | I75: =IF('Entrée des données_Eingabemaske'!$N$12="männlich / masculin",Perzentile!H76,Perzentile!R76) -> 112.131 | J75: =IF('Entrée des données_Eingabemaske'!$N$12="männlich / masculin",Perzentile!I76,Perzentile!S76) -> 115.604 | K75: =IF('Entrée des données_Eingabemaske'!$N$12="männlich / masculin",Perzentile!J76,Perzentile!T76) -> 119.077 | L75: =IF('Entrée des données_Eingabemaske'!$N$12="männlich / masculin",Perzentile!K76,Perzentile!U76) -> 122.2026061 | M75: =IF('Entrée des données_Eingabemaske'!$N$12="männlich / masculin",Perzentile!L76,Perzentile!V76) -> 125.288 | N75: =Perzentile!W76 ->  | O75: =Perzentile!X76 ->  | P75: =Perzentile!Y76 ->  | Q75: 0
A76: 6.2 | B76: 6.166666667 | C76: 74 | D76: =IF('Entrée des données_Eingabemaske'!$N$12="männlich / masculin",Perzentile!C77,Perzentile!M77) -> 1 | E76: =IF('Entrée des données_Eingabemaske'!$N$12="männlich / masculin",Perzentile!D77,Perzentile!N77) -> 116.0812 | F76: =IF('Entrée des données_Eingabemaske'!$N$12="männlich / masculin",Perzentile!E77,Perzentile!O77) -> 0.04461 | G76: =IF('Entrée des données_Eingabemaske'!$N$12="männlich / masculin",Perzentile!F77,Perzentile!P77) -> 106.342 | H76: =IF('Entrée des données_Eingabemaske'!$N$12="männlich / masculin",Perzentile!G77,Perzentile!Q77) -> 109.444836 | I76: =IF('Entrée des données_Eingabemaske'!$N$12="männlich / masculin",Perzentile!H77,Perzentile!R77) -> 112.588 | J76: =IF('Entrée des données_Eingabemaske'!$N$12="männlich / masculin",Perzentile!I77,Perzentile!S77) -> 116.081 | K76: =IF('Entrée des données_Eingabemaske'!$N$12="männlich / masculin",Perzentile!J77,Perzentile!T77) -> 119.574 | L76: =IF('Entrée des données_Eingabemaske'!$N$12="männlich / masculin",Perzentile!K77,Perzentile!U77) -> 122.717564 | M76: =IF('Entrée des données_Eingabemaske'!$N$12="männlich / masculin",Perzentile!L77,Perzentile!V77) -> 125.821 | N76: =Perzentile!W77 ->  | O76: =Perzentile!X77 ->  | P76: =Perzentile!Y77 ->  | Q76: 0
A77: 6.3 | B77: 6.25 | C77: 75 | D77: =IF('Entrée des données_Eingabemaske'!$N$12="männlich / masculin",Perzentile!C78,Perzentile!M78) -> 1 | E77: =IF('Entrée des données_Eingabemaske'!$N$12="männlich / masculin",Perzentile!D78,Perzentile!N78) -> 116.5568 | F77: =IF('Entrée des données_Eingabemaske'!$N$12="männlich / masculin",Perzentile!E78,Perzentile!O78) -> 0.04469 | G77: =IF('Entrée des données_Eingabemaske'!$N$12="männlich / masculin",Perzentile!F78,Perzentile!P78) -> 106.76 | H77: =IF('Entrée des données_Eingabemaske'!$N$12="männlich / masculin",Perzentile!G78,Perzentile!Q78) -> 109.8812961 | I77: =IF('Entrée des données_Eingabemaske'!$N$12="männlich / masculin",Perzentile!H78,Perzentile!R78) -> 113.043 | J77: =IF('Entrée des données_Eingabemaske'!$N$12="männlich / masculin",Perzentile!I78,Perzentile!S78) -> 116.557 | K77: =IF('Entrée des données_Eingabemaske'!$N$12="männlich / masculin",Perzentile!J78,Perzentile!T78) -> 120.07 | L77: =IF('Entrée des données_Eingabemaske'!$N$12="männlich / masculin",Perzentile!K78,Perzentile!U78) -> 123.2323039 | M77: =IF('Entrée des données_Eingabemaske'!$N$12="männlich / masculin",Perzentile!L78,Perzentile!V78) -> 126.354 | N77: =Perzentile!W78 ->  | O77: =Perzentile!X78 ->  | P77: =Perzentile!Y78 ->  | Q77: 0
A78: 6.3 | B78: 6.333333333 | C78: 76 | D78: =IF('Entrée des données_Eingabemaske'!$N$12="männlich / masculin",Perzentile!C79,Perzentile!M79) -> 1 | E78: =IF('Entrée des données_Eingabemaske'!$N$12="männlich / masculin",Perzentile!D79,Perzentile!N79) -> 117.0311 | F78: =IF('Entrée des données_Eingabemaske'!$N$12="männlich / masculin",Perzentile!E79,Perzentile!O79) -> 0.04475 | G78: =IF('Entrée des données_Eingabemaske'!$N$12="männlich / masculin",Perzentile!F79,Perzentile!P79) -> 107.181 | H78: =IF('Entrée des données_Eingabemaske'!$N$12="männlich / masculin",Perzentile!G79,Perzentile!Q79) -> 110.3194328 | I78: =IF('Entrée des données_Eingabemaske'!$N$12="männlich / masculin",Perzentile!H79,Perzentile!R79) -> 113.499 | J78: =IF('Entrée des données_Eingabemaske'!$N$12="männlich / masculin",Perzentile!I79,Perzentile!S79) -> 117.031 | K78: =IF('Entrée des données_Eingabemaske'!$N$12="männlich / masculin",Perzentile!J79,Perzentile!T79) -> 120.563 | L78: =IF('Entrée des données_Eingabemaske'!$N$12="männlich / masculin",Perzentile!K79,Perzentile!U79) -> 123.7427672 | M78: =IF('Entrée des données_Eingabemaske'!$N$12="männlich / masculin",Perzentile!L79,Perzentile!V79) -> 126.881 | N78: =Perzentile!W79 ->  | O78: =Perzentile!X79 ->  | P78: =Perzentile!Y79 ->  | Q78: 0
A79: 6.4 | B79: 6.416666667 | C79: 77 | D79: =IF('Entrée des données_Eingabemaske'!$N$12="männlich / masculin",Perzentile!C80,Perzentile!M80) -> 1 | E79: =IF('Entrée des données_Eingabemaske'!$N$12="männlich / masculin",Perzentile!D80,Perzentile!N80) -> 117.5044 | F79: =IF('Entrée des données_Eingabemaske'!$N$12="männlich / masculin",Perzentile!E80,Perzentile!O80) -> 0.04482 | G79: =IF('Entrée des données_Eingabemaske'!$N$12="männlich / masculin",Perzentile!F80,Perzentile!P80) -> 107.599 | H79: =IF('Entrée des données_Eingabemaske'!$N$12="männlich / masculin",Perzentile!G80,Perzentile!Q80) -> 110.7550482 | I79: =IF('Entrée des données_Eingabemaske'!$N$12="männlich / masculin",Perzentile!H80,Perzentile!R80) -> 113.952 | J79: =IF('Entrée des données_Eingabemaske'!$N$12="männlich / masculin",Perzentile!I80,Perzentile!S80) -> 117.504 | K79: =IF('Entrée des données_Eingabemaske'!$N$12="männlich / masculin",Perzentile!J80,Perzentile!T80) -> 121.057 | L79: =IF('Entrée des données_Eingabemaske'!$N$12="männlich / masculin",Perzentile!K80,Perzentile!U80) -> 124.2537518 | M79: =IF('Entrée des données_Eingabemaske'!$N$12="männlich / masculin",Perzentile!L80,Perzentile!V80) -> 127.41 | N79: =Perzentile!W80 ->  | O79: =Perzentile!X80 ->  | P79: =Perzentile!Y80 ->  | Q79: 0
A80: 6.5 | B80: 6.5 | C80: 78 | D80: =IF('Entrée des données_Eingabemaske'!$N$12="männlich / masculin",Perzentile!C81,Perzentile!M81) -> 1 | E80: =IF('Entrée des données_Eingabemaske'!$N$12="männlich / masculin",Perzentile!D81,Perzentile!N81) -> 117.9769 | F80: =IF('Entrée des données_Eingabemaske'!$N$12="männlich / masculin",Perzentile!E81,Perzentile!O81) -> 0.04489 | G80: =IF('Entrée des données_Eingabemaske'!$N$12="männlich / masculin",Perzentile!F81,Perzentile!P81) -> 108.016 | H80: =IF('Entrée des données_Eingabemaske'!$N$12="männlich / masculin",Perzentile!G81,Perzentile!Q81) -> 111.1898246 | I80: =IF('Entrée des données_Eingabemaske'!$N$12="männlich / masculin",Perzentile!H81,Perzentile!R81) -> 114.405 | J80: =IF('Entrée des données_Eingabemaske'!$N$12="männlich / masculin",Perzentile!I81,Perzentile!S81) -> 117.977 | K80: =IF('Entrée des données_Eingabemaske'!$N$12="männlich / masculin",Perzentile!J81,Perzentile!T81) -> 121.549 | L80: =IF('Entrée des données_Eingabemaske'!$N$12="männlich / masculin",Perzentile!K81,Perzentile!U81) -> 124.7639754 | M80: =IF('Entrée des données_Eingabemaske'!$N$12="männlich / masculin",Perzentile!L81,Perzentile!V81) -> 127.938 | N80: =Perzentile!W81 ->  | O80: =Perzentile!X81 ->  | P80: =Perzentile!Y81 ->  | Q80: 0
A81: 6.6 | B81: 6.583333333 | C81: 79 | D81: =IF('Entrée des données_Eingabemaske'!$N$12="männlich / masculin",Perzentile!C82,Perzentile!M82) -> 1 | E81: =IF('Entrée des données_Eingabemaske'!$N$12="männlich / masculin",Perzentile!D82,Perzentile!N82) -> 118.4489 | F81: =IF('Entrée des données_Eingabemaske'!$N$12="männlich / masculin",Perzentile!E82,Perzentile!O82) -> 0.04495 | G81: =IF('Entrée des données_Eingabemaske'!$N$12="männlich / masculin",Perzentile!F82,Perzentile!P82) -> 108.435 | H81: =IF('Entrée des données_Eingabemaske'!$N$12="männlich / masculin",Perzentile!G82,Perzentile!Q82) -> 111.6255631 | I81: =IF('Entrée des données_Eingabemaske'!$N$12="männlich / masculin",Perzentile!H82,Perzentile!R82) -> 114.858 | J81: =IF('Entrée des données_Eingabemaske'!$N$12="männlich / masculin",Perzentile!I82,Perzentile!S82) -> 118.449 | K81: =IF('Entrée des données_Eingabemaske'!$N$12="männlich / masculin",Perzentile!J82,Perzentile!T82) -> 122.04 | L81: =IF('Entrée des données_Eingabemaske'!$N$12="männlich / masculin",Perzentile!K82,Perzentile!U82) -> 125.2722369 | M81: =IF('Entrée des données_Eingabemaske'!$N$12="männlich / masculin",Perzentile!L82,Perzentile!V82) -> 128.463 | N81: =Perzentile!W82 ->  | O81: =Perzentile!X82 ->  | P81: =Perzentile!Y82 ->  | Q81: 0
A82: 6.7 | B82: 6.666666667 | C82: 80 | D82: =IF('Entrée des données_Eingabemaske'!$N$12="männlich / masculin",Perzentile!C83,Perzentile!M83) -> 1 | E82: =IF('Entrée des données_Eingabemaske'!$N$12="männlich / masculin",Perzentile!D83,Perzentile!N83) -> 118.9208 | F82: =IF('Entrée des données_Eingabemaske'!$N$12="männlich / masculin",Perzentile!E83,Perzentile!O83) -> 0.04502 | G82: =IF('Entrée des données_Eingabemaske'!$N$12="männlich / masculin",Perzentile!F83,Perzentile!P83) -> 108.851 | H82: =IF('Entrée des données_Eingabemaske'!$N$12="männlich / masculin",Perzentile!G83,Perzentile!Q83) -> 112.0596108 | I82: =IF('Entrée des données_Eingabemaske'!$N$12="männlich / masculin",Perzentile!H83,Perzentile!R83) -> 115.31 | J82: =IF('Entrée des données_Eingabemaske'!$N$12="männlich / masculin",Perzentile!I83,Perzentile!S83) -> 118.921 | K82: =IF('Entrée des données_Eingabemaske'!$N$12="männlich / masculin",Perzentile!J83,Perzentile!T83) -> 122.532 | L82: =IF('Entrée des données_Eingabemaske'!$N$12="männlich / masculin",Perzentile!K83,Perzentile!U83) -> 125.7819892 | M82: =IF('Entrée des données_Eingabemaske'!$N$12="männlich / masculin",Perzentile!L83,Perzentile!V83) -> 128.99 | N82: =Perzentile!W83 ->  | O82: =Perzentile!X83 ->  | P82: =Perzentile!Y83 ->  | Q82: 0
A83: 6.8 | B83: 6.75 | C83: 81 | D83: =IF('Entrée des données_Eingabemaske'!$N$12="männlich / masculin",Perzentile!C84,Perzentile!M84) -> 1 | E83: =IF('Entrée des données_Eingabemaske'!$N$12="männlich / masculin",Perzentile!D84,Perzentile!N84) -> 119.3926 | F83: =IF('Entrée des données_Eingabemaske'!$N$12="männlich / masculin",Perzentile!E84,Perzentile!O84) -> 0.04508 | G83: =IF('Entrée des données_Eingabemaske'!$N$12="männlich / masculin",Perzentile!F84,Perzentile!P84) -> 109.27 | H83: =IF('Entrée des données_Eingabemaske'!$N$12="männlich / masculin",Perzentile!G84,Perzentile!Q84) -> 112.4950096 | I83: =IF('Entrée des données_Eingabemaske'!$N$12="männlich / masculin",Perzentile!H84,Perzentile!R84) -> 115.762 | J83: =IF('Entrée des données_Eingabemaske'!$N$12="männlich / masculin",Perzentile!I84,Perzentile!S84) -> 119.393 | K83: =IF('Entrée des données_Eingabemaske'!$N$12="männlich / masculin",Perzentile!J84,Perzentile!T84) -> 123.023 | L83: =IF('Entrée des données_Eingabemaske'!$N$12="männlich / masculin",Perzentile!K84,Perzentile!U84) -> 126.2901904 | M83: =IF('Entrée des données_Eingabemaske'!$N$12="männlich / masculin",Perzentile!L84,Perzentile!V84) -> 129.515 | N83: =Perzentile!W84 ->  | O83: =Perzentile!X84 ->  | P83: =Perzentile!Y84 ->  | Q83: 0
A84: 6.8 | B84: 6.833333333 | C84: 82 | D84: =IF('Entrée des données_Eingabemaske'!$N$12="männlich / masculin",Perzentile!C85,Perzentile!M85) -> 1 | E84: =IF('Entrée des données_Eingabemaske'!$N$12="männlich / masculin",Perzentile!D85,Perzentile!N85) -> 119.8648 | F84: =IF('Entrée des données_Eingabemaske'!$N$12="männlich / masculin",Perzentile!E85,Perzentile!O85) -> 0.04514 | G84: =IF('Entrée des données_Eingabemaske'!$N$12="männlich / masculin",Perzentile!F85,Perzentile!P85) -> 109.688 | H84: =IF('Entrée des données_Eingabemaske'!$N$12="männlich / masculin",Perzentile!G85,Perzentile!Q85) -> 112.9307127 | I84: =IF('Entrée des données_Eingabemaske'!$N$12="männlich / masculin",Perzentile!H85,Perzentile!R85) -> 116.215 | J84: =IF('Entrée des données_Eingabemaske'!$N$12="männlich / masculin",Perzentile!I85,Perzentile!S85) -> 119.865 | K84: =IF('Entrée des données_Eingabemaske'!$N$12="männlich / masculin",Perzentile!J85,Perzentile!T85) -> 123.514 | L84: =IF('Entrée des données_Eingabemaske'!$N$12="männlich / masculin",Perzentile!K85,Perzentile!U85) -> 126.7988873 | M84: =IF('Entrée des données_Eingabemaske'!$N$12="männlich / masculin",Perzentile!L85,Perzentile!V85) -> 130.041 | N84: =Perzentile!W85 ->  | O84: =Perzentile!X85 ->  | P84: =Perzentile!Y85 ->  | Q84: 0
A85: 6.9 | B85: 6.916666667 | C85: 83 | D85: =IF('Entrée des données_Eingabemaske'!$N$12="männlich / masculin",Perzentile!C86,Perzentile!M86) -> 1 | E85: =IF('Entrée des données_Eingabemaske'!$N$12="männlich / masculin",Perzentile!D86,Perzentile!N86) -> 120.3374 | F85: =IF('Entrée des données_Eingabemaske'!$N$12="männlich / masculin",Perzentile!E86,Perzentile!O86) -> 0.0452 | G85: =IF('Entrée des données_Eingabemaske'!$N$12="männlich / masculin",Perzentile!F86,Perzentile!P86) -> 110.107 | H85: =IF('Entrée des données_Eingabemaske'!$N$12="männlich / masculin",Perzentile!G86,Perzentile!Q86) -> 113.36672 | I85: =IF('Entrée des données_Eingabemaske'!$N$12="männlich / masculin",Perzentile!H86,Perzentile!R86) -> 116.669 | J85: =IF('Entrée des données_Eingabemaske'!$N$12="männlich / masculin",Perzentile!I86,Perzentile!S86) -> 120.337 | K85: =IF('Entrée des données_Eingabemaske'!$N$12="männlich / masculin",Perzentile!J86,Perzentile!T86) -> 124.006 | L85: =IF('Entrée des données_Eingabemaske'!$N$12="männlich / masculin",Perzentile!K86,Perzentile!U86) -> 127.30808 | M85: =IF('Entrée des données_Eingabemaske'!$N$12="männlich / masculin",Perzentile!L86,Perzentile!V86) -> 130.568 | N85: =Perzentile!W86 ->  | O85: =Perzentile!X86 ->  | P85: =Perzentile!Y86 ->  | Q85: 0
A86: 7 | B86: 7 | C86: 84 | D86: =IF('Entrée des données_Eingabemaske'!$N$12="männlich / masculin",Perzentile!C87,Perzentile!M87) -> 1 | E86: =IF('Entrée des données_Eingabemaske'!$N$12="männlich / masculin",Perzentile!D87,Perzentile!N87) -> 120.8105 | F86: =IF('Entrée des données_Eingabemaske'!$N$12="männlich / masculin",Perzentile!E87,Perzentile!O87) -> 0.04525 | G86: =IF('Entrée des données_Eingabemaske'!$N$12="männlich / masculin",Perzentile!F87,Perzentile!P87) -> 110.529 | H86: =IF('Entrée des données_Eingabemaske'!$N$12="männlich / masculin",Perzentile!G87,Perzentile!Q87) -> 113.8046739 | I86: =IF('Entrée des données_Eingabemaske'!$N$12="männlich / masculin",Perzentile!H87,Perzentile!R87) -> 117.123 | J86: =IF('Entrée des données_Eingabemaske'!$N$12="männlich / masculin",Perzentile!I87,Perzentile!S87) -> 120.81 | K86: =IF('Entrée des données_Eingabemaske'!$N$12="männlich / masculin",Perzentile!J87,Perzentile!T87) -> 124.498 | L86: =IF('Entrée des données_Eingabemaske'!$N$12="männlich / masculin",Perzentile!K87,Perzentile!U87) -> 127.8163261 | M86: =IF('Entrée des données_Eingabemaske'!$N$12="männlich / masculin",Perzentile!L87,Perzentile!V87) -> 131.092 | N86: =Perzentile!W87 ->  | O86: =Perzentile!X87 ->  | P86: =Perzentile!Y87 ->  | Q86: 0
A87: 7.1 | B87: 7.083333333 | C87: 85 | D87: =IF('Entrée des données_Eingabemaske'!$N$12="männlich / masculin",Perzentile!C88,Perzentile!M88) -> 1 | E87: =IF('Entrée des données_Eingabemaske'!$N$12="männlich / masculin",Perzentile!D88,Perzentile!N88) -> 121.2843 | F87: =IF('Entrée des données_Eingabemaske'!$N$12="männlich / masculin",Perzentile!E88,Perzentile!O88) -> 0.04531 | G87: =IF('Entrée des données_Eingabemaske'!$N$12="männlich / masculin",Perzentile!F88,Perzentile!P88) -> 110.949 | H87: =IF('Entrée des données_Eingabemaske'!$N$12="männlich / masculin",Perzentile!G88,Perzentile!Q88) -> 114.2416722 | I87: =IF('Entrée des données_Eingabemaske'!$N$12="männlich / masculin",Perzentile!H88,Perzentile!R88) -> 117.578 | J87: =IF('Entrée des données_Eingabemaske'!$N$12="männlich / masculin",Perzentile!I88,Perzentile!S88) -> 121.284 | K87: =IF('Entrée des données_Eingabemaske'!$N$12="männlich / masculin",Perzentile!J88,Perzentile!T88) -> 124.991 | L87: =IF('Entrée des données_Eingabemaske'!$N$12="männlich / masculin",Perzentile!K88,Perzentile!U88) -> 128.3269278 | M87: =IF('Entrée des données_Eingabemaske'!$N$12="männlich / masculin",Perzentile!L88,Perzentile!V88) -> 131.62 | N87: =Perzentile!W88 ->  | O87: =Perzentile!X88 ->  | P87: =Perzentile!Y88 ->  | Q87: 0
A88: 7.2 | B88: 7.166666667 | C88: 86 | D88: =IF('Entrée des données_Eingabemaske'!$N$12="männlich / masculin",Perzentile!C89,Perzentile!M89) -> 1 | E88: =IF('Entrée des données_Eingabemaske'!$N$12="männlich / masculin",Perzentile!D89,Perzentile!N89) -> 121.7587 | F88: =IF('Entrée des données_Eingabemaske'!$N$12="männlich / masculin",Perzentile!E89,Perzentile!O89) -> 0.04536 | G88: =IF('Entrée des données_Eingabemaske'!$N$12="männlich / masculin",Perzentile!F89,Perzentile!P89) -> 111.371 | H88: =IF('Entrée des données_Eingabemaske'!$N$12="männlich / masculin",Perzentile!G89,Perzentile!Q89) -> 114.6807232 | I88: =IF('Entrée des données_Eingabemaske'!$N$12="männlich / masculin",Perzentile!H89,Perzentile!R89) -> 118.034 | J88: =IF('Entrée des données_Eingabemaske'!$N$12="männlich / masculin",Perzentile!I89,Perzentile!S89) -> 121.759 | K88: =IF('Entrée des données_Eingabemaske'!$N$12="männlich / masculin",Perzentile!J89,Perzentile!T89) -> 125.484 | L88: =IF('Entrée des données_Eingabemaske'!$N$12="männlich / masculin",Perzentile!K89,Perzentile!U89) -> 128.8366768 | M88: =IF('Entrée des données_Eingabemaske'!$N$12="männlich / masculin",Perzentile!L89,Perzentile!V89) -> 132.146 | N88: =Perzentile!W89 ->  | O88: =Perzentile!X89 ->  | P88: =Perzentile!Y89 ->  | Q88: 0
A89: 7.3 | B89: 7.25 | C89: 87 | D89: =IF('Entrée des données_Eingabemaske'!$N$12="männlich / masculin",Perzentile!C90,Perzentile!M90) -> 1 | E89: =IF('Entrée des données_Eingabemaske'!$N$12="männlich / masculin",Perzentile!D90,Perzentile!N90) -> 122.2338 | F89: =IF('Entrée des données_Eingabemaske'!$N$12="männlich / masculin",Perzentile!E90,Perzentile!O90) -> 0.04542 | G89: =IF('Entrée des données_Eingabemaske'!$N$12="männlich / masculin",Perzentile!F90,Perzentile!P90) -> 111.792 | H89: =IF('Entrée des données_Eingabemaske'!$N$12="männlich / masculin",Perzentile!G90,Perzentile!Q90) -> 115.1188062 | I89: =IF('Entrée des données_Eingabemaske'!$N$12="männlich / masculin",Perzentile!H90,Perzentile!R90) -> 118.489 | J89: =IF('Entrée des données_Eingabemaske'!$N$12="männlich / masculin",Perzentile!I90,Perzentile!S90) -> 122.234 | K89: =IF('Entrée des données_Eingabemaske'!$N$12="männlich / masculin",Perzentile!J90,Perzentile!T90) -> 125.978 | L89: =IF('Entrée des données_Eingabemaske'!$N$12="männlich / masculin",Perzentile!K90,Perzentile!U90) -> 129.3487938 | M89: =IF('Entrée des données_Eingabemaske'!$N$12="männlich / masculin",Perzentile!L90,Perzentile!V90) -> 132.676 | N89: =Perzentile!W90 ->  | O89: =Perzentile!X90 ->  | P89: =Perzentile!Y90 ->  | Q89: 0
A90: 7.3 | B90: 7.333333333 | C90: 88 | D90: =IF('Entrée des données_Eingabemaske'!$N$12="männlich / masculin",Perzentile!C91,Perzentile!M91) -> 1 | E90: =IF('Entrée des données_Eingabemaske'!$N$12="männlich / masculin",Perzentile!D91,Perzentile!N91) -> 122.7098 | F90: =IF('Entrée des données_Eingabemaske'!$N$12="männlich / masculin",Perzentile!E91,Perzentile!O91) -> 0.04547 | G90: =IF('Entrée des données_Eingabemaske'!$N$12="männlich / masculin",Perzentile!F91,Perzentile!P91) -> 112.216 | H90: =IF('Entrée des données_Eingabemaske'!$N$12="männlich / masculin",Perzentile!G91,Perzentile!Q91) -> 115.5592362 | I90: =IF('Entrée des données_Eingabemaske'!$N$12="männlich / masculin",Perzentile!H91,Perzentile!R91) -> 118.946 | J90: =IF('Entrée des données_Eingabemaske'!$N$12="männlich / masculin",Perzentile!I91,Perzentile!S91) -> 122.71 | K90: =IF('Entrée des données_Eingabemaske'!$N$12="männlich / masculin",Perzentile!J91,Perzentile!T91) -> 126.473 | L90: =IF('Entrée des données_Eingabemaske'!$N$12="männlich / masculin",Perzentile!K91,Perzentile!U91) -> 129.8603638 | M90: =IF('Entrée des données_Eingabemaske'!$N$12="männlich / masculin",Perzentile!L91,Perzentile!V91) -> 133.204 | N90: =Perzentile!W91 ->  | O90: =Perzentile!X91 ->  | P90: =Perzentile!Y91 ->  | Q90: 0
A91: 7.4 | B91: 7.416666667 | C91: 89 | D91: =IF('Entrée des données_Eingabemaske'!$N$12="männlich / masculin",Perzentile!C92,Perzentile!M92) -> 1 | E91: =IF('Entrée des données_Eingabemaske'!$N$12="männlich / masculin",Perzentile!D92,Perzentile!N92) -> 123.1868 | F91: =IF('Entrée des données_Eingabemaske'!$N$12="männlich / masculin",Perzentile!E92,Perzentile!O92) -> 0.04551 | G91: =IF('Entrée des données_Eingabemaske'!$N$12="männlich / masculin",Perzentile!F92,Perzentile!P92) -> 112.643 | H91: =IF('Entrée des données_Eingabemaske'!$N$12="männlich / masculin",Perzentile!G92,Perzentile!Q92) -> 116.0021255 | I91: =IF('Entrée des données_Eingabemaske'!$N$12="männlich / masculin",Perzentile!H92,Perzentile!R92) -> 119.405 | J91: =IF('Entrée des données_Eingabemaske'!$N$12="männlich / masculin",Perzentile!I92,Perzentile!S92) -> 123.187 | K91: =IF('Entrée des données_Eingabemaske'!$N$12="männlich / masculin",Perzentile!J92,Perzentile!T92) -> 126.968 | L91: =IF('Entrée des données_Eingabemaske'!$N$12="männlich / masculin",Perzentile!K92,Perzentile!U92) -> 130.3714745 | M91: =IF('Entrée des données_Eingabemaske'!$N$12="männlich / masculin",Perzentile!L92,Perzentile!V92) -> 133.731 | N91: =Perzentile!W92 ->  | O91: =Perzentile!X92 ->  | P91: =Perzentile!Y92 ->  | Q91: 0
A92: 7.5 | B92: 7.5 | C92: 90 | D92: =IF('Entrée des données_Eingabemaske'!$N$12="männlich / masculin",Perzentile!C93,Perzentile!M93) -> 1 | E92: =IF('Entrée des données_Eingabemaske'!$N$12="männlich / masculin",Perzentile!D93,Perzentile!N93) -> 123.6646 | F92: =IF('Entrée des données_Eingabemaske'!$N$12="männlich / masculin",Perzentile!E93,Perzentile!O93) -> 0.04556 | G92: =IF('Entrée des données_Eingabemaske'!$N$12="männlich / masculin",Perzentile!F93,Perzentile!P93) -> 113.068 | H92: =IF('Entrée des données_Eingabemaske'!$N$12="männlich / masculin",Perzentile!G93,Perzentile!Q93) -> 116.4441345 | I92: =IF('Entrée des données_Eingabemaske'!$N$12="männlich / masculin",Perzentile!H93,Perzentile!R93) -> 119.864 | J92: =IF('Entrée des données_Eingabemaske'!$N$12="männlich / masculin",Perzentile!I93,Perzentile!S93) -> 123.665 | K92: =IF('Entrée des données_Eingabemaske'!$N$12="männlich / masculin",Perzentile!J93,Perzentile!T93) -> 127.465 | L92: =IF('Entrée des données_Eingabemaske'!$N$12="männlich / masculin",Perzentile!K93,Perzentile!U93) -> 130.8850655 | M92: =IF('Entrée des données_Eingabemaske'!$N$12="männlich / masculin",Perzentile!L93,Perzentile!V93) -> 134.261 | N92: =Perzentile!W93 ->  | O92: =Perzentile!X93 ->  | P92: =Perzentile!Y93 ->  | Q92: 0
A93: 7.6 | B93: 7.583333333 | C93: 91 | D93: =IF('Entrée des données_Eingabemaske'!$N$12="männlich / masculin",Perzentile!C94,Perzentile!M94) -> 1 | E93: =IF('Entrée des données_Eingabemaske'!$N$12="männlich / masculin",Perzentile!D94,Perzentile!N94) -> 124.1435 | F93: =IF('Entrée des données_Eingabemaske'!$N$12="männlich / masculin",Perzentile!E94,Perzentile!O94) -> 0.04561 | G93: =IF('Entrée des données_Eingabemaske'!$N$12="männlich / masculin",Perzentile!F94,Perzentile!P94) -> 113.494 | H93: =IF('Entrée des données_Eingabemaske'!$N$12="männlich / masculin",Perzentile!G94,Perzentile!Q94) -> 116.8871179 | I93: =IF('Entrée des données_Eingabemaske'!$N$12="männlich / masculin",Perzentile!H94,Perzentile!R94) -> 120.324 | J93: =IF('Entrée des données_Eingabemaske'!$N$12="männlich / masculin",Perzentile!I94,Perzentile!S94) -> 124.144 | K93: =IF('Entrée des données_Eingabemaske'!$N$12="männlich / masculin",Perzentile!J94,Perzentile!T94) -> 127.963 | L93: =IF('Entrée des données_Eingabemaske'!$N$12="männlich / masculin",Perzentile!K94,Perzentile!U94) -> 131.3998821 | M93: =IF('Entrée des données_Eingabemaske'!$N$12="männlich / masculin",Perzentile!L94,Perzentile!V94) -> 134.793 | N93: =Perzentile!W94 ->  | O93: =Perzentile!X94 ->  | P93: =Perzentile!Y94 ->  | Q93: 0
A94: 7.7 | B94: 7.666666667 | C94: 92 | D94: =IF('Entrée des données_Eingabemaske'!$N$12="männlich / masculin",Perzentile!C95,Perzentile!M95) -> 1 | E94: =IF('Entrée des données_Eingabemaske'!$N$12="männlich / masculin",Perzentile!D95,Perzentile!N95) -> 124.6234 | F94: =IF('Entrée des données_Eingabemaske'!$N$12="männlich / masculin",Perzentile!E95,Perzentile!O95) -> 0.04565 | G94: =IF('Entrée des données_Eingabemaske'!$N$12="männlich / masculin",Perzentile!F95,Perzentile!P95) -> 113.923 | H94: =IF('Entrée des données_Eingabemaske'!$N$12="männlich / masculin",Perzentile!G95,Perzentile!Q95) -> 117.3325785 | I94: =IF('Entrée des données_Eingabemaske'!$N$12="männlich / masculin",Perzentile!H95,Perzentile!R95) -> 120.786 | J94: =IF('Entrée des données_Eingabemaske'!$N$12="männlich / masculin",Perzentile!I95,Perzentile!S95) -> 124.623 | K94: =IF('Entrée des données_Eingabemaske'!$N$12="männlich / masculin",Perzentile!J95,Perzentile!T95) -> 128.461 | L94: =IF('Entrée des données_Eingabemaske'!$N$12="männlich / masculin",Perzentile!K95,Perzentile!U95) -> 131.9142215 | M94: =IF('Entrée des données_Eingabemaske'!$N$12="männlich / masculin",Perzentile!L95,Perzentile!V95) -> 135.323 | N94: =Perzentile!W95 ->  | O94: =Perzentile!X95 ->  | P94: =Perzentile!Y95 ->  | Q94: 0
A95: 7.8 | B95: 7.75 | C95: 93 | D95: =IF('Entrée des données_Eingabemaske'!$N$12="männlich / masculin",Perzentile!C96,Perzentile!M96) -> 1 | E95: =IF('Entrée des données_Eingabemaske'!$N$12="männlich / masculin",Perzentile!D96,Perzentile!N96) -> 125.1045 | F95: =IF('Entrée des données_Eingabemaske'!$N$12="männlich / masculin",Perzentile!E96,Perzentile!O96) -> 0.04569 | G95: =IF('Entrée des données_Eingabemaske'!$N$12="männlich / masculin",Perzentile!F96,Perzentile!P96) -> 114.354 | H95: =IF('Entrée des données_Eingabemaske'!$N$12="männlich / masculin",Perzentile!G96,Perzentile!Q96) -> 117.7791197 | I95: =IF('Entrée des données_Eingabemaske'!$N$12="männlich / masculin",Perzentile!H96,Perzentile!R96) -> 121.249 | J95: =IF('Entrée des données_Eingabemaske'!$N$12="männlich / masculin",Perzentile!I96,Perzentile!S96) -> 125.104 | K95: =IF('Entrée des données_Eingabemaske'!$N$12="männlich / masculin",Perzentile!J96,Perzentile!T96) -> 128.96 | L95: =IF('Entrée des données_Eingabemaske'!$N$12="männlich / masculin",Perzentile!K96,Perzentile!U96) -> 132.4298803 | M95: =IF('Entrée des données_Eingabemaske'!$N$12="männlich / masculin",Perzentile!L96,Perzentile!V96) -> 135.855 | N95: =Perzentile!W96 ->  | O95: =Perzentile!X96 ->  | P95: =Perzentile!Y96 ->  | Q95: 0
A96: 7.8 | B96: 7.833333333 | C96: 94 | D96: =IF('Entrée des données_Eingabemaske'!$N$12="männlich / masculin",Perzentile!C97,Perzentile!M97) -> 1 | E96: =IF('Entrée des données_Eingabemaske'!$N$12="männlich / masculin",Perzentile!D97,Perzentile!N97) -> 125.5869 | F96: =IF('Entrée des données_Eingabemaske'!$N$12="männlich / masculin",Perzentile!E97,Perzentile!O97) -> 0.04573 | G96: =IF('Entrée des données_Eingabemaske'!$N$12="männlich / masculin",Perzentile!F97,Perzentile!P97) -> 114.785 | H96: =IF('Entrée des données_Eingabemaske'!$N$12="männlich / masculin",Perzentile!G97,Perzentile!Q97) -> 118.2268354 | I96: =IF('Entrée des données_Eingabemaske'!$N$12="männlich / masculin",Perzentile!H97,Perzentile!R97) -> 121.713 | J96: =IF('Entrée des données_Eingabemaske'!$N$12="männlich / masculin",Perzentile!I97,Perzentile!S97) -> 125.587 | K96: =IF('Entrée des données_Eingabemaske'!$N$12="männlich / masculin",Perzentile!J97,Perzentile!T97) -> 129.461 | L96: =IF('Entrée des données_Eingabemaske'!$N$12="männlich / masculin",Perzentile!K97,Perzentile!U97) -> 132.9469646 | M96: =IF('Entrée des données_Eingabemaske'!$N$12="männlich / masculin",Perzentile!L97,Perzentile!V97) -> 136.388 | N96: =Perzentile!W97 ->  | O96: =Perzentile!X97 ->  | P96: =Perzentile!Y97 ->  | Q96: 0
A97: 7.9 | B97: 7.916666667 | C97: 95 | D97: =IF('Entrée des données_Eingabemaske'!$N$12="männlich / masculin",Perzentile!C98,Perzentile!M98) -> 1 | E97: =IF('Entrée des données_Eingabemaske'!$N$12="männlich / masculin",Perzentile!D98,Perzentile!N98) -> 126.0706 | F97: =IF('Entrée des données_Eingabemaske'!$N$12="männlich / masculin",Perzentile!E98,Perzentile!O98) -> 0.04577 | G97: =IF('Entrée des données_Eingabemaske'!$N$12="männlich / masculin",Perzentile!F98,Perzentile!P98) -> 115.218 | H97: =IF('Entrée des données_Eingabemaske'!$N$12="männlich / masculin",Perzentile!G98,Perzentile!Q98) -> 118.6757253 | I97: =IF('Entrée des données_Eingabemaske'!$N$12="männlich / masculin",Perzentile!H98,Perzentile!R98) -> 122.179 | J97: =IF('Entrée des données_Eingabemaske'!$N$12="männlich / masculin",Perzentile!I98,Perzentile!S98) -> 126.071 | K97: =IF('Entrée des données_Eingabemaske'!$N$12="männlich / masculin",Perzentile!J98,Perzentile!T98) -> 129.963 | L97: =IF('Entrée des données_Eingabemaske'!$N$12="männlich / masculin",Perzentile!K98,Perzentile!U98) -> 133.4654747 | M97: =IF('Entrée des données_Eingabemaske'!$N$12="männlich / masculin",Perzentile!L98,Perzentile!V98) -> 136.923 | N97: =Perzentile!W98 ->  | O97: =Perzentile!X98 ->  | P97: =Perzentile!Y98 ->  | Q97: 0
A98: 8 | B98: 8 | C98: 96 | D98: =IF('Entrée des données_Eingabemaske'!$N$12="männlich / masculin",Perzentile!C99,Perzentile!M99) -> 1 | E98: =IF('Entrée des données_Eingabemaske'!$N$12="männlich / masculin",Perzentile!D99,Perzentile!N99) -> 126.5558 | F98: =IF('Entrée des données_Eingabemaske'!$N$12="männlich / masculin",Perzentile!E99,Perzentile!O99) -> 0.04581 | G98: =IF('Entrée des données_Eingabemaske'!$N$12="männlich / masculin",Perzentile!F99,Perzentile!P99) -> 115.652 | H98: =IF('Entrée des données_Eingabemaske'!$N$12="männlich / masculin",Perzentile!G99,Perzentile!Q99) -> 119.1259776 | I98: =IF('Entrée des données_Eingabemaske'!$N$12="männlich / masculin",Perzentile!H99,Perzentile!R99) -> 122.645 | J98: =IF('Entrée des données_Eingabemaske'!$N$12="männlich / masculin",Perzentile!I99,Perzentile!S99) -> 126.556 | K98: =IF('Entrée des données_Eingabemaske'!$N$12="männlich / masculin",Perzentile!J99,Perzentile!T99) -> 130.466 | L98: =IF('Entrée des données_Eingabemaske'!$N$12="männlich / masculin",Perzentile!K99,Perzentile!U99) -> 133.9856224 | M98: =IF('Entrée des données_Eingabemaske'!$N$12="männlich / masculin",Perzentile!L99,Perzentile!V99) -> 137.46 | N98: =Perzentile!W99 ->  | O98: =Perzentile!X99 ->  | P98: =Perzentile!Y99 ->  | Q98: 0
A99: 8.1 | B99: 8.083333333 | C99: 97 | D99: =IF('Entrée des données_Eingabemaske'!$N$12="männlich / masculin",Perzentile!C100,Perzentile!M100) -> 1 | E99: =IF('Entrée des données_Eingabemaske'!$N$12="männlich / masculin",Perzentile!D100,Perzentile!N100) -> 127.0424 | F99: =IF('Entrée des données_Eingabemaske'!$N$12="männlich / masculin",Perzentile!E100,Perzentile!O100) -> 0.04585 | G99: =IF('Entrée des données_Eingabemaske'!$N$12="männlich / masculin",Perzentile!F100,Perzentile!P100) -> 116.087 | H99: =IF('Entrée des données_Eingabemaske'!$N$12="männlich / masculin",Perzentile!G100,Perzentile!Q100) -> 119.5774979 | I99: =IF('Entrée des données_Eingabemaske'!$N$12="männlich / masculin",Perzentile!H100,Perzentile!R100) -> 123.114 | J99: =IF('Entrée des données_Eingabemaske'!$N$12="männlich / masculin",Perzentile!I100,Perzentile!S100) -> 127.042 | K99: =IF('Entrée des données_Eingabemaske'!$N$12="männlich / masculin",Perzentile!J100,Perzentile!T100) -> 130.971 | L99: =IF('Entrée des données_Eingabemaske'!$N$12="männlich / masculin",Perzentile!K100,Perzentile!U100) -> 134.5073021 | M99: =IF('Entrée des données_Eingabemaske'!$N$12="männlich / masculin",Perzentile!L100,Perzentile!V100) -> 137.998 | N99: =Perzentile!W100 ->  | O99: =Perzentile!X100 ->  | P99: =Perzentile!Y100 ->  | Q99: 0
A100: 8.2 | B100: 8.166666667 | C100: 98 | D100: =IF('Entrée des données_Eingabemaske'!$N$12="männlich / masculin",Perzentile!C101,Perzentile!M101) -> 1 | E100: =IF('Entrée des données_Eingabemaske'!$N$12="männlich / masculin",Perzentile!D101,Perzentile!N101) -> 127.5304 | F100: =IF('Entrée des données_Eingabemaske'!$N$12="männlich / masculin",Perzentile!E101,Perzentile!O101) -> 0.04588 | G100: =IF('Entrée des données_Eingabemaske'!$N$12="männlich / masculin",Perzentile!F101,Perzentile!P101) -> 116.526 | H100: =IF('Entrée des données_Eingabemaske'!$N$12="männlich / masculin",Perzentile!G101,Perzentile!Q101) -> 120.0319204 | I100: =IF('Entrée des données_Eingabemaske'!$N$12="männlich / masculin",Perzentile!H101,Perzentile!R101) -> 123.584 | J100: =IF('Entrée des données_Eingabemaske'!$N$12="männlich / masculin",Perzentile!I101,Perzentile!S101) -> 127.53 | K100: =IF('Entrée des données_Eingabemaske'!$N$12="männlich / masculin",Perzentile!J101,Perzentile!T101) -> 131.477 | L100: =IF('Entrée des données_Eingabemaske'!$N$12="männlich / masculin",Perzentile!K101,Perzentile!U101) -> 135.0288796 | M100: =IF('Entrée des données_Eingabemaske'!$N$12="männlich / masculin",Perzentile!L101,Perzentile!V101) -> 138.535 | N100: =Perzentile!W101 ->  | O100: =Perzentile!X101 ->  | P100: =Perzentile!Y101 ->  | Q100: 0
A101: 8.3 | B101: 8.25 | C101: 99 | D101: =IF('Entrée des données_Eingabemaske'!$N$12="männlich / masculin",Perzentile!C102,Perzentile!M102) -> 1 | E101: =IF('Entrée des données_Eingabemaske'!$N$12="männlich / masculin",Perzentile!D102,Perzentile!N102) -> 128.0199 | F101: =IF('Entrée des données_Eingabemaske'!$N$12="männlich / masculin",Perzentile!E102,Perzentile!O102) -> 0.04591 | G101: =IF('Entrée des données_Eingabemaske'!$N$12="männlich / masculin",Perzentile!F102,Perzentile!P102) -> 116.966 | H101: =IF('Entrée des données_Eingabemaske'!$N$12="männlich / masculin",Perzentile!G102,Perzentile!Q102) -> 120.487717 | I101: =IF('Entrée des données_Eingabemaske'!$N$12="männlich / masculin",Perzentile!H102,Perzentile!R102) -> 124.056 | J101: =IF('Entrée des données_Eingabemaske'!$N$12="männlich / masculin",Perzentile!I102,Perzentile!S102) -> 128.02 | K101: =IF('Entrée des données_Eingabemaske'!$N$12="männlich / masculin",Perzentile!J102,Perzentile!T102) -> 131.984 | L101: =IF('Entrée des données_Eingabemaske'!$N$12="männlich / masculin",Perzentile!K102,Perzentile!U102) -> 135.552083 | M101: =IF('Entrée des données_Eingabemaske'!$N$12="männlich / masculin",Perzentile!L102,Perzentile!V102) -> 139.074 | N101: =Perzentile!W102 ->  | O101: =Perzentile!X102 ->  | P101: =Perzentile!Y102 ->  | Q101: 0
A102: 8.3 | B102: 8.333333333 | C102: 100 | D102: =IF('Entrée des données_Eingabemaske'!$N$12="männlich / masculin",Perzentile!C103,Perzentile!M103) -> 1 | E102: =IF('Entrée des données_Eingabemaske'!$N$12="männlich / masculin",Perzentile!D103,Perzentile!N103) -> 128.5109 | F102: =IF('Entrée des données_Eingabemaske'!$N$12="männlich / masculin",Perzentile!E103,Perzentile!O103) -> 0.04594 | G102: =IF('Entrée des données_Eingabemaske'!$N$12="männlich / masculin",Perzentile!F103,Perzentile!P103) -> 117.407 | H102: =IF('Entrée des données_Eingabemaske'!$N$12="männlich / masculin",Perzentile!G103,Perzentile!Q103) -> 120.9448877 | I102: =IF('Entrée des données_Eingabemaske'!$N$12="männlich / masculin",Perzentile!H103,Perzentile!R103) -> 124.529 | J102: =IF('Entrée des données_Eingabemaske'!$N$12="männlich / masculin",Perzentile!I103,Perzentile!S103) -> 128.511 | K102: =IF('Entrée des données_Eingabemaske'!$N$12="männlich / masculin",Perzentile!J103,Perzentile!T103) -> 132.493 | L102: =IF('Entrée des données_Eingabemaske'!$N$12="männlich / masculin",Perzentile!K103,Perzentile!U103) -> 136.0769123 | M102: =IF('Entrée des données_Eingabemaske'!$N$12="männlich / masculin",Perzentile!L103,Perzentile!V103) -> 139.615 | N102: =Perzentile!W103 ->  | O102: =Perzentile!X103 ->  | P102: =Perzentile!Y103 ->  | Q102: 0
A103: 8.4 | B103: 8.416666667 | C103: 101 | D103: =IF('Entrée des données_Eingabemaske'!$N$12="männlich / masculin",Perzentile!C104,Perzentile!M104) -> 1 | E103: =IF('Entrée des données_Eingabemaske'!$N$12="männlich / masculin",Perzentile!D104,Perzentile!N104) -> 129.0035 | F103: =IF('Entrée des données_Eingabemaske'!$N$12="männlich / masculin",Perzentile!E104,Perzentile!O104) -> 0.04597 | G103: =IF('Entrée des données_Eingabemaske'!$N$12="männlich / masculin",Perzentile!F104,Perzentile!P104) -> 117.85 | H103: =IF('Entrée des données_Eingabemaske'!$N$12="männlich / masculin",Perzentile!G104,Perzentile!Q104) -> 121.4035264 | I103: =IF('Entrée des données_Eingabemaske'!$N$12="männlich / masculin",Perzentile!H104,Perzentile!R104) -> 125.004 | J103: =IF('Entrée des données_Eingabemaske'!$N$12="männlich / masculin",Perzentile!I104,Perzentile!S104) -> 129.004 | K103: =IF('Entrée des données_Eingabemaske'!$N$12="männlich / masculin",Perzentile!J104,Perzentile!T104) -> 133.003 | L103: =IF('Entrée des données_Eingabemaske'!$N$12="männlich / masculin",Perzentile!K104,Perzentile!U104) -> 136.6034736 | M103: =IF('Entrée des données_Eingabemaske'!$N$12="männlich / masculin",Perzentile!L104,Perzentile!V104) -> 140.157 | N103: =Perzentile!W104 ->  | O103: =Perzentile!X104 ->  | P103: =Perzentile!Y104 ->  | Q103: 0
A104: 8.5 | B104: 8.5 | C104: 102 | D104: =IF('Entrée des données_Eingabemaske'!$N$12="männlich / masculin",Perzentile!C105,Perzentile!M105) -> 1 | E104: =IF('Entrée des données_Eingabemaske'!$N$12="männlich / masculin",Perzentile!D105,Perzentile!N105) -> 129.4975 | F104: =IF('Entrée des données_Eingabemaske'!$N$12="männlich / masculin",Perzentile!E105,Perzentile!O105) -> 0.046 | G104: =IF('Entrée des données_Eingabemaske'!$N$12="männlich / masculin",Perzentile!F105,Perzentile!P105) -> 118.294 | H104: =IF('Entrée des données_Eingabemaske'!$N$12="männlich / masculin",Perzentile!G105,Perzentile!Q105) -> 121.8634447 | I104: =IF('Entrée des données_Eingabemaske'!$N$12="männlich / masculin",Perzentile!H105,Perzentile!R105) -> 125.48 | J104: =IF('Entrée des données_Eingabemaske'!$N$12="männlich / masculin",Perzentile!I105,Perzentile!S105) -> 129.498 | K104: =IF('Entrée des données_Eingabemaske'!$N$12="männlich / masculin",Perzentile!J105,Perzentile!T105) -> 133.515 | L104: =IF('Entrée des données_Eingabemaske'!$N$12="männlich / masculin",Perzentile!K105,Perzentile!U105) -> 137.1315553 | M104: =IF('Entrée des données_Eingabemaske'!$N$12="männlich / masculin",Perzentile!L105,Perzentile!V105) -> 140.701 | N104: =Perzentile!W105 ->  | O104: =Perzentile!X105 ->  | P104: =Perzentile!Y105 ->  | Q104: 0
A105: 8.6 | B105: 8.583333333 | C105: 103 | D105: =IF('Entrée des données_Eingabemaske'!$N$12="männlich / masculin",Perzentile!C106,Perzentile!M106) -> 1 | E105: =IF('Entrée des données_Eingabemaske'!$N$12="männlich / masculin",Perzentile!D106,Perzentile!N106) -> 129.9932 | F105: =IF('Entrée des données_Eingabemaske'!$N$12="männlich / masculin",Perzentile!E106,Perzentile!O106) -> 0.04602 | G105: =IF('Entrée des données_Eingabemaske'!$N$12="männlich / masculin",Perzentile!F106,Perzentile!P106) -> 118.742 | H105: =IF('Entrée des données_Eingabemaske'!$N$12="männlich / masculin",Perzentile!G106,Perzentile!Q106) -> 122.3265906 | I105: =IF('Entrée des données_Eingabemaske'!$N$12="männlich / masculin",Perzentile!H106,Perzentile!R106) -> 125.958 | J105: =IF('Entrée des données_Eingabemaske'!$N$12="männlich / masculin",Perzentile!I106,Perzentile!S106) -> 129.993 | K105: =IF('Entrée des données_Eingabemaske'!$N$12="männlich / masculin",Perzentile!J106,Perzentile!T106) -> 134.028 | L105: =IF('Entrée des données_Eingabemaske'!$N$12="männlich / masculin",Perzentile!K106,Perzentile!U106) -> 137.6598094 | M105: =IF('Entrée des données_Eingabemaske'!$N$12="männlich / masculin",Perzentile!L106,Perzentile!V106) -> 141.245 | N105: =Perzentile!W106 ->  | O105: =Perzentile!X106 ->  | P105: =Perzentile!Y106 ->  | Q105: 0
A106: 8.7 | B106: 8.666666667 | C106: 104 | D106: =IF('Entrée des données_Eingabemaske'!$N$12="männlich / masculin",Perzentile!C107,Perzentile!M107) -> 1 | E106: =IF('Entrée des données_Eingabemaske'!$N$12="männlich / masculin",Perzentile!D107,Perzentile!N107) -> 130.4904 | F106: =IF('Entrée des données_Eingabemaske'!$N$12="männlich / masculin",Perzentile!E107,Perzentile!O107) -> 0.04604 | G106: =IF('Entrée des données_Eingabemaske'!$N$12="männlich / masculin",Perzentile!F107,Perzentile!P107) -> 119.191 | H106: =IF('Entrée des données_Eingabemaske'!$N$12="männlich / masculin",Perzentile!G107,Perzentile!Q107) -> 122.7911227 | I106: =IF('Entrée des données_Eingabemaske'!$N$12="männlich / masculin",Perzentile!H107,Perzentile!R107) -> 126.438 | J106: =IF('Entrée des données_Eingabemaske'!$N$12="männlich / masculin",Perzentile!I107,Perzentile!S107) -> 130.49 | K106: =IF('Entrée des données_Eingabemaske'!$N$12="männlich / masculin",Perzentile!J107,Perzentile!T107) -> 134.543 | L106: =IF('Entrée des données_Eingabemaske'!$N$12="männlich / masculin",Perzentile!K107,Perzentile!U107) -> 138.1896773 | M106: =IF('Entrée des données_Eingabemaske'!$N$12="männlich / masculin",Perzentile!L107,Perzentile!V107) -> 141.79 | N106: =Perzentile!W107 ->  | O106: =Perzentile!X107 ->  | P106: =Perzentile!Y107 ->  | Q106: 0
A107: 8.8 | B107: 8.75 | C107: 105 | D107: =IF('Entrée des données_Eingabemaske'!$N$12="männlich / masculin",Perzentile!C108,Perzentile!M108) -> 1 | E107: =IF('Entrée des données_Eingabemaske'!$N$12="männlich / masculin",Perzentile!D108,Perzentile!N108) -> 130.9891 | F107: =IF('Entrée des données_Eingabemaske'!$N$12="männlich / masculin",Perzentile!E108,Perzentile!O108) -> 0.04607 | G107: =IF('Entrée des données_Eingabemaske'!$N$12="männlich / masculin",Perzentile!F108,Perzentile!P108) -> 119.639 | H107: =IF('Entrée des données_Eingabemaske'!$N$12="männlich / masculin",Perzentile!G108,Perzentile!Q108) -> 123.255362 | I107: =IF('Entrée des données_Eingabemaske'!$N$12="männlich / masculin",Perzentile!H108,Perzentile!R108) -> 126.919 | J107: =IF('Entrée des données_Eingabemaske'!$N$12="männlich / masculin",Perzentile!I108,Perzentile!S108) -> 130.989 | K107: =IF('Entrée des données_Eingabemaske'!$N$12="männlich / masculin",Perzentile!J108,Perzentile!T108) -> 135.059 | L107: =IF('Entrée des données_Eingabemaske'!$N$12="männlich / masculin",Perzentile!K108,Perzentile!U108) -> 138.722838 | M107: =IF('Entrée des données_Eingabemaske'!$N$12="männlich / masculin",Perzentile!L108,Perzentile!V108) -> 142.339 | N107: =Perzentile!W108 ->  | O107: =Perzentile!X108 ->  | P107: =Perzentile!Y108 ->  | Q107: 0
A108: 8.8 | B108: 8.833333333 | C108: 106 | D108: =IF('Entrée des données_Eingabemaske'!$N$12="männlich / masculin",Perzentile!C109,Perzentile!M109) -> 1 | E108: =IF('Entrée des données_Eingabemaske'!$N$12="männlich / masculin",Perzentile!D109,Perzentile!N109) -> 131.4895 | F108: =IF('Entrée des données_Eingabemaske'!$N$12="männlich / masculin",Perzentile!E109,Perzentile!O109) -> 0.04608 | G108: =IF('Entrée des données_Eingabemaske'!$N$12="männlich / masculin",Perzentile!F109,Perzentile!P109) -> 120.094 | H108: =IF('Entrée des données_Eingabemaske'!$N$12="männlich / masculin",Perzentile!G109,Perzentile!Q109) -> 123.7245327 | I108: =IF('Entrée des données_Eingabemaske'!$N$12="männlich / masculin",Perzentile!H109,Perzentile!R109) -> 127.403 | J108: =IF('Entrée des données_Eingabemaske'!$N$12="männlich / masculin",Perzentile!I109,Perzentile!S109) -> 131.49 | K108: =IF('Entrée des données_Eingabemaske'!$N$12="männlich / masculin",Perzentile!J109,Perzentile!T109) -> 135.576 | L108: =IF('Entrée des données_Eingabemaske'!$N$12="männlich / masculin",Perzentile!K109,Perzentile!U109) -> 139.2544673 | M108: =IF('Entrée des données_Eingabemaske'!$N$12="männlich / masculin",Perzentile!L109,Perzentile!V109) -> 142.885 | N108: =Perzentile!W109 ->  | O108: =Perzentile!X109 ->  | P108: =Perzentile!Y109 ->  | Q108: 0
A109: 8.9 | B109: 8.916666667 | C109: 107 | D109: =IF('Entrée des données_Eingabemaske'!$N$12="männlich / masculin",Perzentile!C110,Perzentile!M110) -> 1 | E109: =IF('Entrée des données_Eingabemaske'!$N$12="männlich / masculin",Perzentile!D110,Perzentile!N110) -> 131.9912 | F109: =IF('Entrée des données_Eingabemaske'!$N$12="männlich / masculin",Perzentile!E110,Perzentile!O110) -> 0.0461 | G109: =IF('Entrée des données_Eingabemaske'!$N$12="männlich / masculin",Perzentile!F110,Perzentile!P110) -> 120.547 | H109: =IF('Entrée des données_Eingabemaske'!$N$12="männlich / masculin",Perzentile!G110,Perzentile!Q110) -> 124.1932223 | I109: =IF('Entrée des données_Eingabemaske'!$N$12="männlich / masculin",Perzentile!H110,Perzentile!R110) -> 127.887 | J109: =IF('Entrée des données_Eingabemaske'!$N$12="männlich / masculin",Perzentile!I110,Perzentile!S110) -> 131.991 | K109: =IF('Entrée des données_Eingabemaske'!$N$12="männlich / masculin",Perzentile!J110,Perzentile!T110) -> 136.095 | L109: =IF('Entrée des données_Eingabemaske'!$N$12="männlich / masculin",Perzentile!K110,Perzentile!U110) -> 139.7891777 | M109: =IF('Entrée des données_Eingabemaske'!$N$12="männlich / masculin",Perzentile!L110,Perzentile!V110) -> 143.435 | N109: =Perzentile!W110 ->  | O109: =Perzentile!X110 ->  | P109: =Perzentile!Y110 ->  | Q109: 0
A110: 9 | B110: 9 | C110: 108 | D110: =IF('Entrée des données_Eingabemaske'!$N$12="männlich / masculin",Perzentile!C111,Perzentile!M111) -> 1 | E110: =IF('Entrée des données_Eingabemaske'!$N$12="männlich / masculin",Perzentile!D111,Perzentile!N111) -> 132.4944 | F110: =IF('Entrée des données_Eingabemaske'!$N$12="männlich / masculin",Perzentile!E111,Perzentile!O111) -> 0.04612 | G110: =IF('Entrée des données_Eingabemaske'!$N$12="männlich / masculin",Perzentile!F111,Perzentile!P111) -> 121.002 | H110: =IF('Entrée des données_Eingabemaske'!$N$12="männlich / masculin",Perzentile!G111,Perzentile!Q111) -> 124.6632975 | I110: =IF('Entrée des données_Eingabemaske'!$N$12="männlich / masculin",Perzentile!H111,Perzentile!R111) -> 128.373 | J110: =IF('Entrée des données_Eingabemaske'!$N$12="männlich / masculin",Perzentile!I111,Perzentile!S111) -> 132.494 | K110: =IF('Entrée des données_Eingabemaske'!$N$12="männlich / masculin",Perzentile!J111,Perzentile!T111) -> 136.616 | L110: =IF('Entrée des données_Eingabemaske'!$N$12="männlich / masculin",Perzentile!K111,Perzentile!U111) -> 140.3255025 | M110: =IF('Entrée des données_Eingabemaske'!$N$12="männlich / masculin",Perzentile!L111,Perzentile!V111) -> 143.987 | N110: =Perzentile!W111 ->  | O110: =Perzentile!X111 ->  | P110: =Perzentile!Y111 ->  | Q110: 0
A111: 9.1 | B111: 9.083333333 | C111: 109 | D111: =IF('Entrée des données_Eingabemaske'!$N$12="männlich / masculin",Perzentile!C112,Perzentile!M112) -> 1 | E111: =IF('Entrée des données_Eingabemaske'!$N$12="männlich / masculin",Perzentile!D112,Perzentile!N112) -> 132.9989 | F111: =IF('Entrée des données_Eingabemaske'!$N$12="männlich / masculin",Perzentile!E112,Perzentile!O112) -> 0.04613 | G111: =IF('Entrée des données_Eingabemaske'!$N$12="männlich / masculin",Perzentile!F112,Perzentile!P112) -> 121.46 | H111: =IF('Entrée des données_Eingabemaske'!$N$12="männlich / masculin",Perzentile!G112,Perzentile!Q112) -> 125.1362745 | I111: =IF('Entrée des données_Eingabemaske'!$N$12="männlich / masculin",Perzentile!H112,Perzentile!R112) -> 128.861 | J111: =IF('Entrée des données_Eingabemaske'!$N$12="männlich / masculin",Perzentile!I112,Perzentile!S112) -> 132.999 | K111: =IF('Entrée des données_Eingabemaske'!$N$12="männlich / masculin",Perzentile!J112,Perzentile!T112) -> 137.137 | L111: =IF('Entrée des données_Eingabemaske'!$N$12="männlich / masculin",Perzentile!K112,Perzentile!U112) -> 140.8615255 | M111: =IF('Entrée des données_Eingabemaske'!$N$12="männlich / masculin",Perzentile!L112,Perzentile!V112) -> 144.538 | N111: =Perzentile!W112 ->  | O111: =Perzentile!X112 ->  | P111: =Perzentile!Y112 ->  | Q111: 0
A112: 9.2 | B112: 9.166666667 | C112: 110 | D112: =IF('Entrée des données_Eingabemaske'!$N$12="männlich / masculin",Perzentile!C113,Perzentile!M113) -> 1 | E112: =IF('Entrée des données_Eingabemaske'!$N$12="männlich / masculin",Perzentile!D113,Perzentile!N113) -> 133.5046 | F112: =IF('Entrée des données_Eingabemaske'!$N$12="männlich / masculin",Perzentile!E113,Perzentile!O113) -> 0.04614 | G112: =IF('Entrée des données_Eingabemaske'!$N$12="männlich / masculin",Perzentile!F113,Perzentile!P113) -> 121.919 | H112: =IF('Entrée des données_Eingabemaske'!$N$12="männlich / masculin",Perzentile!G113,Perzentile!Q113) -> 125.6103676 | I112: =IF('Entrée des données_Eingabemaske'!$N$12="männlich / masculin",Perzentile!H113,Perzentile!R113) -> 129.35 | J112: =IF('Entrée des données_Eingabemaske'!$N$12="männlich / masculin",Perzentile!I113,Perzentile!S113) -> 133.505 | K112: =IF('Entrée des données_Eingabemaske'!$N$12="männlich / masculin",Perzentile!J113,Perzentile!T113) -> 137.659 | L112: =IF('Entrée des données_Eingabemaske'!$N$12="männlich / masculin",Perzentile!K113,Perzentile!U113) -> 141.3988324 | M112: =IF('Entrée des données_Eingabemaske'!$N$12="männlich / masculin",Perzentile!L113,Perzentile!V113) -> 145.09 | N112: =Perzentile!W113 ->  | O112: =Perzentile!X113 ->  | P112: =Perzentile!Y113 ->  | Q112: 0
A113: 9.3 | B113: 9.25 | C113: 111 | D113: =IF('Entrée des données_Eingabemaske'!$N$12="männlich / masculin",Perzentile!C114,Perzentile!M114) -> 1 | E113: =IF('Entrée des données_Eingabemaske'!$N$12="männlich / masculin",Perzentile!D114,Perzentile!N114) -> 134.0118 | F113: =IF('Entrée des données_Eingabemaske'!$N$12="männlich / masculin",Perzentile!E114,Perzentile!O114) -> 0.04615 | G113: =IF('Entrée des données_Eingabemaske'!$N$12="männlich / masculin",Perzentile!F114,Perzentile!P114) -> 122.38 | H113: =IF('Entrée des données_Eingabemaske'!$N$12="männlich / masculin",Perzentile!G114,Perzentile!Q114) -> 126.0858591 | I113: =IF('Entrée des données_Eingabemaske'!$N$12="männlich / masculin",Perzentile!H114,Perzentile!R114) -> 129.84 | J113: =IF('Entrée des données_Eingabemaske'!$N$12="männlich / masculin",Perzentile!I114,Perzentile!S114) -> 134.012 | K113: =IF('Entrée des données_Eingabemaske'!$N$12="männlich / masculin",Perzentile!J114,Perzentile!T114) -> 138.183 | L113: =IF('Entrée des données_Eingabemaske'!$N$12="männlich / masculin",Perzentile!K114,Perzentile!U114) -> 141.9377409 | M113: =IF('Entrée des données_Eingabemaske'!$N$12="männlich / masculin",Perzentile!L114,Perzentile!V114) -> 145.644 | N113: =Perzentile!W114 ->  | O113: =Perzentile!X114 ->  | P113: =Perzentile!Y114 ->  | Q113: 0
A114: 9.3 | B114: 9.333333333 | C114: 112 | D114: =IF('Entrée des données_Eingabemaske'!$N$12="männlich / masculin",Perzentile!C115,Perzentile!M115) -> 1 | E114: =IF('Entrée des données_Eingabemaske'!$N$12="männlich / masculin",Perzentile!D115,Perzentile!N115) -> 134.5202 | F114: =IF('Entrée des données_Eingabemaske'!$N$12="männlich / masculin",Perzentile!E115,Perzentile!O115) -> 0.04616 | G114: =IF('Entrée des données_Eingabemaske'!$N$12="männlich / masculin",Perzentile!F115,Perzentile!P115) -> 122.842 | H114: =IF('Entrée des données_Eingabemaske'!$N$12="männlich / masculin",Perzentile!G115,Perzentile!Q115) -> 126.5624665 | I114: =IF('Entrée des données_Eingabemaske'!$N$12="männlich / masculin",Perzentile!H115,Perzentile!R115) -> 130.332 | J114: =IF('Entrée des données_Eingabemaske'!$N$12="männlich / masculin",Perzentile!I115,Perzentile!S115) -> 134.52 | K114: =IF('Entrée des données_Eingabemaske'!$N$12="männlich / masculin",Perzentile!J115,Perzentile!T115) -> 138.708 | L114: =IF('Entrée des données_Eingabemaske'!$N$12="männlich / masculin",Perzentile!K115,Perzentile!U115) -> 142.4779335 | M114: =IF('Entrée des données_Eingabemaske'!$N$12="männlich / masculin",Perzentile!L115,Perzentile!V115) -> 146.199 | N114: =Perzentile!W115 ->  | O114: =Perzentile!X115 ->  | P114: =Perzentile!Y115 ->  | Q114: 0
A115: 9.4 | B115: 9.416666667 | C115: 113 | D115: =IF('Entrée des données_Eingabemaske'!$N$12="männlich / masculin",Perzentile!C116,Perzentile!M116) -> 1 | E115: =IF('Entrée des données_Eingabemaske'!$N$12="männlich / masculin",Perzentile!D116,Perzentile!N116) -> 135.0299 | F115: =IF('Entrée des données_Eingabemaske'!$N$12="männlich / masculin",Perzentile!E116,Perzentile!O116) -> 0.04616 | G115: =IF('Entrée des données_Eingabemaske'!$N$12="männlich / masculin",Perzentile!F116,Perzentile!P116) -> 123.307 | H115: =IF('Entrée des données_Eingabemaske'!$N$12="männlich / masculin",Perzentile!G116,Perzentile!Q116) -> 127.0420145 | I115: =IF('Entrée des données_Eingabemaske'!$N$12="männlich / masculin",Perzentile!H116,Perzentile!R116) -> 130.826 | J115: =IF('Entrée des données_Eingabemaske'!$N$12="männlich / masculin",Perzentile!I116,Perzentile!S116) -> 135.03 | K115: =IF('Entrée des données_Eingabemaske'!$N$12="männlich / masculin",Perzentile!J116,Perzentile!T116) -> 139.234 | L115: =IF('Entrée des données_Eingabemaske'!$N$12="männlich / masculin",Perzentile!K116,Perzentile!U116) -> 143.0177855 | M115: =IF('Entrée des données_Eingabemaske'!$N$12="männlich / masculin",Perzentile!L116,Perzentile!V116) -> 146.753 | N115: =Perzentile!W116 ->  | O115: =Perzentile!X116 ->  | P115: =Perzentile!Y116 ->  | Q115: 0
A116: 9.5 | B116: 9.5 | C116: 114 | D116: =IF('Entrée des données_Eingabemaske'!$N$12="männlich / masculin",Perzentile!C117,Perzentile!M117) -> 1 | E116: =IF('Entrée des données_Eingabemaske'!$N$12="männlich / masculin",Perzentile!D117,Perzentile!N117) -> 135.541 | F116: =IF('Entrée des données_Eingabemaske'!$N$12="männlich / masculin",Perzentile!E117,Perzentile!O117) -> 0.04617 | G116: =IF('Entrée des données_Eingabemaske'!$N$12="männlich / masculin",Perzentile!F117,Perzentile!P117) -> 123.771 | H116: =IF('Entrée des données_Eingabemaske'!$N$12="männlich / masculin",Perzentile!G117,Perzentile!Q117) -> 127.5211426 | I116: =IF('Entrée des données_Eingabemaske'!$N$12="männlich / masculin",Perzentile!H117,Perzentile!R117) -> 131.32 | J116: =IF('Entrée des données_Eingabemaske'!$N$12="männlich / masculin",Perzentile!I117,Perzentile!S117) -> 135.541 | K116: =IF('Entrée des données_Eingabemaske'!$N$12="männlich / masculin",Perzentile!J117,Perzentile!T117) -> 139.762 | L116: =IF('Entrée des données_Eingabemaske'!$N$12="männlich / masculin",Perzentile!K117,Perzentile!U117) -> 143.5608574 | M116: =IF('Entrée des données_Eingabemaske'!$N$12="männlich / masculin",Perzentile!L117,Perzentile!V117) -> 147.311 | N116: =Perzentile!W117 ->  | O116: =Perzentile!X117 ->  | P116: =Perzentile!Y117 ->  | Q116: 0
A117: 9.6 | B117: 9.583333333 | C117: 115 | D117: =IF('Entrée des données_Eingabemaske'!$N$12="männlich / masculin",Perzentile!C118,Perzentile!M118) -> 1 | E117: =IF('Entrée des données_Eingabemaske'!$N$12="männlich / masculin",Perzentile!D118,Perzentile!N118) -> 136.0533 | F117: =IF('Entrée des données_Eingabemaske'!$N$12="männlich / masculin",Perzentile!E118,Perzentile!O118) -> 0.04617 | G117: =IF('Entrée des données_Eingabemaske'!$N$12="männlich / masculin",Perzentile!F118,Perzentile!P118) -> 124.239 | H117: =IF('Entrée des données_Eingabemaske'!$N$12="männlich / masculin",Perzentile!G118,Perzentile!Q118) -> 128.0031302 | I117: =IF('Entrée des données_Eingabemaske'!$N$12="männlich / masculin",Perzentile!H118,Perzentile!R118) -> 131.816 | J117: =IF('Entrée des données_Eingabemaske'!$N$12="männlich / masculin",Perzentile!I118,Perzentile!S118) -> 136.053 | K117: =IF('Entrée des données_Eingabemaske'!$N$12="männlich / masculin",Perzentile!J118,Perzentile!T118) -> 140.29 | L117: =IF('Entrée des données_Eingabemaske'!$N$12="männlich / masculin",Perzentile!K118,Perzentile!U118) -> 144.1034698 | M117: =IF('Entrée des données_Eingabemaske'!$N$12="männlich / masculin",Perzentile!L118,Perzentile!V118) -> 147.868 | N117: =Perzentile!W118 ->  | O117: =Perzentile!X118 ->  | P117: =Perzentile!Y118 ->  | Q117: 0
A118: 9.7 | B118: 9.666666667 | C118: 116 | D118: =IF('Entrée des données_Eingabemaske'!$N$12="männlich / masculin",Perzentile!C119,Perzentile!M119) -> 1 | E118: =IF('Entrée des données_Eingabemaske'!$N$12="männlich / masculin",Perzentile!D119,Perzentile!N119) -> 136.567 | F118: =IF('Entrée des données_Eingabemaske'!$N$12="männlich / masculin",Perzentile!E119,Perzentile!O119) -> 0.04616 | G118: =IF('Entrée des données_Eingabemaske'!$N$12="männlich / masculin",Perzentile!F119,Perzentile!P119) -> 124.711 | H118: =IF('Entrée des données_Eingabemaske'!$N$12="männlich / masculin",Perzentile!G119,Perzentile!Q119) -> 128.4881852 | I118: =IF('Entrée des données_Eingabemaske'!$N$12="männlich / masculin",Perzentile!H119,Perzentile!R119) -> 132.315 | J118: =IF('Entrée des données_Eingabemaske'!$N$12="männlich / masculin",Perzentile!I119,Perzentile!S119) -> 136.567 | K118: =IF('Entrée des données_Eingabemaske'!$N$12="männlich / masculin",Perzentile!J119,Perzentile!T119) -> 140.819 | L118: =IF('Entrée des données_Eingabemaske'!$N$12="männlich / masculin",Perzentile!K119,Perzentile!U119) -> 144.6458148 | M118: =IF('Entrée des données_Eingabemaske'!$N$12="männlich / masculin",Perzentile!L119,Perzentile!V119) -> 148.423 | N118: =Perzentile!W119 ->  | O118: =Perzentile!X119 ->  | P118: =Perzentile!Y119 ->  | Q118: 0
